Workbook

Sheet Other QA scope (hidden)
B2: Review that the QA is for | E2: 2023-24 Special Variations
B3: Name of model | E3: <not required for simple spreadsheets if the file name is sufficiently descriptive>
B4: File name(s):
B8: Name of modeller | E8: Jisoo Mok
B9: Planned date of QA: | E9: Week of 19 September 2022
B10: Risk rating for the review: | E10: Low
B11: Note: low risk models do not require independent QA, however the modeller should indicate in section 2.3 what steps have been taken to ensure accuracy of results.
B13: 1. PURPOSE OF MODEL
B14: The modeller provides a concise summary of the model's purpose(s)
B15: Main changes:
B16: WK7 - Financials: Request for five years of historical data (i.e. addition of yr -5 and -4).
B17: WK7 - Financials: Addition of three extra tables that request for IPPE financials and net cash flows from operating activities.
B18: WK9 - Ratios: Request for five years of historical data (i.e. addition of yr -5 and -4).
B21: 2. CONTEXT AND SCOPE OF QA
B22: The modeller provides information about the context of the QA and the scope of work.
B24: 2.1 The model/spreadsheet is for (context)
B36: 2.2 The scope of the QA is to check
C38: Logic checks | F38: Input checks
B52: * provide details of requirements for "simplified duplication of analysis" and/or "sampling of inputs" in section 2.3 below.
B55: 2.3 Detailed scope of QA
B56: Specify clearly how to identify what needs to be checked (e.g. "check all calculations and inputs highlighted in green on the following worksheets: …")
B57: For "simplified duplications of analysis" (if applicable), specify how you and the QAer have agreed the analysis will be duplicated
B58: For "sampling of inputs" (if applicable), specify how you and the QAer have agreed the inputs will be sampled
B59: WK 0 - Input data:
B60: Check cell D44 = 2023
B61: Check that formulas in rows 54 to 60 are still correct as historical yrs 4 & 5 were added.
B62: Check that correct rate pegs have been copied into L269:N398 from D22/19313 -> pop factors
B63: Sense check to ensure index match populated correct rate pegs to each council in D270:D398
B64: Check all the FALSEs in E270:E398 and ensure that the return of FALSE was simply due to the same council being referred to by different names/naming conventions.
B66: WK 7 - Financials
B67: Check all formulas (i.e. white cells only) in the sheet.
B69: WK 9 - Ratios
B70: Check all formulas (i.e. white cells only) in the sheet.
B71: Check all hyperlinks in column Y work.
B73: Export
B74: Check that tables from row 1436 to 1532 reference the correct cells in the relevant sheets.
B94: 3. QA CHECK LIST
B96: 3.1 Pre-QA check list (for both medium and high risk QAs)
C98: Select an option
C100: Yes | D100: Is the model consistent with good modelling practice? | J100: DO NOT DELETE
C101: Yes | D101: Tables, inputs and outputs are clearly labelled, e.g.: | J101: Yes
D102: – Units e.g. $m, $’000, $ or cents, kL, MWh, GJ, etc | J102: No
D103: – Nominal or real | J103: NA
D104: – Including or excluding GST
C105: Yes | D105: The QAer can easily identify the parts of the model that need to be checked | J105: High
C106: No | D106: The model inputs reflect Tribunal decisions or information from the source documents or related models | J106: Medium
C107: No | D107: The source documents (or references) have all been located and provided to the QAer/s | J107: Low
J108: select
C109: No | D109: Has the QA scope been reviewed by the Chief Modeller? (Only applicable for external models and high risk price determinations)
B112: 3.2 QA check list (for RStudio scripts only)
C114: No | D114: Code was rerun successfully; or an alternative calculation successfully replicated results
C115: No | D115: Code is easy to follow, with comments highlighting different sections in code
C116: No | D116: Variable names are easy to understand
C117: No | D117: Test variables are used to check that data is not duplicated or excluded in error when joining data sources
C118: No | D118: If this QA is an update to an existing RStudio script, changes are highlighted and easy to find (e.g. a text comparison tool is used to compare scripts before and after change)
B121: 4 INDUSTRY TEAM REMINDER – POST QA SIGN OFF IN CM9
B123: Has the post-QA deliverable been CM9ed?
B124: Has the QA been signed off via action tracking in CM9 by the QA analyst and Director?

Sheet Export (hidden)
B3: EXPORT SHEET
B6: ='WS1-Application'!B23 -> Council Name: | E6: =IF(ISBLANK('WS1-Application'!D24),'WS1-Application'!D23,'WS1-Application'!D24) -> Upper Hunter Shire Council
B7: Type of application | E7: ='WS2-Proposal'!K58 -> s508A
B8: Has existing SV? | E8: ='WS2-Proposal'!K41 -> no
B9: Years SV requested | E9: ='WS2-Proposal'!W62 -> 3
B10: Permanent or temporary? | E10: ='WS2-Proposal'!K60 -> Permanent
B11: No yrs if temporary | E11: ='WS2-Proposal'!K62 -> 0
E16: Expiry date
B17: ='WS2-Proposal'!C44 -> 1st Expiring SV | E17: ='WS2-Proposal'!K44 -> na
B18: ='WS2-Proposal'!C45 -> 2nd Expiring SV | E18: ='WS2-Proposal'!K45 -> na
B23: ='WS2-Proposal'!B68 -> b. Requested annual percentage increases and expiring SV amounts
J24: ='WS2-Proposal'!J72 -> Year 0 | K24: ='WS2-Proposal'!K72 -> Year 1 | L24: ='WS2-Proposal'!L72 -> Year 2 | M24: ='WS2-Proposal'!M72 -> Year 3 | N24: ='WS2-Proposal'!N72 -> Year 4 | O24: ='WS2-Proposal'!O72 -> Year 5 | P24: ='WS2-Proposal'!P72 -> Year 6 | Q24: ='WS2-Proposal'!Q72 -> Year 7
B25: ='WS2-Proposal'!B73 -> Financial year | J25: ='WS2-Proposal'!J73 -> 2024-25 | K25: ='WS2-Proposal'!K73 -> 2025-26 | L25: ='WS2-Proposal'!L73 -> 2026-27 | M25: ='WS2-Proposal'!M73 -> 2027-28 | N25: ='WS2-Proposal'!N73 -> 2028-29 | O25: ='WS2-Proposal'!O73 -> 2029-30 | P25: ='WS2-Proposal'!P73 -> 2030-31 | Q25: ='WS2-Proposal'!Q73 -> 2031-32
B26: ='WS2-Proposal'!B74 -> 1= included in SV period | K26: ='WS2-Proposal'!K74 -> 1 | L26: ='WS2-Proposal'!L74 -> 1 | M26: ='WS2-Proposal'!M74 -> 1 | N26: ='WS2-Proposal'!N74 -> 0 | O26: ='WS2-Proposal'!O74 -> 0 | P26: ='WS2-Proposal'!P74 -> 0 | Q26: ='WS2-Proposal'!Q74 -> 0
B27: ='WS2-Proposal'!B75 -> 0 = beyond temporary SV period | K27: ='WS2-Proposal'!K75 -> 1 | L27: ='WS2-Proposal'!L75 -> 1 | M27: ='WS2-Proposal'!M75 -> 1 | N27: ='WS2-Proposal'!N75 -> 1 | O27: ='WS2-Proposal'!O75 -> 1 | P27: ='WS2-Proposal'!P75 -> 1 | Q27: ='WS2-Proposal'!Q75 -> 1
B28: ='WS2-Proposal'!B76 -> Annual % increases
B29: ='WS2-Proposal'!B77 -> na - leave blank | K29: =IF($E$8="no",0,'WS2-Proposal'!K77) -> 0 | L29: =IF($E$8="no",0,'WS2-Proposal'!L77) -> 0 | M29: =IF($E$8="no",0,'WS2-Proposal'!M77) -> 0 | N29: =IF($E$8="no",0,'WS2-Proposal'!N77) -> 0 | O29: =IF($E$8="no",0,'WS2-Proposal'!O77) -> 0 | P29: =IF($E$8="no",0,'WS2-Proposal'!P77) -> 0 | Q29: =IF($E$8="no",0,'WS2-Proposal'!Q77) -> 0
B31: ='WS2-Proposal'!B80 -> Rate peg only | K31: ='WS2-Proposal'!K80 -> 0.043 | L31: ='WS2-Proposal'!L80 -> 0.034 | M31: ='WS2-Proposal'!M80 -> 0.031 | N31: ='WS2-Proposal'!N80 -> 0.028 | O31: ='WS2-Proposal'!O80 -> 0.025 | P31: ='WS2-Proposal'!P80 -> 0.025 | Q31: ='WS2-Proposal'!Q80 -> 0.025
B32: ='WS2-Proposal'!B81 -> na - No existing SV above rate peg | K32: ='WS2-Proposal'!K81 -> 0 | L32: ='WS2-Proposal'!L81 -> 0 | M32: ='WS2-Proposal'!M81 -> 0 | N32: ='WS2-Proposal'!N81 -> 0 | O32: ='WS2-Proposal'!O81 -> 0 | P32: ='WS2-Proposal'!P81 -> 0 | Q32: ='WS2-Proposal'!Q81 -> 0
B33: ='WS2-Proposal'!B82 -> Percentage above the rate peg | K33: ='WS2-Proposal'!K82 -> 0.057 | L33: ='WS2-Proposal'!L82 -> 0.066 | M33: ='WS2-Proposal'!M82 -> 0.069 | N33: ='WS2-Proposal'!N82 -> 0 | O33: ='WS2-Proposal'!O82 -> 0 | P33: ='WS2-Proposal'!P82 -> 0 | Q33: ='WS2-Proposal'!Q82 -> 0
B34: ='WS2-Proposal'!B83 -> Na - ignore this row - Not a combined SV | K34: =CHOOSE('WS2-Proposal'!$W$66,'WS2-Proposal'!K83,0) -> 0 | L34: =CHOOSE('WS2-Proposal'!$W$66,'WS2-Proposal'!L83,0) -> 0 | M34: =CHOOSE('WS2-Proposal'!$W$66,'WS2-Proposal'!M83,0) -> 0 | N34: =CHOOSE('WS2-Proposal'!$W$66,'WS2-Proposal'!N83,0) -> 0 | O34: =CHOOSE('WS2-Proposal'!$W$66,'WS2-Proposal'!O83,0) -> 0 | P34: =CHOOSE('WS2-Proposal'!$W$66,'WS2-Proposal'!P83,0) -> 0 | Q34: =CHOOSE('WS2-Proposal'!$W$66,'WS2-Proposal'!Q83,0) -> 0
B35: ='WS2-Proposal'!B84 -> Crown Land adjustment | K35: ='WS2-Proposal'!K84 -> 0 | L35: ='WS2-Proposal'!L84 -> 0 | M35: ='WS2-Proposal'!M84 -> 0 | N35: ='WS2-Proposal'!N84 -> 0 | O35: ='WS2-Proposal'!O84 -> 0 | P35: ='WS2-Proposal'!P84 -> 0 | Q35: ='WS2-Proposal'!Q84 -> 0
B36: ='WS2-Proposal'!B85 -> Proposed SV | K36: =IF(K27=0,0,IF(K26=0,K31+K32,'WS2-Proposal'!K85)) -> 0.1 | L36: =IF(L27=0,0,IF(L26=0,L31+L32,'WS2-Proposal'!L85)) -> 0.1 | M36: =IF(M27=0,0,IF(M26=0,M31+M32,'WS2-Proposal'!M85)) -> 0.1 | N36: =IF(N27=0,0,IF(N26=0,N31+N32,'WS2-Proposal'!N85)) -> 0.028 | O36: =IF(O27=0,0,IF(O26=0,O31+O32,'WS2-Proposal'!O85)) -> 0.025 | P36: =IF(P27=0,0,IF(P26=0,P31+P32,'WS2-Proposal'!P85)) -> 0.025 | Q36: =IF(Q27=0,0,IF(Q26=0,Q31+Q32,'WS2-Proposal'!Q85)) -> 0.025
B37: ='WS2-Proposal'!B86 -> Cumulative % increase
B38: ='WS2-Proposal'!B87 -> Rate peg only | K38: ='WS2-Proposal'!K87 -> 0.043 | L38: ='WS2-Proposal'!L87 -> 0.078462 | M38: ='WS2-Proposal'!M87 -> 0.111894322 | N38: ='WS2-Proposal'!N87 -> 0.143027363 | O38: ='WS2-Proposal'!O87 -> 0.1716030471 | P38: ='WS2-Proposal'!P87 -> 0.2008931233 | Q38: ='WS2-Proposal'!Q87 -> 0.2309154514
B39: ='WS2-Proposal'!B88 -> Plus: additional increases | K39: ='WS2-Proposal'!K88 -> 0.057 | L39: ='WS2-Proposal'!L88 -> 0.131538 | M39: ='WS2-Proposal'!M88 -> 0.219105678 | N39: ='WS2-Proposal'!N88 -> 0 | O39: ='WS2-Proposal'!O88 -> 0 | P39: ='WS2-Proposal'!P88 -> 0 | Q39: ='WS2-Proposal'!Q88 -> 0
B40: ='WS2-Proposal'!B89 -> Proposed SV | K40: ='WS2-Proposal'!K89 -> 0.1 | L40: ='WS2-Proposal'!L89 -> 0.21 | M40: ='WS2-Proposal'!M89 -> 0.331 | N40: ='WS2-Proposal'!N89 -> 0.368268 | O40: ='WS2-Proposal'!O89 -> 0.4024747 | P40: ='WS2-Proposal'!P89 -> 0.4375365675 | Q40: ='WS2-Proposal'!Q89 -> 0.4734749817
B42: ='WS2-Proposal'!B91 -> c. Expiring special variations (ESV)
B43: ='WS2-Proposal'!B92 -> $ value of ESV | K43: ='WS2-Proposal'!K92 -> 0 | L43: ='WS2-Proposal'!L92 -> 0 | M43: ='WS2-Proposal'!M92 -> 0 | N43: ='WS2-Proposal'!N92 -> 0 | O43: ='WS2-Proposal'!O92 -> 0 | P43: ='WS2-Proposal'!P92 -> 0 | Q43: ='WS2-Proposal'!Q92 -> 0
B44: ='WS2-Proposal'!B93 -> % value of ESV | K44: ='WS2-Proposal'!K93 -> 0 | L44: ='WS2-Proposal'!L93 -> 0 | M44: ='WS2-Proposal'!M93 -> 0 | N44: ='WS2-Proposal'!N93 -> 0 | O44: ='WS2-Proposal'!O93 -> 0 | P44: ='WS2-Proposal'!P93 -> 0 | Q44: ='WS2-Proposal'!Q93 -> 0
B45: check = 0 | K45: =K36-SUM(K31:K35) -> 0 | L45: 0 | M45: 0 | N45: 0 | O45: 0 | P45: 0 | Q45: 0
B51: ='WS0 - Input data'!B$54 -> Year number | G51: ='WS0 - Input data'!G$55 -> Hist yr -3 | H51: ='WS0 - Input data'!H$55 -> Hist yr -2 | I51: ='WS0 - Input data'!I$55 -> Hist yr -1 | J51: ='WS0 - Input data'!J$55 -> Year 0 | K51: ='WS0 - Input data'!K$55 -> Year 1 | L51: ='WS0 - Input data'!L$55 -> Year 2 | M51: ='WS0 - Input data'!M$55 -> Year 3 | N51: ='WS0 - Input data'!N$55 -> Year 4 | O51: ='WS0 - Input data'!O$55 -> Year 5 | P51: ='WS0 - Input data'!P$55 -> Year 6 | Q51: ='WS0 - Input data'!Q$55 -> Year 7 | R51: ='WS0 - Input data'!R$55 -> Year 8 | S51: ='WS0 - Input data'!S$55 -> Year 9 | T51: ='WS0 - Input data'!T$55 -> Year 10 | U51: ='WS6 - PGI summary'!R79 -> Total increase | V51: ='WS6 - PGI summary'!S79 -> 0
B52: ='WS0 - Input data'!B$58 -> Financial year | G52: ='WS0 - Input data'!G$58 -> 2021-22 | H52: ='WS0 - Input data'!H$58 -> 2022-23 | I52: ='WS0 - Input data'!I$58 -> 2023-24 | J52: ='WS0 - Input data'!J$58 -> 2024-25 | K52: ='WS0 - Input data'!K$58 -> 2025-26 | L52: ='WS0 - Input data'!L$58 -> 2026-27 | M52: ='WS0 - Input data'!M$58 -> 2027-28 | N52: ='WS0 - Input data'!N$58 -> 2028-29 | O52: ='WS0 - Input data'!O$58 -> 2029-30 | P52: ='WS0 - Input data'!P$58 -> 2030-31 | Q52: ='WS0 - Input data'!Q$58 -> 2031-32 | R52: ='WS0 - Input data'!R$58 -> 2032-33 | S52: ='WS0 - Input data'!S$58 -> 2033-34 | T52: ='WS0 - Input data'!T$58 -> 2034-35 | U52: ='WS6 - PGI summary'!R80 -> $ nominal | V52: ='WS6 - PGI summary'!S80 -> %
B54: ='WS6 - PGI summary'!B84 -> PGI with proposed SV
B55: ='WS6 - PGI summary'!B85 -> Prior year Notional General Income (NGI) | D55: ='WS6 - PGI summary'!D85 -> $ nominal | K55: ='WS6 - PGI summary'!K85 -> 12975391.42 | L55: ='WS6 - PGI summary'!L85 -> 14272930.57 | M55: ='WS6 - PGI summary'!M85 -> 15700223.62 | N55: ='WS6 - PGI summary'!N85 -> 17270245.99 | O55: ='WS6 - PGI summary'!O85 -> 17753812.87 | P55: ='WS6 - PGI summary'!P85 -> 18197658.19 | Q55: ='WS6 - PGI summary'!Q85 -> 18652599.65
B56: ='WS6 - PGI summary'!B86 -> less: expiry of a prior special variation | D56: ='WS6 - PGI summary'!D86 -> $ nominal | K56: ='WS6 - PGI summary'!K86 -> 0 | L56: ='WS6 - PGI summary'!L86 -> 0 | M56: ='WS6 - PGI summary'!M86 -> 0 | N56: ='WS6 - PGI summary'!N86 -> 0 | O56: ='WS6 - PGI summary'!O86 -> 0 | P56: ='WS6 - PGI summary'!P86 -> 0 | Q56: ='WS6 - PGI summary'!Q86 -> 0
B57: ='WS6 - PGI summary'!B87 -> Adjusted Notional General income | D57: ='WS6 - PGI summary'!D87 -> $ nominal | K57: ='WS6 - PGI summary'!K87 -> 12975391.42 | L57: ='WS6 - PGI summary'!L87 -> 14272930.57 | M57: ='WS6 - PGI summary'!M87 -> 15700223.62 | N57: ='WS6 - PGI summary'!N87 -> 17270245.99 | O57: ='WS6 - PGI summary'!O87 -> 17753812.87 | P57: ='WS6 - PGI summary'!P87 -> 18197658.19 | Q57: ='WS6 - PGI summary'!Q87 -> 18652599.65
B59: ='WS6 - PGI summary'!B89 -> plus: rate peg increase | D59: ='WS6 - PGI summary'!D89 -> $ nominal | K59: ='WS6 - PGI summary'!K89 -> 557941.8312 | L59: ='WS6 - PGI summary'!L89 -> 485279.6393 | M59: ='WS6 - PGI summary'!M89 -> 486706.9323 | N59: ='WS6 - PGI summary'!N89 -> 483566.8876 | O59: ='WS6 - PGI summary'!O89 -> 443845.3218 | P59: ='WS6 - PGI summary'!P89 -> 454941.4549 | Q59: ='WS6 - PGI summary'!Q89 -> 466314.9912
B60: ='WS6 - PGI summary'!B90 -> plus: na | D60: ='WS6 - PGI summary'!D90 -> $ nominal | K60: ='WS6 - PGI summary'!K90 -> 0 | L60: ='WS6 - PGI summary'!L90 -> 0 | M60: ='WS6 - PGI summary'!M90 -> 0 | N60: ='WS6 - PGI summary'!N90 -> 0 | O60: ='WS6 - PGI summary'!O90 -> 0 | P60: ='WS6 - PGI summary'!P90 -> 0 | Q60: ='WS6 - PGI summary'!Q90 -> 0
B61: ='WS6 - PGI summary'!B91 -> plus: additional increase | D61: ='WS6 - PGI summary'!D91 -> $ nominal | K61: ='WS6 - PGI summary'!K91 -> 739597.3112 | L61: ='WS6 - PGI summary'!L91 -> 942013.4174 | M61: ='WS6 - PGI summary'!M91 -> 1083315.43 | N61: ='WS6 - PGI summary'!N91 -> 0 | O61: ='WS6 - PGI summary'!O91 -> 0 | P61: ='WS6 - PGI summary'!P91 -> 0 | Q61: ='WS6 - PGI summary'!Q91 -> 0
B62: ='WS6 - PGI summary'!B92 -> plus: na | D62: ='WS6 - PGI summary'!D92 -> $ nominal | K62: ='WS6 - PGI summary'!K92 -> 0 | L62: ='WS6 - PGI summary'!L92 -> 0 | M62: ='WS6 - PGI summary'!M92 -> 0 | N62: ='WS6 - PGI summary'!N92 -> 0 | O62: ='WS6 - PGI summary'!O92 -> 0 | P62: ='WS6 - PGI summary'!P92 -> 0 | Q62: ='WS6 - PGI summary'!Q92 -> 0
B63: ='WS6 - PGI summary'!B93 -> plus: crown land adjustment | D63: ='WS6 - PGI summary'!D93 -> $ nominal | K63: ='WS6 - PGI summary'!K93 -> 0 | L63: ='WS6 - PGI summary'!L93 -> 0 | M63: ='WS6 - PGI summary'!M93 -> 0 | N63: ='WS6 - PGI summary'!N93 -> 0 | O63: ='WS6 - PGI summary'!O93 -> 0 | P63: ='WS6 - PGI summary'!P93 -> 0 | Q63: ='WS6 - PGI summary'!Q93 -> 0
B64: ='WS6 - PGI summary'!B94 -> Total proposed SV | D64: ='WS6 - PGI summary'!D94 -> $ nominal | K64: ='WS6 - PGI summary'!K94 -> 1297539.142 | L64: ='WS6 - PGI summary'!L94 -> 1427293.057 | M64: ='WS6 - PGI summary'!M94 -> 1570022.362 | N64: ='WS6 - PGI summary'!N94 -> 483566.8876 | O64: ='WS6 - PGI summary'!O94 -> 443845.3218 | P64: ='WS6 - PGI summary'!P94 -> 454941.4549 | Q64: ='WS6 - PGI summary'!Q94 -> 466314.9912
B66: ='WS6 - PGI summary'!B96 -> Notional General Income after SV applied | D66: ='WS6 - PGI summary'!D96 -> $ nominal | K66: ='WS6 - PGI summary'!K96 -> 14272930.57 | L66: ='WS6 - PGI summary'!L96 -> 15700223.62 | M66: ='WS6 - PGI summary'!M96 -> 17270245.99 | N66: ='WS6 - PGI summary'!N96 -> 17753812.87 | O66: ='WS6 - PGI summary'!O96 -> 18197658.19 | P66: ='WS6 - PGI summary'!P96 -> 18652599.65 | Q66: ='WS6 - PGI summary'!Q96 -> 19118914.64
B67: ='WS6 - PGI summary'!B97 -> plus: other 1st-year adjustments | D67: ='WS6 - PGI summary'!D97 -> $ nominal | K67: ='WS6 - PGI summary'!K97 -> 0 | L67: ='WS6 - PGI summary'!L97 -> 0 | M67: ='WS6 - PGI summary'!M97 -> 0 | N67: ='WS6 - PGI summary'!N97 -> 0 | O67: ='WS6 - PGI summary'!O97 -> 0 | P67: ='WS6 - PGI summary'!P97 -> 0 | Q67: ='WS6 - PGI summary'!Q97 -> 0
B68: ='WS6 - PGI summary'!B98 -> PGI with proposed SV | D68: ='WS6 - PGI summary'!D98 -> $ nominal | J68: ='WS6 - PGI summary'!J98 -> 12975391.42 | K68: ='WS6 - PGI summary'!K98 -> 14272930.57 | L68: ='WS6 - PGI summary'!L98 -> 15700223.62 | M68: ='WS6 - PGI summary'!M98 -> 17270245.99 | N68: ='WS6 - PGI summary'!N98 -> 17753812.87 | O68: ='WS6 - PGI summary'!O98 -> 18197658.19 | P68: ='WS6 - PGI summary'!P98 -> 18652599.65 | Q68: ='WS6 - PGI summary'!Q98 -> 19118914.64 | U68: ='WS6 - PGI summary'!R98 -> 4294854.561 | V68: ='WS6 - PGI summary'!S98 -> 0.331
B69: check = 0 | K69: =K55-K56+SUM(K59:K63)+K67-K68 -> 0 | L69: =L55-L56+SUM(L59:L63)+L67-L68 -> 0 | M69: 0 | N69: 0 | O69: 0 | P69: 0 | Q69: 0 | U69: =INDEX(J68:Q68,1,$E$9+1)-J68-U68 -> 0
B71: ='WS6 - PGI summary'!B101 -> PGI if only the rate peg applied
B72: ='WS6 - PGI summary'!B102 -> Prior year Notional General Income (NGI) | D72: ='WS6 - PGI summary'!D102 -> $ nominal | K72: ='WS6 - PGI summary'!K102 -> 12975391.42 | L72: ='WS6 - PGI summary'!L102 -> 13533333.26 | M72: ='WS6 - PGI summary'!M102 -> 13993466.59 | N72: ='WS6 - PGI summary'!N102 -> 14427264.05 | O72: ='WS6 - PGI summary'!O102 -> 14831227.44 | P72: ='WS6 - PGI summary'!P102 -> 15202008.13 | Q72: ='WS6 - PGI summary'!Q102 -> 15582058.33
B73: ='WS6 - PGI summary'!B103 -> less: expiry of a prior special variation | D73: ='WS6 - PGI summary'!D103 -> $ nominal | K73: ='WS6 - PGI summary'!K103 -> 0 | L73: ='WS6 - PGI summary'!L103 -> 0 | M73: ='WS6 - PGI summary'!M103 -> 0 | N73: ='WS6 - PGI summary'!N103 -> 0 | O73: ='WS6 - PGI summary'!O103 -> 0 | P73: ='WS6 - PGI summary'!P103 -> 0 | Q73: ='WS6 - PGI summary'!Q103 -> 0
B74: ='WS6 - PGI summary'!B104 -> Adjusted Notional General income | D74: ='WS6 - PGI summary'!D104 -> $ nominal | K74: ='WS6 - PGI summary'!K104 -> 12975391.42 | L74: ='WS6 - PGI summary'!L104 -> 13533333.26 | M74: ='WS6 - PGI summary'!M104 -> 13993466.59 | N74: ='WS6 - PGI summary'!N104 -> 14427264.05 | O74: ='WS6 - PGI summary'!O104 -> 14831227.44 | P74: ='WS6 - PGI summary'!P104 -> 15202008.13 | Q74: ='WS6 - PGI summary'!Q104 -> 15582058.33
B75: ='WS6 - PGI summary'!B105 -> plus: rate peg increase | D75: ='WS6 - PGI summary'!D105 -> $ nominal | K75: ='WS6 - PGI summary'!K105 -> 557941.8312 | L75: ='WS6 - PGI summary'!L105 -> 460133.3307 | M75: ='WS6 - PGI summary'!M105 -> 433797.4642 | N75: ='WS6 - PGI summary'!N105 -> 403963.3934 | O75: ='WS6 - PGI summary'!O105 -> 370780.6861 | P75: ='WS6 - PGI summary'!P105 -> 380050.2032 | Q75: ='WS6 - PGI summary'!Q105 -> 389551.4583
B76: ='WS6 - PGI summary'!B106 -> plus: na | D76: ='WS6 - PGI summary'!D106 -> $ nominal | K76: ='WS6 - PGI summary'!K106 -> 0 | L76: ='WS6 - PGI summary'!L106 -> 0 | M76: ='WS6 - PGI summary'!M106 -> 0 | N76: ='WS6 - PGI summary'!N106 -> 0 | O76: ='WS6 - PGI summary'!O106 -> 0 | P76: ='WS6 - PGI summary'!P106 -> 0 | Q76: ='WS6 - PGI summary'!Q106 -> 0
B77: ='WS6 - PGI summary'!B107 -> plus: crown land adjustment | D77: ='WS6 - PGI summary'!D107 -> $ nominal | K77: ='WS6 - PGI summary'!K107 -> 0 | L77: ='WS6 - PGI summary'!L107 -> 0 | M77: ='WS6 - PGI summary'!M107 -> 0 | N77: ='WS6 - PGI summary'!N107 -> 0 | O77: ='WS6 - PGI summary'!O107 -> 0 | P77: ='WS6 - PGI summary'!P107 -> 0 | Q77: ='WS6 - PGI summary'!Q107 -> 0
B78: ='WS6 - PGI summary'!B108 -> plus: other 1st-year adjustments | D78: ='WS6 - PGI summary'!D108 -> $ nominal | K78: ='WS6 - PGI summary'!K108 -> 0 | L78: ='WS6 - PGI summary'!L108 -> 0 | M78: ='WS6 - PGI summary'!M108 -> 0 | N78: ='WS6 - PGI summary'!N108 -> 0 | O78: ='WS6 - PGI summary'!O108 -> 0 | P78: ='WS6 - PGI summary'!P108 -> 0 | Q78: ='WS6 - PGI summary'!Q108 -> 0
B79: ='WS6 - PGI summary'!B109 -> PGI if only the rate peg applied | D79: ='WS6 - PGI summary'!D109 -> $ nominal | J79: ='WS6 - PGI summary'!J109 -> 12975391.42 | K79: ='WS6 - PGI summary'!K109 -> 13533333.26 | L79: ='WS6 - PGI summary'!L109 -> 13993466.59 | M79: ='WS6 - PGI summary'!M109 -> 14427264.05 | N79: ='WS6 - PGI summary'!N109 -> 14831227.44 | O79: ='WS6 - PGI summary'!O109 -> 15202008.13 | P79: ='WS6 - PGI summary'!P109 -> 15582058.33 | Q79: ='WS6 - PGI summary'!Q109 -> 15971609.79 | U79: ='WS6 - PGI summary'!R109 -> 1451872.626 | V79: ='WS6 - PGI summary'!S109 -> 0.111894322
B80: check = 0 | K80: =K72-K73+SUM(K75:K78)-K79 -> 0 | L80: 0 | M80: 0 | N80: 0 | O80: 0 | P80: 0 | Q80: 0 | U80: =INDEX(J79:Q79,1,$E$9+1)-J79-U79 -> 0
B95: IMPACT ON AVERAGE RATES | I95: added
B96: =B$51 -> Year number | G96: =G$51 -> Hist yr -3 | H96: Hist yr -2 | I96: Hist yr -1 | J96: Year 0 | K96: Year 1 | L96: Year 2 | M96: Year 3 | N96: Year 4 | O96: Year 5 | P96: Year 6 | Q96: Year 7 | R96: Year 8 | S96: Year 9 | T96: Year 10
B97: =B$52 -> Financial year | G97: =G$52 -> 2021-22 | H97: 2022-23 | I97: 2023-24 | J97: 2024-25 | K97: 2025-26 | L97: 2026-27 | M97: 2027-28 | N97: 2028-29 | O97: 2029-30 | P97: 2030-31 | Q97: 2031-32 | R97: 2032-33 | S97: 2033-34 | T97: 2034-35
B99: ='WS7 - Impact on Rates'!B25 -> Table 7.1: Minimum Rates - with proposed special variation
B100: ='WS7 - Impact on Rates'!B28 -> Residential | C100: ='WS7 - Impact on Rates'!C28 -> Aberdeen | D100: ='WS7 - Impact on Rates'!D28 -> $ nominal p.a. | I100: ='WS7 - Impact on Rates'!I28 -> 0 | J100: ='WS7 - Impact on Rates'!J28 -> 0 | K100: ='WS7 - Impact on Rates'!K28 -> 0 | L100: ='WS7 - Impact on Rates'!L28 -> 0 | M100: ='WS7 - Impact on Rates'!M28 -> 0 | N100: ='WS7 - Impact on Rates'!N28 -> 0 | O100: ='WS7 - Impact on Rates'!O28 -> 0 | P100: ='WS7 - Impact on Rates'!P28 -> 0 | Q100: ='WS7 - Impact on Rates'!Q28 -> 0
B101: ='WS7 - Impact on Rates'!B29 -> Residential | C101: ='WS7 - Impact on Rates'!C29 -> Cassillis | D101: ='WS7 - Impact on Rates'!D29 -> $ nominal p.a. | I101: ='WS7 - Impact on Rates'!I29 -> 0 | J101: ='WS7 - Impact on Rates'!J29 -> 0 | K101: ='WS7 - Impact on Rates'!K29 -> 0 | L101: ='WS7 - Impact on Rates'!L29 -> 0 | M101: ='WS7 - Impact on Rates'!M29 -> 0 | N101: ='WS7 - Impact on Rates'!N29 -> 0 | O101: ='WS7 - Impact on Rates'!O29 -> 0 | P101: ='WS7 - Impact on Rates'!P29 -> 0 | Q101: ='WS7 - Impact on Rates'!Q29 -> 0
B102: ='WS7 - Impact on Rates'!B30 -> Residential | C102: ='WS7 - Impact on Rates'!C30 -> Merriwa | D102: ='WS7 - Impact on Rates'!D30 -> $ nominal p.a. | I102: ='WS7 - Impact on Rates'!I30 -> 0 | J102: ='WS7 - Impact on Rates'!J30 -> 0 | K102: ='WS7 - Impact on Rates'!K30 -> 0 | L102: ='WS7 - Impact on Rates'!L30 -> 0 | M102: ='WS7 - Impact on Rates'!M30 -> 0 | N102: ='WS7 - Impact on Rates'!N30 -> 0 | O102: ='WS7 - Impact on Rates'!O30 -> 0 | P102: ='WS7 - Impact on Rates'!P30 -> 0 | Q102: ='WS7 - Impact on Rates'!Q30 -> 0
B103: ='WS7 - Impact on Rates'!B31 -> Residential | C103: ='WS7 - Impact on Rates'!C31 -> Murrurundi | D103: ='WS7 - Impact on Rates'!D31 -> $ nominal p.a. | I103: ='WS7 - Impact on Rates'!I31 -> 0 | J103: ='WS7 - Impact on Rates'!J31 -> 0 | K103: ='WS7 - Impact on Rates'!K31 -> 0 | L103: ='WS7 - Impact on Rates'!L31 -> 0 | M103: ='WS7 - Impact on Rates'!M31 -> 0 | N103: ='WS7 - Impact on Rates'!N31 -> 0 | O103: ='WS7 - Impact on Rates'!O31 -> 0 | P103: ='WS7 - Impact on Rates'!P31 -> 0 | Q103: ='WS7 - Impact on Rates'!Q31 -> 0
B104: ='WS7 - Impact on Rates'!B32 -> Residential | C104: ='WS7 - Impact on Rates'!C32 -> Scone | D104: ='WS7 - Impact on Rates'!D32 -> $ nominal p.a. | I104: ='WS7 - Impact on Rates'!I32 -> 0 | J104: ='WS7 - Impact on Rates'!J32 -> 0 | K104: ='WS7 - Impact on Rates'!K32 -> 0 | L104: ='WS7 - Impact on Rates'!L32 -> 0 | M104: ='WS7 - Impact on Rates'!M32 -> 0 | N104: ='WS7 - Impact on Rates'!N32 -> 0 | O104: ='WS7 - Impact on Rates'!O32 -> 0 | P104: ='WS7 - Impact on Rates'!P32 -> 0 | Q104: ='WS7 - Impact on Rates'!Q32 -> 0
B105: ='WS7 - Impact on Rates'!B33 -> Residential | C105: ='WS7 - Impact on Rates'!C33 -> Ordinary | D105: ='WS7 - Impact on Rates'!D33 -> $ nominal p.a. | I105: ='WS7 - Impact on Rates'!I33 -> 0 | J105: ='WS7 - Impact on Rates'!J33 -> 0 | K105: ='WS7 - Impact on Rates'!K33 -> 0 | L105: ='WS7 - Impact on Rates'!L33 -> 0 | M105: ='WS7 - Impact on Rates'!M33 -> 0 | N105: ='WS7 - Impact on Rates'!N33 -> 0 | O105: ='WS7 - Impact on Rates'!O33 -> 0 | P105: ='WS7 - Impact on Rates'!P33 -> 0 | Q105: ='WS7 - Impact on Rates'!Q33 -> 0
B106: ='WS7 - Impact on Rates'!B34 -> Residential | C106: ='WS7 - Impact on Rates'!C34 -> Mixed Development - Aberdeen Residential | D106: ='WS7 - Impact on Rates'!D34 -> $ nominal p.a. | I106: ='WS7 - Impact on Rates'!I34 -> 0 | J106: ='WS7 - Impact on Rates'!J34 -> 0 | K106: ='WS7 - Impact on Rates'!K34 -> 0 | L106: ='WS7 - Impact on Rates'!L34 -> 0 | M106: ='WS7 - Impact on Rates'!M34 -> 0 | N106: ='WS7 - Impact on Rates'!N34 -> 0 | O106: ='WS7 - Impact on Rates'!O34 -> 0 | P106: ='WS7 - Impact on Rates'!P34 -> 0 | Q106: ='WS7 - Impact on Rates'!Q34 -> 0
B107: ='WS7 - Impact on Rates'!B35 -> Residential | C107: ='WS7 - Impact on Rates'!C35 -> Mixed Development - Merriwa Residential | D107: ='WS7 - Impact on Rates'!D35 -> $ nominal p.a. | I107: ='WS7 - Impact on Rates'!I35 -> 0 | J107: ='WS7 - Impact on Rates'!J35 -> 0 | K107: ='WS7 - Impact on Rates'!K35 -> 0 | L107: ='WS7 - Impact on Rates'!L35 -> 0 | M107: ='WS7 - Impact on Rates'!M35 -> 0 | N107: ='WS7 - Impact on Rates'!N35 -> 0 | O107: ='WS7 - Impact on Rates'!O35 -> 0 | P107: ='WS7 - Impact on Rates'!P35 -> 0 | Q107: ='WS7 - Impact on Rates'!Q35 -> 0
B108: ='WS7 - Impact on Rates'!B36 -> Residential | C108: ='WS7 - Impact on Rates'!C36 -> Mixed Development - Murrurundi Residential | D108: ='WS7 - Impact on Rates'!D36 -> $ nominal p.a. | I108: ='WS7 - Impact on Rates'!I36 -> 0 | J108: ='WS7 - Impact on Rates'!J36 -> 0 | K108: ='WS7 - Impact on Rates'!K36 -> 0 | L108: ='WS7 - Impact on Rates'!L36 -> 0 | M108: ='WS7 - Impact on Rates'!M36 -> 0 | N108: ='WS7 - Impact on Rates'!N36 -> 0 | O108: ='WS7 - Impact on Rates'!O36 -> 0 | P108: ='WS7 - Impact on Rates'!P36 -> 0 | Q108: ='WS7 - Impact on Rates'!Q36 -> 0
B109: ='WS7 - Impact on Rates'!#REF! ->  | C109: ='WS7 - Impact on Rates'!#REF! ->  | D109: ='WS7 - Impact on Rates'!#REF! ->  | I109: ='WS7 - Impact on Rates'!#REF! ->  | J109: ='WS7 - Impact on Rates'!#REF! ->  | K109: ='WS7 - Impact on Rates'!#REF! ->  | L109: ='WS7 - Impact on Rates'!#REF! ->  | M109: ='WS7 - Impact on Rates'!#REF! ->  | N109: ='WS7 - Impact on Rates'!#REF! ->  | O109: ='WS7 - Impact on Rates'!#REF! ->  | P109: ='WS7 - Impact on Rates'!#REF! ->  | Q109: ='WS7 - Impact on Rates'!#REF! -> 
B110: ='WS7 - Impact on Rates'!#REF! ->  | C110: ='WS7 - Impact on Rates'!#REF! ->  | D110: ='WS7 - Impact on Rates'!#REF! ->  | I110: ='WS7 - Impact on Rates'!#REF! ->  | J110: ='WS7 - Impact on Rates'!#REF! ->  | K110: ='WS7 - Impact on Rates'!#REF! ->  | L110: ='WS7 - Impact on Rates'!#REF! ->  | M110: ='WS7 - Impact on Rates'!#REF! ->  | N110: ='WS7 - Impact on Rates'!#REF! ->  | O110: ='WS7 - Impact on Rates'!#REF! ->  | P110: ='WS7 - Impact on Rates'!#REF! ->  | Q110: ='WS7 - Impact on Rates'!#REF! -> 
B111: ='WS7 - Impact on Rates'!#REF! ->  | C111: ='WS7 - Impact on Rates'!#REF! ->  | D111: ='WS7 - Impact on Rates'!#REF! ->  | I111: ='WS7 - Impact on Rates'!#REF! ->  | J111: ='WS7 - Impact on Rates'!#REF! ->  | K111: ='WS7 - Impact on Rates'!#REF! ->  | L111: ='WS7 - Impact on Rates'!#REF! ->  | M111: ='WS7 - Impact on Rates'!#REF! ->  | N111: ='WS7 - Impact on Rates'!#REF! ->  | O111: ='WS7 - Impact on Rates'!#REF! ->  | P111: ='WS7 - Impact on Rates'!#REF! ->  | Q111: ='WS7 - Impact on Rates'!#REF! -> 
B112: ='WS7 - Impact on Rates'!#REF! ->  | C112: ='WS7 - Impact on Rates'!#REF! ->  | D112: ='WS7 - Impact on Rates'!#REF! ->  | I112: ='WS7 - Impact on Rates'!#REF! ->  | J112: ='WS7 - Impact on Rates'!#REF! ->  | K112: ='WS7 - Impact on Rates'!#REF! ->  | L112: ='WS7 - Impact on Rates'!#REF! ->  | M112: ='WS7 - Impact on Rates'!#REF! ->  | N112: ='WS7 - Impact on Rates'!#REF! ->  | O112: ='WS7 - Impact on Rates'!#REF! ->  | P112: ='WS7 - Impact on Rates'!#REF! ->  | Q112: ='WS7 - Impact on Rates'!#REF! -> 
B113: ='WS7 - Impact on Rates'!#REF! ->  | C113: ='WS7 - Impact on Rates'!#REF! ->  | D113: ='WS7 - Impact on Rates'!#REF! ->  | I113: ='WS7 - Impact on Rates'!#REF! ->  | J113: ='WS7 - Impact on Rates'!#REF! ->  | K113: ='WS7 - Impact on Rates'!#REF! ->  | L113: ='WS7 - Impact on Rates'!#REF! ->  | M113: ='WS7 - Impact on Rates'!#REF! ->  | N113: ='WS7 - Impact on Rates'!#REF! ->  | O113: ='WS7 - Impact on Rates'!#REF! ->  | P113: ='WS7 - Impact on Rates'!#REF! ->  | Q113: ='WS7 - Impact on Rates'!#REF! -> 
B114: ='WS7 - Impact on Rates'!#REF! ->  | C114: ='WS7 - Impact on Rates'!#REF! ->  | D114: ='WS7 - Impact on Rates'!#REF! ->  | I114: ='WS7 - Impact on Rates'!#REF! ->  | J114: ='WS7 - Impact on Rates'!#REF! ->  | K114: ='WS7 - Impact on Rates'!#REF! ->  | L114: ='WS7 - Impact on Rates'!#REF! ->  | M114: ='WS7 - Impact on Rates'!#REF! ->  | N114: ='WS7 - Impact on Rates'!#REF! ->  | O114: ='WS7 - Impact on Rates'!#REF! ->  | P114: ='WS7 - Impact on Rates'!#REF! ->  | Q114: ='WS7 - Impact on Rates'!#REF! -> 
B115: ='WS7 - Impact on Rates'!#REF! ->  | C115: ='WS7 - Impact on Rates'!#REF! ->  | D115: ='WS7 - Impact on Rates'!#REF! ->  | I115: ='WS7 - Impact on Rates'!#REF! ->  | J115: ='WS7 - Impact on Rates'!#REF! ->  | K115: ='WS7 - Impact on Rates'!#REF! ->  | L115: ='WS7 - Impact on Rates'!#REF! ->  | M115: ='WS7 - Impact on Rates'!#REF! ->  | N115: ='WS7 - Impact on Rates'!#REF! ->  | O115: ='WS7 - Impact on Rates'!#REF! ->  | P115: ='WS7 - Impact on Rates'!#REF! ->  | Q115: ='WS7 - Impact on Rates'!#REF! -> 
B116: ='WS7 - Impact on Rates'!#REF! ->  | C116: ='WS7 - Impact on Rates'!#REF! ->  | D116: ='WS7 - Impact on Rates'!#REF! ->  | I116: ='WS7 - Impact on Rates'!#REF! ->  | J116: ='WS7 - Impact on Rates'!#REF! ->  | K116: ='WS7 - Impact on Rates'!#REF! ->  | L116: ='WS7 - Impact on Rates'!#REF! ->  | M116: ='WS7 - Impact on Rates'!#REF! ->  | N116: ='WS7 - Impact on Rates'!#REF! ->  | O116: ='WS7 - Impact on Rates'!#REF! ->  | P116: ='WS7 - Impact on Rates'!#REF! ->  | Q116: ='WS7 - Impact on Rates'!#REF! -> 
B117: ='WS7 - Impact on Rates'!#REF! ->  | C117: ='WS7 - Impact on Rates'!#REF! ->  | D117: ='WS7 - Impact on Rates'!#REF! ->  | I117: ='WS7 - Impact on Rates'!#REF! ->  | J117: ='WS7 - Impact on Rates'!#REF! ->  | K117: ='WS7 - Impact on Rates'!#REF! ->  | L117: ='WS7 - Impact on Rates'!#REF! ->  | M117: ='WS7 - Impact on Rates'!#REF! ->  | N117: ='WS7 - Impact on Rates'!#REF! ->  | O117: ='WS7 - Impact on Rates'!#REF! ->  | P117: ='WS7 - Impact on Rates'!#REF! ->  | Q117: ='WS7 - Impact on Rates'!#REF! -> 
B118: ='WS7 - Impact on Rates'!#REF! ->  | C118: ='WS7 - Impact on Rates'!#REF! ->  | D118: ='WS7 - Impact on Rates'!#REF! ->  | I118: ='WS7 - Impact on Rates'!#REF! ->  | J118: ='WS7 - Impact on Rates'!#REF! ->  | K118: ='WS7 - Impact on Rates'!#REF! ->  | L118: ='WS7 - Impact on Rates'!#REF! ->  | M118: ='WS7 - Impact on Rates'!#REF! ->  | N118: ='WS7 - Impact on Rates'!#REF! ->  | O118: ='WS7 - Impact on Rates'!#REF! ->  | P118: ='WS7 - Impact on Rates'!#REF! ->  | Q118: ='WS7 - Impact on Rates'!#REF! -> 
B119: ='WS7 - Impact on Rates'!#REF! ->  | C119: ='WS7 - Impact on Rates'!#REF! ->  | D119: ='WS7 - Impact on Rates'!#REF! ->  | I119: ='WS7 - Impact on Rates'!#REF! ->  | J119: ='WS7 - Impact on Rates'!#REF! ->  | K119: ='WS7 - Impact on Rates'!#REF! ->  | L119: ='WS7 - Impact on Rates'!#REF! ->  | M119: ='WS7 - Impact on Rates'!#REF! ->  | N119: ='WS7 - Impact on Rates'!#REF! ->  | O119: ='WS7 - Impact on Rates'!#REF! ->  | P119: ='WS7 - Impact on Rates'!#REF! ->  | Q119: ='WS7 - Impact on Rates'!#REF! -> 
B120: ='WS7 - Impact on Rates'!B38 -> Business | C120: ='WS7 - Impact on Rates'!C38 -> Aberdeen | D120: ='WS7 - Impact on Rates'!D38 -> $ nominal p.a. | I120: ='WS7 - Impact on Rates'!I38 -> 0 | J120: ='WS7 - Impact on Rates'!J38 -> 0 | K120: ='WS7 - Impact on Rates'!K38 -> 0 | L120: ='WS7 - Impact on Rates'!L38 -> 0 | M120: ='WS7 - Impact on Rates'!M38 -> 0 | N120: ='WS7 - Impact on Rates'!N38 -> 0 | O120: ='WS7 - Impact on Rates'!O38 -> 0 | P120: ='WS7 - Impact on Rates'!P38 -> 0 | Q120: ='WS7 - Impact on Rates'!Q38 -> 0
B121: ='WS7 - Impact on Rates'!B39 -> Business | C121: ='WS7 - Impact on Rates'!C39 -> Merriwa | D121: ='WS7 - Impact on Rates'!D39 -> $ nominal p.a. | I121: ='WS7 - Impact on Rates'!I39 -> 0 | J121: ='WS7 - Impact on Rates'!J39 -> 0 | K121: ='WS7 - Impact on Rates'!K39 -> 0 | L121: ='WS7 - Impact on Rates'!L39 -> 0 | M121: ='WS7 - Impact on Rates'!M39 -> 0 | N121: ='WS7 - Impact on Rates'!N39 -> 0 | O121: ='WS7 - Impact on Rates'!O39 -> 0 | P121: ='WS7 - Impact on Rates'!P39 -> 0 | Q121: ='WS7 - Impact on Rates'!Q39 -> 0
B122: ='WS7 - Impact on Rates'!B40 -> Business | C122: ='WS7 - Impact on Rates'!C40 -> Murrurundi | D122: ='WS7 - Impact on Rates'!D40 -> $ nominal p.a. | I122: ='WS7 - Impact on Rates'!I40 -> 0 | J122: ='WS7 - Impact on Rates'!J40 -> 0 | K122: ='WS7 - Impact on Rates'!K40 -> 0 | L122: ='WS7 - Impact on Rates'!L40 -> 0 | M122: ='WS7 - Impact on Rates'!M40 -> 0 | N122: ='WS7 - Impact on Rates'!N40 -> 0 | O122: ='WS7 - Impact on Rates'!O40 -> 0 | P122: ='WS7 - Impact on Rates'!P40 -> 0 | Q122: ='WS7 - Impact on Rates'!Q40 -> 0
B123: ='WS7 - Impact on Rates'!B41 -> Business | C123: ='WS7 - Impact on Rates'!C41 -> Scone | D123: ='WS7 - Impact on Rates'!D41 -> $ nominal p.a. | I123: ='WS7 - Impact on Rates'!I41 -> 0 | J123: ='WS7 - Impact on Rates'!J41 -> 0 | K123: ='WS7 - Impact on Rates'!K41 -> 0 | L123: ='WS7 - Impact on Rates'!L41 -> 0 | M123: ='WS7 - Impact on Rates'!M41 -> 0 | N123: ='WS7 - Impact on Rates'!N41 -> 0 | O123: ='WS7 - Impact on Rates'!O41 -> 0 | P123: ='WS7 - Impact on Rates'!P41 -> 0 | Q123: ='WS7 - Impact on Rates'!Q41 -> 0
B124: ='WS7 - Impact on Rates'!B42 -> Business | C124: ='WS7 - Impact on Rates'!C42 -> Ordinary | D124: ='WS7 - Impact on Rates'!D42 -> $ nominal p.a. | I124: ='WS7 - Impact on Rates'!I42 -> 0 | J124: ='WS7 - Impact on Rates'!J42 -> 0 | K124: ='WS7 - Impact on Rates'!K42 -> 0 | L124: ='WS7 - Impact on Rates'!L42 -> 0 | M124: ='WS7 - Impact on Rates'!M42 -> 0 | N124: ='WS7 - Impact on Rates'!N42 -> 0 | O124: ='WS7 - Impact on Rates'!O42 -> 0 | P124: ='WS7 - Impact on Rates'!P42 -> 0 | Q124: ='WS7 - Impact on Rates'!Q42 -> 0
B125: ='WS7 - Impact on Rates'!B43 -> Business | C125: ='WS7 - Impact on Rates'!C43 -> Mixed Development - Aberdeen Residential | D125: ='WS7 - Impact on Rates'!D43 -> $ nominal p.a. | I125: ='WS7 - Impact on Rates'!I43 -> 0 | J125: ='WS7 - Impact on Rates'!J43 -> 0 | K125: ='WS7 - Impact on Rates'!K43 -> 0 | L125: ='WS7 - Impact on Rates'!L43 -> 0 | M125: ='WS7 - Impact on Rates'!M43 -> 0 | N125: ='WS7 - Impact on Rates'!N43 -> 0 | O125: ='WS7 - Impact on Rates'!O43 -> 0 | P125: ='WS7 - Impact on Rates'!P43 -> 0 | Q125: ='WS7 - Impact on Rates'!Q43 -> 0
B126: ='WS7 - Impact on Rates'!B44 -> Business | C126: ='WS7 - Impact on Rates'!C44 -> Mixed Development - Merriwa Residential | D126: ='WS7 - Impact on Rates'!D44 -> $ nominal p.a. | I126: ='WS7 - Impact on Rates'!I44 -> 0 | J126: ='WS7 - Impact on Rates'!J44 -> 0 | K126: ='WS7 - Impact on Rates'!K44 -> 0 | L126: ='WS7 - Impact on Rates'!L44 -> 0 | M126: ='WS7 - Impact on Rates'!M44 -> 0 | N126: ='WS7 - Impact on Rates'!N44 -> 0 | O126: ='WS7 - Impact on Rates'!O44 -> 0 | P126: ='WS7 - Impact on Rates'!P44 -> 0 | Q126: ='WS7 - Impact on Rates'!Q44 -> 0
B127: ='WS7 - Impact on Rates'!B45 -> Business | C127: ='WS7 - Impact on Rates'!C45 -> Mixed Development - Murrurundi Residential | D127: ='WS7 - Impact on Rates'!D45 -> $ nominal p.a. | I127: ='WS7 - Impact on Rates'!I45 -> 0 | J127: ='WS7 - Impact on Rates'!J45 -> 0 | K127: ='WS7 - Impact on Rates'!K45 -> 0 | L127: ='WS7 - Impact on Rates'!L45 -> 0 | M127: ='WS7 - Impact on Rates'!M45 -> 0 | N127: ='WS7 - Impact on Rates'!N45 -> 0 | O127: ='WS7 - Impact on Rates'!O45 -> 0 | P127: ='WS7 - Impact on Rates'!P45 -> 0 | Q127: ='WS7 - Impact on Rates'!Q45 -> 0
B128: ='WS7 - Impact on Rates'!#REF! ->  | C128: ='WS7 - Impact on Rates'!#REF! ->  | D128: ='WS7 - Impact on Rates'!#REF! ->  | I128: ='WS7 - Impact on Rates'!#REF! ->  | J128: ='WS7 - Impact on Rates'!#REF! ->  | K128: ='WS7 - Impact on Rates'!#REF! ->  | L128: ='WS7 - Impact on Rates'!#REF! ->  | M128: ='WS7 - Impact on Rates'!#REF! ->  | N128: ='WS7 - Impact on Rates'!#REF! ->  | O128: ='WS7 - Impact on Rates'!#REF! ->  | P128: ='WS7 - Impact on Rates'!#REF! ->  | Q128: ='WS7 - Impact on Rates'!#REF! -> 
B129: ='WS7 - Impact on Rates'!#REF! ->  | C129: ='WS7 - Impact on Rates'!#REF! ->  | D129: ='WS7 - Impact on Rates'!#REF! ->  | I129: ='WS7 - Impact on Rates'!#REF! ->  | J129: ='WS7 - Impact on Rates'!#REF! ->  | K129: ='WS7 - Impact on Rates'!#REF! ->  | L129: ='WS7 - Impact on Rates'!#REF! ->  | M129: ='WS7 - Impact on Rates'!#REF! ->  | N129: ='WS7 - Impact on Rates'!#REF! ->  | O129: ='WS7 - Impact on Rates'!#REF! ->  | P129: ='WS7 - Impact on Rates'!#REF! ->  | Q129: ='WS7 - Impact on Rates'!#REF! -> 
B130: ='WS7 - Impact on Rates'!#REF! ->  | C130: ='WS7 - Impact on Rates'!#REF! ->  | D130: ='WS7 - Impact on Rates'!#REF! ->  | I130: ='WS7 - Impact on Rates'!#REF! ->  | J130: ='WS7 - Impact on Rates'!#REF! ->  | K130: ='WS7 - Impact on Rates'!#REF! ->  | L130: ='WS7 - Impact on Rates'!#REF! ->  | M130: ='WS7 - Impact on Rates'!#REF! ->  | N130: ='WS7 - Impact on Rates'!#REF! ->  | O130: ='WS7 - Impact on Rates'!#REF! ->  | P130: ='WS7 - Impact on Rates'!#REF! ->  | Q130: ='WS7 - Impact on Rates'!#REF! -> 
B131: ='WS7 - Impact on Rates'!#REF! ->  | C131: ='WS7 - Impact on Rates'!#REF! ->  | D131: ='WS7 - Impact on Rates'!#REF! ->  | I131: ='WS7 - Impact on Rates'!#REF! ->  | J131: ='WS7 - Impact on Rates'!#REF! ->  | K131: ='WS7 - Impact on Rates'!#REF! ->  | L131: ='WS7 - Impact on Rates'!#REF! ->  | M131: ='WS7 - Impact on Rates'!#REF! ->  | N131: ='WS7 - Impact on Rates'!#REF! ->  | O131: ='WS7 - Impact on Rates'!#REF! ->  | P131: ='WS7 - Impact on Rates'!#REF! ->  | Q131: ='WS7 - Impact on Rates'!#REF! -> 
B132: ='WS7 - Impact on Rates'!#REF! ->  | C132: ='WS7 - Impact on Rates'!#REF! ->  | D132: ='WS7 - Impact on Rates'!#REF! ->  | I132: ='WS7 - Impact on Rates'!#REF! ->  | J132: ='WS7 - Impact on Rates'!#REF! ->  | K132: ='WS7 - Impact on Rates'!#REF! ->  | L132: ='WS7 - Impact on Rates'!#REF! ->  | M132: ='WS7 - Impact on Rates'!#REF! ->  | N132: ='WS7 - Impact on Rates'!#REF! ->  | O132: ='WS7 - Impact on Rates'!#REF! ->  | P132: ='WS7 - Impact on Rates'!#REF! ->  | Q132: ='WS7 - Impact on Rates'!#REF! -> 
B133: ='WS7 - Impact on Rates'!#REF! ->  | C133: ='WS7 - Impact on Rates'!#REF! ->  | D133: ='WS7 - Impact on Rates'!#REF! ->  | I133: ='WS7 - Impact on Rates'!#REF! ->  | J133: ='WS7 - Impact on Rates'!#REF! ->  | K133: ='WS7 - Impact on Rates'!#REF! ->  | L133: ='WS7 - Impact on Rates'!#REF! ->  | M133: ='WS7 - Impact on Rates'!#REF! ->  | N133: ='WS7 - Impact on Rates'!#REF! ->  | O133: ='WS7 - Impact on Rates'!#REF! ->  | P133: ='WS7 - Impact on Rates'!#REF! ->  | Q133: ='WS7 - Impact on Rates'!#REF! -> 
B134: ='WS7 - Impact on Rates'!#REF! ->  | C134: ='WS7 - Impact on Rates'!#REF! ->  | D134: ='WS7 - Impact on Rates'!#REF! ->  | I134: ='WS7 - Impact on Rates'!#REF! ->  | J134: ='WS7 - Impact on Rates'!#REF! ->  | K134: ='WS7 - Impact on Rates'!#REF! ->  | L134: ='WS7 - Impact on Rates'!#REF! ->  | M134: ='WS7 - Impact on Rates'!#REF! ->  | N134: ='WS7 - Impact on Rates'!#REF! ->  | O134: ='WS7 - Impact on Rates'!#REF! ->  | P134: ='WS7 - Impact on Rates'!#REF! ->  | Q134: ='WS7 - Impact on Rates'!#REF! -> 
B135: ='WS7 - Impact on Rates'!#REF! ->  | C135: ='WS7 - Impact on Rates'!#REF! ->  | D135: ='WS7 - Impact on Rates'!#REF! ->  | I135: ='WS7 - Impact on Rates'!#REF! ->  | J135: ='WS7 - Impact on Rates'!#REF! ->  | K135: ='WS7 - Impact on Rates'!#REF! ->  | L135: ='WS7 - Impact on Rates'!#REF! ->  | M135: ='WS7 - Impact on Rates'!#REF! ->  | N135: ='WS7 - Impact on Rates'!#REF! ->  | O135: ='WS7 - Impact on Rates'!#REF! ->  | P135: ='WS7 - Impact on Rates'!#REF! ->  | Q135: ='WS7 - Impact on Rates'!#REF! -> 
B136: ='WS7 - Impact on Rates'!#REF! ->  | C136: ='WS7 - Impact on Rates'!#REF! ->  | D136: ='WS7 - Impact on Rates'!#REF! ->  | I136: ='WS7 - Impact on Rates'!#REF! ->  | J136: ='WS7 - Impact on Rates'!#REF! ->  | K136: ='WS7 - Impact on Rates'!#REF! ->  | L136: ='WS7 - Impact on Rates'!#REF! ->  | M136: ='WS7 - Impact on Rates'!#REF! ->  | N136: ='WS7 - Impact on Rates'!#REF! ->  | O136: ='WS7 - Impact on Rates'!#REF! ->  | P136: ='WS7 - Impact on Rates'!#REF! ->  | Q136: ='WS7 - Impact on Rates'!#REF! -> 
B137: ='WS7 - Impact on Rates'!#REF! ->  | C137: ='WS7 - Impact on Rates'!#REF! ->  | D137: ='WS7 - Impact on Rates'!#REF! ->  | I137: ='WS7 - Impact on Rates'!#REF! ->  | J137: ='WS7 - Impact on Rates'!#REF! ->  | K137: ='WS7 - Impact on Rates'!#REF! ->  | L137: ='WS7 - Impact on Rates'!#REF! ->  | M137: ='WS7 - Impact on Rates'!#REF! ->  | N137: ='WS7 - Impact on Rates'!#REF! ->  | O137: ='WS7 - Impact on Rates'!#REF! ->  | P137: ='WS7 - Impact on Rates'!#REF! ->  | Q137: ='WS7 - Impact on Rates'!#REF! -> 
B138: ='WS7 - Impact on Rates'!#REF! ->  | C138: ='WS7 - Impact on Rates'!#REF! ->  | D138: ='WS7 - Impact on Rates'!#REF! ->  | I138: ='WS7 - Impact on Rates'!#REF! ->  | J138: ='WS7 - Impact on Rates'!#REF! ->  | K138: ='WS7 - Impact on Rates'!#REF! ->  | L138: ='WS7 - Impact on Rates'!#REF! ->  | M138: ='WS7 - Impact on Rates'!#REF! ->  | N138: ='WS7 - Impact on Rates'!#REF! ->  | O138: ='WS7 - Impact on Rates'!#REF! ->  | P138: ='WS7 - Impact on Rates'!#REF! ->  | Q138: ='WS7 - Impact on Rates'!#REF! -> 
B139: ='WS7 - Impact on Rates'!#REF! ->  | C139: ='WS7 - Impact on Rates'!#REF! ->  | D139: ='WS7 - Impact on Rates'!#REF! ->  | I139: ='WS7 - Impact on Rates'!#REF! ->  | J139: ='WS7 - Impact on Rates'!#REF! ->  | K139: ='WS7 - Impact on Rates'!#REF! ->  | L139: ='WS7 - Impact on Rates'!#REF! ->  | M139: ='WS7 - Impact on Rates'!#REF! ->  | N139: ='WS7 - Impact on Rates'!#REF! ->  | O139: ='WS7 - Impact on Rates'!#REF! ->  | P139: ='WS7 - Impact on Rates'!#REF! ->  | Q139: ='WS7 - Impact on Rates'!#REF! -> 
B140: ='WS7 - Impact on Rates'!#REF! ->  | C140: ='WS7 - Impact on Rates'!#REF! ->  | D140: ='WS7 - Impact on Rates'!#REF! ->  | I140: ='WS7 - Impact on Rates'!#REF! ->  | J140: ='WS7 - Impact on Rates'!#REF! ->  | K140: ='WS7 - Impact on Rates'!#REF! ->  | L140: ='WS7 - Impact on Rates'!#REF! ->  | M140: ='WS7 - Impact on Rates'!#REF! ->  | N140: ='WS7 - Impact on Rates'!#REF! ->  | O140: ='WS7 - Impact on Rates'!#REF! ->  | P140: ='WS7 - Impact on Rates'!#REF! ->  | Q140: ='WS7 - Impact on Rates'!#REF! -> 
B141: ='WS7 - Impact on Rates'!#REF! ->  | C141: ='WS7 - Impact on Rates'!#REF! ->  | D141: ='WS7 - Impact on Rates'!#REF! ->  | I141: ='WS7 - Impact on Rates'!#REF! ->  | J141: ='WS7 - Impact on Rates'!#REF! ->  | K141: ='WS7 - Impact on Rates'!#REF! ->  | L141: ='WS7 - Impact on Rates'!#REF! ->  | M141: ='WS7 - Impact on Rates'!#REF! ->  | N141: ='WS7 - Impact on Rates'!#REF! ->  | O141: ='WS7 - Impact on Rates'!#REF! ->  | P141: ='WS7 - Impact on Rates'!#REF! ->  | Q141: ='WS7 - Impact on Rates'!#REF! -> 
B142: ='WS7 - Impact on Rates'!#REF! ->  | C142: ='WS7 - Impact on Rates'!#REF! ->  | D142: ='WS7 - Impact on Rates'!#REF! ->  | I142: ='WS7 - Impact on Rates'!#REF! ->  | J142: ='WS7 - Impact on Rates'!#REF! ->  | K142: ='WS7 - Impact on Rates'!#REF! ->  | L142: ='WS7 - Impact on Rates'!#REF! ->  | M142: ='WS7 - Impact on Rates'!#REF! ->  | N142: ='WS7 - Impact on Rates'!#REF! ->  | O142: ='WS7 - Impact on Rates'!#REF! ->  | P142: ='WS7 - Impact on Rates'!#REF! ->  | Q142: ='WS7 - Impact on Rates'!#REF! -> 
B143: ='WS7 - Impact on Rates'!#REF! ->  | C143: ='WS7 - Impact on Rates'!#REF! ->  | D143: ='WS7 - Impact on Rates'!#REF! ->  | I143: ='WS7 - Impact on Rates'!#REF! ->  | J143: ='WS7 - Impact on Rates'!#REF! ->  | K143: ='WS7 - Impact on Rates'!#REF! ->  | L143: ='WS7 - Impact on Rates'!#REF! ->  | M143: ='WS7 - Impact on Rates'!#REF! ->  | N143: ='WS7 - Impact on Rates'!#REF! ->  | O143: ='WS7 - Impact on Rates'!#REF! ->  | P143: ='WS7 - Impact on Rates'!#REF! ->  | Q143: ='WS7 - Impact on Rates'!#REF! -> 
B144: ='WS7 - Impact on Rates'!#REF! ->  | C144: ='WS7 - Impact on Rates'!#REF! ->  | D144: ='WS7 - Impact on Rates'!#REF! ->  | I144: ='WS7 - Impact on Rates'!#REF! ->  | J144: ='WS7 - Impact on Rates'!#REF! ->  | K144: ='WS7 - Impact on Rates'!#REF! ->  | L144: ='WS7 - Impact on Rates'!#REF! ->  | M144: ='WS7 - Impact on Rates'!#REF! ->  | N144: ='WS7 - Impact on Rates'!#REF! ->  | O144: ='WS7 - Impact on Rates'!#REF! ->  | P144: ='WS7 - Impact on Rates'!#REF! ->  | Q144: ='WS7 - Impact on Rates'!#REF! -> 
B145: ='WS7 - Impact on Rates'!B47 -> Farmland | C145: ='WS7 - Impact on Rates'!C47 ->  | D145: ='WS7 - Impact on Rates'!D47 -> $ nominal p.a. | I145: ='WS7 - Impact on Rates'!I47 -> 0 | J145: ='WS7 - Impact on Rates'!J47 -> 0 | K145: ='WS7 - Impact on Rates'!K47 -> 0 | L145: ='WS7 - Impact on Rates'!L47 -> 0 | M145: ='WS7 - Impact on Rates'!M47 -> 0 | N145: ='WS7 - Impact on Rates'!N47 -> 0 | O145: ='WS7 - Impact on Rates'!O47 -> 0 | P145: ='WS7 - Impact on Rates'!P47 -> 0 | Q145: ='WS7 - Impact on Rates'!Q47 -> 0
B146: ='WS7 - Impact on Rates'!#REF! ->  | C146: ='WS7 - Impact on Rates'!#REF! ->  | D146: ='WS7 - Impact on Rates'!#REF! ->  | I146: ='WS7 - Impact on Rates'!#REF! ->  | J146: ='WS7 - Impact on Rates'!#REF! ->  | K146: ='WS7 - Impact on Rates'!#REF! ->  | L146: ='WS7 - Impact on Rates'!#REF! ->  | M146: ='WS7 - Impact on Rates'!#REF! ->  | N146: ='WS7 - Impact on Rates'!#REF! ->  | O146: ='WS7 - Impact on Rates'!#REF! ->  | P146: ='WS7 - Impact on Rates'!#REF! ->  | Q146: ='WS7 - Impact on Rates'!#REF! -> 
B147: ='WS7 - Impact on Rates'!#REF! ->  | C147: ='WS7 - Impact on Rates'!#REF! ->  | D147: ='WS7 - Impact on Rates'!#REF! ->  | I147: ='WS7 - Impact on Rates'!#REF! ->  | J147: ='WS7 - Impact on Rates'!#REF! ->  | K147: ='WS7 - Impact on Rates'!#REF! ->  | L147: ='WS7 - Impact on Rates'!#REF! ->  | M147: ='WS7 - Impact on Rates'!#REF! ->  | N147: ='WS7 - Impact on Rates'!#REF! ->  | O147: ='WS7 - Impact on Rates'!#REF! ->  | P147: ='WS7 - Impact on Rates'!#REF! ->  | Q147: ='WS7 - Impact on Rates'!#REF! -> 
B148: ='WS7 - Impact on Rates'!#REF! ->  | C148: ='WS7 - Impact on Rates'!#REF! ->  | D148: ='WS7 - Impact on Rates'!#REF! ->  | I148: ='WS7 - Impact on Rates'!#REF! ->  | J148: ='WS7 - Impact on Rates'!#REF! ->  | K148: ='WS7 - Impact on Rates'!#REF! ->  | L148: ='WS7 - Impact on Rates'!#REF! ->  | M148: ='WS7 - Impact on Rates'!#REF! ->  | N148: ='WS7 - Impact on Rates'!#REF! ->  | O148: ='WS7 - Impact on Rates'!#REF! ->  | P148: ='WS7 - Impact on Rates'!#REF! ->  | Q148: ='WS7 - Impact on Rates'!#REF! -> 
B149: ='WS7 - Impact on Rates'!#REF! ->  | C149: ='WS7 - Impact on Rates'!#REF! ->  | D149: ='WS7 - Impact on Rates'!#REF! ->  | I149: ='WS7 - Impact on Rates'!#REF! ->  | J149: ='WS7 - Impact on Rates'!#REF! ->  | K149: ='WS7 - Impact on Rates'!#REF! ->  | L149: ='WS7 - Impact on Rates'!#REF! ->  | M149: ='WS7 - Impact on Rates'!#REF! ->  | N149: ='WS7 - Impact on Rates'!#REF! ->  | O149: ='WS7 - Impact on Rates'!#REF! ->  | P149: ='WS7 - Impact on Rates'!#REF! ->  | Q149: ='WS7 - Impact on Rates'!#REF! -> 
B150: ='WS7 - Impact on Rates'!#REF! ->  | C150: ='WS7 - Impact on Rates'!#REF! ->  | D150: ='WS7 - Impact on Rates'!#REF! ->  | I150: ='WS7 - Impact on Rates'!#REF! ->  | J150: ='WS7 - Impact on Rates'!#REF! ->  | K150: ='WS7 - Impact on Rates'!#REF! ->  | L150: ='WS7 - Impact on Rates'!#REF! ->  | M150: ='WS7 - Impact on Rates'!#REF! ->  | N150: ='WS7 - Impact on Rates'!#REF! ->  | O150: ='WS7 - Impact on Rates'!#REF! ->  | P150: ='WS7 - Impact on Rates'!#REF! ->  | Q150: ='WS7 - Impact on Rates'!#REF! -> 
B151: ='WS7 - Impact on Rates'!#REF! ->  | C151: ='WS7 - Impact on Rates'!#REF! ->  | D151: ='WS7 - Impact on Rates'!#REF! ->  | I151: ='WS7 - Impact on Rates'!#REF! ->  | J151: ='WS7 - Impact on Rates'!#REF! ->  | K151: ='WS7 - Impact on Rates'!#REF! ->  | L151: ='WS7 - Impact on Rates'!#REF! ->  | M151: ='WS7 - Impact on Rates'!#REF! ->  | N151: ='WS7 - Impact on Rates'!#REF! ->  | O151: ='WS7 - Impact on Rates'!#REF! ->  | P151: ='WS7 - Impact on Rates'!#REF! ->  | Q151: ='WS7 - Impact on Rates'!#REF! -> 
B152: ='WS7 - Impact on Rates'!#REF! ->  | C152: ='WS7 - Impact on Rates'!#REF! ->  | D152: ='WS7 - Impact on Rates'!#REF! ->  | I152: ='WS7 - Impact on Rates'!#REF! ->  | J152: ='WS7 - Impact on Rates'!#REF! ->  | K152: ='WS7 - Impact on Rates'!#REF! ->  | L152: ='WS7 - Impact on Rates'!#REF! ->  | M152: ='WS7 - Impact on Rates'!#REF! ->  | N152: ='WS7 - Impact on Rates'!#REF! ->  | O152: ='WS7 - Impact on Rates'!#REF! ->  | P152: ='WS7 - Impact on Rates'!#REF! ->  | Q152: ='WS7 - Impact on Rates'!#REF! -> 
B153: ='WS7 - Impact on Rates'!#REF! ->  | C153: ='WS7 - Impact on Rates'!#REF! ->  | D153: ='WS7 - Impact on Rates'!#REF! ->  | I153: ='WS7 - Impact on Rates'!#REF! ->  | J153: ='WS7 - Impact on Rates'!#REF! ->  | K153: ='WS7 - Impact on Rates'!#REF! ->  | L153: ='WS7 - Impact on Rates'!#REF! ->  | M153: ='WS7 - Impact on Rates'!#REF! ->  | N153: ='WS7 - Impact on Rates'!#REF! ->  | O153: ='WS7 - Impact on Rates'!#REF! ->  | P153: ='WS7 - Impact on Rates'!#REF! ->  | Q153: ='WS7 - Impact on Rates'!#REF! -> 
B154: ='WS7 - Impact on Rates'!#REF! ->  | C154: ='WS7 - Impact on Rates'!#REF! ->  | D154: ='WS7 - Impact on Rates'!#REF! ->  | I154: ='WS7 - Impact on Rates'!#REF! ->  | J154: ='WS7 - Impact on Rates'!#REF! ->  | K154: ='WS7 - Impact on Rates'!#REF! ->  | L154: ='WS7 - Impact on Rates'!#REF! ->  | M154: ='WS7 - Impact on Rates'!#REF! ->  | N154: ='WS7 - Impact on Rates'!#REF! ->  | O154: ='WS7 - Impact on Rates'!#REF! ->  | P154: ='WS7 - Impact on Rates'!#REF! ->  | Q154: ='WS7 - Impact on Rates'!#REF! -> 
B155: ='WS7 - Impact on Rates'!B49 -> Mining | C155: ='WS7 - Impact on Rates'!C49 ->  | D155: ='WS7 - Impact on Rates'!D49 -> $ nominal p.a. | I155: ='WS7 - Impact on Rates'!I49 -> 0 | J155: ='WS7 - Impact on Rates'!J49 -> 0 | K155: ='WS7 - Impact on Rates'!K49 -> 0 | L155: ='WS7 - Impact on Rates'!L49 -> 0 | M155: ='WS7 - Impact on Rates'!M49 -> 0 | N155: ='WS7 - Impact on Rates'!N49 -> 0 | O155: ='WS7 - Impact on Rates'!O49 -> 0 | P155: ='WS7 - Impact on Rates'!P49 -> 0 | Q155: ='WS7 - Impact on Rates'!Q49 -> 0
B156: ='WS7 - Impact on Rates'!#REF! ->  | C156: ='WS7 - Impact on Rates'!#REF! ->  | D156: ='WS7 - Impact on Rates'!#REF! ->  | I156: ='WS7 - Impact on Rates'!#REF! ->  | J156: ='WS7 - Impact on Rates'!#REF! ->  | K156: ='WS7 - Impact on Rates'!#REF! ->  | L156: ='WS7 - Impact on Rates'!#REF! ->  | M156: ='WS7 - Impact on Rates'!#REF! ->  | N156: ='WS7 - Impact on Rates'!#REF! ->  | O156: ='WS7 - Impact on Rates'!#REF! ->  | P156: ='WS7 - Impact on Rates'!#REF! ->  | Q156: ='WS7 - Impact on Rates'!#REF! -> 
B157: ='WS7 - Impact on Rates'!#REF! ->  | C157: ='WS7 - Impact on Rates'!#REF! ->  | D157: ='WS7 - Impact on Rates'!#REF! ->  | I157: ='WS7 - Impact on Rates'!#REF! ->  | J157: ='WS7 - Impact on Rates'!#REF! ->  | K157: ='WS7 - Impact on Rates'!#REF! ->  | L157: ='WS7 - Impact on Rates'!#REF! ->  | M157: ='WS7 - Impact on Rates'!#REF! ->  | N157: ='WS7 - Impact on Rates'!#REF! ->  | O157: ='WS7 - Impact on Rates'!#REF! ->  | P157: ='WS7 - Impact on Rates'!#REF! ->  | Q157: ='WS7 - Impact on Rates'!#REF! -> 
B158: ='WS7 - Impact on Rates'!#REF! ->  | C158: ='WS7 - Impact on Rates'!#REF! ->  | D158: ='WS7 - Impact on Rates'!#REF! ->  | I158: ='WS7 - Impact on Rates'!#REF! ->  | J158: ='WS7 - Impact on Rates'!#REF! ->  | K158: ='WS7 - Impact on Rates'!#REF! ->  | L158: ='WS7 - Impact on Rates'!#REF! ->  | M158: ='WS7 - Impact on Rates'!#REF! ->  | N158: ='WS7 - Impact on Rates'!#REF! ->  | O158: ='WS7 - Impact on Rates'!#REF! ->  | P158: ='WS7 - Impact on Rates'!#REF! ->  | Q158: ='WS7 - Impact on Rates'!#REF! -> 
B159: ='WS7 - Impact on Rates'!#REF! ->  | C159: ='WS7 - Impact on Rates'!#REF! ->  | D159: ='WS7 - Impact on Rates'!#REF! ->  | I159: ='WS7 - Impact on Rates'!#REF! ->  | J159: ='WS7 - Impact on Rates'!#REF! ->  | K159: ='WS7 - Impact on Rates'!#REF! ->  | L159: ='WS7 - Impact on Rates'!#REF! ->  | M159: ='WS7 - Impact on Rates'!#REF! ->  | N159: ='WS7 - Impact on Rates'!#REF! ->  | O159: ='WS7 - Impact on Rates'!#REF! ->  | P159: ='WS7 - Impact on Rates'!#REF! ->  | Q159: ='WS7 - Impact on Rates'!#REF! -> 
B160: ='WS7 - Impact on Rates'!#REF! ->  | C160: ='WS7 - Impact on Rates'!#REF! ->  | D160: ='WS7 - Impact on Rates'!#REF! ->  | I160: ='WS7 - Impact on Rates'!#REF! ->  | J160: ='WS7 - Impact on Rates'!#REF! ->  | K160: ='WS7 - Impact on Rates'!#REF! ->  | L160: ='WS7 - Impact on Rates'!#REF! ->  | M160: ='WS7 - Impact on Rates'!#REF! ->  | N160: ='WS7 - Impact on Rates'!#REF! ->  | O160: ='WS7 - Impact on Rates'!#REF! ->  | P160: ='WS7 - Impact on Rates'!#REF! ->  | Q160: ='WS7 - Impact on Rates'!#REF! -> 
B161: ='WS7 - Impact on Rates'!#REF! ->  | C161: ='WS7 - Impact on Rates'!#REF! ->  | D161: ='WS7 - Impact on Rates'!#REF! ->  | I161: ='WS7 - Impact on Rates'!#REF! ->  | J161: ='WS7 - Impact on Rates'!#REF! ->  | K161: ='WS7 - Impact on Rates'!#REF! ->  | L161: ='WS7 - Impact on Rates'!#REF! ->  | M161: ='WS7 - Impact on Rates'!#REF! ->  | N161: ='WS7 - Impact on Rates'!#REF! ->  | O161: ='WS7 - Impact on Rates'!#REF! ->  | P161: ='WS7 - Impact on Rates'!#REF! ->  | Q161: ='WS7 - Impact on Rates'!#REF! -> 
B162: ='WS7 - Impact on Rates'!#REF! ->  | C162: ='WS7 - Impact on Rates'!#REF! ->  | D162: ='WS7 - Impact on Rates'!#REF! ->  | I162: ='WS7 - Impact on Rates'!#REF! ->  | J162: ='WS7 - Impact on Rates'!#REF! ->  | K162: ='WS7 - Impact on Rates'!#REF! ->  | L162: ='WS7 - Impact on Rates'!#REF! ->  | M162: ='WS7 - Impact on Rates'!#REF! ->  | N162: ='WS7 - Impact on Rates'!#REF! ->  | O162: ='WS7 - Impact on Rates'!#REF! ->  | P162: ='WS7 - Impact on Rates'!#REF! ->  | Q162: ='WS7 - Impact on Rates'!#REF! -> 
B163: ='WS7 - Impact on Rates'!#REF! ->  | C163: ='WS7 - Impact on Rates'!#REF! ->  | D163: ='WS7 - Impact on Rates'!#REF! ->  | I163: ='WS7 - Impact on Rates'!#REF! ->  | J163: ='WS7 - Impact on Rates'!#REF! ->  | K163: ='WS7 - Impact on Rates'!#REF! ->  | L163: ='WS7 - Impact on Rates'!#REF! ->  | M163: ='WS7 - Impact on Rates'!#REF! ->  | N163: ='WS7 - Impact on Rates'!#REF! ->  | O163: ='WS7 - Impact on Rates'!#REF! ->  | P163: ='WS7 - Impact on Rates'!#REF! ->  | Q163: ='WS7 - Impact on Rates'!#REF! -> 
B164: ='WS7 - Impact on Rates'!#REF! ->  | C164: ='WS7 - Impact on Rates'!#REF! ->  | D164: ='WS7 - Impact on Rates'!#REF! ->  | I164: ='WS7 - Impact on Rates'!#REF! ->  | J164: ='WS7 - Impact on Rates'!#REF! ->  | K164: ='WS7 - Impact on Rates'!#REF! ->  | L164: ='WS7 - Impact on Rates'!#REF! ->  | M164: ='WS7 - Impact on Rates'!#REF! ->  | N164: ='WS7 - Impact on Rates'!#REF! ->  | O164: ='WS7 - Impact on Rates'!#REF! ->  | P164: ='WS7 - Impact on Rates'!#REF! ->  | Q164: ='WS7 - Impact on Rates'!#REF! -> 
B166: ='WS7 - Impact on Rates'!B52 -> Table 7.2: Average Ordinary and Special Rates - with proposed special variation
B167: ='WS7 - Impact on Rates'!B55 -> Residential | C167: ='WS7 - Impact on Rates'!C55 -> Aberdeen | D167: ='WS7 - Impact on Rates'!D55 -> $ nominal p.a. | I167: ='WS7 - Impact on Rates'!I55 -> 639.1840501 | J167: ='WS7 - Impact on Rates'!J55 -> 668.4506044 | K167: ='WS7 - Impact on Rates'!K55 -> 735.2956648 | L167: ='WS7 - Impact on Rates'!L55 -> 808.8252313 | M167: ='WS7 - Impact on Rates'!M55 -> 889.7077545 | N167: ='WS7 - Impact on Rates'!N55 -> 914.6195716 | O167: ='WS7 - Impact on Rates'!O55 -> 937.4850609 | P167: ='WS7 - Impact on Rates'!P55 -> 960.9221874 | Q167: ='WS7 - Impact on Rates'!Q55 -> 984.9452421
B168: ='WS7 - Impact on Rates'!B56 -> Residential | C168: ='WS7 - Impact on Rates'!C56 -> Cassillis | D168: ='WS7 - Impact on Rates'!D56 -> $ nominal p.a. | I168: ='WS7 - Impact on Rates'!I56 -> 543.9126102 | J168: ='WS7 - Impact on Rates'!J56 -> 568.7908694 | K168: ='WS7 - Impact on Rates'!K56 -> 625.6699563 | L168: ='WS7 - Impact on Rates'!L56 -> 688.236952 | M168: ='WS7 - Impact on Rates'!M56 -> 757.0606472 | N168: ='WS7 - Impact on Rates'!N56 -> 778.2583453 | O168: ='WS7 - Impact on Rates'!O56 -> 797.7148039 | P168: ='WS7 - Impact on Rates'!P56 -> 817.657674 | Q168: ='WS7 - Impact on Rates'!Q56 -> 838.0991159
B169: ='WS7 - Impact on Rates'!B57 -> Residential | C169: ='WS7 - Impact on Rates'!C57 -> Merriwa | D169: ='WS7 - Impact on Rates'!D57 -> $ nominal p.a. | I169: ='WS7 - Impact on Rates'!I57 -> 624.6314513 | J169: ='WS7 - Impact on Rates'!J57 -> 653.2625201 | K169: ='WS7 - Impact on Rates'!K57 -> 718.5887721 | L169: ='WS7 - Impact on Rates'!L57 -> 790.4476493 | M169: ='WS7 - Impact on Rates'!M57 -> 869.4924143 | N169: ='WS7 - Impact on Rates'!N57 -> 893.8382019 | O169: ='WS7 - Impact on Rates'!O57 -> 916.1841569 | P169: ='WS7 - Impact on Rates'!P57 -> 939.0887608 | Q169: ='WS7 - Impact on Rates'!Q57 -> 962.5659799
B170: ='WS7 - Impact on Rates'!B58 -> Residential | C170: ='WS7 - Impact on Rates'!C58 -> Murrurundi | D170: ='WS7 - Impact on Rates'!D58 -> $ nominal p.a. | I170: ='WS7 - Impact on Rates'!I58 -> 591.470913 | J170: ='WS7 - Impact on Rates'!J58 -> 618.536961 | K170: ='WS7 - Impact on Rates'!K58 -> 680.3906571 | L170: ='WS7 - Impact on Rates'!L58 -> 748.4297228 | M170: ='WS7 - Impact on Rates'!M58 -> 823.2726951 | N170: ='WS7 - Impact on Rates'!N58 -> 846.3243306 | O170: ='WS7 - Impact on Rates'!O58 -> 867.4824388 | P170: ='WS7 - Impact on Rates'!P58 -> 889.1694998 | Q170: ='WS7 - Impact on Rates'!Q58 -> 911.3987373
B171: ='WS7 - Impact on Rates'!B59 -> Residential | C171: ='WS7 - Impact on Rates'!C59 -> Scone | D171: ='WS7 - Impact on Rates'!D59 -> $ nominal p.a. | I171: ='WS7 - Impact on Rates'!I59 -> 1135.220173 | J171: ='WS7 - Impact on Rates'!J59 -> 1187.190825 | K171: ='WS7 - Impact on Rates'!K59 -> 1305.909908 | L171: ='WS7 - Impact on Rates'!L59 -> 1436.500898 | M171: ='WS7 - Impact on Rates'!M59 -> 1580.150988 | N171: ='WS7 - Impact on Rates'!N59 -> 1624.395216 | O171: ='WS7 - Impact on Rates'!O59 -> 1665.005096 | P171: ='WS7 - Impact on Rates'!P59 -> 1706.630224 | Q171: ='WS7 - Impact on Rates'!Q59 -> 1749.295979
B172: ='WS7 - Impact on Rates'!B60 -> Residential | C172: ='WS7 - Impact on Rates'!C60 -> Ordinary | D172: ='WS7 - Impact on Rates'!D60 -> $ nominal p.a. | I172: ='WS7 - Impact on Rates'!I60 -> 1044.710625 | J172: ='WS7 - Impact on Rates'!J60 -> 1093.450876 | K172: ='WS7 - Impact on Rates'!K60 -> 1202.795963 | L172: ='WS7 - Impact on Rates'!L60 -> 1323.07556 | M172: ='WS7 - Impact on Rates'!M60 -> 1455.383116 | N172: ='WS7 - Impact on Rates'!N60 -> 1496.133843 | O172: ='WS7 - Impact on Rates'!O60 -> 1533.537189 | P172: ='WS7 - Impact on Rates'!P60 -> 1571.875619 | Q172: ='WS7 - Impact on Rates'!Q60 -> 1611.172509
B173: ='WS7 - Impact on Rates'!B61 -> Residential | C173: ='WS7 - Impact on Rates'!C61 -> Mixed Development - Aberdeen Residential | D173: ='WS7 - Impact on Rates'!D61 -> $ nominal p.a. | I173: ='WS7 - Impact on Rates'!I61 -> 578.080784 | J173: ='WS7 - Impact on Rates'!J61 -> 503.27551 | K173: ='WS7 - Impact on Rates'!K61 -> 553.603061 | L173: ='WS7 - Impact on Rates'!L61 -> 608.9633671 | M173: ='WS7 - Impact on Rates'!M61 -> 669.8597038 | N173: ='WS7 - Impact on Rates'!N61 -> 688.6157755 | O173: ='WS7 - Impact on Rates'!O61 -> 705.8311699 | P173: ='WS7 - Impact on Rates'!P61 -> 723.4769492 | Q173: ='WS7 - Impact on Rates'!Q61 -> 741.5638729
B174: ='WS7 - Impact on Rates'!B62 -> Residential | C174: ='WS7 - Impact on Rates'!C62 -> Mixed Development - Merriwa Residential | D174: ='WS7 - Impact on Rates'!D62 -> $ nominal p.a. | I174: ='WS7 - Impact on Rates'!I62 -> 311.6993308 | J174: ='WS7 - Impact on Rates'!J62 -> 219.2307353 | K174: ='WS7 - Impact on Rates'!K62 -> 241.1538088 | L174: ='WS7 - Impact on Rates'!L62 -> 265.2691897 | M174: ='WS7 - Impact on Rates'!M62 -> 291.7961086 | N174: ='WS7 - Impact on Rates'!N62 -> 299.9663997 | O174: ='WS7 - Impact on Rates'!O62 -> 307.4655597 | P174: ='WS7 - Impact on Rates'!P62 -> 315.1521986 | Q174: ='WS7 - Impact on Rates'!Q62 -> 323.0310036
B175: ='WS7 - Impact on Rates'!B63 -> Residential | C175: ='WS7 - Impact on Rates'!C63 -> Mixed Development - Murrurundi Residential | D175: ='WS7 - Impact on Rates'!D63 -> $ nominal p.a. | I175: ='WS7 - Impact on Rates'!I63 -> 369.397 | J175: ='WS7 - Impact on Rates'!J63 -> 281.109 | K175: ='WS7 - Impact on Rates'!K63 -> 309.2199 | L175: ='WS7 - Impact on Rates'!L63 -> 340.14189 | M175: ='WS7 - Impact on Rates'!M63 -> 374.156079 | N175: ='WS7 - Impact on Rates'!N63 -> 384.6324492 | O175: ='WS7 - Impact on Rates'!O63 -> 394.2482604 | P175: ='WS7 - Impact on Rates'!P63 -> 404.104467 | Q175: ='WS7 - Impact on Rates'!Q63 -> 414.2070786
B176: ='WS7 - Impact on Rates'!#REF! ->  | C176: ='WS7 - Impact on Rates'!#REF! ->  | D176: ='WS7 - Impact on Rates'!#REF! ->  | I176: ='WS7 - Impact on Rates'!#REF! ->  | J176: ='WS7 - Impact on Rates'!#REF! ->  | K176: ='WS7 - Impact on Rates'!#REF! ->  | L176: ='WS7 - Impact on Rates'!#REF! ->  | M176: ='WS7 - Impact on Rates'!#REF! ->  | N176: ='WS7 - Impact on Rates'!#REF! ->  | O176: ='WS7 - Impact on Rates'!#REF! ->  | P176: ='WS7 - Impact on Rates'!#REF! ->  | Q176: ='WS7 - Impact on Rates'!#REF! -> 
B177: ='WS7 - Impact on Rates'!#REF! ->  | C177: ='WS7 - Impact on Rates'!#REF! ->  | D177: ='WS7 - Impact on Rates'!#REF! ->  | I177: ='WS7 - Impact on Rates'!#REF! ->  | J177: ='WS7 - Impact on Rates'!#REF! ->  | K177: ='WS7 - Impact on Rates'!#REF! ->  | L177: ='WS7 - Impact on Rates'!#REF! ->  | M177: ='WS7 - Impact on Rates'!#REF! ->  | N177: ='WS7 - Impact on Rates'!#REF! ->  | O177: ='WS7 - Impact on Rates'!#REF! ->  | P177: ='WS7 - Impact on Rates'!#REF! ->  | Q177: ='WS7 - Impact on Rates'!#REF! -> 
B178: ='WS7 - Impact on Rates'!#REF! ->  | C178: ='WS7 - Impact on Rates'!#REF! ->  | D178: ='WS7 - Impact on Rates'!#REF! ->  | I178: ='WS7 - Impact on Rates'!#REF! ->  | J178: ='WS7 - Impact on Rates'!#REF! ->  | K178: ='WS7 - Impact on Rates'!#REF! ->  | L178: ='WS7 - Impact on Rates'!#REF! ->  | M178: ='WS7 - Impact on Rates'!#REF! ->  | N178: ='WS7 - Impact on Rates'!#REF! ->  | O178: ='WS7 - Impact on Rates'!#REF! ->  | P178: ='WS7 - Impact on Rates'!#REF! ->  | Q178: ='WS7 - Impact on Rates'!#REF! -> 
B179: ='WS7 - Impact on Rates'!#REF! ->  | C179: ='WS7 - Impact on Rates'!#REF! ->  | D179: ='WS7 - Impact on Rates'!#REF! ->  | I179: ='WS7 - Impact on Rates'!#REF! ->  | J179: ='WS7 - Impact on Rates'!#REF! ->  | K179: ='WS7 - Impact on Rates'!#REF! ->  | L179: ='WS7 - Impact on Rates'!#REF! ->  | M179: ='WS7 - Impact on Rates'!#REF! ->  | N179: ='WS7 - Impact on Rates'!#REF! ->  | O179: ='WS7 - Impact on Rates'!#REF! ->  | P179: ='WS7 - Impact on Rates'!#REF! ->  | Q179: ='WS7 - Impact on Rates'!#REF! -> 
B180: ='WS7 - Impact on Rates'!#REF! ->  | C180: ='WS7 - Impact on Rates'!#REF! ->  | D180: ='WS7 - Impact on Rates'!#REF! ->  | I180: ='WS7 - Impact on Rates'!#REF! ->  | J180: ='WS7 - Impact on Rates'!#REF! ->  | K180: ='WS7 - Impact on Rates'!#REF! ->  | L180: ='WS7 - Impact on Rates'!#REF! ->  | M180: ='WS7 - Impact on Rates'!#REF! ->  | N180: ='WS7 - Impact on Rates'!#REF! ->  | O180: ='WS7 - Impact on Rates'!#REF! ->  | P180: ='WS7 - Impact on Rates'!#REF! ->  | Q180: ='WS7 - Impact on Rates'!#REF! -> 
B181: ='WS7 - Impact on Rates'!#REF! ->  | C181: ='WS7 - Impact on Rates'!#REF! ->  | D181: ='WS7 - Impact on Rates'!#REF! ->  | I181: ='WS7 - Impact on Rates'!#REF! ->  | J181: ='WS7 - Impact on Rates'!#REF! ->  | K181: ='WS7 - Impact on Rates'!#REF! ->  | L181: ='WS7 - Impact on Rates'!#REF! ->  | M181: ='WS7 - Impact on Rates'!#REF! ->  | N181: ='WS7 - Impact on Rates'!#REF! ->  | O181: ='WS7 - Impact on Rates'!#REF! ->  | P181: ='WS7 - Impact on Rates'!#REF! ->  | Q181: ='WS7 - Impact on Rates'!#REF! -> 
B182: ='WS7 - Impact on Rates'!#REF! ->  | C182: ='WS7 - Impact on Rates'!#REF! ->  | D182: ='WS7 - Impact on Rates'!#REF! ->  | I182: ='WS7 - Impact on Rates'!#REF! ->  | J182: ='WS7 - Impact on Rates'!#REF! ->  | K182: ='WS7 - Impact on Rates'!#REF! ->  | L182: ='WS7 - Impact on Rates'!#REF! ->  | M182: ='WS7 - Impact on Rates'!#REF! ->  | N182: ='WS7 - Impact on Rates'!#REF! ->  | O182: ='WS7 - Impact on Rates'!#REF! ->  | P182: ='WS7 - Impact on Rates'!#REF! ->  | Q182: ='WS7 - Impact on Rates'!#REF! -> 
B183: ='WS7 - Impact on Rates'!#REF! ->  | C183: ='WS7 - Impact on Rates'!#REF! ->  | D183: ='WS7 - Impact on Rates'!#REF! ->  | I183: ='WS7 - Impact on Rates'!#REF! ->  | J183: ='WS7 - Impact on Rates'!#REF! ->  | K183: ='WS7 - Impact on Rates'!#REF! ->  | L183: ='WS7 - Impact on Rates'!#REF! ->  | M183: ='WS7 - Impact on Rates'!#REF! ->  | N183: ='WS7 - Impact on Rates'!#REF! ->  | O183: ='WS7 - Impact on Rates'!#REF! ->  | P183: ='WS7 - Impact on Rates'!#REF! ->  | Q183: ='WS7 - Impact on Rates'!#REF! -> 
B184: ='WS7 - Impact on Rates'!#REF! ->  | C184: ='WS7 - Impact on Rates'!#REF! ->  | D184: ='WS7 - Impact on Rates'!#REF! ->  | I184: ='WS7 - Impact on Rates'!#REF! ->  | J184: ='WS7 - Impact on Rates'!#REF! ->  | K184: ='WS7 - Impact on Rates'!#REF! ->  | L184: ='WS7 - Impact on Rates'!#REF! ->  | M184: ='WS7 - Impact on Rates'!#REF! ->  | N184: ='WS7 - Impact on Rates'!#REF! ->  | O184: ='WS7 - Impact on Rates'!#REF! ->  | P184: ='WS7 - Impact on Rates'!#REF! ->  | Q184: ='WS7 - Impact on Rates'!#REF! -> 
B185: ='WS7 - Impact on Rates'!#REF! ->  | C185: ='WS7 - Impact on Rates'!#REF! ->  | D185: ='WS7 - Impact on Rates'!#REF! ->  | I185: ='WS7 - Impact on Rates'!#REF! ->  | J185: ='WS7 - Impact on Rates'!#REF! ->  | K185: ='WS7 - Impact on Rates'!#REF! ->  | L185: ='WS7 - Impact on Rates'!#REF! ->  | M185: ='WS7 - Impact on Rates'!#REF! ->  | N185: ='WS7 - Impact on Rates'!#REF! ->  | O185: ='WS7 - Impact on Rates'!#REF! ->  | P185: ='WS7 - Impact on Rates'!#REF! ->  | Q185: ='WS7 - Impact on Rates'!#REF! -> 
B186: ='WS7 - Impact on Rates'!B64 -> Residential | C186: ='WS7 - Impact on Rates'!C64 ->  | D186: ='WS7 - Impact on Rates'!D64 -> $ nominal p.a. | I186: ='WS7 - Impact on Rates'!I64 -> 0 | J186: ='WS7 - Impact on Rates'!J64 -> . | K186: ='WS7 - Impact on Rates'!K64 -> . | L186: ='WS7 - Impact on Rates'!L64 -> 0 | M186: ='WS7 - Impact on Rates'!M64 -> 0 | N186: ='WS7 - Impact on Rates'!N64 -> 0 | O186: ='WS7 - Impact on Rates'!O64 -> 0 | P186: ='WS7 - Impact on Rates'!P64 -> 0 | Q186: ='WS7 - Impact on Rates'!Q64 -> 0
B187: ='WS7 - Impact on Rates'!B65 -> Special rate | C187: ='WS7 - Impact on Rates'!C65 ->  | D187: ='WS7 - Impact on Rates'!D65 -> $ nominal p.a. | I187: ='WS7 - Impact on Rates'!I65 -> 0 | J187: ='WS7 - Impact on Rates'!J65 -> . | K187: ='WS7 - Impact on Rates'!K65 -> . | L187: ='WS7 - Impact on Rates'!L65 -> 0 | M187: ='WS7 - Impact on Rates'!M65 -> 0 | N187: ='WS7 - Impact on Rates'!N65 -> 0 | O187: ='WS7 - Impact on Rates'!O65 -> 0 | P187: ='WS7 - Impact on Rates'!P65 -> 0 | Q187: ='WS7 - Impact on Rates'!Q65 -> 0
B188: ='WS7 - Impact on Rates'!B66 -> Special rate | C188: ='WS7 - Impact on Rates'!C66 ->  | D188: ='WS7 - Impact on Rates'!D66 -> $ nominal p.a. | I188: ='WS7 - Impact on Rates'!I66 -> 0 | J188: ='WS7 - Impact on Rates'!J66 -> . | K188: ='WS7 - Impact on Rates'!K66 -> . | L188: ='WS7 - Impact on Rates'!L66 -> 0 | M188: ='WS7 - Impact on Rates'!M66 -> 0 | N188: ='WS7 - Impact on Rates'!N66 -> 0 | O188: ='WS7 - Impact on Rates'!O66 -> 0 | P188: ='WS7 - Impact on Rates'!P66 -> 0 | Q188: ='WS7 - Impact on Rates'!Q66 -> 0
B189: ='WS7 - Impact on Rates'!#REF! ->  | C189: ='WS7 - Impact on Rates'!#REF! ->  | D189: ='WS7 - Impact on Rates'!#REF! ->  | I189: ='WS7 - Impact on Rates'!#REF! ->  | J189: ='WS7 - Impact on Rates'!#REF! ->  | K189: ='WS7 - Impact on Rates'!#REF! ->  | L189: ='WS7 - Impact on Rates'!#REF! ->  | M189: ='WS7 - Impact on Rates'!#REF! ->  | N189: ='WS7 - Impact on Rates'!#REF! ->  | O189: ='WS7 - Impact on Rates'!#REF! ->  | P189: ='WS7 - Impact on Rates'!#REF! ->  | Q189: ='WS7 - Impact on Rates'!#REF! -> 
B190: ='WS7 - Impact on Rates'!#REF! ->  | C190: ='WS7 - Impact on Rates'!#REF! ->  | D190: ='WS7 - Impact on Rates'!#REF! ->  | I190: ='WS7 - Impact on Rates'!#REF! ->  | J190: ='WS7 - Impact on Rates'!#REF! ->  | K190: ='WS7 - Impact on Rates'!#REF! ->  | L190: ='WS7 - Impact on Rates'!#REF! ->  | M190: ='WS7 - Impact on Rates'!#REF! ->  | N190: ='WS7 - Impact on Rates'!#REF! ->  | O190: ='WS7 - Impact on Rates'!#REF! ->  | P190: ='WS7 - Impact on Rates'!#REF! ->  | Q190: ='WS7 - Impact on Rates'!#REF! -> 
B191: ='WS7 - Impact on Rates'!#REF! ->  | C191: ='WS7 - Impact on Rates'!#REF! ->  | D191: ='WS7 - Impact on Rates'!#REF! ->  | I191: ='WS7 - Impact on Rates'!#REF! ->  | J191: ='WS7 - Impact on Rates'!#REF! ->  | K191: ='WS7 - Impact on Rates'!#REF! ->  | L191: ='WS7 - Impact on Rates'!#REF! ->  | M191: ='WS7 - Impact on Rates'!#REF! ->  | N191: ='WS7 - Impact on Rates'!#REF! ->  | O191: ='WS7 - Impact on Rates'!#REF! ->  | P191: ='WS7 - Impact on Rates'!#REF! ->  | Q191: ='WS7 - Impact on Rates'!#REF! -> 
B192: ='WS7 - Impact on Rates'!#REF! ->  | C192: ='WS7 - Impact on Rates'!#REF! ->  | D192: ='WS7 - Impact on Rates'!#REF! ->  | I192: ='WS7 - Impact on Rates'!#REF! ->  | J192: ='WS7 - Impact on Rates'!#REF! ->  | K192: ='WS7 - Impact on Rates'!#REF! ->  | L192: ='WS7 - Impact on Rates'!#REF! ->  | M192: ='WS7 - Impact on Rates'!#REF! ->  | N192: ='WS7 - Impact on Rates'!#REF! ->  | O192: ='WS7 - Impact on Rates'!#REF! ->  | P192: ='WS7 - Impact on Rates'!#REF! ->  | Q192: ='WS7 - Impact on Rates'!#REF! -> 
B193: ='WS7 - Impact on Rates'!#REF! ->  | C193: ='WS7 - Impact on Rates'!#REF! ->  | D193: ='WS7 - Impact on Rates'!#REF! ->  | I193: ='WS7 - Impact on Rates'!#REF! ->  | J193: ='WS7 - Impact on Rates'!#REF! ->  | K193: ='WS7 - Impact on Rates'!#REF! ->  | L193: ='WS7 - Impact on Rates'!#REF! ->  | M193: ='WS7 - Impact on Rates'!#REF! ->  | N193: ='WS7 - Impact on Rates'!#REF! ->  | O193: ='WS7 - Impact on Rates'!#REF! ->  | P193: ='WS7 - Impact on Rates'!#REF! ->  | Q193: ='WS7 - Impact on Rates'!#REF! -> 
B194: ='WS7 - Impact on Rates'!#REF! ->  | C194: ='WS7 - Impact on Rates'!#REF! ->  | D194: ='WS7 - Impact on Rates'!#REF! ->  | I194: ='WS7 - Impact on Rates'!#REF! ->  | J194: ='WS7 - Impact on Rates'!#REF! ->  | K194: ='WS7 - Impact on Rates'!#REF! ->  | L194: ='WS7 - Impact on Rates'!#REF! ->  | M194: ='WS7 - Impact on Rates'!#REF! ->  | N194: ='WS7 - Impact on Rates'!#REF! ->  | O194: ='WS7 - Impact on Rates'!#REF! ->  | P194: ='WS7 - Impact on Rates'!#REF! ->  | Q194: ='WS7 - Impact on Rates'!#REF! -> 
B195: ='WS7 - Impact on Rates'!#REF! ->  | C195: ='WS7 - Impact on Rates'!#REF! ->  | D195: ='WS7 - Impact on Rates'!#REF! ->  | I195: ='WS7 - Impact on Rates'!#REF! ->  | J195: ='WS7 - Impact on Rates'!#REF! ->  | K195: ='WS7 - Impact on Rates'!#REF! ->  | L195: ='WS7 - Impact on Rates'!#REF! ->  | M195: ='WS7 - Impact on Rates'!#REF! ->  | N195: ='WS7 - Impact on Rates'!#REF! ->  | O195: ='WS7 - Impact on Rates'!#REF! ->  | P195: ='WS7 - Impact on Rates'!#REF! ->  | Q195: ='WS7 - Impact on Rates'!#REF! -> 
B196: ='WS7 - Impact on Rates'!#REF! ->  | C196: ='WS7 - Impact on Rates'!#REF! ->  | D196: ='WS7 - Impact on Rates'!#REF! ->  | I196: ='WS7 - Impact on Rates'!#REF! ->  | J196: ='WS7 - Impact on Rates'!#REF! ->  | K196: ='WS7 - Impact on Rates'!#REF! ->  | L196: ='WS7 - Impact on Rates'!#REF! ->  | M196: ='WS7 - Impact on Rates'!#REF! ->  | N196: ='WS7 - Impact on Rates'!#REF! ->  | O196: ='WS7 - Impact on Rates'!#REF! ->  | P196: ='WS7 - Impact on Rates'!#REF! ->  | Q196: ='WS7 - Impact on Rates'!#REF! -> 
B197: =B167 -> Residential | C197: ='WS7 - Impact on Rates'!C67 -> TOTAL AVERAGE | I197: ='WS7 - Impact on Rates'!I67 -> 932.3553691 | J197: ='WS7 - Impact on Rates'!J67 -> 975.1519305 | K197: ='WS7 - Impact on Rates'!K67 -> 1072.667124 | L197: ='WS7 - Impact on Rates'!L67 -> 1179.933836 | M197: ='WS7 - Impact on Rates'!M67 -> 1297.927219 | N197: ='WS7 - Impact on Rates'!N67 -> 1334.269182 | O197: ='WS7 - Impact on Rates'!O67 -> 1367.625911 | P197: ='WS7 - Impact on Rates'!P67 -> 1401.816559 | Q197: ='WS7 - Impact on Rates'!Q67 -> 1436.861973
B198: ='WS7 - Impact on Rates'!B68 -> Business | C198: ='WS7 - Impact on Rates'!C68 -> Aberdeen | D198: ='WS7 - Impact on Rates'!D68 -> $ nominal p.a. | I198: ='WS7 - Impact on Rates'!I68 -> 1182.035187 | J198: ='WS7 - Impact on Rates'!J68 -> 1236.115131 | K198: ='WS7 - Impact on Rates'!K68 -> 1359.726644 | L198: ='WS7 - Impact on Rates'!L68 -> 1495.699308 | M198: ='WS7 - Impact on Rates'!M68 -> 1645.269239 | N198: ='WS7 - Impact on Rates'!N68 -> 1691.336778 | O198: ='WS7 - Impact on Rates'!O68 -> 1733.620197 | P198: ='WS7 - Impact on Rates'!P68 -> 1776.960702 | Q198: ='WS7 - Impact on Rates'!Q68 -> 1821.38472
B199: ='WS7 - Impact on Rates'!B69 -> Business | C199: ='WS7 - Impact on Rates'!C69 -> Merriwa | D199: ='WS7 - Impact on Rates'!D69 -> $ nominal p.a. | I199: ='WS7 - Impact on Rates'!I69 -> 771.7279153 | J199: ='WS7 - Impact on Rates'!J69 -> 807.0952759 | K199: ='WS7 - Impact on Rates'!K69 -> 887.8048035 | L199: ='WS7 - Impact on Rates'!L69 -> 976.5852839 | M199: ='WS7 - Impact on Rates'!M69 -> 1074.243812 | N199: ='WS7 - Impact on Rates'!N69 -> 1104.322639 | O199: ='WS7 - Impact on Rates'!O69 -> 1131.930705 | P199: ='WS7 - Impact on Rates'!P69 -> 1160.228973 | Q199: ='WS7 - Impact on Rates'!Q69 -> 1189.234697
B200: ='WS7 - Impact on Rates'!B70 -> Business | C200: ='WS7 - Impact on Rates'!C70 -> Murrurundi | D200: ='WS7 - Impact on Rates'!D70 -> $ nominal p.a. | I200: ='WS7 - Impact on Rates'!I70 -> 943.8036503 | J200: ='WS7 - Impact on Rates'!J70 -> 986.9976392 | K200: ='WS7 - Impact on Rates'!K70 -> 1085.697403 | L200: ='WS7 - Impact on Rates'!L70 -> 1194.267143 | M200: ='WS7 - Impact on Rates'!M70 -> 1313.693858 | N200: ='WS7 - Impact on Rates'!N70 -> 1350.477286 | O200: ='WS7 - Impact on Rates'!O70 -> 1384.239218 | P200: ='WS7 - Impact on Rates'!P70 -> 1418.845198 | Q200: ='WS7 - Impact on Rates'!Q70 -> 1454.316328
B201: ='WS7 - Impact on Rates'!B71 -> Business | C201: ='WS7 - Impact on Rates'!C71 -> Scone | D201: ='WS7 - Impact on Rates'!D71 -> $ nominal p.a. | I201: ='WS7 - Impact on Rates'!I71 -> 1737.068409 | J201: ='WS7 - Impact on Rates'!J71 -> 1816.568421 | K201: ='WS7 - Impact on Rates'!K71 -> 1998.225263 | L201: ='WS7 - Impact on Rates'!L71 -> 2198.047789 | M201: ='WS7 - Impact on Rates'!M71 -> 2417.852568 | N201: ='WS7 - Impact on Rates'!N71 -> 2485.55244 | O201: ='WS7 - Impact on Rates'!O71 -> 2547.691251 | P201: ='WS7 - Impact on Rates'!P71 -> 2611.383532 | Q201: ='WS7 - Impact on Rates'!Q71 -> 2676.66812
B202: ='WS7 - Impact on Rates'!B72 -> Business | C202: ='WS7 - Impact on Rates'!C72 -> Ordinary | D202: ='WS7 - Impact on Rates'!D72 -> $ nominal p.a. | I202: ='WS7 - Impact on Rates'!I72 -> 753.0393028 | J202: ='WS7 - Impact on Rates'!J72 -> 792.2169017 | K202: ='WS7 - Impact on Rates'!K72 -> 871.4385918 | L202: ='WS7 - Impact on Rates'!L72 -> 958.582451 | M202: ='WS7 - Impact on Rates'!M72 -> 1054.440696 | N202: ='WS7 - Impact on Rates'!N72 -> 1083.965036 | O202: ='WS7 - Impact on Rates'!O72 -> 1111.064161 | P202: ='WS7 - Impact on Rates'!P72 -> 1138.840766 | Q202: ='WS7 - Impact on Rates'!Q72 -> 1167.311785
B203: ='WS7 - Impact on Rates'!B73 -> Business | C203: ='WS7 - Impact on Rates'!C73 -> Mixed Development - Aberdeen Residential | D203: ='WS7 - Impact on Rates'!D73 -> $ nominal p.a. | I203: ='WS7 - Impact on Rates'!I73 -> 581.164875 | J203: ='WS7 - Impact on Rates'!J73 -> 713.16919 | K203: ='WS7 - Impact on Rates'!K73 -> 784.486109 | L203: ='WS7 - Impact on Rates'!L73 -> 862.9347199 | M203: ='WS7 - Impact on Rates'!M73 -> 949.2281919 | N203: ='WS7 - Impact on Rates'!N73 -> 975.8065813 | O203: ='WS7 - Impact on Rates'!O73 -> 1000.201746 | P203: ='WS7 - Impact on Rates'!P73 -> 1025.206789 | Q203: ='WS7 - Impact on Rates'!Q73 -> 1050.836959
B204: ='WS7 - Impact on Rates'!B74 -> Business | C204: ='WS7 - Impact on Rates'!C74 -> Mixed Development - Merriwa Residential | D204: ='WS7 - Impact on Rates'!D74 -> $ nominal p.a. | I204: ='WS7 - Impact on Rates'!I74 -> 163.5761798 | J204: ='WS7 - Impact on Rates'!J74 -> 273.69508 | K204: ='WS7 - Impact on Rates'!K74 -> 301.064588 | L204: ='WS7 - Impact on Rates'!L74 -> 331.1710468 | M204: ='WS7 - Impact on Rates'!M74 -> 364.2881515 | N204: ='WS7 - Impact on Rates'!N74 -> 374.4882197 | O204: ='WS7 - Impact on Rates'!O74 -> 383.8504252 | P204: ='WS7 - Impact on Rates'!P74 -> 393.4466858 | Q204: ='WS7 - Impact on Rates'!Q74 -> 403.282853
B205: ='WS7 - Impact on Rates'!B75 -> Business | C205: ='WS7 - Impact on Rates'!C75 -> Mixed Development - Murrurundi Residential | D205: ='WS7 - Impact on Rates'!D75 -> $ nominal p.a. | I205: ='WS7 - Impact on Rates'!I75 -> 200.9462 | J205: ='WS7 - Impact on Rates'!J75 -> 312.6155 | K205: ='WS7 - Impact on Rates'!K75 -> 343.87705 | L205: ='WS7 - Impact on Rates'!L75 -> 378.264755 | M205: ='WS7 - Impact on Rates'!M75 -> 416.0912305 | N205: ='WS7 - Impact on Rates'!N75 -> 427.741785 | O205: ='WS7 - Impact on Rates'!O75 -> 438.4353296 | P205: ='WS7 - Impact on Rates'!P75 -> 449.3962128 | Q205: ='WS7 - Impact on Rates'!Q75 -> 460.6311181
B206: ='WS7 - Impact on Rates'!#REF! ->  | C206: ='WS7 - Impact on Rates'!#REF! ->  | D206: ='WS7 - Impact on Rates'!#REF! ->  | I206: ='WS7 - Impact on Rates'!#REF! ->  | J206: ='WS7 - Impact on Rates'!#REF! ->  | K206: ='WS7 - Impact on Rates'!#REF! ->  | L206: ='WS7 - Impact on Rates'!#REF! ->  | M206: ='WS7 - Impact on Rates'!#REF! ->  | N206: ='WS7 - Impact on Rates'!#REF! ->  | O206: ='WS7 - Impact on Rates'!#REF! ->  | P206: ='WS7 - Impact on Rates'!#REF! ->  | Q206: ='WS7 - Impact on Rates'!#REF! -> 
B207: ='WS7 - Impact on Rates'!#REF! ->  | C207: ='WS7 - Impact on Rates'!#REF! ->  | D207: ='WS7 - Impact on Rates'!#REF! ->  | I207: ='WS7 - Impact on Rates'!#REF! ->  | J207: ='WS7 - Impact on Rates'!#REF! ->  | K207: ='WS7 - Impact on Rates'!#REF! ->  | L207: ='WS7 - Impact on Rates'!#REF! ->  | M207: ='WS7 - Impact on Rates'!#REF! ->  | N207: ='WS7 - Impact on Rates'!#REF! ->  | O207: ='WS7 - Impact on Rates'!#REF! ->  | P207: ='WS7 - Impact on Rates'!#REF! ->  | Q207: ='WS7 - Impact on Rates'!#REF! -> 
B208: ='WS7 - Impact on Rates'!#REF! ->  | C208: ='WS7 - Impact on Rates'!#REF! ->  | D208: ='WS7 - Impact on Rates'!#REF! ->  | I208: ='WS7 - Impact on Rates'!#REF! ->  | J208: ='WS7 - Impact on Rates'!#REF! ->  | K208: ='WS7 - Impact on Rates'!#REF! ->  | L208: ='WS7 - Impact on Rates'!#REF! ->  | M208: ='WS7 - Impact on Rates'!#REF! ->  | N208: ='WS7 - Impact on Rates'!#REF! ->  | O208: ='WS7 - Impact on Rates'!#REF! ->  | P208: ='WS7 - Impact on Rates'!#REF! ->  | Q208: ='WS7 - Impact on Rates'!#REF! -> 
B209: ='WS7 - Impact on Rates'!#REF! ->  | C209: ='WS7 - Impact on Rates'!#REF! ->  | D209: ='WS7 - Impact on Rates'!#REF! ->  | I209: ='WS7 - Impact on Rates'!#REF! ->  | J209: ='WS7 - Impact on Rates'!#REF! ->  | K209: ='WS7 - Impact on Rates'!#REF! ->  | L209: ='WS7 - Impact on Rates'!#REF! ->  | M209: ='WS7 - Impact on Rates'!#REF! ->  | N209: ='WS7 - Impact on Rates'!#REF! ->  | O209: ='WS7 - Impact on Rates'!#REF! ->  | P209: ='WS7 - Impact on Rates'!#REF! ->  | Q209: ='WS7 - Impact on Rates'!#REF! -> 
B210: ='WS7 - Impact on Rates'!#REF! ->  | C210: ='WS7 - Impact on Rates'!#REF! ->  | D210: ='WS7 - Impact on Rates'!#REF! ->  | I210: ='WS7 - Impact on Rates'!#REF! ->  | J210: ='WS7 - Impact on Rates'!#REF! ->  | K210: ='WS7 - Impact on Rates'!#REF! ->  | L210: ='WS7 - Impact on Rates'!#REF! ->  | M210: ='WS7 - Impact on Rates'!#REF! ->  | N210: ='WS7 - Impact on Rates'!#REF! ->  | O210: ='WS7 - Impact on Rates'!#REF! ->  | P210: ='WS7 - Impact on Rates'!#REF! ->  | Q210: ='WS7 - Impact on Rates'!#REF! -> 
B211: ='WS7 - Impact on Rates'!#REF! ->  | C211: ='WS7 - Impact on Rates'!#REF! ->  | D211: ='WS7 - Impact on Rates'!#REF! ->  | I211: ='WS7 - Impact on Rates'!#REF! ->  | J211: ='WS7 - Impact on Rates'!#REF! ->  | K211: ='WS7 - Impact on Rates'!#REF! ->  | L211: ='WS7 - Impact on Rates'!#REF! ->  | M211: ='WS7 - Impact on Rates'!#REF! ->  | N211: ='WS7 - Impact on Rates'!#REF! ->  | O211: ='WS7 - Impact on Rates'!#REF! ->  | P211: ='WS7 - Impact on Rates'!#REF! ->  | Q211: ='WS7 - Impact on Rates'!#REF! -> 
B212: ='WS7 - Impact on Rates'!#REF! ->  | C212: ='WS7 - Impact on Rates'!#REF! ->  | D212: ='WS7 - Impact on Rates'!#REF! ->  | I212: ='WS7 - Impact on Rates'!#REF! ->  | J212: ='WS7 - Impact on Rates'!#REF! ->  | K212: ='WS7 - Impact on Rates'!#REF! ->  | L212: ='WS7 - Impact on Rates'!#REF! ->  | M212: ='WS7 - Impact on Rates'!#REF! ->  | N212: ='WS7 - Impact on Rates'!#REF! ->  | O212: ='WS7 - Impact on Rates'!#REF! ->  | P212: ='WS7 - Impact on Rates'!#REF! ->  | Q212: ='WS7 - Impact on Rates'!#REF! -> 
B213: ='WS7 - Impact on Rates'!#REF! ->  | C213: ='WS7 - Impact on Rates'!#REF! ->  | D213: ='WS7 - Impact on Rates'!#REF! ->  | I213: ='WS7 - Impact on Rates'!#REF! ->  | J213: ='WS7 - Impact on Rates'!#REF! ->  | K213: ='WS7 - Impact on Rates'!#REF! ->  | L213: ='WS7 - Impact on Rates'!#REF! ->  | M213: ='WS7 - Impact on Rates'!#REF! ->  | N213: ='WS7 - Impact on Rates'!#REF! ->  | O213: ='WS7 - Impact on Rates'!#REF! ->  | P213: ='WS7 - Impact on Rates'!#REF! ->  | Q213: ='WS7 - Impact on Rates'!#REF! -> 
B214: ='WS7 - Impact on Rates'!#REF! ->  | C214: ='WS7 - Impact on Rates'!#REF! ->  | D214: ='WS7 - Impact on Rates'!#REF! ->  | I214: ='WS7 - Impact on Rates'!#REF! ->  | J214: ='WS7 - Impact on Rates'!#REF! ->  | K214: ='WS7 - Impact on Rates'!#REF! ->  | L214: ='WS7 - Impact on Rates'!#REF! ->  | M214: ='WS7 - Impact on Rates'!#REF! ->  | N214: ='WS7 - Impact on Rates'!#REF! ->  | O214: ='WS7 - Impact on Rates'!#REF! ->  | P214: ='WS7 - Impact on Rates'!#REF! ->  | Q214: ='WS7 - Impact on Rates'!#REF! -> 
B215: ='WS7 - Impact on Rates'!#REF! ->  | C215: ='WS7 - Impact on Rates'!#REF! ->  | D215: ='WS7 - Impact on Rates'!#REF! ->  | I215: ='WS7 - Impact on Rates'!#REF! ->  | J215: ='WS7 - Impact on Rates'!#REF! ->  | K215: ='WS7 - Impact on Rates'!#REF! ->  | L215: ='WS7 - Impact on Rates'!#REF! ->  | M215: ='WS7 - Impact on Rates'!#REF! ->  | N215: ='WS7 - Impact on Rates'!#REF! ->  | O215: ='WS7 - Impact on Rates'!#REF! ->  | P215: ='WS7 - Impact on Rates'!#REF! ->  | Q215: ='WS7 - Impact on Rates'!#REF! -> 
B216: ='WS7 - Impact on Rates'!#REF! ->  | C216: ='WS7 - Impact on Rates'!#REF! ->  | D216: ='WS7 - Impact on Rates'!#REF! ->  | I216: ='WS7 - Impact on Rates'!#REF! ->  | J216: ='WS7 - Impact on Rates'!#REF! ->  | K216: ='WS7 - Impact on Rates'!#REF! ->  | L216: ='WS7 - Impact on Rates'!#REF! ->  | M216: ='WS7 - Impact on Rates'!#REF! ->  | N216: ='WS7 - Impact on Rates'!#REF! ->  | O216: ='WS7 - Impact on Rates'!#REF! ->  | P216: ='WS7 - Impact on Rates'!#REF! ->  | Q216: ='WS7 - Impact on Rates'!#REF! -> 
B217: ='WS7 - Impact on Rates'!#REF! ->  | C217: ='WS7 - Impact on Rates'!#REF! ->  | D217: ='WS7 - Impact on Rates'!#REF! ->  | I217: ='WS7 - Impact on Rates'!#REF! ->  | J217: ='WS7 - Impact on Rates'!#REF! ->  | K217: ='WS7 - Impact on Rates'!#REF! ->  | L217: ='WS7 - Impact on Rates'!#REF! ->  | M217: ='WS7 - Impact on Rates'!#REF! ->  | N217: ='WS7 - Impact on Rates'!#REF! ->  | O217: ='WS7 - Impact on Rates'!#REF! ->  | P217: ='WS7 - Impact on Rates'!#REF! ->  | Q217: ='WS7 - Impact on Rates'!#REF! -> 
B218: ='WS7 - Impact on Rates'!#REF! ->  | C218: ='WS7 - Impact on Rates'!#REF! ->  | D218: ='WS7 - Impact on Rates'!#REF! ->  | I218: ='WS7 - Impact on Rates'!#REF! ->  | J218: ='WS7 - Impact on Rates'!#REF! ->  | K218: ='WS7 - Impact on Rates'!#REF! ->  | L218: ='WS7 - Impact on Rates'!#REF! ->  | M218: ='WS7 - Impact on Rates'!#REF! ->  | N218: ='WS7 - Impact on Rates'!#REF! ->  | O218: ='WS7 - Impact on Rates'!#REF! ->  | P218: ='WS7 - Impact on Rates'!#REF! ->  | Q218: ='WS7 - Impact on Rates'!#REF! -> 
B219: ='WS7 - Impact on Rates'!#REF! ->  | C219: ='WS7 - Impact on Rates'!#REF! ->  | D219: ='WS7 - Impact on Rates'!#REF! ->  | I219: ='WS7 - Impact on Rates'!#REF! ->  | J219: ='WS7 - Impact on Rates'!#REF! ->  | K219: ='WS7 - Impact on Rates'!#REF! ->  | L219: ='WS7 - Impact on Rates'!#REF! ->  | M219: ='WS7 - Impact on Rates'!#REF! ->  | N219: ='WS7 - Impact on Rates'!#REF! ->  | O219: ='WS7 - Impact on Rates'!#REF! ->  | P219: ='WS7 - Impact on Rates'!#REF! ->  | Q219: ='WS7 - Impact on Rates'!#REF! -> 
B220: ='WS7 - Impact on Rates'!#REF! ->  | C220: ='WS7 - Impact on Rates'!#REF! ->  | D220: ='WS7 - Impact on Rates'!#REF! ->  | I220: ='WS7 - Impact on Rates'!#REF! ->  | J220: ='WS7 - Impact on Rates'!#REF! ->  | K220: ='WS7 - Impact on Rates'!#REF! ->  | L220: ='WS7 - Impact on Rates'!#REF! ->  | M220: ='WS7 - Impact on Rates'!#REF! ->  | N220: ='WS7 - Impact on Rates'!#REF! ->  | O220: ='WS7 - Impact on Rates'!#REF! ->  | P220: ='WS7 - Impact on Rates'!#REF! ->  | Q220: ='WS7 - Impact on Rates'!#REF! -> 
B221: ='WS7 - Impact on Rates'!#REF! ->  | C221: ='WS7 - Impact on Rates'!#REF! ->  | D221: ='WS7 - Impact on Rates'!#REF! ->  | I221: ='WS7 - Impact on Rates'!#REF! ->  | J221: ='WS7 - Impact on Rates'!#REF! ->  | K221: ='WS7 - Impact on Rates'!#REF! ->  | L221: ='WS7 - Impact on Rates'!#REF! ->  | M221: ='WS7 - Impact on Rates'!#REF! ->  | N221: ='WS7 - Impact on Rates'!#REF! ->  | O221: ='WS7 - Impact on Rates'!#REF! ->  | P221: ='WS7 - Impact on Rates'!#REF! ->  | Q221: ='WS7 - Impact on Rates'!#REF! -> 
B222: ='WS7 - Impact on Rates'!B76 -> Business | C222: ='WS7 - Impact on Rates'!C76 ->  | D222: ='WS7 - Impact on Rates'!D76 -> $ nominal p.a. | I222: ='WS7 - Impact on Rates'!I76 -> 0 | J222: ='WS7 - Impact on Rates'!J76 -> . | K222: ='WS7 - Impact on Rates'!K76 -> . | L222: ='WS7 - Impact on Rates'!L76 -> 0 | M222: ='WS7 - Impact on Rates'!M76 -> 0 | N222: ='WS7 - Impact on Rates'!N76 -> 0 | O222: ='WS7 - Impact on Rates'!O76 -> 0 | P222: ='WS7 - Impact on Rates'!P76 -> 0 | Q222: ='WS7 - Impact on Rates'!Q76 -> 0
B223: ='WS7 - Impact on Rates'!#REF! ->  | C223: ='WS7 - Impact on Rates'!#REF! ->  | D223: ='WS7 - Impact on Rates'!#REF! ->  | I223: ='WS7 - Impact on Rates'!#REF! ->  | J223: ='WS7 - Impact on Rates'!#REF! ->  | K223: ='WS7 - Impact on Rates'!#REF! ->  | L223: ='WS7 - Impact on Rates'!#REF! ->  | M223: ='WS7 - Impact on Rates'!#REF! ->  | N223: ='WS7 - Impact on Rates'!#REF! ->  | O223: ='WS7 - Impact on Rates'!#REF! ->  | P223: ='WS7 - Impact on Rates'!#REF! ->  | Q223: ='WS7 - Impact on Rates'!#REF! -> 
B224: ='WS7 - Impact on Rates'!#REF! ->  | C224: ='WS7 - Impact on Rates'!#REF! ->  | D224: ='WS7 - Impact on Rates'!#REF! ->  | I224: ='WS7 - Impact on Rates'!#REF! ->  | J224: ='WS7 - Impact on Rates'!#REF! ->  | K224: ='WS7 - Impact on Rates'!#REF! ->  | L224: ='WS7 - Impact on Rates'!#REF! ->  | M224: ='WS7 - Impact on Rates'!#REF! ->  | N224: ='WS7 - Impact on Rates'!#REF! ->  | O224: ='WS7 - Impact on Rates'!#REF! ->  | P224: ='WS7 - Impact on Rates'!#REF! ->  | Q224: ='WS7 - Impact on Rates'!#REF! -> 
B225: ='WS7 - Impact on Rates'!#REF! ->  | C225: ='WS7 - Impact on Rates'!#REF! ->  | D225: ='WS7 - Impact on Rates'!#REF! ->  | I225: ='WS7 - Impact on Rates'!#REF! ->  | J225: ='WS7 - Impact on Rates'!#REF! ->  | K225: ='WS7 - Impact on Rates'!#REF! ->  | L225: ='WS7 - Impact on Rates'!#REF! ->  | M225: ='WS7 - Impact on Rates'!#REF! ->  | N225: ='WS7 - Impact on Rates'!#REF! ->  | O225: ='WS7 - Impact on Rates'!#REF! ->  | P225: ='WS7 - Impact on Rates'!#REF! ->  | Q225: ='WS7 - Impact on Rates'!#REF! -> 
B226: ='WS7 - Impact on Rates'!#REF! ->  | C226: ='WS7 - Impact on Rates'!#REF! ->  | D226: ='WS7 - Impact on Rates'!#REF! ->  | I226: ='WS7 - Impact on Rates'!#REF! ->  | J226: ='WS7 - Impact on Rates'!#REF! ->  | K226: ='WS7 - Impact on Rates'!#REF! ->  | L226: ='WS7 - Impact on Rates'!#REF! ->  | M226: ='WS7 - Impact on Rates'!#REF! ->  | N226: ='WS7 - Impact on Rates'!#REF! ->  | O226: ='WS7 - Impact on Rates'!#REF! ->  | P226: ='WS7 - Impact on Rates'!#REF! ->  | Q226: ='WS7 - Impact on Rates'!#REF! -> 
B227: ='WS7 - Impact on Rates'!#REF! ->  | C227: ='WS7 - Impact on Rates'!#REF! ->  | D227: ='WS7 - Impact on Rates'!#REF! ->  | I227: ='WS7 - Impact on Rates'!#REF! ->  | J227: ='WS7 - Impact on Rates'!#REF! ->  | K227: ='WS7 - Impact on Rates'!#REF! ->  | L227: ='WS7 - Impact on Rates'!#REF! ->  | M227: ='WS7 - Impact on Rates'!#REF! ->  | N227: ='WS7 - Impact on Rates'!#REF! ->  | O227: ='WS7 - Impact on Rates'!#REF! ->  | P227: ='WS7 - Impact on Rates'!#REF! ->  | Q227: ='WS7 - Impact on Rates'!#REF! -> 
B228: ='WS7 - Impact on Rates'!#REF! ->  | C228: ='WS7 - Impact on Rates'!#REF! ->  | D228: ='WS7 - Impact on Rates'!#REF! ->  | I228: ='WS7 - Impact on Rates'!#REF! ->  | J228: ='WS7 - Impact on Rates'!#REF! ->  | K228: ='WS7 - Impact on Rates'!#REF! ->  | L228: ='WS7 - Impact on Rates'!#REF! ->  | M228: ='WS7 - Impact on Rates'!#REF! ->  | N228: ='WS7 - Impact on Rates'!#REF! ->  | O228: ='WS7 - Impact on Rates'!#REF! ->  | P228: ='WS7 - Impact on Rates'!#REF! ->  | Q228: ='WS7 - Impact on Rates'!#REF! -> 
B229: ='WS7 - Impact on Rates'!#REF! ->  | C229: ='WS7 - Impact on Rates'!#REF! ->  | D229: ='WS7 - Impact on Rates'!#REF! ->  | I229: ='WS7 - Impact on Rates'!#REF! ->  | J229: ='WS7 - Impact on Rates'!#REF! ->  | K229: ='WS7 - Impact on Rates'!#REF! ->  | L229: ='WS7 - Impact on Rates'!#REF! ->  | M229: ='WS7 - Impact on Rates'!#REF! ->  | N229: ='WS7 - Impact on Rates'!#REF! ->  | O229: ='WS7 - Impact on Rates'!#REF! ->  | P229: ='WS7 - Impact on Rates'!#REF! ->  | Q229: ='WS7 - Impact on Rates'!#REF! -> 
B230: ='WS7 - Impact on Rates'!#REF! ->  | C230: ='WS7 - Impact on Rates'!#REF! ->  | D230: ='WS7 - Impact on Rates'!#REF! ->  | I230: ='WS7 - Impact on Rates'!#REF! ->  | J230: ='WS7 - Impact on Rates'!#REF! ->  | K230: ='WS7 - Impact on Rates'!#REF! ->  | L230: ='WS7 - Impact on Rates'!#REF! ->  | M230: ='WS7 - Impact on Rates'!#REF! ->  | N230: ='WS7 - Impact on Rates'!#REF! ->  | O230: ='WS7 - Impact on Rates'!#REF! ->  | P230: ='WS7 - Impact on Rates'!#REF! ->  | Q230: ='WS7 - Impact on Rates'!#REF! -> 
B231: ='WS7 - Impact on Rates'!#REF! ->  | C231: ='WS7 - Impact on Rates'!#REF! ->  | D231: ='WS7 - Impact on Rates'!#REF! ->  | I231: ='WS7 - Impact on Rates'!#REF! ->  | J231: ='WS7 - Impact on Rates'!#REF! ->  | K231: ='WS7 - Impact on Rates'!#REF! ->  | L231: ='WS7 - Impact on Rates'!#REF! ->  | M231: ='WS7 - Impact on Rates'!#REF! ->  | N231: ='WS7 - Impact on Rates'!#REF! ->  | O231: ='WS7 - Impact on Rates'!#REF! ->  | P231: ='WS7 - Impact on Rates'!#REF! ->  | Q231: ='WS7 - Impact on Rates'!#REF! -> 
B232: ='WS7 - Impact on Rates'!#REF! ->  | C232: ='WS7 - Impact on Rates'!#REF! ->  | D232: ='WS7 - Impact on Rates'!#REF! ->  | I232: ='WS7 - Impact on Rates'!#REF! ->  | J232: ='WS7 - Impact on Rates'!#REF! ->  | K232: ='WS7 - Impact on Rates'!#REF! ->  | L232: ='WS7 - Impact on Rates'!#REF! ->  | M232: ='WS7 - Impact on Rates'!#REF! ->  | N232: ='WS7 - Impact on Rates'!#REF! ->  | O232: ='WS7 - Impact on Rates'!#REF! ->  | P232: ='WS7 - Impact on Rates'!#REF! ->  | Q232: ='WS7 - Impact on Rates'!#REF! -> 
B233: ='WS7 - Impact on Rates'!#REF! ->  | C233: ='WS7 - Impact on Rates'!#REF! ->  | D233: ='WS7 - Impact on Rates'!#REF! ->  | I233: ='WS7 - Impact on Rates'!#REF! ->  | J233: ='WS7 - Impact on Rates'!#REF! ->  | K233: ='WS7 - Impact on Rates'!#REF! ->  | L233: ='WS7 - Impact on Rates'!#REF! ->  | M233: ='WS7 - Impact on Rates'!#REF! ->  | N233: ='WS7 - Impact on Rates'!#REF! ->  | O233: ='WS7 - Impact on Rates'!#REF! ->  | P233: ='WS7 - Impact on Rates'!#REF! ->  | Q233: ='WS7 - Impact on Rates'!#REF! -> 
B234: ='WS7 - Impact on Rates'!#REF! ->  | C234: ='WS7 - Impact on Rates'!#REF! ->  | D234: ='WS7 - Impact on Rates'!#REF! ->  | I234: ='WS7 - Impact on Rates'!#REF! ->  | J234: ='WS7 - Impact on Rates'!#REF! ->  | K234: ='WS7 - Impact on Rates'!#REF! ->  | L234: ='WS7 - Impact on Rates'!#REF! ->  | M234: ='WS7 - Impact on Rates'!#REF! ->  | N234: ='WS7 - Impact on Rates'!#REF! ->  | O234: ='WS7 - Impact on Rates'!#REF! ->  | P234: ='WS7 - Impact on Rates'!#REF! ->  | Q234: ='WS7 - Impact on Rates'!#REF! -> 
B235: ='WS7 - Impact on Rates'!#REF! ->  | C235: ='WS7 - Impact on Rates'!#REF! ->  | D235: ='WS7 - Impact on Rates'!#REF! ->  | I235: ='WS7 - Impact on Rates'!#REF! ->  | J235: ='WS7 - Impact on Rates'!#REF! ->  | K235: ='WS7 - Impact on Rates'!#REF! ->  | L235: ='WS7 - Impact on Rates'!#REF! ->  | M235: ='WS7 - Impact on Rates'!#REF! ->  | N235: ='WS7 - Impact on Rates'!#REF! ->  | O235: ='WS7 - Impact on Rates'!#REF! ->  | P235: ='WS7 - Impact on Rates'!#REF! ->  | Q235: ='WS7 - Impact on Rates'!#REF! -> 
B236: ='WS7 - Impact on Rates'!#REF! ->  | C236: ='WS7 - Impact on Rates'!#REF! ->  | D236: ='WS7 - Impact on Rates'!#REF! ->  | I236: ='WS7 - Impact on Rates'!#REF! ->  | J236: ='WS7 - Impact on Rates'!#REF! ->  | K236: ='WS7 - Impact on Rates'!#REF! ->  | L236: ='WS7 - Impact on Rates'!#REF! ->  | M236: ='WS7 - Impact on Rates'!#REF! ->  | N236: ='WS7 - Impact on Rates'!#REF! ->  | O236: ='WS7 - Impact on Rates'!#REF! ->  | P236: ='WS7 - Impact on Rates'!#REF! ->  | Q236: ='WS7 - Impact on Rates'!#REF! -> 
B237: ='WS7 - Impact on Rates'!#REF! ->  | C237: ='WS7 - Impact on Rates'!#REF! ->  | D237: ='WS7 - Impact on Rates'!#REF! ->  | I237: ='WS7 - Impact on Rates'!#REF! ->  | J237: ='WS7 - Impact on Rates'!#REF! ->  | K237: ='WS7 - Impact on Rates'!#REF! ->  | L237: ='WS7 - Impact on Rates'!#REF! ->  | M237: ='WS7 - Impact on Rates'!#REF! ->  | N237: ='WS7 - Impact on Rates'!#REF! ->  | O237: ='WS7 - Impact on Rates'!#REF! ->  | P237: ='WS7 - Impact on Rates'!#REF! ->  | Q237: ='WS7 - Impact on Rates'!#REF! -> 
B238: ='WS7 - Impact on Rates'!#REF! ->  | C238: ='WS7 - Impact on Rates'!#REF! ->  | D238: ='WS7 - Impact on Rates'!#REF! ->  | I238: ='WS7 - Impact on Rates'!#REF! ->  | J238: ='WS7 - Impact on Rates'!#REF! ->  | K238: ='WS7 - Impact on Rates'!#REF! ->  | L238: ='WS7 - Impact on Rates'!#REF! ->  | M238: ='WS7 - Impact on Rates'!#REF! ->  | N238: ='WS7 - Impact on Rates'!#REF! ->  | O238: ='WS7 - Impact on Rates'!#REF! ->  | P238: ='WS7 - Impact on Rates'!#REF! ->  | Q238: ='WS7 - Impact on Rates'!#REF! -> 
B239: ='WS7 - Impact on Rates'!#REF! ->  | C239: ='WS7 - Impact on Rates'!#REF! ->  | D239: ='WS7 - Impact on Rates'!#REF! ->  | I239: ='WS7 - Impact on Rates'!#REF! ->  | J239: ='WS7 - Impact on Rates'!#REF! ->  | K239: ='WS7 - Impact on Rates'!#REF! ->  | L239: ='WS7 - Impact on Rates'!#REF! ->  | M239: ='WS7 - Impact on Rates'!#REF! ->  | N239: ='WS7 - Impact on Rates'!#REF! ->  | O239: ='WS7 - Impact on Rates'!#REF! ->  | P239: ='WS7 - Impact on Rates'!#REF! ->  | Q239: ='WS7 - Impact on Rates'!#REF! -> 
... 471 more rows

Sheet WS0 - Input data (hidden)
B2: This worksheet is for IPART Analyst use only.
B5: Instructions:
B6: ="1. Enter the required information in the blue input cells in Section "&B23 -> 1. Enter the required information in the blue input cells in Section 1. Inputs
B7: ="2. Check the list of council names and update if necessary in Section "&B67 -> 2. Check the list of council names and update if necessary in Section 2. Council Name
B10: Contents | J10: row
B11: =B23 -> 1. Inputs | J11: =ROW(B23) -> 23
B12: =B26 -> Table 1 - Analyst and TSO details | J12: =ROW(B26) -> 26
B13: =B42 -> Table 2 - SV year and rate peg | J13: =ROW(B42) -> 42
B14: =B52 -> Table 3 - SV year, rate peg and units in display format | J14: =ROW(B52) -> 52
B15: =B67 -> 2. Council Name | J15: =ROW(B67) -> 67
B16: =B225 -> 3. Lists for expiring special variations and other questions | J16: =ROW(B225) -> 225
B17: =B227 -> Is the council applying for a one-year increase (s508(2)) or a multi-year increase (s508A)? | J17: =ROW(B227) -> 227
B18: =B232 -> For s508A applications: for how many years is the council requesting % increases as part of this application? | J18: =ROW(B232) -> 232
B19: =B243 -> For s508A & s508(2) applications: is the special variation permanent or temporary? | J19: =ROW(B243) -> 243
B20: =B252 -> Does the council have an expiring variation? If yes, please specify when. | J20: =ROW(B252) -> 252
B23: 1. Inputs
B26: Table 1 - Analyst and TSO details
B28: Who is the Analyst in charge?
B29: First Name | D29: Daniel
B30: Last Name | D30: Suh
B31: Email | D31: daniel.suh@ipart.nsw.gov.au
B32: Phone | D32: (02) 9019 1975
B34: Who is the TSO supporting the Analyst?
B35: First Name | D35: Arsh
B36: Last Name | D36: Suri
B37: Email | D37: localgovernment@ipart.nsw.gov.au
B38: Phone | D38: (02) 9113 7730
B42: Table 2 - SV year and rate peg
B44: SV for period commencing 1 July | C44: year | D44: 2025
B45: Financial year | D45: =D44&"-"&RIGHT(D44+1,2) -> 2025-26
B46: Rate pegs
B47: Rate peg for Year 1 | C47: % | D47: =IF(ISBLANK('WS2-Proposal'!$K$63),'WS0 - Input data'!$D$48,'WS2-Proposal'!$K$63) -> 0.043
B48: "OLG assumed" rate peg for Year 2 - 7 | C48: % | D48: 0.025
B52: Table 3 - SV year, rate peg and units in display format
B53: Years
B54: Year number | E54: =F54-1 -> -5 | F54: =G54-1 -> -4 | G54: =H54-1 -> -3 | H54: -2 | I54: =J54-1 -> -1 | J54: 0 | K54: =J54+1 -> 1 | L54: 2 | M54: 3 | N54: 4 | O54: 5 | P54: 6 | Q54: 7 | R54: 8 | S54: 9 | T54: 10
B55: Year name | E55: ="Hist yr "&E54 -> Hist yr -5 | F55: ="Hist yr "&F54 -> Hist yr -4 | G55: ="Hist yr "&G54 -> Hist yr -3 | H55: ="Hist yr "&H54 -> Hist yr -2 | I55: ="Hist yr "&I54 -> Hist yr -1 | J55: ="Year "&J54 -> Year 0 | K55: ="Year "&K54 -> Year 1 | L55: Year 2 | M55: Year 3 | N55: Year 4 | O55: Year 5 | P55: Year 6 | Q55: Year 7 | R55: Year 8 | S55: Year 9 | T55: Year 10
B57: Year commencing 1 July | E57: =F57-1 -> 2019 | F57: 2020 | G57: =H57-1 -> 2021 | H57: =I57-1 -> 2022 | I57: =J57-1 -> 2023 | J57: =D44-1 -> 2024 | K57: =D44 -> 2025 | L57: =K57+1 -> 2026 | M57: 2027 | N57: 2028 | O57: 2029 | P57: 2030 | Q57: 2031 | R57: 2032 | S57: 2033 | T57: 2034
B58: Financial year | E58: =E57&"-"&RIGHT(E57+1,2) -> 2019-20 | F58: 2020-21 | G58: 2021-22 | H58: =H57&"-"&RIGHT(H57+1,2) -> 2022-23 | I58: 2023-24 | J58: 2024-25 | K58: 2025-26 | L58: 2026-27 | M58: 2027-28 | N58: 2028-29 | O58: 2029-30 | P58: 2030-31 | Q58: 2031-32 | R58: 2032-33 | S58: 2033-34 | T58: 2034-35
B60: Rate peg | K60: =$D$47 -> 0.043
B62: Units for labels | C62: $ nominal
C63: =C62&" per year" -> $ nominal per year
B67: 2. Council Name
B68: 1 | C68: Albury City Council
B69: =B68+1 -> 2 | C69: Armidale Regional Council
B70: 3 | C70: Ballina Shire Council
B71: 4 | C71: Balranald Shire Council
B72: 5 | C72: Bathurst Regional Council
B73: 6 | C73: Bayside Council
B74: 7 | C74: Bega Valley Shire Council
B75: 8 | C75: Bellingen Shire Council
B76: 9 | C76: Berrigan Shire Council
B77: 10 | C77: Blacktown City Council
B78: 11 | C78: Bland Shire Council
B79: 12 | C79: Blayney Shire Council
B80: 13 | C80: Blue Mountains City Council
B81: 14 | C81: Bogan Shire Council
B82: 15 | C82: Bourke Shire Council
B83: 16 | C83: Brewarrina Shire Council
B84: 17 | C84: Broken Hill City Council
B85: 18 | C85: Burwood Council
B86: 19 | C86: Byron Shire Council
B87: 20 | C87: Cabonne Council
B88: 21 | C88: Camden Council
B89: 22 | C89: Campbelltown City Council
B90: 23 | C90: Canterbury-Bankstown Council
B91: 24 | C91: Carrathool Shire Council
B92: 25 | C92: Central Coast Council
B93: 26 | C93: Central Darling Shire Council
B94: 27 | C94: Cessnock City Council
B95: 28 | C95: City of Canada Bay Council
B96: 29 | C96: City of Parramatta Council
B97: 30 | C97: City of Ryde Council
B98: 31 | C98: City of Sydney Council
B99: 32 | C99: Clarence Valley Council
B100: 33 | C100: Cobar Shire Council
B101: =B100+1 -> 34 | C101: Coffs Harbour City Council
B102: 35 | C102: Coolamon Shire Council
B103: 36 | C103: Coonamble Shire Council
B104: 37 | C104: Cootamundra-Gundagai Council
B105: 38 | C105: Cowra Shire Council
B106: 39 | C106: Cumberland Council
B107: 40 | C107: Dubbo Regional Council
B108: 41 | C108: Dungog Shire Council
B109: 42 | C109: Edward River Council
B110: 43 | C110: Eurobodalla Shire Council
B111: 44 | C111: Fairfield City Council
B112: 45 | C112: Federation Council
B113: 46 | C113: Forbes Shire Council
B114: 47 | C114: Georges River Council
B115: 48 | C115: Gilgandra Shire Council
B116: 49 | C116: Glen Innes Severn Shire Council
B117: 50 | C117: Goulburn Mulwaree Council
B118: 51 | C118: Greater Hume Shire Council
B119: 52 | C119: Griffith City Council
B120: 53 | C120: Gunnedah Shire Council
B121: 54 | C121: Gwydir Shire Council
B122: 55 | C122: Hawkesbury City Council
B123: 56 | C123: Hay Shire Council
B124: 57 | C124: Hills Shire Council, The
B125: 58 | C125: Hilltops Council
B126: 59 | C126: Hornsby, The Council of the Shire of
B127: 60 | C127: Hunters Hill, The Council of the Municipality of
B128: 61 | C128: Inner West Council
B129: 62 | C129: Inverell Shire Council
B130: 63 | C130: Junee Shire Council
B131: 64 | C131: Kempsey Shire Council
B132: 65 | C132: Kiama, The Council of the Municipality of
B133: =B132+1 -> 66 | C133: Ku-ring-gai Municipal Council
B134: 67 | C134: Kyogle Council
B135: 68 | C135: Lachlan Shire Council
B136: 69 | C136: Lake Macquarie City Council
B137: 70 | C137: Lane Cove Council
B138: 71 | C138: Leeton Shire Council
B139: 72 | C139: Lismore City Council
B140: 73 | C140: Lithgow Council, City of
B141: 74 | C141: Liverpool City Council
B142: 75 | C142: Liverpool Plains Shire Council
B143: 76 | C143: Lockhart Shire Council
B144: 77 | C144: Maitland City Council
B145: 78 | C145: Mid-Coast Council
B146: 79 | C146: Mid-Western Regional Council
B147: 80 | C147: Moree Plains Shire Council
B148: 81 | C148: Mosman Municipal Council
B149: 82 | C149: Murray River Council
B150: 83 | C150: Murrumbidgee Shire Council
B151: 84 | C151: Muswellbrook Shire Council
B152: 85 | C152: Nambucca Valley Council
B153: 86 | C153: Narrabri Shire Council
B154: 87 | C154: Narrandera Shire Council
B155: 88 | C155: Narromine Shire Council
B156: 89 | C156: Newcastle City Council
B157: 90 | C157: Northern Beaches Council
B158: 91 | C158: North Sydney Council
B159: 92 | C159: Oberon Council
B160: 93 | C160: Orange City Council
B161: 94 | C161: Parkes Shire Council
B162: 95 | C162: Penrith City Council
B163: 96 | C163: Port Macquarie-Hastings Council
B164: 97 | C164: Port Stephens Council
B165: =B164+1 -> 98 | C165: Queanbeyan-Palerang Regional Council
B166: 99 | C166: Randwick City Council
B167: 100 | C167: Richmond Valley Council
B168: 101 | C168: Shellharbour City Council
B169: 102 | C169: Shoalhaven City Council
B170: 103 | C170: Singleton Shire Council
B171: 104 | C171: Snowy Monaro Regional Council
B172: 105 | C172: Snowy Valleys Council
B173: 106 | C173: Strathfield Municipal Council
B174: 107 | C174: Sutherland Shire Council
B175: 108 | C175: Tamworth Regional Council
B176: 109 | C176: Temora Shire Council
B177: 110 | C177: Tenterfield Shire Council
B178: 111 | C178: Tweed Shire Council
B179: 112 | C179: Upper Hunter Shire Council
B180: 113 | C180: Upper Lachlan Shire Council
B181: 114 | C181: Uralla Shire Council
B182: 115 | C182: Wagga Wagga City Council
B183: 116 | C183: Walcha Council
B184: 117 | C184: Walgett Shire Council
B185: 118 | C185: Warren Shire Council
B186: 119 | C186: Warrumbungle Shire Council
B187: 120 | C187: Waverley Council
B188: 121 | C188: Weddin Shire Council
B189: 122 | C189: Wentworth Shire Council
B190: 123 | C190: Willoughby City Council
B191: 124 | C191: Wingecarribee Shire Council
B192: 125 | C192: Wollondilly Shire Council
B193: 126 | C193: Wollongong City Council
B194: 127 | C194: Woollahra Municipal Council
B195: 128 | C195: Yass Valley Council
B196: 129 | C196: <<Choose your council>>
B197: =B196+1 -> 130
B198: 131
B199: 132
B200: 133
B201: 134
B202: 135
B203: 136
B204: 137
B205: 138
B206: 139
B207: 140
B208: 141
B209: 142
B210: 143
B211: 144
B212: 145
B213: 146
B214: 147
B215: 148
B216: 149
B217: 150
B218: 151
B219: 152
B220: 153
B221: 154
B222: 155 | F222: add rows above this one if you need more
B225: 3. Lists for expiring special variations and other questions
B227: ='WS2-Proposal'!B58 -> Is the council applying for a one-year increase (s508(2)) or a multi-year increase (s508A)?
... 191 more rows

Sheet Overview
B2: THE INDEPENDENT PRICING AND REGULATORY TRIBUNAL OF NSW
B4: =Year1&" PART A APPLICATION FORM FOR EITHER:" -> 2025-26 PART A APPLICATION FORM FOR EITHER:
C6: (1) A special variation to general income under Section 508A and 508(2) of the Local Government Act 1993
C7: OR
C8: (2) Minimum rate increases above the statutory limit under Section 548(3) of the Local Government Act 1993
C9: OR
C10: (3) Both - Special Variation and Minimum Rate Increases
B14: OVERVIEW
B15: - Generally, a special variation is the total percentage increase permitted in a council's general income, including the rate peg and Crown land adjustments, before adjustments are made for
B16: catch ups/excesses and valuation objections.
B17: - Section 508A allows a council to increase general income by a percentage that is greater than the rate peg each year, up to a maximum of 7 years.
B18: - Section 508(2) allows a council to increase general income by a percentage that is greater than the rate peg in a single year.
B19: - The council must identify the percentage increase requested for each year inclusive of the rate peg.
B20: ="- The rate peg included in council's requested special variation percentages for Year 1 ("&Year1&") is the actual rate peg set by IPART." -> - The rate peg included in council's requested special variation percentages for Year 1 (2025-26) is the actual rate peg set by IPART.
B21: - The rate pegs for years 2-7 can either be (a) the OLG's assumed rate peg of 2.5% or (b) any other percentages assumed by Council.
B22: - The council must also identify percentage increases in the minimum rates for each year, if the increases exceed the rate peg or SV percentage. This is even if the council has been
B23: approved to be above the statutory limit in the past.
B24: Note:
B25: > IPART can approve a percentage increase to minimum rates above the statutory limit that differs from the proposed special variation percentage increase
B26: as long as the council has justified and properly consulted on that percentage. See Attachment 3 of the Special Variation Guidelines for further details.
B27: > Note: SV percentages are a total amount, i.e. not just the incremental percentage above the rate peg.
B28: - Enquiries regarding the completion of this application should be directed to:
D35: ='WS0 - Input data'!D37 -> localgovernment@ipart.nsw.gov.au
B39: GENERAL INSTRUCTIONS
B41: > Before completing this form, you MUST read the Office of Local Government's Guidelines for the preparation of an application for a special variation to general income
B42: or Guidelines for the preparation of an application to increase minimum rates above the statutory limit (as applicable to the council's application).
B43: These Guidelines are available on the Office of Local Government’s website at www.olg.nsw.gov.au.
B44: > This part of the application must be completed in conjunction with Part B Application Form. If the council applies for an increase in minimum rates and a special variation,
B45: the council needs to complete two (2) separate Part B application forms and this Part A application.
B46: > Both Part A and Part B of the application should be submitted to IPART (us) via the Council Portal on our website at https://ipart.service-now.com/lg
B47: > This Part A form consists of 12 worksheets and each worksheet comprises of a number of tables. In completing this Part A application form please note the following:
B48: * The data requirement varies slightly for each type of application. For example, most of the data in WS8 are not required for an application to increase the minimum rate only.
B49: ="* The exact data requirements can be found in table "&'WS1-Application'!A1&"."&'WS1-Application'!A40&" of 'WS1 - Application' once Council had identified the exact nature of the application (SV only, MR increase only or SV&MR together)" -> * The exact data requirements can be found in table 1.2 of 'WS1 - Application' once Council had identified the exact nature of the application (SV only, MR increase only or SV&MR together)
B50: ="at row "&ROW('WS1-Application'!B33)&" of WS1 - Application" -> at row 33 of WS1 - Application
B51: * All dollars are to be in nominal terms
B52: * Please pay attention to the dollar units of each table as it can vary between tables. For example, some tables require dollars to be in thousands ($'000) whereas others are in dollars ($)
B53: > Further detailed instructions, if any, can be found in each worksheet.
B54: > In filling out each worksheet, please have regard to the colour coding of each cell in each tables.
B55: Colour codes
C56: Enter data in the blue input cells. Completion of these cells are compulsory.
C57: Green = voluntary inputs (actual and/or projections)
C58: Hard-coded values that should not be changed
C59: Key outputs
C60: Special instructions
C61: Error checks
C62: Double red line indicates a change in formula
B63: SV = Special variation
B64: MR = Minimum rate increase
B65: SV & MR = Special variation and minimum rate increase
B69: GENERAL DESCRIPTION OF WORKSHEETS IN THIS PART A APPLICATION
B71: A general description of each worksheet is given below. Further detailed information, if any, can be found in each worksheet.
B72: WS1- Application:
B73: - Identifies your council and a council contact officer, and the nature of council's proposal (i.e. special variation, minimum rate increase or both).
B74: - Based on the nature of council's application, table 1.2 in this worksheet lists all the data requirements that council must provide.
B75: WS2- Proposal:
B76: - Collects key information on council's proposal, including proposed SV percentage increases and proposed duration of SV increases
B77: - It also collects information about Crown Land adjustments, catch-ups or excess adjustments and valuation objections.
B78: WS3 - Notional General Income:
B79: ="- Calculates the notional general income for the current year (Year 0 in the application, "&'WS0 - Input data'!$J$58&"). " -> - Calculates the notional general income for the current year (Year 0 in the application, 2024-25).
B80: WS4- Yr 1 YIELD
B81: ="- Calculates the council's proposed notional general income for next year (Year 1 in the application, "&'WS0 - Input data'!$K$58&")." -> - Calculates the council's proposed notional general income for next year (Year 1 in the application, 2025-26).
B82: WS5- Yrs 2-7 YIELD
B83: ="- Calculates the council's proposed notional general income for Years 2 to 7 ("&'WS0 - Input data'!L58&" to "&'WS0 - Input data'!Q58&")." -> - Calculates the council's proposed notional general income for Years 2 to 7 (2026-27 to 2031-32).
B84: WS6 - PGI Summary
B85: - Summarises the council's Permissible General Income based on the 1st year's percentage for the proposed SV and Crown Land adjustments,
B86: plus other income adjustments. It also shows the council's PGI, the annual and cumulative impacts of the proposed SV over the proposed SV period.
B87: WS7- Impact on Rates
B88: - Calculates the average annual and cumulative increases in rates for each category/sub-category for each year of the proposed SV, with and without the proposed SV.
B89: This worksheet also collects the minimum rates and average rates of the current year (year 0) and the year prior to the current year (historical year -1). These are needed for comparative purposes
B90: NB: the council can use worksheet 12 to provide data that are relevant in explaining the impact of proposed SV on rates.
B91: WS8 - Expenditure Program
B92: - Collects data on how the council intends to use the additional income from the proposed SV.
B93: WS9 - Financials
B94: - Collects historical information from your financial statements and forecasts for selected balance sheet items from your long term financial plan (LTFP).
B95: WS10- LTFP (Long Term Financial Plan)
B96: - Collects information on your Long Term Financial Plan including scenarios with and without the proposed special variation.
B97: WS11- Ratios
B98: - Captures financial ratios, some of which are calculated while others are entered as inputs.
B99: WS 12 - Other:
B100: - Captures data relevant to explaining the impact of the proposed special variations on rates, such as overdue rates, pensioner rebates and hardship policy.
B101: - The council can also provide data on rateable and non-rateable assessments to assist in explaining the increase in rates resulting from the special variations.
B102: - This worksheet also contains a blank table for council's use as needed. For example, council can use this optional table to provide other data,
B103: not already provided/requested, to explain its proposed SV and impact.

Sheet WS1-Application
A1: 1
B2: ="APPLICATION FOR "&UPPER(D33)&" - "&UPPER(IF(ISBLANK(D23),D24,D23)) -> APPLICATION FOR SPECIAL VARIATION - UPPER HUNTER SHIRE COUNCIL
B4: ="WORKSHEET "&A1&" - CONTACT DETAILS AND PROPOSED APPLICATION " -> WORKSHEET 1 - CONTACT DETAILS AND PROPOSED APPLICATION
B7: Instructions and notes
B8: > Select council name from the drop down list and enter contact details.
B9: ="> Select the type of application council is submitting at row "&ROW(B33)&"." -> > Select the type of application council is submitting at row 33.
B10: * It is important to specify the nature of the application correctly as data requirements vary slightly between a special variation application and a mininum rate increase only application.
B11: Notes:
B12: ="Table "&A1&"."&A40&" lists the relevant tables that council must complete, depending on the type of application council is submitting as stated at row "&ROW(D33)&"." -> Table 1.2 lists the relevant tables that council must complete, depending on the type of application council is submitting as stated at row 33.
B13: These data obligations are as follow:
B14: Y = Must complete
B15: N = No need to complete
B16: P = Partial, some tables/sections apply
B17: O = Optional
B18: =" Please see also the colour coding at row "&ROW(Overview!B55)&" of Overview" -> Please see also the colour coding at row 55 of Overview
A22: 1 | B22: ="Table "&$A$1&"."&A22&": Council's name, contact and nature of application" -> Table 1.1: Council's name, contact and nature of application
B23: Council Name: | D23: Upper Hunter Shire Council
B24: Council Name if not listed:
B26: Contact Details:
B27: Name:
B28: Position:
B29: Telephone:
B30: Email:
B31: Note: Please provide direct contact information for relevant council officer. Contact details will be redacted before publication.
B33: Nature of application | D33: Special Variation
B34: Note:
B35: - It is important to specify the nature of the application correctly as data requirements vary slightly between a special variation/ special variation and minimum rate increase application and a mininum rate increase only application.
B36: ="- Once council has indicated the nature of the application at row "&ROW(B33)&" above, table "&A1&"."&A40&" below will specify the exact worksheets and tables in this application form that council must complete and special instructions (if any)" -> - Once council has indicated the nature of the application at row 33 above, table 1.2 below will specify the exact worksheets and tables in this application form that council must complete and special instructions (if any)
A40: =A22+1 -> 2 | B40: ="Table "&A1&"."&A40&": List of tables for council to complete - based on council's proposed application" -> Table 1.2: List of tables for council to complete - based on council's proposed application
I41: Obligation to complete (Y/N/P/O) | J41: =IF(D33='WS0 - Input data'!B405,"Instructions for MR increase application",".") -> .
B42: =B4 -> WORKSHEET 1 - CONTACT DETAILS AND PROPOSED APPLICATION
B43: =B22 -> Table 1.1: Council's name, contact and nature of application | I43: =$B$14 -> Y = Must complete
B44: ='WS2-Proposal'!B4 -> WORKSHEET 2 - PROPOSED SPECIAL VARIATION
B45: ='WS2-Proposal'!B39 -> Table 2.1: Existing and expiring special variations and adjustments | I45: =$B$14 -> Y = Must complete
B46: ='WS2-Proposal'!B55 -> Table 2.2: Proposed special variations and requested percentage increases | I46: =$B$14 -> Y = Must complete | J46: =IF(D33='WS0 - Input data'!B405,"Special instructions apply, please see worksheet",".") -> .
B47: ='WS3 - Notional General Income'!B4 -> WORKSHEET 3 - CALCULATION OF NOTIONAL GENERAL INCOME FOR 2024-25 (THE CURRENT YEAR OR YEAR 0)
B48: ='WS3 - Notional General Income'!B19 -> Table 3.1: Calculation of Notional General Income - Ordinary Rates ($nominal) | I48: =$B$14 -> Y = Must complete
B49: ='WS3 - Notional General Income'!B52 -> Table 3.2: Calculation of Notional General Income - Special Rates ($nominal) | I49: =$B$14 -> Y = Must complete
B50: ='WS3 - Notional General Income'!B66 -> Table 3.3: Calculation of Notional General Income - Annual Charges ($nominal) | I50: =$B$14 -> Y = Must complete
B51: ='WS4 - Yr 1 YIELD'!B4 -> WORKSHEET 4: CALCULATION OF NOTIONAL GENERAL INCOME FOR 2025-26 (YEAR 1)
B52: ='WS4 - Yr 1 YIELD'!B16 -> Table 4.1: Calculation of Notional General Income - Ordinary Rates ($ nominal) | I52: =$B$14 -> Y = Must complete
B53: ='WS4 - Yr 1 YIELD'!B49 -> Table 4.2: Calculation of Notional General Income - Special Rates ($ nominal) | I53: =$B$14 -> Y = Must complete
B54: ='WS4 - Yr 1 YIELD'!B63 -> Table 4.3: Calculation of Notional General Income - Annual Charges ($ nominal) | I54: =$B$14 -> Y = Must complete
B55: ='WS5 - Yrs 2-7 YIELD'!B4 -> WORKSHEET 5: CALCULATION OF NOTIONAL GENERAL INCOME FOR YEARS 2 TO 7 (2026-27 TO 2031-32)
B56: ='WS5 - Yrs 2-7 YIELD'!B19 -> Table 5.1: Calculation of Notional General Income - Ordinary Rates from 2026-27 to 2031-32 ($ nominal)
B57: ='WS5 - Yrs 2-7 YIELD'!D20 -> Year 2 (2026-27) | I57: =$B$14 -> Y = Must complete
B58: ='WS5 - Yrs 2-7 YIELD'!M20 -> Year 3 (2027-28) | I58: Y = Must complete
B59: ='WS5 - Yrs 2-7 YIELD'!V20 -> Year 4 (2028-29) | I59: Y = Must complete
B60: ='WS5 - Yrs 2-7 YIELD'!AE20 -> Year 5 (2029-30) | I60: Y = Must complete
B61: ='WS5 - Yrs 2-7 YIELD'!AN20 -> Year 6 (2030-31) | I61: Y = Must complete
B62: ='WS5 - Yrs 2-7 YIELD'!AW20 -> Year 7 (2031-32) | I62: Y = Must complete
B63: ='WS5 - Yrs 2-7 YIELD'!B53 -> Table 5.2: Calculation of Notional General Income - Special Rates from 2026-27 to 2031-32 ($ nominal)
B64: ='WS5 - Yrs 2-7 YIELD'!D54 -> Year 2 (2026-27) | I64: =$B$14 -> Y = Must complete
B65: ='WS5 - Yrs 2-7 YIELD'!M54 -> Year 3 (2027-28) | I65: Y = Must complete
B66: ='WS5 - Yrs 2-7 YIELD'!V54 -> Year 4 (2028-29) | I66: Y = Must complete
B67: ='WS5 - Yrs 2-7 YIELD'!AE54 -> Year 5 (2029-30) | I67: Y = Must complete
B68: ='WS5 - Yrs 2-7 YIELD'!AN54 -> Year 6 (2030-31) | I68: Y = Must complete
B69: ='WS5 - Yrs 2-7 YIELD'!AW54 -> Year 7 (2031-32) | I69: Y = Must complete
B70: ='WS5 - Yrs 2-7 YIELD'!B68 -> Table 5.3: Calculation of Notional General Income - Annual Charges from 2026-27 to 2031-32 ($ nominal)
B71: ='WS5 - Yrs 2-7 YIELD'!D69 -> Year 2 (2026-27) | I71: =$B$14 -> Y = Must complete
B72: ='WS5 - Yrs 2-7 YIELD'!M69 -> Year 3 (2027-28) | I72: =$B$14 -> Y = Must complete
B73: ='WS5 - Yrs 2-7 YIELD'!V69 -> Year 4 (2028-29) | I73: Y = Must complete
B74: ='WS5 - Yrs 2-7 YIELD'!AE69 -> Year 5 (2029-30) | I74: Y = Must complete
B75: ='WS5 - Yrs 2-7 YIELD'!AN69 -> Year 6 (2030-31) | I75: Y = Must complete
B76: ='WS5 - Yrs 2-7 YIELD'!AW69 -> Year 7 (2031-32) | I76: Y = Must complete
B77: ='WS6 - PGI summary'!B4 -> WORKSHEET 6: PERMISSIBLE GENERAL INCOME SUMMARY FOR 2025-26
B78: ='WS6 - PGI summary'!B55 -> Table 6.1: Calculation of first year Permissble General Income ($ nominal) | I78: =$B$15 &" - automatic calculation" -> N = No need to complete - automatic calculation
B79: ='WS6 - PGI summary'!B78 -> Table 6.2: Calculation of PGI with proposed SV, rate peg and renewal of expiring SV ($ nominal) | I79: =$B$15 &" - automatic calculation" -> N = No need to complete - automatic calculation
B80: ='WS6 - PGI summary'!B114 -> Table 6.3 Increases in permissable general income over proposed SV period ($ nominal) | I80: =$B$15 &" - automatic calculation" -> N = No need to complete - automatic calculation
B81: ='WS7 - Impact on Rates'!B4 -> WORKSHEET 7: IMPACT ON MINIMUM RATES, AVERAGE RATES AND OTHER CHARGES
B82: ='WS7 - Impact on Rates'!B25 -> Table 7.1: Minimum Rates - with proposed special variation | I82: =$B$14 -> Y = Must complete
B83: ='WS7 - Impact on Rates'!B52 -> Table 7.2: Average Ordinary and Special Rates - with proposed special variation | I83: Y = Must complete
B84: ='WS7 - Impact on Rates'!B92 -> Table 7.3: Average Ordinary and Special Rates - without proposed special variation (assumed rate peg only) | I84: Y = Must complete
B85: ='WS7 - Impact on Rates'!B132 -> Table 7.4: Domestic Waste Management Services - Annual Charge | I85: Y = Must complete
B86: ='WS7 - Impact on Rates'!B145 -> Table 7.5: Water Supply Services - Annual Charge | I86: Y = Must complete
B87: ='WS7 - Impact on Rates'!B163 -> Table 7.6: Sewerage Services - Annual Charge | I87: Y = Must complete
B88: ='WS7 - Impact on Rates'!B182 -> Table 7.7: Other Annual Charges | I88: Y = Must complete
B89: ='WS8 - Expenditure Program'!B4 -> WORKSHEET 8: PROPOSED ADDITIONAL SPECIAL VARIATION INCOME AND EXPENDITURE
B90: ='WS8 - Expenditure Program'!B25 -> Table 8.1: Income and Operating balance ($ nominal) | I90: =$B$15 &" - automatic calculation" -> N = No need to complete - automatic calculation
B91: ='WS8 - Expenditure Program'!B35 -> Table 8.2: Operating expenses (including loan interest costs) ($ nominal) | I91: =IF($D$33="minimum rate increase",$B$15,$B$14) -> Y = Must complete | J91: ='WS8 - Expenditure Program'!M35 -> 
B92: ='WS8 - Expenditure Program'!B48 -> Table 8.3: Capital expenditure ($ nominal) | I92: =IF($D$33="minimum rate increase",$B$15,$B$14) -> Y = Must complete | J92: ='WS8 - Expenditure Program'!M48 -> 
B93: ='WS8 - Expenditure Program'!B60 -> Table 8.4: Other uses of proposed SV income (eg, loan principal repayments, transfers to reserves) ($ nominal) | I93: Y = Must complete | J93: ='WS8 - Expenditure Program'!M60 -> 
B94: ='WS8 - Expenditure Program'!B69 -> Table 8.5: Total ($ nominal) | I94: =$B$15 &" - automatic calculation" -> N = No need to complete - automatic calculation
B95: ='WS9 - Financials'!B4 -> WORKSHEET 9: FINANCIAL INFORMATION
B96: ='WS9 - Financials'!B15 -> Table 9.1: Income statement (General fund) ($'000 nominal) | I96: =$B$14 -> Y = Must complete
B97: ='WS9 - Financials'!B56 -> Table 9.2: Borrowing costs and repayments ($'000 nominal) | I97: Y = Must complete
B98: ='WS9 - Financials'!B65 -> Table 9.3: Infrastructure asset performance indicators by fund (%) | I98: Y = Must complete
B99: ='WS9 - Financials'!B75 -> Table 9.4: Cash and investments (General fund) ($'000 nominal) | I99: Y = Must complete
B100: ='WS9 - Financials'!B100 -> Table 9.5: Balance sheet extract (General fund) - historical and forecasts for SV scenario ($'000 nominal) | I100: =IF($D$33="minimum rate increase",$B$15,$B$14) -> Y = Must complete | J100: ='WS9 - Financials'!I100 -> .
B101: ='WS10 - LTFP'!B4 -> WORKSHEET 10: LONG TERM FINANCIAL PLAN
B102: ='WS10 - LTFP'!B21 -> Table 10.1(a): Income Statement- General fund - PROPOSED Special Variation Scenario ($ nominal) | I102: =IF($D$33="minimum rate increase",$B$15,$B$14) -> Y = Must complete | J102: ='WS10 - LTFP'!K21 -> .
B103: ='WS10 - LTFP'!B75 -> Table 10.1(b): Cashflow Statement - General fund- PROPOSED Special Variation Scenario ($ nominal) | I103: =IF($D$33="minimum rate increase",$B$15,$B$14) -> Y = Must complete | J103: ='WS10 - LTFP'!K75 -> .
B104: ='WS10 - LTFP'!B167 -> Table 10.2(a): Income Statement - General fund - BASE case scenario ($ nominal) | I104: Y = Must complete
B105: ='WS10 - LTFP'!B221 -> Table 10.2(b): Cashflow Statement - General fund - BASE case scenario ($ nominal) | I105: Y = Must complete
B106: ='WS10 - LTFP'!B313 -> Table 10.3: Key Assumptions | I106: =IF($D$33="minimum rate increase",$B$16,$B$14) -> Y = Must complete | J106: ='WS10 - LTFP'!K313 -> .
B107: ='WS10 - LTFP'!B334 -> Table 10.4: Income Statement - General fund - Hybrid case scenario ($ nominal) | I107: =IF($D$33="minimum rate increase",$B$15,$B$14) -> Y = Must complete | J107: ='WS10 - LTFP'!K334 -> .
B108: ='WS10 - LTFP'!B388 -> Table 10.5: Difference between Scenario 1 (with proposed SV income and expenditure) and Scenario 2 (base case - no SV income or expenditure) | I108: =IF($D$33="minimum rate increase",$B$15,$B$14) -> Y = Must complete | J108: ='WS10 - LTFP'!K388 -> .
B109: ='WS11 - Ratios'!B4 -> WORKSHEET 11 : FINANCIAL RATIOS
B110: ='WS11 - Ratios'!B42 -> Table 11.1: Sustainability | I110: =IF($D$33="minimum rate increase",$B$16,$B$14) -> Y = Must complete | J110: ='WS11 - Ratios'!E42 -> .
B111: ='WS11 - Ratios'!B62 -> Table 11.2: Effective infrastructure and service management | I111: =B16 -> P = Partial, some tables/sections apply | J111: ='WS11 - Ratios'!E62 -> .
B112: ='WS11 - Ratios'!B78 -> Table 11.3: Financial data underlying the ratios | I112: =$B$14 -> Y = Must complete
B113: ='WS12 - Other'!B4 -> WORKSHEET 12: OTHER DATA
B114: ='WS12 - Other'!B16 -> Table 12.1: Overdue notices, rebate and hardship | I114: =$B$14 -> Y = Must complete
B115: ='WS12 - Other'!B82 -> Table 12.2: Rateable and non-ratable assessments | I115: =$B$17 -> O = Optional
B116: ='WS12 - Other'!B90 -> Table 12.3: Optional blank table for council to use - please do not remove year headings in rows 92 and 93 | I116: =$B$17 -> O = Optional

Sheet WS2-Proposal
A1: 2
B2: ='WS1-Application'!B2 -> APPLICATION FOR SPECIAL VARIATION - UPPER HUNTER SHIRE COUNCIL
B4: ="WORKSHEET "&A1&" - PROPOSED "&UPPER('WS1-Application'!D33) -> WORKSHEET 2 - PROPOSED SPECIAL VARIATION
B7: Instructions and notes
B8: ="Table "&A1&"."&A39 -> Table 2.1
B9: > Indicate whether you have any existing SVs by selecting 'yes' or 'no' from the drop down box:
B10: ="- where the existing SV means you have an existing increase(s) above the rate peg for any year from "&'WS0 - Input data'!K55&" ("&'WS0 - Input data'!K58&")"&" onwards." -> - where the existing SV means you have an existing increase(s) above the rate peg for any year from Year 1 (2025-26) onwards.
B11: > Answer the questions about expiring SVs:
B12: - If the council does not have any SVs due to expire in the period of the proposed SV, leave the field blank or select 'na'.
B13: ="- Enter the $ value of expiring SVs in table "&A1&"."&A55&" (row "&ROW('WS2-Proposal'!B92)&")" -> - Enter the $ value of expiring SVs in table 2.2 (row 92)
B14: Any amounts entered need to be verified by the OLG before the application is submitted to us.
B15: > Answer the questions about Crown land adjustments, catch ups and valuation objections:
B16: - If the council does not have any adjustments, leave the fields in this section blank.
B17: Note that applications for Crown land adjustments still need to be separately made to OLG.
B18: ="Table "&A1&"."&A55 -> Table 2.2
B19: Instruction for SV application or SV & MR application
B20: > Select (or enter) the type and duration of the proposed special variation.
B21: If the council is applying for an SV that is part permanent and part temporary, please contact IPART.
B22: ="> Enter the rate peg (to 2 decimal places) assumed by council for each year of the proposed SV period at row "&ROW(B79)&":" -> > Enter the rate peg (to 2 decimal places) assumed by council for each year of the proposed SV period at row 79:
B23: * The OLG Guidelines advise an assumed rate peg of 2.5%. However, if the council has assumed a different rate peg, this can be used with an explanation provided in the Part B application form.
B24: * If no percentage is entered for any particular year, a rate of 2.50% p.a. as advised by the OLG guideline is assumed.
B25: * If the rate peg turns out to be different from that assumed, the total % increase in general income with an approved SV does not change.
B26: ="> Enter the additional percentage being sought above the rate peg (excluding other adjustments) for year 1 ("&'WS0 - Input data'!K58&") at row "&ROW(B64)&". " -> > Enter the additional percentage being sought above the rate peg (excluding other adjustments) for year 1 (2025-26) at row 64.
B27: ="> Enter the total proposed SV percentages (including the rate peg and existing SV income) for the other years (year 2 onwards) of the proposed period at row "&ROW(B85) &" [blue highlight cells]:" -> > Enter the total proposed SV percentages (including the rate peg and existing SV income) for the other years (year 2 onwards) of the proposed period at row 85 [blue highlight cells]:
B28: ="* Note that any approval given will be to the number of decimal places specified in the council resolution. This should be 1 decimal place, unless another number of decimal places is requested in Application Part B, Table 3." -> * Note that any approval given will be to the number of decimal places specified in the council resolution. This should be 1 decimal place, unless another number of decimal places is requested in Application Part B, Table 3.
B29: ="* The annual and cumulative increases in the white cells at row "&ROW(B86)&" are automatically calculated once the requested percentages increases have been entered." -> * The annual and cumulative increases in the white cells at row 86 are automatically calculated once the requested percentages increases have been entered.
B30: ="> Enter the dollar value of expiring special variations at row "&ROW(B92)&"." -> > Enter the dollar value of expiring special variations at row 92.
B32: Instruction for MR increase only application
B33: ="> Please follow instructions at column "&LOOKUP(COLUMN($L$56),'WS0 - Input data'!$B$411:$B$431,'WS0 - Input data'!$C$411:$C$431)&" at rows "&ROW(L58)&" to row "&ROW(L64)& " for each of the blue input cells at column "&LOOKUP(COLUMN($K$56),'WS0 - Input data'!$B$411:$B$431,'WS0 - Input data'!$C$411:$C$431) -> > Please follow instructions at column L at rows 58 to row 64 for each of the blue input cells at column K
B34: ="> At row "&ROW(B79)&" blue input cells, enter the rate peg percentages used by council if different to the 2.5% advised by OLG. If council uses 2.5%, council can either leave this row blank or enter 2.5%" -> > At row 79 blue input cells, enter the rate peg percentages used by council if different to the 2.5% advised by OLG. If council uses 2.5%, council can either leave this row blank or enter 2.5%
B35: ="> Leave the blue input cells at row "&ROW(B85)&" blank" -> > Leave the blue input cells at row 85 blank
A39: 1 | B39: ="Table "&A1&"."&A39&": Existing and expiring special variations and adjustments" -> Table 2.1: Existing and expiring special variations and adjustments
B40: a. Existing special variations (SVs) | W40: DO NOT DELETE
B41: ="Does the council have any existing SV(s) that means it has an increase above the rate peg for any year from "&K73&" ("&K72&") onwards?" -> Does the council have any existing SV(s) that means it has an increase above the rate peg for any year from 2025-26 (Year 1) onwards? | K41: no | L41: select option | W41: =IF(K41='WS0 - Input data'!B249,1,2) -> 2
B43: b. Expiring special variations (SVs)
B44: Does the council have an expiring variation? If yes, please specify when. | C44: 1st Expiring SV | K44: na | L44: select option
C45: 2nd Expiring SV | K45: na | L45: select option
B46: ="If the council has an expiring variation, enter the $ amount expiring in row "&ROW(B92)&" below." -> If the council has an expiring variation, enter the $ amount expiring in row 92 below.
B48: c. Crown Land adjustments, catch ups, valuation objections | K48: $ nominal | L48: % Year 0 income
B49: Enter the amount of any Crown Land adjustments required | K49: 0 | L49: =IF('WS3 - Notional General Income'!$L$75-$J$92=0,0,K49/('WS3 - Notional General Income'!$L$75-$J$92)) -> 0 | M49: enter $
B50: Enter the amount for any catch ups or excess adjustments required | K50: 0 | L50: =IF('WS3 - Notional General Income'!$L$75-$J$92=0,0,K50/('WS3 - Notional General Income'!$L$75-$J$92)) -> 0 | M50: =M49 -> enter $
B51: Enter any valuation objections required (input as a positive whole number) | K51: 0 | L51: =IF('WS3 - Notional General Income'!$L$75-$J$92=0,0,K51/('WS3 - Notional General Income'!$L$75-$J$92)) -> 0 | M51: =M50 -> enter $
A55: =A39+1 -> 2 | B55: ="Table "&A1&"."&A55&": Proposed special variations and requested percentage increases" -> Table 2.2: Proposed special variations and requested percentage increases | D55: =IF('WS1-Application'!$D$33="Minimum rate increase","[MR increase only application - follow instructions for each blue input cells]","") -> 
B56: a. Proposed special variations (SVs) | L56: Instructions | O56: Check
B58: Is the council applying for a one-year increase (s508(2)) or a multi-year increase (s508A)? | K58: s508A | L58: =IF('WS1-Application'!$D$33='WS0 - Input data'!$B$405,"MR increase - select option s508A","Select option") -> Select option | W58: =IF(K58="",0,MATCH(K58,'WS0 - Input data'!B228:B229,0)) -> 2
B59: For s508A applications: for how many years is the council requesting % increases as part of this application? | K59: 3 years | L59: =IF('WS1-Application'!$D$33='WS0 - Input data'!$B$405,"MR increase - select 7 years","Select option") -> Select option | O59: =IF(AND(W58=1,W59>1),"Error, s508(2) is for one year",IF(AND(W58=2,W59=1),"Please select number of years","ok")) -> ok | W59: =IF(K59="",0,MATCH(K59,'WS0 - Input data'!E235:E241,0)) -> 3
B60: For s508A & s508(2) applications: is the special variation permanent or temporary? | K60: Permanent | L60: =IF('WS1-Application'!$D$33='WS0 - Input data'!$B$405,"MR increase - select Permanent","Select option") -> Select option
B62: > If temporary, enter the number of years before the proposed temporary special variation is due to expire. If 'combined' SV, please discuss with IPART prior to submission | L62: =IF('WS1-Application'!$D$33='WS0 - Input data'!$B$405,"MR increase - leave blank","enter years if temporary SV") -> enter years if temporary SV | O62: =IF(AND(OR(K60='WS0 - Input data'!B244,'WS2-Proposal'!K60='WS0 - Input data'!B246),K62=0),"ok",IF(AND(VALUE(LEFT(K59,1))=K62,K60='WS0 - Input data'!B245),"Proposed # of temporary years ok","Error, check if number of years entered is correct")) -> ok | W62: =IF(W58+W59=0,0,IF(W58=1,1,W59)) -> 3
B63: ="Percentage rate peg for the first year of the SV period ("&Year1&"). This will autofill with the selection of Council." -> Percentage rate peg for the first year of the SV period (2025-26). This will autofill with the selection of Council. | K63: =INDEX('WS0 - Input data'!D272:D399,MATCH('WS1-Application'!D23,'WS0 - Input data'!B272:B399,0)) -> 0.043
B64: =CHOOSE($W$41,"Enter the percentage above the existing full SV (ie, incl rate peg) the council is applying for in the first year ","Enter the percentage above the rate peg the council is applying for in the first year") -> Enter the percentage above the rate peg the council is applying for in the first year | K64: 0.057
B65: =IF($W$66=1,"- percentage of the Combined SV that this temporary","na - ignore this row - Not a combined SV") -> na - ignore this row - Not a combined SV | L65: =IF($K$60='WS0 - Input data'!$B$246,"enter %","na - ignore") -> na - ignore | W65: DO NOT DELETE
B66: =IF($W$66=1," - percentage of the Combined SV that this permanent","na - ignore this row - Not a combined SV") -> na - ignore this row - Not a combined SV | K66: =IF(K60='WS0 - Input data'!$B$246,K64-K65,0) -> 0 | L66: % | W66: =IF(K60='WS0 - Input data'!$B$246,1,2) -> 2
B68: b. Requested annual percentage increases and expiring SV amounts
B69: A special variation is the total % increase permitted in a council's general income, Including the rate peg and Crown land adjustments, before adjustments are made for catch ups/excesses and valuation objections.
B70: Note: Approved SV% increases do not change if the actual rate peg turns out to be different from that assumed for a particular year.
J72: ='WS0 - Input data'!J$55 -> Year 0 | K72: ='WS0 - Input data'!K$55 -> Year 1 | L72: ='WS0 - Input data'!L$55 -> Year 2 | M72: ='WS0 - Input data'!M$55 -> Year 3 | N72: ='WS0 - Input data'!N$55 -> Year 4 | O72: ='WS0 - Input data'!O$55 -> Year 5 | P72: ='WS0 - Input data'!P$55 -> Year 6 | Q72: ='WS0 - Input data'!Q$55 -> Year 7
B73: ='WS0 - Input data'!B$58 -> Financial year | J73: ='WS0 - Input data'!J$58 -> 2024-25 | K73: ='WS0 - Input data'!K$58 -> 2025-26 | L73: ='WS0 - Input data'!L$58 -> 2026-27 | M73: ='WS0 - Input data'!M$58 -> 2027-28 | N73: ='WS0 - Input data'!N$58 -> 2028-29 | O73: ='WS0 - Input data'!O$58 -> 2029-30 | P73: ='WS0 - Input data'!P$58 -> 2030-31 | Q73: ='WS0 - Input data'!Q$58 -> 2031-32
B74: 1= included in SV period | J74: =IF(VALUE(RIGHT(J72,1))>$W$62,0,1) -> 1 | K74: 1 | L74: 1 | M74: 1 | N74: 0 | O74: 0 | P74: 0 | Q74: 0
B75: 0 = beyond temporary SV period | J75: =IF($K$60='WS0 - Input data'!$B$244,1,IF($K$62<VALUE(RIGHT(J72,1)),0,1)) -> 1 | K75: =IF($K$60='WS0 - Input data'!$B$244,1,IF($K$62<VALUE(RIGHT(K72,1)),0,1)) -> 1 | L75: =IF($K$60='WS0 - Input data'!$B$244,1,IF($K$62<VALUE(RIGHT(L72,1)),0,1)) -> 1 | M75: =IF($K$60='WS0 - Input data'!$B$244,1,IF($K$62<VALUE(RIGHT(M72,1)),0,1)) -> 1 | N75: =IF($K$60='WS0 - Input data'!$B$244,1,IF($K$62<VALUE(RIGHT(N72,1)),0,1)) -> 1 | O75: =IF($K$60='WS0 - Input data'!$B$244,1,IF($K$62<VALUE(RIGHT(O72,1)),0,1)) -> 1 | P75: =IF($K$60='WS0 - Input data'!$B$244,1,IF($K$62<VALUE(RIGHT(P72,1)),0,1)) -> 1 | Q75: =IF($K$60='WS0 - Input data'!$B$244,1,IF($K$62<VALUE(RIGHT(Q72,1)),0,1)) -> 1
B76: Annual % increases
B77: =CHOOSE($W$41,"Existing full SV (ie, incl the rate peg) in the years in which it applies","na - leave blank") -> na - leave blank | D77: %
B79: Assumed rate peg used by council | L79: 0.034 | M79: 0.031 | N79: 0.028 | O79: 0.025 | P79: 0.025 | Q79: 0.025
B80: Rate peg only | D80: % | K80: =IF(K75=0,0,'WS0 - Input data'!K60) -> 0.043 | L80: =IF(L75=0,0,IF(ISBLANK(L79),'WS0 - Input data'!$D$48,L79)) -> 0.034 | M80: =IF(M75=0,0,IF(ISBLANK(M79),'WS0 - Input data'!$D$48,M79)) -> 0.031 | N80: =IF(N75=0,0,IF(ISBLANK(N79),'WS0 - Input data'!$D$48,N79)) -> 0.028 | O80: =IF(O75=0,0,IF(ISBLANK(O79),'WS0 - Input data'!$D$48,O79)) -> 0.025 | P80: =IF(P75=0,0,IF(ISBLANK(P79),'WS0 - Input data'!$D$48,P79)) -> 0.025 | Q80: =IF(Q75=0,0,IF(ISBLANK(Q79),'WS0 - Input data'!$D$48,Q79)) -> 0.025
B81: =CHOOSE($W$41,"Existing SV above rate peg"," na - No existing SV above rate peg") -> na - No existing SV above rate peg | D81: % | K81: =IF(OR($W$41=2,K77=""),0,K77-K80) -> 0 | L81: 0 | M81: 0 | N81: 0 | O81: =IF(OR($W$41=2,O77=""),0,O77-O80) -> 0 | P81: 0 | Q81: 0 | W81: DO NOT DELETE
B82: =$W$82&W83 -> Percentage above the rate peg | D82: % | K82: =CHOOSE($W$66,K65,K64) -> 0.057 | L82: =IF(L74=0,0,MAX(0,L85-L80-L81-CHOOSE($W$66,L83,0))) -> 0.066 | M82: 0.069 | N82: 0 | O82: 0 | P82: 0 | Q82: 0 | W82: =CHOOSE($W$41,"Percentage above the existing full SV (incl rate peg)","Percentage above the rate peg") -> Percentage above the rate peg
B83: =CHOOSE($W$66,$W$82&W84,"Na - ignore this row - Not a combined SV") -> Na - ignore this row - Not a combined SV | D83: % | K83: =K66 -> 0 | W83: =CHOOSE($W$66," that is temporary","") -> 
B84: Crown Land adjustment | D84: % | K84: =L49 -> 0 | L84: 0 | M84: 0 | N84: 0 | O84: 0 | P84: 0 | Q84: 0 | W84: =CHOOSE($W$66," that is permanent","") -> 
B85: =CHOOSE($W$41,"Proposed SV (total proposed and existing SV)","Proposed SV ") -> Proposed SV | D85: % | K85: =SUM(K80:K84) -> 0.1 | L85: 0.1 | M85: 0.1
B86: Cumulative % increase
B87: =CHOOSE($W$41,"Exising full SV (including rate peg) followed by rate peg only","Rate peg only") -> Rate peg only | D87: % | K87: =SUM(K80:K81) -> 0.043 | L87: =IF(L75=0,0,(1+K87)*(1+L80+L81)-1) -> 0.078462 | M87: =IF(M75=0,0,(1+L87)*(1+M80+M81)-1) -> 0.111894322 | N87: 0.143027363 | O87: 0.1716030471 | P87: 0.2008931233 | Q87: 0.2309154514
B88: Plus: additional increases | D88: % | K88: =IF(K82=0,".",K82+CHOOSE($W$66,K83,0)) -> 0.057 | L88: =IF(OR(L74=0,L75=0),0,MAX(0,L89-L87)) -> 0.131538 | M88: =IF(M75=0,0,IF(M74=0,0,MAX(0,M89-M87))) -> 0.219105678 | N88: 0 | O88: 0 | P88: 0 | Q88: 0
B89: =B85 -> Proposed SV | D89: % | K89: =IF(K85=0,".",K85) -> 0.1 | L89: =IF(L75=0,0,IF(L74=0,(1+K89)*(1+L80+L81)-1,(1+K89)*(1+L85)-1)) -> 0.21 | M89: =IF(M75=0,0,IF(M74=0,(1+L89)*(1+M80+M81)-1,(1+L89)*(1+M85)-1)) -> 0.331 | N89: =IF(N75=0,0,IF(N74=0,(1+M89)*(1+N80+N81)-1,(1+M89)*(1+N85)-1)) -> 0.368268 | O89: 0.4024747 | P89: 0.4375365675 | Q89: 0.4734749817
B91: c. Expiring special variations (ESV)
B92: $ value of ESV | D92: $ (nominal)
B93: % value of ESV | D93: % | J93: =IF('WS6 - PGI summary'!J98=0,".",J92/'WS6 - PGI summary'!J98) -> 0 | K93: =IFERROR(IF('WS6 - PGI summary'!K98=0,".",K92/'WS6 - PGI summary'!K98),".") -> 0 | L93: =IFERROR(IF('WS6 - PGI summary'!L98=0,".",L92/'WS6 - PGI summary'!L98),".") -> 0 | M93: =IFERROR(IF('WS6 - PGI summary'!M98=0,".",M92/'WS6 - PGI summary'!M98),".") -> 0 | N93: =IFERROR(IF('WS6 - PGI summary'!N98=0,".",N92/'WS6 - PGI summary'!N98),".") -> 0 | O93: =IFERROR(IF('WS6 - PGI summary'!O98=0,".",O92/'WS6 - PGI summary'!O98),".") -> 0 | P93: =IFERROR(IF('WS6 - PGI summary'!P98=0,".",P92/'WS6 - PGI summary'!P98),".") -> 0 | Q93: =IFERROR(IF('WS6 - PGI summary'!Q98=0,".",Q92/'WS6 - PGI summary'!Q98),".") -> 0
B95: check = ok | K95: =IF(AND(K$74=1,K$85<>0),"ok",IF(AND(K$74=0,K$85=0),"ok","check row "&ROW(K85))) -> ok | L95: =IF(AND(L$74=1,L$85<>0),"ok",IF(AND(L$74=0,L$85=0),"ok","check row "&ROW(L85))) -> ok | M95: =IF(AND(M$74=1,M$85<>0),"ok",IF(AND(M$74=0,M$85=0),"ok","check row "&ROW(M85))) -> ok | N95: =IF(AND(N$74=1,N$85<>0),"ok",IF(AND(N$74=0,N$85=0),"ok","check row "&ROW(N85))) -> ok | O95: ok | P95: ok | Q95: ok

Sheet WS3 - Notional General Income
A1: 3
B2: ='WS1-Application'!B2 -> APPLICATION FOR SPECIAL VARIATION - UPPER HUNTER SHIRE COUNCIL
B4: ="WORKSHEET "&A1&" - "&"CALCULATION OF NOTIONAL GENERAL INCOME FOR "&'WS0 - Input data'!$J$58&" (THE CURRENT YEAR OR "&UPPER('WS0 - Input data'!J55)&")" -> WORKSHEET 3 - CALCULATION OF NOTIONAL GENERAL INCOME FOR 2024-25 (THE CURRENT YEAR OR YEAR 0)
B7: Instructions and notes
B8: - This worksheet calculates the Notional General Income for the current year (Year 0), by applying the rating structure used in that year to land values, adjusted by supplementary valuations received during that year.
B9: - This worksheet must reflect the rating structure levied in the current year ( ie year 0 or the year prior to the application of the proposed special variation).
B10: Notes:
B11: (1) Any inclusion in this worksheet as “supplementary valuation” must agree with section 4 of the Valuation of Land Act 1916.
B12: ="(2) Valuations used here are to be taken from Council's valuation list on 1 July "&'WS0 - Input data'!$J$57&" and are to include:" -> (2) Valuations used here are to be taken from Council's valuation list on 1 July 2024 and are to include:
B13: (a) supplementaries having the same base date and furnished to Council during that year, and
B14: (b) estimates of increases in valuations provided to the Council under section 513.
B15: (3) All dollars are to be in nominal terms
A19: 1 | B19: ="Table "&A1&"."&A19&": Calculation of Notional General Income - Ordinary Rates ($nominal)" -> Table 3.1: Calculation of Notional General Income - Ordinary Rates ($nominal)
B20: Rating Category (s514-518) | C20: Name of sub-category | D20: Number of Assessments | E20: Ad Valorem Rate (cents) | F20: Base Amount $ | G20: Base Amount % | H20: Minimum Amount $ | I20: Number on Minimum | J20: Land Value (see note above) $ | K20: Land Value of Land on Minimum | L20: Notional General Income
B21: Residential | C21: Aberdeen | D21: 818 | E21: 0.3531 | F21: 200 | G21: =IF(F21="",".",D21*F21/L21) -> 0.2991993704 | J21: 108522400 | L21: =IF(D21="",".",IF(F21<>"",F21*D21+J21*(E21/100),(J21-K21)*(E21/100)+H21*I21)) -> 546792.5944
B22: Residential | C22: Cassillis | D22: 49 | E22: 0.5974 | F22: 200 | G22: =IF(F22="",".",D22*F22/L22) -> 0.3516230846 | J22: 3024900 | L22: 27870.7526
B23: Residential | C23: Merriwa | D23: 532 | E23: 0.38533 | F23: 200 | G23: 0.3061556324 | J23: 62579000 | L23: 347535.6607
B24: Residential | C24: Murrurundi | D24: 500 | E24: 0.2969 | F24: 200 | G24: 0.3233436522 | J24: 70484500 | L24: 309268.4805
B25: Residential | C25: Scone | D25: 2247 | E25: 0.47089 | F25: 200 | G25: =IF(F25="",".",D25*F25/L25) -> 0.1684649138 | J25: 471069206 | L25: =IF(D25="",".",IF(F25<>"",F25*D25+J25*(E25/100),(J25-K25)*(E25/100)+H25*I25)) -> 2667617.784
B26: Residential | C26: Ordinary | D26: 1239 | E26: 0.2863 | F26: 200 | G26: =IF(F26="",".",D26*F26/L26) -> 0.1829071652 | J26: 386652335 | L26: =IF(D26="",".",IF(F26<>"",F26*D26+J26*(E26/100),(J26-K26)*(E26/100)+H26*I26)) -> 1354785.635
B27: Residential | C27: Mixed Development - Aberdeen Residential | D27: 1 | E27: 0.3531 | F27: 100 | G27: 0.1986983233 | J27: 114210 | L27: 503.27551
B28: Residential | C28: Mixed Development - Merriwa Residential | D28: 2 | E28: 0.38533 | F28: 100 | G28: 0.4561404216 | J28: 61885 | L28: 438.4614705
B29: Residential | C29: Mixed Development - Murrurundi Residential | D29: 1 | E29: 0.2969 | F29: 100 | G29: 0.3557338968 | J29: 61000 | L29: 281.109
B30: Residential | G30: . | L30: .
C31: Total Residential | D31: =SUM(D21:D30) -> 5389 | I31: =SUM(I21:I30) -> 0 | J31: =SUM(J21:J30) -> 1102569436 | K31: =SUM(K21:K30) -> 0 | L31: =SUM(L21:L30) -> 5255093.753
B32: Business | C32: Aberdeen | D32: 38 | E32: 0.4761 | F32: 200 | G32: 0.1617972267 | J32: 8269770 | L32: =IF(D32="",".",IF(F32<>"",F32*D32+J32*(E32/100),(J32-K32)*(E32/100)+H32*I32)) -> 46972.37497
B33: Business | C33: Merriwa | D33: 59 | E33: 0.4784 | F33: 200 | G33: 0.2478022186 | J33: 7487170 | L33: 47618.62128
B34: Business | C34: Murrurundi | D34: 37 | E34: 0.34855 | F34: 200 | G34: 0.2026347299 | J34: 8354300 | L34: 36518.91265
B35: Business | C35: Scone | D35: 266 | E35: 0.65585 | F35: 200 | G35: 0.1100976972 | J35: 65564870 | L35: 483207.1999
B36: Business | C36: Ordinary | D36: 333 | E36: 0.275 | F36: 200 | G36: 0.2524561134 | J36: 71712083 | L36: 263808.2283
B37: Business | C37: Mixed Development - Aberdeen Residential | D37: 1 | E37: 0.4761 | F37: 100 | G37: 0.1402191814 | J37: 128790 | L37: 713.16919
B38: Business | C38: Mixed Development - Merriwa Residential | D38: 2 | E38: 0.4784 | F38: 100 | G38: 0.3653701046 | J38: 72615 | L38: 547.39016
B39: Business | C39: Mixed Development - Murrurundi Residential | D39: 1 | E39: 0.34855 | F39: 100 | G39: 0.3198817717 | J39: 61000 | L39: 312.6155
B40: Business | G40: . | L40: .
C41: Total Business | D41: =SUM(D32:D40) -> 737 | I41: =SUM(I32:I40) -> 0 | J41: =SUM(J32:J40) -> 161650598 | K41: =SUM(K32:K40) -> 0 | L41: =SUM(L32:L40) -> 879698.5119
B42: Farmland | D42: 1606 | E42: 0.21346 | F42: 100 | G42: 0.02398078578 | J42: 3062132605 | L42: =IF(D42="",".",IF(F42<>"",F42*D42+J42*(E42/100),(J42-K42)*(E42/100)+H42*I42)) -> 6697028.259
B43: Farmland | G43: . | L43: =IF(D43="",".",IF(F43<>"",F43*D43+J43*(E43/100),(J43-K43)*(E43/100)+H43*I43)) -> .
C44: Total Farmland | D44: =SUM(D42:D43) -> 1606 | I44: =SUM(I42:I43) -> 0 | J44: =SUM(J42:J43) -> 3062132605 | K44: =SUM(K42:K43) -> 0 | L44: =SUM(L42:L43) -> 6697028.259
B45: Mining | D45: 1 | E45: 0.5949 | F45: 200 | G45: 0.001393039954 | J45: 24100000 | L45: =IF(D45="",".",IF(F45<>"",F45*D45+J45*(E45/100),(J45-K45)*(E45/100)+H45*I45)) -> 143570.9
B46: Mining | G46: =IF(F46="",".",D46*F46/L46) -> . | L46: =IF(D46="",".",IF(F46<>"",F46*D46+J46*(E46/100),(J46-K46)*(E46/100)+H46*I46)) -> .
C47: Total Mining | D47: =SUM(D45:D46) -> 1 | I47: =SUM(I45:I46) -> 0 | J47: =SUM(J45:J46) -> 24100000 | K47: =SUM(K45:K46) -> 0 | L47: =SUM(L45:L46) -> 143570.9
B48: Total Assessments: | D48: =D31+D41+D44+D47 -> 7733 | G48: Total Rateable Land Value: | J48: =J31+J41+J44+J47 -> 4350452639 | K48: Sub-Total: | L48: =L31+L41+L44+L47 -> 12975391.42
A52: =A19+1 -> 2 | B52: ="Table "&A1&"."&A52&": Calculation of Notional General Income - Special Rates ($nominal)" -> Table 3.2: Calculation of Notional General Income - Special Rates ($nominal)
B53: Rating Category (s514-518) | C53: Name of special rate | D53: Number of Assessments | E53: Ad Valorem Rate | F53: Base Amount $ | G53: Base Amount % | H53: Minimum Amount $ | I53: Number on Minimum | J53: Land Value (see note above) | K53: Land Value of Land on Minimum | L53: Notional Income
B54: Residential | G54: =IF(F54="",".",D54*F54/L54) -> . | L54: =IF(D54="",".",IF(F54<>"",F54*D54+J54*(E54/100),(J54-K54)*(E54/100)+H54*I54)) -> .
B55: Residential | G55: . | L55: .
B56: Business | G56: . | L56: .
B57: Business | G57: . | L57: .
B58: Farmland | G58: . | L58: .
B59: Farmland | G59: . | L59: .
B60: Mining | G60: =IF(F60="",".",D60*F60/L60) -> . | L60: .
B61: Mining | G61: . | L61: =IF(D61="",".",IF(F61<>"",F61*D61+J61*(E61/100),(J61-K61)*(E61/100)+H61*I61)) -> .
K62: Sub-Total: | L62: =SUM(L54:L61) -> 0
A66: =A52+1 -> 3 | B66: ="Table "&A1&"."&A66&": Calculation of Notional General Income - Annual Charges ($nominal)" -> Table 3.3: Calculation of Notional General Income - Annual Charges ($nominal)
B67: Annual Charges (excluding water supply, sewerage and domestic and non-domestic waste management services) | J67: Number of Assessments | K67: Amount of Charge $ | L67: Notional Income
L68: =IF(B68="",".",J68*K68) -> .
L69: =IF(B69="",".",J69*K69) -> .
L70: .
L71: .
K72: Sub-Total: | L72: =SUM(L68:L71) -> 0
J75: Total Notional General Income: | L75: =L48+L62+L72 -> 12975391.42
B77: Note: Section 505(a) of the Act provides for those rates and charges that are to be included in general income, including certain section 501 annual charges.

Sheet WS4 - Yr 1 YIELD
A1: 4
B2: ='WS3 - Notional General Income'!B2 -> APPLICATION FOR SPECIAL VARIATION - UPPER HUNTER SHIRE COUNCIL
B4: ="WORKSHEET "&A1&": CALCULATION OF NOTIONAL GENERAL INCOME FOR "&'WS0 - Input data'!$K$58&" ("&UPPER('WS0 - Input data'!K55)&")" -> WORKSHEET 4: CALCULATION OF NOTIONAL GENERAL INCOME FOR 2025-26 (YEAR 1)
B7: Instructions and notes
B8: This worksheet calculates the proposed Notional General Income (Year 1). It should apply the proposed rating structure, including proposed SV increase, to land values adjusted by any supplementary valuations.
B9: Notes:
B10: (1) The rating structure entered here must be checked by OLG. A rating structure that does not comply with the legislation may not be approved.
B11: It is the council's responsibility to check its rating structure with OLG before submission to IPART.
B12: (2) All dollars are to be in nominal terms.
A16: 1 | B16: ="Table "&A1&"."&A16&": Calculation of Notional General Income - Ordinary Rates ($ nominal)" -> Table 4.1: Calculation of Notional General Income - Ordinary Rates ($ nominal)
B17: Rating Category (s514-518) | C17: Name of sub-category | D17: Number of Assessments | E17: Ad valorem rate (cents) | F17: Base Amount $ | G17: Base Amount % | H17: Minimum Amount $ | I17: Number on Minimum | J17: Land Value as at start of year $ | K17: Land Value of Land on Minimum $ | L17: Notional General Income
B18: Residential | C18: =IF('WS3 - Notional General Income'!C21="","",'WS3 - Notional General Income'!C21) -> Aberdeen | D18: 818 | E18: 0.4034852287 | F18: 200 | G18: =IF(F18="",".",D18*F18/L18) -> 0.2719994277 | J18: 108522400 | L18: =IF(D18="",".",IF(F18<>"",F18*D18+J18*(E18/100),(J18-K18)*(E18/100)+H18*I18)) -> 601471.8538
B19: Residential | C19: =IF('WS3 - Notional General Income'!C22="","",'WS3 - Notional General Income'!C22) -> Cassillis | D19: 49 | E19: 0.6895377652 | F19: 200 | G19: =IF(F19="",".",D19*F19/L19) -> 0.3196573497 | J19: 3024900 | L19: 30657.82786
B20: Residential | C20: =IF('WS3 - Notional General Income'!C23="","",'WS3 - Notional General Income'!C23) -> Merriwa | D20: 532 | E20: 0.4408655088 | F20: 200 | G20: 0.2783233022 | J20: 62579000 | L20: 382289.2268
B21: Residential | C21: =IF('WS3 - Notional General Income'!C24="","",'WS3 - Notional General Income'!C24) -> Murrurundi | D21: 500 | E21: 0.3407775164 | F21: 200 | G21: 0.2939487747 | J21: 70484500 | L21: 340195.3285
B22: Residential | C22: =IF('WS3 - Notional General Income'!C25="","",'WS3 - Notional General Income'!C25) -> Scone | D22: 2247 | E22: 0.5275189995 | F22: 200 | G22: 0.1531499216 | J22: 471069206 | L22: 2934379.563
B23: Residential | C23: =IF('WS3 - Notional General Income'!C26="","",'WS3 - Notional General Income'!C26) -> Ordinary | D23: 1239 | E23: 0.3213388582 | F23: 200 | G23: 0.1662792411 | J23: 386652335 | L23: 1490264.199
B24: Residential | C24: =IF('WS3 - Notional General Income'!C27="","",'WS3 - Notional General Income'!C27) -> Mixed Development - Aberdeen Residential | D24: 1 | E24: 0.3971658007 | F24: 100 | G24: 0.1806348394 | J24: 114210 | L24: 553.603061
B25: Residential | C25: =IF('WS3 - Notional General Income'!C28="","",'WS3 - Notional General Income'!C28) -> Mixed Development - Merriwa Residential | D25: 2 | E25: 0.4561810092 | F25: 100 | G25: 0.4146731105 | J25: 61885 | L25: 482.3076176
B26: Residential | C26: =IF('WS3 - Notional General Income'!C29="","",'WS3 - Notional General Income'!C29) -> Mixed Development - Murrurundi Residential | D26: 1 | E26: 0.3429834426 | F26: 100 | G26: 0.3233944517 | J26: 61000 | L26: 309.2199
B27: Residential | C27: =IF('WS3 - Notional General Income'!C30="","",'WS3 - Notional General Income'!C30) ->  | G27: . | L27: .
C28: Total Residential | D28: =SUM(D18:D27) -> 5389 | I28: =SUM(I18:I27) -> 0 | J28: =SUM(J18:J27) -> 1102569436 | K28: =SUM(K18:K27) -> 0 | L28: =SUM(L18:L27) -> 5780603.129
B29: Business | C29: =IF('WS3 - Notional General Income'!C32="","",'WS3 - Notional General Income'!C32) -> Aberdeen | D29: 38 | E29: 0.5329000984 | F29: 200 | G29: 0.1470883879 | J29: 8269770 | L29: =IF(D29="",".",IF(F29<>"",F29*D29+J29*(E29/100),(J29-K29)*(E29/100)+H29*I29)) -> 51669.61247
B30: Business | C30: =IF('WS3 - Notional General Income'!C33="","",'WS3 - Notional General Income'!C33) -> Merriwa | D30: 59 | E30: 0.5420002939 | F30: 200 | G30: 0.2252747442 | J30: 7487170 | L30: 52380.48341
B31: Business | C31: =IF('WS3 - Notional General Income'!C34="","",'WS3 - Notional General Income'!C34) -> Murrurundi | D31: 37 | E31: 0.392262714 | F31: 200 | G31: 0.1842133908 | J31: 8354300 | L31: 40170.80392
B32: Business | C32: =IF('WS3 - Notional General Income'!C35="","",'WS3 - Notional General Income'!C35) -> Scone | D32: 266 | E32: 0.7295491013 | F32: 200 | G32: 0.1000888157 | J32: 65564870 | L32: 531527.9199
B33: Business | C33: =IF('WS3 - Notional General Income'!C36="","",'WS3 - Notional General Income'!C36) -> Ordinary | D33: 333 | E33: 0.3117871378 | F33: 200 | G33: 0.2295055577 | J33: 71712083 | L33: 290189.0511
B34: Business | C34: =IF('WS3 - Notional General Income'!C37="","",'WS3 - Notional General Income'!C37) -> Mixed Development - Aberdeen Residential | D34: 1 | E34: 0.531474578 | F34: 100 | G34: 0.1274719831 | J34: 128790 | L34: 784.486109
B35: Business | C35: =IF('WS3 - Notional General Income'!C38="","",'WS3 - Notional General Income'!C38) -> Mixed Development - Merriwa Residential | D35: 2 | E35: 0.5537825188 | F35: 100 | G35: 0.3321546405 | J35: 72615 | L35: 602.129176
B36: Business | C36: =IF('WS3 - Notional General Income'!C39="","",'WS3 - Notional General Income'!C39) -> Mixed Development - Murrurundi Residential | D36: 1 | E36: 0.3997984426 | F36: 100 | G36: 0.2908016106 | J36: 61000 | L36: 343.87705
B37: Business | C37: =IF('WS3 - Notional General Income'!C40="","",'WS3 - Notional General Income'!C40) ->  | G37: . | L37: .
C38: Total Business | D38: =SUM(D29:D37) -> 737 | I38: =SUM(I29:I37) -> 0 | J38: =SUM(J29:J37) -> 161650598 | K38: =SUM(K29:K37) -> 0 | L38: =SUM(L29:L37) -> 967668.3631
B39: Farmland | C39: =IF('WS3 - Notional General Income'!C42="","",'WS3 - Notional General Income'!C42) ->  | D39: 1606 | E39: 0.2353304711 | F39: 100 | G39: =IF(F39="",".",D39*F39/L39) -> 0.02180071434 | J39: 3062132605 | L39: =IF(D39="",".",IF(F39<>"",F39*D39+J39*(E39/100),(J39-K39)*(E39/100)+H39*I39)) -> 7366731.084
B40: Farmland | C40: =IF('WS3 - Notional General Income'!C43="","",'WS3 - Notional General Income'!C43) ->  | G40: . | L40: .
C41: Total Farmland | D41: =SUM(D39:D40) -> 1606 | I41: =SUM(I39:I40) -> 0 | J41: =SUM(J39:J40) -> 3062132605 | K41: =SUM(K39:K40) -> 0 | L41: =SUM(L39:L40) -> 7366731.084
B42: Mining | C42: =IF('WS3 - Notional General Income'!C45="","",'WS3 - Notional General Income'!C45) ->  | D42: 1 | E42: 0.6544729876 | F42: 200 | G42: =IF(F42="",".",D42*F42/L42) -> 0.001266399959 | J42: 24100000 | L42: =IF(D42="",".",IF(F42<>"",F42*D42+J42*(E42/100),(J42-K42)*(E42/100)+H42*I42)) -> 157927.99
B43: Mining | C43: =IF('WS3 - Notional General Income'!C46="","",'WS3 - Notional General Income'!C46) ->  | G43: . | L43: .
C44: Total Mining | D44: =SUM(D42:D43) -> 1 | I44: =SUM(I42:I43) -> 0 | J44: =SUM(J42:J43) -> 24100000 | K44: =SUM(K42:K43) -> 0 | L44: =SUM(L42:L43) -> 157927.99
B45: Total Assessments: | D45: =D28+D38+D41+D44 -> 7733 | G45: Total Rateable Land Value: | J45: =J28+J38+J41+J44 -> 4350452639 | K45: Sub-Total: | L45: =L28+L38+L41+L44 -> 14272930.57
A49: =A16+1 -> 2 | B49: ="Table "&A1&"."&A49&": Calculation of Notional General Income - Special Rates ($ nominal)" -> Table 4.2: Calculation of Notional General Income - Special Rates ($ nominal)
B50: Rating Category (s514-518) | C50: Name of special rate | D50: Number of Assessments | E50: Ad Valorem Rate | F50: Base Amount $ | G50: Base Amount % | H50: Minimum Amount $ | I50: Number on Minimum | J50: Land Value as at start of year | K50: Land Value of Land on Minimum | L50: Notional Income
B51: Residential | C51: =IF('WS3 - Notional General Income'!C54="","",'WS3 - Notional General Income'!C54) ->  | G51: =IF(F51="",".",D51*F51/L51) -> . | L51: =IF(D51="",".",IF(F51<>"",F51*D51+J51*(E51/100),(J51-K51)*(E51/100)+H51*I51)) -> .
B52: Residential | C52: =IF('WS3 - Notional General Income'!C55="","",'WS3 - Notional General Income'!C55) ->  | G52: . | L52: .
B53: Business | C53: =IF('WS3 - Notional General Income'!C56="","",'WS3 - Notional General Income'!C56) ->  | G53: . | L53: .
B54: Business | C54: =IF('WS3 - Notional General Income'!C57="","",'WS3 - Notional General Income'!C57) ->  | G54: . | L54: .
B55: Farmland | C55: =IF('WS3 - Notional General Income'!C58="","",'WS3 - Notional General Income'!C58) ->  | G55: . | L55: .
B56: Farmland | C56: =IF('WS3 - Notional General Income'!C59="","",'WS3 - Notional General Income'!C59) ->  | G56: . | L56: .
B57: Mining | C57: =IF('WS3 - Notional General Income'!C60="","",'WS3 - Notional General Income'!C60) ->  | G57: =IF(F57="",".",D57*F57/L57) -> . | L57: =IF(D57="",".",IF(F57<>"",F57*D57+J57*(E57/100),(J57-K57)*(E57/100)+H57*I57)) -> .
B58: Mining | C58: =IF('WS3 - Notional General Income'!C61="","",'WS3 - Notional General Income'!C61) ->  | G58: . | L58: .
K59: Sub-Total: | L59: =SUM(L51:L58) -> 0
A63: =A49+1 -> 3 | B63: ="Table "&A1&"."&A63&": Calculation of Notional General Income - Annual Charges ($ nominal)" -> Table 4.3: Calculation of Notional General Income - Annual Charges ($ nominal)
B64: Annual Charges (excluding water supply, sewerage and domestic and non-domestic waste management services) | J64: Number of Assessments | K64: Amount of Charge $ | L64: Notional Income
L65: =IF(B65="",".",J65*K65) -> .
L66: .
L67: .
L68: .
L69: .
L70: .
L71: .
L72: .
K73: Sub-Total: | L73: =SUM(L65:L72) -> 0
F76: Total Notional General Income | L76: =L45+L59+L73 -> 14272930.57
F78: LESS: Valuation Objection Income | L78: =-'WS2-Proposal'!K51 -> 0
F80: NET Notional General Income | L80: =L76+L78 -> 14272930.57
B82: Note: Section 505(a) of the Act provides for those rates and charges that are to be included in general income, including certain section 501 annual charges.

Sheet WS5 - Yrs 2-7 YIELD
A1: 5
B2: ='WS3 - Notional General Income'!B2 -> APPLICATION FOR SPECIAL VARIATION - UPPER HUNTER SHIRE COUNCIL
B4: ="WORKSHEET "&A1&": CALCULATION OF NOTIONAL GENERAL INCOME FOR YEARS 2 TO 7 ("&'WS0 - Input data'!L58&" TO "&'WS0 - Input data'!Q58&")" -> WORKSHEET 5: CALCULATION OF NOTIONAL GENERAL INCOME FOR YEARS 2 TO 7 (2026-27 TO 2031-32)
B7: Instructions and notes
B8: This worksheet shows council's calculation of notional general income for the duration of its proposed SV (i.e. from year 2 to 7, as applicable). This calculation assists IPART in assessing council's proposed
B9: special variations and/or proposed increases to minimum rates. It should apply the proposed rating structure, including proposed SV increase, to land values adjusted by any supplementary valuations.
B10: ="> Please make sure Valuations Objection Income at row "&ROW(F84)&" is filled out or zero is entered if there is none." -> > Please make sure Valuations Objection Income at row 84 is filled out or zero is entered if there is none.
B11: ="> Please make sure to fill out the tables (years) up to the last financial year of the proposed SV e.g. for a 4-year SV, please fill the tables up to Year 4. NOTE: Worksheet 5 does not need to be filled out for a 1-year SV." -> > Please make sure to fill out the tables (years) up to the last financial year of the proposed SV e.g. for a 4-year SV, please fill the tables up to Year 4. NOTE: Worksheet 5 does not need to be filled out for a 1-year SV.
B12: Notes:
B13: (1) The rating structure entered here must be checked by OLG. A rating structure that does not comply with the legislation may not be approved.
B14: It is the council's responsibility to check its rating structure with OLG before submission to IPART.
B15: (2) All dollars are to be in nominal terms.
A19: 1 | B19: ="Table "&A1&"."&A19&": Calculation of Notional General Income - Ordinary Rates from "&'WS0 - Input data'!L58&" to "&'WS0 - Input data'!Q58&" ($ nominal)" -> Table 5.1: Calculation of Notional General Income - Ordinary Rates from 2026-27 to 2031-32 ($ nominal)
D20: ='WS0 - Input data'!L55&" ("&'WS0 - Input data'!L58&")" -> Year 2 (2026-27) | M20: ='WS0 - Input data'!M55&" ("&'WS0 - Input data'!M58&")" -> Year 3 (2027-28) | V20: ='WS0 - Input data'!N55&" ("&'WS0 - Input data'!N58&")" -> Year 4 (2028-29) | AE20: ='WS0 - Input data'!O55&" ("&'WS0 - Input data'!O58&")" -> Year 5 (2029-30) | AN20: ='WS0 - Input data'!P55&" ("&'WS0 - Input data'!P58&")" -> Year 6 (2030-31) | AW20: ='WS0 - Input data'!Q55&" ("&'WS0 - Input data'!Q58&")" -> Year 7 (2031-32)
B21: Rating Category (s514-518) | C21: Name of sub-category | D21: Number of Assessments | E21: Ad valorem rate (cents) | F21: Base Amount $ | G21: Base Amount % | H21: Minimum Amount $ | I21: Number on Minimum | J21: Land Value as at start of year $ | K21: Land Value of Land on Minimum $ | L21: Notional General Income | M21: =D21 -> Number of Assessments | N21: =E21 -> Ad valorem rate (cents) | O21: Base Amount $ | P21: Base Amount % | Q21: Minimum Amount $ | R21: Number on Minimum | S21: Land Value as at start of year $ | T21: Land Value of Land on Minimum $ | U21: Notional General Income | V21: =M21 -> Number of Assessments | W21: =N21 -> Ad valorem rate (cents) | X21: =O21 -> Base Amount $ | Y21: =P21 -> Base Amount % | Z21: =Q21 -> Minimum Amount $ | AA21: =R21 -> Number on Minimum | AB21: =S21 -> Land Value as at start of year $ | AC21: =T21 -> Land Value of Land on Minimum $ | AD21: =U21 -> Notional General Income | AE21: =V21 -> Number of Assessments | AF21: =W21 -> Ad valorem rate (cents) | AG21: =X21 -> Base Amount $ | AH21: =Y21 -> Base Amount % | AI21: =Z21 -> Minimum Amount $ | AJ21: =AA21 -> Number on Minimum | AK21: =AB21 -> Land Value as at start of year $ | AL21: =AC21 -> Land Value of Land on Minimum $ | AM21: =AD21 -> Notional General Income | AN21: =AE21 -> Number of Assessments | AO21: =AF21 -> Ad valorem rate (cents) | AP21: =AG21 -> Base Amount $ | AQ21: =AH21 -> Base Amount % | AR21: =AI21 -> Minimum Amount $ | AS21: =AJ21 -> Number on Minimum | AT21: =AK21 -> Land Value as at start of year $ | AU21: =AL21 -> Land Value of Land on Minimum $ | AV21: =AM21 -> Notional General Income | AW21: =AN21 -> Number of Assessments | AX21: =AO21 -> Ad valorem rate (cents) | AY21: =AP21 -> Base Amount $ | AZ21: =AQ21 -> Base Amount % | BA21: =AR21 -> Minimum Amount $ | BB21: =AS21 -> Number on Minimum | BC21: =AT21 -> Land Value as at start of year $ | BD21: =AU21 -> Land Value of Land on Minimum $ | BE21: =AV21 -> Notional General Income
B22: Residential | C22: =IF('WS3 - Notional General Income'!C21="","",'WS3 - Notional General Income'!C21) -> Aberdeen | D22: 818 | E22: 0.4589089803 | F22: 200 | G22: =IF(F22="",".",D22*F22/L22) -> 0.247272207 | J22: 108522400 | L22: =IF(D22="",".",IF(F22<>"",F22*D22+J22*(E22/100),(J22-K22)*(E22/100)+H22*I22)) -> 661619.0392 | M22: 818 | N22: 0.519875107 | O22: 200 | P22: =IF(O22="",".",M22*O22/U22) -> 0.2247929154 | S22: 108522400 | U22: =IF(M22="",".",IF(O22<>"",O22*M22+S22*(N22/100),(S22-T22)*(N22/100)+Q22*R22)) -> 727780.9431 | Y22: =IF(X22="",".",V22*X22/AD22) -> . | AD22: =IF(V22="",".",IF(X22<>"",X22*V22+AB22*(W22/100),(AB22-AC22)*(W22/100)+Z22*AA22)) -> . | AH22: =IF(AG22="",".",AE22*AG22/AM22) -> . | AM22: =IF(AE22="",".",IF(AG22<>"",AG22*AE22+AK22*(AF22/100),(AK22-AL22)*(AF22/100)+AI22*AJ22)) -> . | AQ22: =IF(AP22="",".",AN22*AP22/AV22) -> . | AV22: =IF(AN22="",".",IF(AP22<>"",AP22*AN22+AT22*(AO22/100),(AT22-AU22)*(AO22/100)+AR22*AS22)) -> . | AZ22: =IF(AY22="",".",AW22*AY22/BE22) -> . | BE22: =IF(AW22="",".",IF(AY22<>"",AY22*AW22+BC22*(AX22/100),(BC22-BD22)*(AX22/100)+BA22*BB22)) -> .
B23: Residential | C23: =IF('WS3 - Notional General Income'!C22="","",'WS3 - Notional General Income'!C22) -> Cassillis | D23: 49 | E23: 0.790889307 | F23: 200 | G23: =IF(F23="",".",D23*F23/L23) -> 0.2905975906 | J23: 3024900 | L23: 33723.61065 | M23: 49 | N23: 0.9023760029 | O23: 200 | P23: =IF(O23="",".",M23*O23/U23) -> 0.2641796278 | S23: 3024900 | U23: 37095.97171 | Y23: =IF(X23="",".",V23*X23/AD23) -> . | AD23: . | AH23: =IF(AG23="",".",AE23*AG23/AM23) -> . | AM23: . | AQ23: =IF(AP23="",".",AN23*AP23/AV23) -> . | AV23: . | AZ23: =IF(AY23="",".",AW23*AY23/BE23) -> . | BE23: .
B24: Residential | C24: =IF('WS3 - Notional General Income'!C23="","",'WS3 - Notional General Income'!C23) -> Merriwa | D24: 532 | E24: 0.5019545685 | F24: 200 | G24: 0.2530211838 | J24: 62579000 | L24: 420518.1494 | M24: 532 | N24: 0.5691525342 | O24: 200 | P24: 0.230019258 | S24: 62579000 | U24: 462569.9644 | Y24: . | AD24: . | AH24: . | AM24: . | AQ24: . | AV24: . | AZ24: . | BE24: .
B25: Residential | C25: =IF('WS3 - Notional General Income'!C24="","",'WS3 - Notional General Income'!C24) -> Murrurundi | D25: 500 | E25: 0.3890427844 | F25: 200 | G25: 0.2672261589 | J25: 70484500 | L25: 374214.8614 | M25: 500 | N25: 0.4421345793 | O25: 200 | P25: 0.2429328717 | S25: 70484500 | U25: 411636.3475 | Y25: . | AD25: . | AH25: . | AM25: . | AQ25: . | AV25: . | AZ25: . | BE25: .
B26: Residential | C26: =IF('WS3 - Notional General Income'!C25="","",'WS3 - Notional General Income'!C25) -> Scone | D26: 2247 | E26: 0.589810899 | F26: 200 | G26: 0.1392272015 | J26: 471069206 | L26: 3227817.519 | M26: 2247 | N26: 0.6583319884 | O26: 200 | P26: 0.1265701832 | S26: 471069206 | U26: 3550599.271 | Y26: . | AD26: . | AH26: . | AM26: . | AQ26: . | AV26: . | AZ26: . | BE26: .
B27: Residential | C27: =IF('WS3 - Notional General Income'!C26="","",'WS3 - Notional General Income'!C26) -> Ordinary | D27: 1239 | E27: 0.3598816023 | F27: 200 | G27: 0.1511629465 | J27: 386652335 | L27: 1639290.618 | M27: 1239 | N27: 0.4022786207 | O27: 200 | P27: 0.1374208604 | S27: 386652335 | U27: 1803219.68 | Y27: . | AD27: . | AH27: . | AM27: . | AQ27: . | AV27: . | AZ27: . | BE27: .
B28: Residential | C28: =IF('WS3 - Notional General Income'!C27="","",'WS3 - Notional General Income'!C27) -> Mixed Development - Aberdeen Residential | D28: 1 | E28: 0.4456381815 | F28: 100 | G28: 0.1642134903 | J28: 114210 | L28: 608.9633671 | M28: 1 | N28: 0.4989578004 | O28: 100 | P28: 0.1492849912 | S28: 114210 | U28: 669.8597038 | Y28: . | AD28: . | AH28: . | AM28: . | AQ28: . | AV28: . | AZ28: . | BE28: .
B29: Residential | C29: =IF('WS3 - Notional General Income'!C28="","",'WS3 - Notional General Income'!C28) -> Mixed Development - Merriwa Residential | D29: 2 | E29: 0.5341171193 | F29: 100 | G29: 0.376975555 | J29: 61885 | L29: 530.5383793 | M29: 2 | N29: 0.6198468405 | O29: 100 | P29: 0.34270505 | S29: 61885 | U29: 583.5922172 | Y29: . | AD29: . | AH29: . | AM29: . | AQ29: . | AV29: . | AZ29: . | BE29: .
B30: Residential | C30: =IF('WS3 - Notional General Income'!C29="","",'WS3 - Notional General Income'!C29) -> Mixed Development - Murrurundi Residential | D30: 1 | E30: 0.3936752295 | F30: 100 | G30: 0.293994956 | J30: 61000 | L30: 340.14189 | M30: 1 | N30: 0.4494361951 | O30: 100 | P30: 0.2672681419 | S30: 61000 | U30: 374.156079 | Y30: . | AD30: . | AH30: . | AM30: . | AQ30: . | AV30: . | AZ30: . | BE30: .
B31: Residential | C31: =IF('WS3 - Notional General Income'!C30="","",'WS3 - Notional General Income'!C30) ->  | G31: . | L31: . | P31: . | U31: . | Y31: . | AD31: . | AH31: . | AM31: . | AQ31: . | AV31: . | AZ31: . | BE31: .
C32: Total Residential | D32: =SUM(D22:D31) -> 5389 | I32: =SUM(I22:I31) -> 0 | J32: =SUM(J22:J31) -> 1102569436 | K32: =SUM(K22:K31) -> 0 | L32: =SUM(L22:L31) -> 6358663.442 | M32: =SUM(M22:M31) -> 5389 | R32: =SUM(R22:R31) -> 0 | S32: =SUM(S22:S31) -> 1102569436 | T32: =SUM(T22:T31) -> 0 | U32: =SUM(U22:U31) -> 6994529.786 | V32: =SUM(V22:V31) -> 0 | AA32: =SUM(AA22:AA31) -> 0 | AB32: =SUM(AB22:AB31) -> 0 | AC32: =SUM(AC22:AC31) -> 0 | AD32: =SUM(AD22:AD31) -> 0 | AE32: =SUM(AE22:AE31) -> 0 | AJ32: =SUM(AJ22:AJ31) -> 0 | AK32: =SUM(AK22:AK31) -> 0 | AL32: =SUM(AL22:AL31) -> 0 | AM32: =SUM(AM22:AM31) -> 0 | AN32: =SUM(AN22:AN31) -> 0 | AS32: =SUM(AS22:AS31) -> 0 | AT32: =SUM(AT22:AT31) -> 0 | AU32: =SUM(AU22:AU31) -> 0 | AV32: =SUM(AV22:AV31) -> 0 | AW32: =SUM(AW22:AW31) -> 0 | BB32: =SUM(BB22:BB31) -> 0 | BC32: =SUM(BC22:BC31) -> 0 | BD32: =SUM(BD22:BD31) -> 0 | BE32: =SUM(BE22:BE31) -> 0
B33: Business | C33: =IF('WS3 - Notional General Income'!C32="","",'WS3 - Notional General Income'!C32) -> Aberdeen | D33: 38 | E33: 0.5953802066 | F33: 200 | G33: 0.1337167163 | J33: 8269770 | L33: =IF(D33="",".",IF(F33<>"",F33*D33+J33*(E33/100),(J33-K33)*(E33/100)+H33*I33)) -> 56836.57371 | M33: 38 | N33: 0.6641083257 | O33: 200 | P33: =IF(O33="",".",M33*O33/U33) -> 0.1215606511 | S33: 8269770 | U33: 62520.23109 | Y33: =IF(X33="",".",V33*X33/AD33) -> . | AD33: =IF(V33="",".",IF(X33<>"",X33*V33+AB33*(W33/100),(AB33-AC33)*(W33/100)+Z33*AA33)) -> . | AH33: =IF(AG33="",".",AE33*AG33/AM33) -> . | AM33: =IF(AE33="",".",IF(AG33<>"",AG33*AE33+AK33*(AF33/100),(AK33-AL33)*(AF33/100)+AI33*AJ33)) -> . | AQ33: =IF(AP33="",".",AN33*AP33/AV33) -> . | AV33: =IF(AN33="",".",IF(AP33<>"",AP33*AN33+AT33*(AO33/100),(AT33-AU33)*(AO33/100)+AR33*AS33)) -> . | AZ33: =IF(AY33="",".",AW33*AY33/BE33) -> . | BE33: =IF(AW33="",".",IF(AY33<>"",AY33*AW33+BC33*(AX33/100),(BC33-BD33)*(AX33/100)+BA33*BB33)) -> .
B34: Business | C34: =IF('WS3 - Notional General Income'!C33="","",'WS3 - Notional General Income'!C33) -> Merriwa | D34: 59 | E34: 0.6119606173 | F34: 200 | G34: 0.204795222 | J34: 7487170 | L34: 57618.53175 | M34: 59 | N34: 0.688916973 | O34: 200 | P34: 0.1861774745 | S34: 7487170 | U34: 63380.38492 | Y34: . | AD34: . | AH34: . | AM34: . | AQ34: . | AV34: . | AZ34: . | BE34: .
B35: Business | C35: =IF('WS3 - Notional General Income'!C34="","",'WS3 - Notional General Income'!C34) -> Murrurundi | D35: 37 | E35: 0.4403466994 | F35: 200 | G35: 0.1674667189 | J35: 8354300 | L35: 44187.88431 | M35: 37 | N35: 0.4932390833 | O35: 200 | P35: 0.1522424717 | S35: 8354300 | U35: 48606.67274 | Y35: . | AD35: . | AH35: . | AM35: . | AQ35: . | AV35: . | AZ35: . | BE35: .
B36: Business | C36: =IF('WS3 - Notional General Income'!C35="","",'WS3 - Notional General Income'!C35) -> Scone | D36: 266 | E36: 0.8106181128 | F36: 200 | G36: 0.09098983243 | J36: 65564870 | L36: 584680.7119 | M36: 266 | N36: 0.8997940255 | O36: 200 | P36: 0.08271802948 | S36: 65564870 | U36: 643148.7831 | Y36: . | AD36: . | AH36: . | AM36: . | AQ36: . | AV36: . | AZ36: . | BE36: .
B37: Business | C37: =IF('WS3 - Notional General Income'!C36="","",'WS3 - Notional General Income'!C36) -> Ordinary | D37: 333 | E37: 0.3522529895 | F37: 200 | G37: 0.2086414161 | J37: 71712083 | L37: 319207.9562 | M37: 333 | N37: 0.3967654263 | O37: 200 | P37: 0.1896740146 | S37: 71712083 | U37: 351128.7518 | Y37: . | AD37: . | AH37: . | AM37: . | AQ37: . | AV37: . | AZ37: . | BE37: .
B38: Business | C38: =IF('WS3 - Notional General Income'!C37="","",'WS3 - Notional General Income'!C37) -> Mixed Development - Aberdeen Residential | D38: 1 | E38: 0.5923866138 | F38: 100 | G38: 0.115883621 | J38: 128790 | L38: 862.9347199 | M38: 1 | N38: 0.6593898532 | O38: 100 | P38: 0.1053487463 | S38: 128790 | U38: 949.2281919 | Y38: . | AD38: . | AH38: . | AM38: . | AQ38: . | AV38: . | AZ38: . | BE38: .
B39: Business | C39: =IF('WS3 - Notional General Income'!C38="","",'WS3 - Notional General Income'!C38) -> Mixed Development - Merriwa Residential | D39: 2 | E39: 0.6367032894 | F39: 100 | G39: 0.3019587641 | J39: 72615 | L39: 662.3420936 | M39: 2 | N39: 0.7279161371 | O39: 100 | P39: 0.2745079674 | S39: 72615 | U39: 728.576303 | Y39: . | AD39: . | AH39: . | AM39: . | AQ39: . | AV39: . | AZ39: . | BE39: .
B40: Business | C40: =IF('WS3 - Notional General Income'!C39="","",'WS3 - Notional General Income'!C39) -> Mixed Development - Murrurundi Residential | D40: 1 | E40: 0.4561717295 | F40: 100 | G40: 0.2643651006 | J40: 61000 | L40: 378.264755 | M40: 1 | N40: 0.5181823451 | O40: 100 | P40: 0.2403319096 | S40: 61000 | U40: 416.0912305 | Y40: . | AD40: . | AH40: . | AM40: . | AQ40: . | AV40: . | AZ40: . | BE40: .
B41: Business | C41: =IF('WS3 - Notional General Income'!C40="","",'WS3 - Notional General Income'!C40) ->  | G41: . | L41: . | P41: . | U41: . | Y41: . | AD41: . | AH41: . | AM41: . | AQ41: . | AV41: . | AZ41: . | BE41: .
C42: Total Business | D42: =SUM(D33:D41) -> 737 | I42: =SUM(I33:I41) -> 0 | J42: =SUM(J33:J41) -> 161650598 | K42: =SUM(K33:K41) -> 0 | L42: =SUM(L33:L41) -> 1064435.199 | M42: =SUM(M33:M41) -> 737 | Q42: =SUM(Q33:Q41) -> 0 | R42: 0 | S42: 161650598 | T42: 0 | U42: 1170878.719 | V42: 0 | Z42: =SUM(Z33:Z41) -> 0 | AA42: 0 | AB42: 0 | AC42: 0 | AD42: 0 | AE42: 0 | AI42: =SUM(AI33:AI41) -> 0 | AJ42: 0 | AK42: 0 | AL42: 0 | AM42: 0 | AN42: 0 | AR42: =SUM(AR33:AR41) -> 0 | AS42: 0 | AT42: 0 | AU42: 0 | AV42: 0 | AW42: 0 | BA42: =SUM(BA33:BA41) -> 0 | BB42: =SUM(BB33:BB41) -> 0 | BC42: =SUM(BC33:BC41) -> 0 | BD42: =SUM(BD33:BD41) -> 0 | BE42: =SUM(BE33:BE41) -> 0
B43: Farmland | C43: =IF('WS3 - Notional General Income'!C42="","",'WS3 - Notional General Income'!C42) ->  | D43: 1606 | E43: 0.2593879893 | F43: 100 | G43: =IF(F43="",".",D43*F43/L43) -> 0.01981883122 | J43: 3062132605 | L43: =IF(D43="",".",IF(F43<>"",F43*D43+J43*(E43/100),(J43-K43)*(E43/100)+H43*I43)) -> 8103404.193 | M43: 1606 | N43: 0.2858512593 | O43: 100 | P43: =IF(O43="",".",M43*O43/U43) -> 0.01801711929 | S43: 3062132605 | U43: =IF(M43="",".",IF(O43<>"",O43*M43+S43*(N43/100),(S43-T43)*(N43/100)+Q43*R43)) -> 8913744.612 | Y43: =IF(X43="",".",V43*X43/AD43) -> . | AD43: =IF(V43="",".",IF(X43<>"",X43*V43+AB43*(W43/100),(AB43-AC43)*(W43/100)+Z43*AA43)) -> . | AH43: =IF(AG43="",".",AE43*AG43/AM43) -> . | AM43: =IF(AE43="",".",IF(AG43<>"",AG43*AE43+AK43*(AF43/100),(AK43-AL43)*(AF43/100)+AI43*AJ43)) -> . | AQ43: =IF(AP43="",".",AN43*AP43/AV43) -> . | AV43: =IF(AN43="",".",IF(AP43<>"",AP43*AN43+AT43*(AO43/100),(AT43-AU43)*(AO43/100)+AR43*AS43)) -> . | AZ43: =IF(AY43="",".",AW43*AY43/BE43) -> . | BE43: =IF(AW43="",".",IF(AY43<>"",AY43*AW43+BC43*(AX43/100),(BC43-BD43)*(AX43/100)+BA43*BB43)) -> .
B44: Farmland | C44: =IF('WS3 - Notional General Income'!C43="","",'WS3 - Notional General Income'!C43) ->  | G44: . | L44: . | P44: =IF(O44="",".",M44*O44/U44) -> . | U44: =IF(M44="",".",IF(O44<>"",O44*M44+S44*(N44/100),(S44-T44)*(N44/100)+Q44*R44)) -> . | Y44: . | AD44: . | AH44: . | AM44: . | AQ44: . | AV44: . | AZ44: . | BE44: .
C45: Total Farmland | D45: =SUM(D43:D44) -> 1606 | I45: =SUM(I43:I44) -> 0 | J45: =SUM(J43:J44) -> 3062132605 | K45: =SUM(K43:K44) -> 0 | L45: =SUM(L43:L44) -> 8103404.193 | M45: =SUM(M43:M44) -> 1606 | Q45: =SUM(Q43:Q44) -> 0 | R45: 0 | S45: 3062132605 | T45: 0 | U45: 8913744.612 | V45: 0 | AB45: =SUM(AB43:AB44) -> 0 | AC45: =SUM(AC43:AC44) -> 0 | AD45: =SUM(AD43:AD44) -> 0 | AE45: =SUM(AE43:AE44) -> 0 | AI45: =SUM(AI43:AI44) -> 0 | AJ45: 0 | AK45: 0 | AL45: 0 | AM45: 0 | AN45: 0 | AR45: =SUM(AR43:AR44) -> 0 | AS45: 0 | AT45: 0 | AU45: 0 | AV45: 0 | AW45: 0 | BA45: =SUM(BA43:BA44) -> 0 | BB45: =SUM(BB43:BB44) -> 0 | BC45: =SUM(BC43:BC44) -> 0 | BD45: =SUM(BD43:BD44) -> 0 | BE45: =SUM(BE43:BE44) -> 0
B46: Mining | C46: =IF('WS3 - Notional General Income'!C45="","",'WS3 - Notional General Income'!C45) ->  | D46: 1 | E46: 0.7200032739 | F46: 200 | G46: =IF(F46="",".",D46*F46/L46) -> 0.00115127269 | J46: 24100000 | L46: =IF(D46="",".",IF(F46<>"",F46*D46+J46*(E46/100),(J46-K46)*(E46/100)+H46*I46)) -> 173720.789 | M46: 1 | N46: 0.7920865888 | O46: 200 | P46: =IF(O46="",".",M46*O46/U46) -> 0.001046611536 | S46: 24100000 | U46: =IF(M46="",".",IF(O46<>"",O46*M46+S46*(N46/100),(S46-T46)*(N46/100)+Q46*R46)) -> 191092.8679 | Y46: =IF(X46="",".",V46*X46/AD46) -> . | AD46: =IF(V46="",".",IF(X46<>"",X46*V46+AB46*(W46/100),(AB46-AC46)*(W46/100)+Z46*AA46)) -> . | AH46: =IF(AG46="",".",AE46*AG46/AM46) -> . | AM46: =IF(AE46="",".",IF(AG46<>"",AG46*AE46+AK46*(AF46/100),(AK46-AL46)*(AF46/100)+AI46*AJ46)) -> . | AQ46: =IF(AP46="",".",AN46*AP46/AV46) -> . | AV46: =IF(AN46="",".",IF(AP46<>"",AP46*AN46+AT46*(AO46/100),(AT46-AU46)*(AO46/100)+AR46*AS46)) -> . | AZ46: =IF(AY46="",".",AW46*AY46/BE46) -> . | BE46: =IF(AW46="",".",IF(AY46<>"",AY46*AW46+BC46*(AX46/100),(BC46-BD46)*(AX46/100)+BA46*BB46)) -> .
B47: Mining | C47: =IF('WS3 - Notional General Income'!C46="","",'WS3 - Notional General Income'!C46) ->  | G47: . | L47: . | P47: =IF(O47="",".",M47*O47/U47) -> . | U47: =IF(M47="",".",IF(O47<>"",O47*M47+S47*(N47/100),(S47-T47)*(N47/100)+Q47*R47)) -> . | Y47: . | AD47: . | AH47: . | AM47: . | AQ47: . | AV47: . | AZ47: . | BE47: .
C48: Total Mining | D48: =SUM(D46:D47) -> 1 | I48: =SUM(I46:I47) -> 0 | J48: =SUM(J46:J47) -> 24100000 | K48: =SUM(K46:K47) -> 0 | L48: =SUM(L46:L47) -> 173720.789 | M48: =SUM(M46:M47) -> 1 | R48: =SUM(R46:R47) -> 0 | S48: =SUM(S46:S47) -> 24100000 | T48: =SUM(T46:T47) -> 0 | U48: =SUM(U46:U47) -> 191092.8679 | V48: =SUM(V46:V47) -> 0 | AA48: =SUM(AA46:AA47) -> 0 | AB48: =SUM(AB46:AB47) -> 0 | AC48: =SUM(AC46:AC47) -> 0 | AD48: =SUM(AD46:AD47) -> 0 | AE48: =SUM(AE46:AE47) -> 0 | AJ48: =SUM(AJ46:AJ47) -> 0 | AK48: =SUM(AK46:AK47) -> 0 | AL48: =SUM(AL46:AL47) -> 0 | AM48: =SUM(AM46:AM47) -> 0 | AN48: =SUM(AN46:AN47) -> 0 | AS48: =SUM(AS46:AS47) -> 0 | AT48: =SUM(AT46:AT47) -> 0 | AU48: =SUM(AU46:AU47) -> 0 | AV48: =SUM(AV46:AV47) -> 0 | AW48: =SUM(AW46:AW47) -> 0 | BB48: =SUM(BB46:BB47) -> 0 | BC48: =SUM(BC46:BC47) -> 0 | BD48: =SUM(BD46:BD47) -> 0 | BE48: =SUM(BE46:BE47) -> 0
B49: Total Assessments: | D49: =D32+D42+D45+D48 -> 7733 | G49: Total Rateable Land Value: | J49: =J32+J42+J45+J48 -> 4350452639 | K49: Sub-Total: | L49: =L32+L42+L45+L48 -> 15700223.62 | M49: =M32+M42+M45+M48 -> 7733 | P49: Total Rateable Land Value: | S49: =S32+S42+S45+S48 -> 4350452639 | T49: Sub-Total: | U49: =U32+U42+U45+U48 -> 17270245.99 | V49: =V32+V42+V45+V48 -> 0 | Y49: Total Rateable Land Value: | AB49: =AB32+AB42+AB45+AB48 -> 0 | AC49: Sub-Total: | AD49: =AD32+AD42+AD45+AD48 -> 0 | AE49: =AE32+AE42+AE45+AE48 -> 0 | AH49: Total Rateable Land Value: | AK49: =AK32+AK42+AK45+AK48 -> 0 | AL49: Sub-Total: | AM49: =AM32+AM42+AM45+AM48 -> 0 | AN49: =AN32+AN42+AN45+AN48 -> 0 | AQ49: Total Rateable Land Value: | AT49: =AT32+AT42+AT45+AT48 -> 0 | AU49: Sub-Total: | AV49: =AV32+AV42+AV45+AV48 -> 0 | AW49: =AW32+AW42+AW45+AW48 -> 0 | AZ49: Total Rateable Land Value: | BC49: =BC32+BC42+BC45+BC48 -> 0 | BD49: Sub-Total: | BE49: =BE32+BE42+BE45+BE48 -> 0
A53: =A19+1 -> 2 | B53: ="Table "&A1&"."&A53&": Calculation of Notional General Income - Special Rates from "&'WS0 - Input data'!L58&" to "&'WS0 - Input data'!Q58&" ($ nominal)" -> Table 5.2: Calculation of Notional General Income - Special Rates from 2026-27 to 2031-32 ($ nominal)
D54: =D20 -> Year 2 (2026-27) | M54: =M20 -> Year 3 (2027-28) | V54: =V20 -> Year 4 (2028-29) | AE54: =AE20 -> Year 5 (2029-30) | AN54: =AN20 -> Year 6 (2030-31) | AW54: =AW20 -> Year 7 (2031-32)
B55: Rating Category (s514-518) | C55: Name of special rate | D55: Number of Assessments | E55: Ad Valorem Rate | F55: Base Amount $ | G55: Base Amount % | H55: Minimum Amount $ | I55: Number on Minimum | J55: Land Value as at start of year | K55: Land Value of Land on Minimum | L55: Notional Income | M55: Number of Assessments | N55: Ad Valorem Rate | O55: Base Amount $ | P55: Base Amount % | Q55: Minimum Amount $ | R55: Number on Minimum | S55: Land Value as at start of year | T55: Land Value of Land on Minimum | U55: Notional Income | V55: Number of Assessments | W55: Ad Valorem Rate | X55: Base Amount $ | Y55: Base Amount % | Z55: Minimum Amount $ | AA55: Number on Minimum | AB55: Land Value as at start of year | AC55: Land Value of Land on Minimum | AD55: Notional Income | AE55: Number of Assessments | AF55: Ad Valorem Rate | AG55: Base Amount $ | AH55: Base Amount % | AI55: Minimum Amount $ | AJ55: Number on Minimum | AK55: Land Value as at start of year | AL55: Land Value of Land on Minimum | AM55: Notional Income | AN55: Number of Assessments | AO55: Ad Valorem Rate | AP55: Base Amount $ | AQ55: Base Amount % | AR55: Minimum Amount $ | AS55: Number on Minimum | AT55: Land Value as at start of year | AU55: Land Value of Land on Minimum | AV55: Notional Income | AW55: Number of Assessments | AX55: Ad Valorem Rate | AY55: Base Amount $ | AZ55: Base Amount % | BA55: Minimum Amount $ | BB55: Number on Minimum | BC55: Land Value as at start of year | BD55: Land Value of Land on Minimum | BE55: Notional Income
B56: Residential | C56: =IF('WS3 - Notional General Income'!C54="","",'WS3 - Notional General Income'!C54) ->  | G56: =IF(F56="",".",D56*F56/L56) -> . | L56: =IF(D56="",".",IF(F56<>"",F56*D56+J56*(E56/100),(J56-K56)*(E56/100)+H56*I56)) -> . | P56: =IF(O56="",".",M56*O56/U56) -> . | U56: =IF(M56="",".",IF(O56<>"",O56*M56+S56*(N56/100),(S56-T56)*(N56/100)+Q56*R56)) -> . | Y56: =IF(X56="",".",V56*X56/AD56) -> . | AD56: =IF(V56="",".",IF(X56<>"",X56*V56+AB56*(W56/100),(AB56-AC56)*(W56/100)+Z56*AA56)) -> . | AH56: =IF(AG56="",".",AE56*AG56/AM56) -> . | AM56: =IF(AE56="",".",IF(AG56<>"",AG56*AE56+AK56*(AF56/100),(AK56-AL56)*(AF56/100)+AI56*AJ56)) -> . | AQ56: =IF(AP56="",".",AN56*AP56/AV56) -> . | AV56: =IF(AN56="",".",IF(AP56<>"",AP56*AN56+AT56*(AO56/100),(AT56-AU56)*(AO56/100)+AR56*AS56)) -> . | AZ56: =IF(AY56="",".",AW56*AY56/BE56) -> . | BE56: =IF(AW56="",".",IF(AY56<>"",AY56*AW56+BC56*(AX56/100),(BC56-BD56)*(AX56/100)+BA56*BB56)) -> .
B57: Residential | C57: =IF('WS3 - Notional General Income'!C55="","",'WS3 - Notional General Income'!C55) ->  | G57: . | L57: . | P57: . | U57: . | Y57: . | AD57: . | AH57: . | AM57: . | AQ57: . | AV57: . | AZ57: . | BE57: .
B58: Business | C58: =IF('WS3 - Notional General Income'!C56="","",'WS3 - Notional General Income'!C56) ->  | G58: . | L58: . | P58: . | U58: . | Y58: . | AD58: . | AH58: . | AM58: . | AQ58: . | AV58: . | AZ58: . | BE58: .
B59: Business | C59: =IF('WS3 - Notional General Income'!C57="","",'WS3 - Notional General Income'!C57) ->  | G59: . | L59: . | P59: . | U59: . | Y59: . | AD59: . | AH59: . | AM59: . | AQ59: . | AV59: . | AZ59: . | BE59: .
B60: Farmland | C60: =IF('WS3 - Notional General Income'!C58="","",'WS3 - Notional General Income'!C58) ->  | G60: . | L60: . | P60: . | U60: . | Y60: . | AD60: . | AH60: . | AM60: . | AQ60: . | AV60: . | AZ60: . | BE60: .
B61: Farmland | C61: =IF('WS3 - Notional General Income'!C59="","",'WS3 - Notional General Income'!C59) ->  | G61: . | L61: . | P61: . | U61: . | Y61: . | AD61: . | AH61: . | AM61: . | AQ61: . | AV61: . | AZ61: . | BE61: .
B62: Mining | C62: =IF('WS3 - Notional General Income'!C60="","",'WS3 - Notional General Income'!C60) ->  | G62: . | L62: . | P62: . | U62: . | Y62: . | AD62: . | AH62: . | AM62: . | AQ62: . | AV62: . | AZ62: . | BE62: .
B63: Mining | C63: =IF('WS3 - Notional General Income'!C61="","",'WS3 - Notional General Income'!C61) ->  | G63: . | L63: . | P63: . | U63: . | Y63: . | AD63: . | AH63: . | AM63: . | AQ63: . | AV63: . | AZ63: . | BE63: .
K64: Sub-Total: | L64: =SUM(L56:L63) -> 0 | T64: Sub-Total: | U64: =SUM(U56:U63) -> 0 | AC64: Sub-Total: | AD64: =SUM(AD56:AD63) -> 0 | AL64: Sub-Total: | AM64: =SUM(AM56:AM63) -> 0 | AU64: Sub-Total: | AV64: =SUM(AV56:AV63) -> 0 | BD64: Sub-Total: | BE64: =SUM(BE56:BE63) -> 0
A68: =A53+1 -> 3 | B68: ="Table "&A1&"."&A68&": Calculation of Notional General Income - Annual Charges from "&'WS0 - Input data'!L58&" to "&'WS0 - Input data'!Q58&" ($ nominal)" -> Table 5.3: Calculation of Notional General Income - Annual Charges from 2026-27 to 2031-32 ($ nominal)
D69: =D54 -> Year 2 (2026-27) | M69: =M54 -> Year 3 (2027-28) | V69: =V54 -> Year 4 (2028-29) | AE69: =AE54 -> Year 5 (2029-30) | AN69: =AN54 -> Year 6 (2030-31) | AW69: =AW54 -> Year 7 (2031-32)
B70: Annual Charges (excluding water supply, sewerage and domestic and non-domestic waste management services) | J70: Number of Assessments | K70: Amount of Charge $ | L70: Notional Income | S70: Number of Assessments | T70: Amount of Charge $ | U70: Notional Income | AB70: Number of Assessments | AC70: Amount of Charge $ | AD70: Notional Income | AK70: Number of Assessments | AL70: Amount of Charge $ | AM70: Notional Income | AT70: Number of Assessments | AU70: Amount of Charge $ | AV70: Notional Income | BC70: Number of Assessments | BD70: Amount of Charge $ | BE70: Notional Income
L71: =IF(B71="",".",J71*K71) -> . | U71: =IF(B71="",".",S71*T71) -> . | AD71: =IF(B71="",".",AB71*AC71) -> . | AM71: =IF(B71="",".",AK71*AL71) -> . | AV71: =IF(B71="",".",AT71*AU71) -> . | BE71: =IF(B71="",".",BC71*BD71) -> .
L72: . | U72: =IF(B72="",".",S72*T72) -> . | AD72: =IF(B72="",".",AB72*AC72) -> . | AM72: =IF(B72="",".",AK72*AL72) -> . | AV72: =IF(B72="",".",AT72*AU72) -> . | BE72: =IF(B72="",".",BC72*BD72) -> .
L73: . | U73: . | AD73: . | AM73: . | AV73: . | BE73: .
L74: . | U74: . | AD74: . | AM74: . | AV74: . | BE74: .
L75: . | U75: . | AD75: . | AM75: . | AV75: . | BE75: .
L76: . | U76: . | AD76: . | AM76: . | AV76: . | BE76: .
L77: . | U77: . | AD77: . | AM77: . | AV77: . | BE77: .
L78: . | U78: . | AD78: . | AM78: . | AV78: . | BE78: .
K79: Sub-Total: | L79: =SUM(L71:L78) -> 0 | T79: Sub-Total: | U79: =SUM(U71:U78) -> 0 | AC79: Sub-Total: | AD79: =SUM(AD71:AD78) -> 0 | AL79: Sub-Total: | AM79: =SUM(AM71:AM78) -> 0 | AU79: Sub-Total: | AV79: =SUM(AV71:AV78) -> 0 | BD79: Sub-Total: | BE79: =SUM(BE71:BE78) -> 0
F82: Total Notional General Income | L82: =L49+L64+L79 -> 15700223.62 | O82: Total Notional General Income | U82: =U49+U64+U79 -> 17270245.99 | X82: Total Notional General Income | AD82: =AD49+AD64+AD79 -> 0 | AG82: Total Notional General Income | AM82: =AM49+AM64+AM79 -> 0 | AP82: Total Notional General Income | AV82: =AV49+AV64+AV79 -> 0 | AY82: Total Notional General Income | BE82: =BE49+BE64+BE79 -> 0
F84: LESS: Valuation Objection Income | O84: LESS: Valuation Objection Income | X84: LESS: Valuation Objection Income | AG84: LESS: Valuation Objection Income | AP84: LESS: Valuation Objection Income | AY84: LESS: Valuation Objection Income
F86: NET Notional General Income | L86: =L82+L84 -> 15700223.62 | O86: NET Notional General Income | U86: =U82+U84 -> 17270245.99 | X86: NET Notional General Income | AD86: =AD82+AD84 -> 0 | AG86: NET Notional General Income | AM86: =AM82+AM84 -> 0 | AP86: NET Notional General Income | AV86: =AV82+AV84 -> 0 | AY86: NET Notional General Income | BE86: =BE82+BE84 -> 0
B88: Note: Section 505(a) of the Act provides for those rates and charges that are to be included in general income, including certain section 501 annual charges.

Sheet WS6 - PGI summary
A1: 6
B2: ='WS1-Application'!B2 -> APPLICATION FOR SPECIAL VARIATION - UPPER HUNTER SHIRE COUNCIL
B4: ="WORKSHEET "&A1&": PERMISSIBLE GENERAL INCOME SUMMARY FOR "&'WS0 - Input data'!D45 -> WORKSHEET 6: PERMISSIBLE GENERAL INCOME SUMMARY FOR 2025-26
B7: Instructions and notes
B8: This worksheet calculates Permissible General Income and the value of the proposed SV after taking into account various adjustments. Income adjustments and expiring SV amounts are to be verified by OLG before the application is submitted to us.
B10: (1) NO INPUTS ARE REQUIRED IN THIS WORKSHEET. See an example of PGI calculation for year 1 below.
B11: (2) Please check all income adjustments and expiring variation amounts with OLG before submitting the application.
B12: (3) PGI estimates for years beyond proposed and/or exisiting SV period shown in light grey font. PGI beyond a temporary SV period = 0
B13: (4) The calculations do not account for situations where a temporary SV expires and the council wants an SV to commence within the period the temporary SV is in place. If this applies to your council, please contact IPART.
B16: Example of PGI calculation for Year 1
B18: XYZ Council
B20: ="PERMISSIBLE GENERAL INCOME SUMMARY FOR "&'WS0 - Input data'!K58 -> PERMISSIBLE GENERAL INCOME SUMMARY FOR 2025-26
B21: All dollars in nominal terms
B22: Please check all income adjustments and expiring variation amounts with OLG before submitting the application.
G23: 20000000
B25: Prior year Notional General Income | D25: ='WS0 - Input data'!$C$62 -> $ nominal | K25: 20000000
B26: Less: Expiry of a prior special variation (1) | D26: ='WS0 - Input data'!$C$62 -> $ nominal | K26: 10000
B28: Adjusted first year Notional General Income | D28: ='WS0 - Input data'!$C$62 -> $ nominal | K28: =K25-K26 -> 19990000
B30: Plus: Rate peg increase - first year | D30: % | J30: 0.023 | K30: =ROUND(K28*J30,9) -> 459770
B31: Plus: Additional increase - first year (2) | D31: % | J31: 0.037 | K31: =ROUND(K28*J31,9) -> 739630
B32: Plus: Crown Land adjustment - first year (3) | D32: % | J32: 0.000638253745 | K32: 10000
D33: %
B34: Total special variation - first year | J34: =SUM(J30:J32) -> 0.06063825375 | K34: =SUM(K30:K32) -> 1209400
B36: Other First Year Adjustments: (4)
B37: Plus/Minus: Prior year Catch-up/(Excess) | D37: ='WS0 - Input data'!$C$62 -> $ nominal | K37: -5000
B38: Minus: Valuation Objections claimed in prior year | D38: ='WS0 - Input data'!$C$62 -> $ nominal | K38: -30
B40: Total Adjustments | D40: ='WS0 - Input data'!$C$62 -> $ nominal | K40: =SUM(K37:K38) -> -5030
B42: First year Permissible General Income | D42: ='WS0 - Input data'!$C$62 -> $ nominal | K42: =K28+K34+K40 -> 21194370
B45: ="(1) If the council has a SV due to expire on 30 June "&'WS0 - Input data'!$K$57&", Notional General Income must be reduced before "&"calculating Permissible General Income in "&'WS0 - Input data'!$K$58&"." -> (1) If the council has a SV due to expire on 30 June 2025, Notional General Income must be reduced before calculating Permissible General Income in 2025-26.
B46: (2) This is the additional percentage increase being sought above the rate peg, excluding any other income adjustments.
B47: (3) Crown land claims will increase Permissible General Income. The $ amount of any Crown land adjustment is converted into a % amount to be included in the final special variation for consideration by IPART.
B48: (4) Other adjustments
B49: There are two other possible adjustments that are not included in the proposed SV % but will affect Permissible General Income:
B50: a. Prior year results: this is the catch up or excess amount from the previous year, as advised by OLG.
B51: b. Valuation objections: if you successfully claimed valuation objections in the previous year, Permissible General Income must be reduced to remove the extra income claimed from the revenue base.
A55: 1 | B55: ="Table "&A1&"."&A55&": Calculation of first year Permissble General Income ($ nominal)" -> Table 6.1: Calculation of first year Permissble General Income ($ nominal)
D56: Units | K56: ='WS0 - Input data'!K$58 -> 2025-26 | M56: check = 0
B57: Prior year Notional General Income | D57: ='WS0 - Input data'!$C$62 -> $ nominal | K57: ='WS3 - Notional General Income'!L75 -> 12975391.42 | M57: =IF(K57=0,0,K57-K85) -> 0
B58: Less: Expiry of a prior special variation | D58: =$D$57 -> $ nominal | K58: ='WS2-Proposal'!J92 -> 0 | M58: =IF(K58=0,0,K58-K86) -> 0
B59: Adjusted first year Notional General Income | D59: =$D$57 -> $ nominal | K59: =K57-K58 -> 12975391.42
B61: Plus: Rate peg - first year | D61: % | J61: ='WS2-Proposal'!K80 -> 0.043 | K61: =K$59*J61 -> 557941.8312 | M61: =IF(K61=0,0,K61-K89) -> 0
B62: ="Plus: "&CHOOSE('WS2-Proposal'!$W$41,"Existing SV above rate peg - first year","na") -> Plus: na | D62: % | J62: ='WS2-Proposal'!K81 -> 0 | K62: =K$59*J62 -> 0
B63: ="Plus: "&CHOOSE('WS2-Proposal'!$W$66,"Additional increase that is temporary - first year","Additional increase - first year") -> Plus: Additional increase - first year | D63: % | J63: ='WS2-Proposal'!K82 -> 0.057 | K63: =K$59*J63 -> 739597.3112 | M63: =IF(K63=0,0,K63-K91) -> 0
B64: ="Plus: "&CHOOSE('WS2-Proposal'!$W$66,"Additional increase that is permanent - first year","na") -> Plus: na | D64: % | J64: ='WS2-Proposal'!K83 -> 0 | K64: =K$59*J64 -> 0
B65: Plus: Crown Land adjustment - first year | D65: % | J65: =IF(K59=0,0,K65/K59) -> 0 | K65: ='WS2-Proposal'!K49 -> 0 | M65: =IF(K65=0,0,K65-K93) -> 0
B67: Total special variation - first year | D67: % | J67: =SUM(J61:J65) -> 0.1 | K67: =K59*J67 -> 1297539.142 | M67: =IF(K67=0,0,K67-K94) -> 0
M68: =SUM(K61:K65)-K67 -> 0
B69: Other First Year Adjustments:
B70: Plus/Minus: Prior year Catch-up/(Excess) | D70: =D59 -> $ nominal | K70: ='WS2-Proposal'!K50 -> 0
B71: Minus: Valuation Objections claimed in prior year | D71: =D59 -> $ nominal | K71: =-'WS2-Proposal'!K51 -> 0
B72: Total Adjustments | D72: =D71 -> $ nominal | K72: =K70+K71 -> 0 | M72: =K72-K97 -> 0
B74: First year Permissible General Income | D74: =D59 -> $ nominal | K74: =K59+K67+K72 -> 14272930.57 | M74: =IF(K74=0,0,K74-K98) -> 0
A78: =A55+1 -> 2 | B78: ="Table " &A1&"."&A78&": Calculation of PGI with proposed SV, rate peg and renewal of expiring SV ($ nominal)" -> Table 6.2: Calculation of PGI with proposed SV, rate peg and renewal of expiring SV ($ nominal)
J79: ='WS0 - Input data'!J$55 -> Year 0 | K79: ='WS0 - Input data'!K$55 -> Year 1 | L79: ='WS0 - Input data'!L$55 -> Year 2 | M79: ='WS0 - Input data'!M$55 -> Year 3 | N79: ='WS0 - Input data'!N$55 -> Year 4 | O79: ='WS0 - Input data'!O$55 -> Year 5 | P79: ='WS0 - Input data'!P$55 -> Year 6 | Q79: ='WS0 - Input data'!Q$55 -> Year 7 | R79: Total increase
B80: ='WS0 - Input data'!B$58 -> Financial year | D80: Units | J80: ='WS0 - Input data'!J$58 -> 2024-25 | K80: ='WS0 - Input data'!K$58 -> 2025-26 | L80: ='WS0 - Input data'!L$58 -> 2026-27 | M80: ='WS0 - Input data'!M$58 -> 2027-28 | N80: ='WS0 - Input data'!N$58 -> 2028-29 | O80: ='WS0 - Input data'!O$58 -> 2029-30 | P80: ='WS0 - Input data'!P$58 -> 2030-31 | Q80: ='WS0 - Input data'!Q$58 -> 2031-32 | R80: =D85 -> $ nominal | S80: %
K81: =IF('WS2-Proposal'!K74=1,"Proposed SV period",IF(AND('WS2-Proposal'!K74=0,'WS2-Proposal'!K77>0),"Existing SV period","no SV")) -> Proposed SV period | L81: =IF('WS2-Proposal'!L74=1,"Proposed SV period",IF(AND('WS2-Proposal'!L74=0,'WS2-Proposal'!L77>0),"Existing SV period","no SV")) -> Proposed SV period | M81: =IF('WS2-Proposal'!M74=1,"Proposed SV period",IF(AND('WS2-Proposal'!M74=0,'WS2-Proposal'!M77>0),"Existing SV period","no SV")) -> Proposed SV period | N81: =IF('WS2-Proposal'!N74=1,"Proposed SV period",IF(AND('WS2-Proposal'!N74=0,'WS2-Proposal'!N77>0),"Existing SV period","no SV")) -> no SV | O81: =IF('WS2-Proposal'!O74=1,"Proposed SV period",IF(AND('WS2-Proposal'!O74=0,'WS2-Proposal'!O77>0),"Existing SV period","no SV")) -> no SV | P81: =IF('WS2-Proposal'!P74=1,"Proposed SV period",IF(AND('WS2-Proposal'!P74=0,'WS2-Proposal'!P77>0),"Existing SV period","no SV")) -> no SV | Q81: =IF('WS2-Proposal'!Q74=1,"Proposed SV period",IF(AND('WS2-Proposal'!Q74=0,'WS2-Proposal'!Q77>0),"Existing SV period","no SV")) -> no SV
B82: ='WS2-Proposal'!B75 -> 0 = beyond temporary SV period | J82: ='WS2-Proposal'!J75 -> 1 | K82: ='WS2-Proposal'!K75 -> 1 | L82: ='WS2-Proposal'!L75 -> 1 | M82: ='WS2-Proposal'!M75 -> 1 | N82: ='WS2-Proposal'!N75 -> 1 | O82: ='WS2-Proposal'!O75 -> 1 | P82: ='WS2-Proposal'!P75 -> 1 | Q82: ='WS2-Proposal'!Q75 -> 1
B84: PGI with proposed SV
B85: Prior year Notional General Income (NGI) | D85: ='WS0 - Input data'!$C$62 -> $ nominal | K85: =IF(K$82=0,0,J98) -> 12975391.42 | L85: 14272930.57 | M85: 15700223.62 | N85: 17270245.99 | O85: 17753812.87 | P85: 18197658.19 | Q85: 18652599.65
B86: less: expiry of a prior special variation | D86: =D85 -> $ nominal | K86: ='WS2-Proposal'!J92 -> 0 | L86: ='WS2-Proposal'!K92 -> 0 | M86: ='WS2-Proposal'!L92 -> 0 | N86: ='WS2-Proposal'!M92 -> 0 | O86: ='WS2-Proposal'!N92 -> 0 | P86: ='WS2-Proposal'!O92 -> 0 | Q86: =IF(Q$82=0,0,'WS2-Proposal'!P92) -> 0
B87: Adjusted Notional General income | D87: =D86 -> $ nominal | K87: =K85-K86 -> 12975391.42 | L87: =L85-L86 -> 14272930.57 | M87: 15700223.62 | N87: 17270245.99 | O87: 17753812.87 | P87: =P85-P86 -> 18197658.19 | Q87: 18652599.65
B89: plus: rate peg increase | D89: =$D$85 -> $ nominal | K89: =K$87*'WS2-Proposal'!K80 -> 557941.8312 | L89: =L$87*'WS2-Proposal'!L80 -> 485279.6393 | M89: =M$87*'WS2-Proposal'!M80 -> 486706.9323 | N89: =N$87*'WS2-Proposal'!N80 -> 483566.8876 | O89: =O$87*'WS2-Proposal'!O80 -> 443845.3218 | P89: =P$87*'WS2-Proposal'!P80 -> 454941.4549 | Q89: =Q$87*'WS2-Proposal'!Q80 -> 466314.9912
B90: ="plus: " &CHOOSE('WS2-Proposal'!$W$41,"existing SV above rate peg","na") -> plus: na | D90: =$D$85 -> $ nominal | K90: =K$87*'WS2-Proposal'!K81 -> 0 | L90: =L$87*'WS2-Proposal'!L81 -> 0 | M90: =M$87*'WS2-Proposal'!M81 -> 0 | N90: =N$87*'WS2-Proposal'!N81 -> 0 | O90: =O$87*'WS2-Proposal'!O81 -> 0 | P90: =P$87*'WS2-Proposal'!P81 -> 0 | Q90: =Q$87*'WS2-Proposal'!Q81 -> 0
B91: ="plus: "&CHOOSE('WS2-Proposal'!$W$66,"additional increase that is temporary","additional increase") -> plus: additional increase | D91: =D89 -> $ nominal | K91: =K$87*'WS2-Proposal'!K82 -> 739597.3112 | L91: =L$87*'WS2-Proposal'!L82 -> 942013.4174 | M91: =M$87*'WS2-Proposal'!M82 -> 1083315.43 | N91: =N$87*'WS2-Proposal'!N82 -> 0 | O91: =O$87*'WS2-Proposal'!O82 -> 0 | P91: =P$87*'WS2-Proposal'!P82 -> 0 | Q91: =Q$87*'WS2-Proposal'!Q82 -> 0
B92: ="plus: "&CHOOSE('WS2-Proposal'!$W$66,"additional increase that is permanent","na") -> plus: na | D92: =D90 -> $ nominal | K92: =K$87*'WS2-Proposal'!K83 -> 0 | L92: =L$87*'WS2-Proposal'!L83 -> 0 | M92: =M$87*'WS2-Proposal'!M83 -> 0 | N92: =N$87*'WS2-Proposal'!N83 -> 0 | O92: =O$87*'WS2-Proposal'!O83 -> 0 | P92: =P$87*'WS2-Proposal'!P83 -> 0 | Q92: =Q$87*'WS2-Proposal'!Q83 -> 0
B93: plus: crown land adjustment | D93: $ nominal | K93: =K$87*'WS2-Proposal'!K84 -> 0 | L93: =L$87*'WS2-Proposal'!L84 -> 0 | M93: =M$87*'WS2-Proposal'!M84 -> 0 | N93: =N$87*'WS2-Proposal'!N84 -> 0 | O93: =O$87*'WS2-Proposal'!O84 -> 0 | P93: =P$87*'WS2-Proposal'!P84 -> 0 | Q93: =Q$87*'WS2-Proposal'!Q84 -> 0
B94: Total proposed SV | D94: =D93 -> $ nominal | K94: =SUM(K89:K93) -> 1297539.142 | L94: =SUM(L89:L93) -> 1427293.057 | M94: 1570022.362 | N94: 483566.8876 | O94: 443845.3218 | P94: =SUM(P89:P93) -> 454941.4549 | Q94: 466314.9912
B96: Notional General Income after SV applied | D96: =$D$85 -> $ nominal | K96: =K87+K94 -> 14272930.57 | L96: =L87+L94 -> 15700223.62 | M96: 17270245.99 | N96: 17753812.87 | O96: 18197658.19 | P96: =P87+P94 -> 18652599.65 | Q96: 19118914.64
B97: plus: other 1st-year adjustments | D97: =D96 -> $ nominal | K97: ='WS2-Proposal'!K50-'WS2-Proposal'!K51 -> 0 | L97: 0 | M97: 0 | N97: 0 | O97: 0 | P97: 0 | Q97: 0
B98: PGI with proposed SV | D98: =D97 -> $ nominal | J98: ='WS3 - Notional General Income'!L75 -> 12975391.42 | K98: =K96+K97 -> 14272930.57 | L98: =L96+L97 -> 15700223.62 | M98: 17270245.99 | N98: 17753812.87 | O98: 18197658.19 | P98: =P96+P97 -> 18652599.65 | Q98: 19118914.64 | R98: =INDEX(J98:Q98,'WS2-Proposal'!$W$62+1)-J98 -> 4294854.561 | S98: =IF(J98=0,0,R98/J98) -> 0.331
B101: =CHOOSE('WS2-Proposal'!$W$41,"PGI if only the existing SV/rate peg applied","PGI if only the rate peg applied") -> PGI if only the rate peg applied
B102: =B85 -> Prior year Notional General Income (NGI) | D102: =$D$85 -> $ nominal | K102: =IF(K$82=0,0,J109) -> 12975391.42 | L102: 13533333.26 | M102: 13993466.59 | N102: 14427264.05 | O102: 14831227.44 | P102: 15202008.13 | Q102: 15582058.33
B103: =B86 -> less: expiry of a prior special variation | D103: =D102 -> $ nominal | K103: =K86 -> 0 | L103: 0 | M103: 0 | N103: 0 | O103: 0 | P103: 0 | Q103: =Q86 -> 0
B104: =B87 -> Adjusted Notional General income | D104: =D103 -> $ nominal | K104: =K102-K103 -> 12975391.42 | L104: 13533333.26 | M104: 13993466.59 | N104: 14427264.05 | O104: 14831227.44 | P104: 15202008.13 | Q104: =Q102-Q103 -> 15582058.33
B105: =B89 -> plus: rate peg increase | D105: =$D$85 -> $ nominal | K105: =IF(K$82=0,0,'WS2-Proposal'!K80*K$104) -> 557941.8312 | L105: =IF(L$82=0,0,'WS2-Proposal'!L80*L$104) -> 460133.3307 | M105: =IF(M$82=0,0,'WS2-Proposal'!M80*M$104) -> 433797.4642 | N105: =IF(N$82=0,0,'WS2-Proposal'!N80*N$104) -> 403963.3934 | O105: =IF(O$82=0,0,'WS2-Proposal'!O80*O$104) -> 370780.6861 | P105: =IF(P$82=0,0,'WS2-Proposal'!P80*P$104) -> 380050.2032 | Q105: =IF(Q$82=0,0,'WS2-Proposal'!Q80*Q$104) -> 389551.4583
B106: =B90 -> plus: na | D106: =$D$85 -> $ nominal | K106: ='WS2-Proposal'!K81*K$104 -> 0 | L106: ='WS2-Proposal'!L81*L$104 -> 0 | M106: ='WS2-Proposal'!M81*M$104 -> 0 | N106: ='WS2-Proposal'!N81*N$104 -> 0 | O106: ='WS2-Proposal'!O81*O$104 -> 0 | P106: ='WS2-Proposal'!P81*P$104 -> 0 | Q106: ='WS2-Proposal'!Q81*Q$104 -> 0
B107: =B93 -> plus: crown land adjustment | D107: =$D$85 -> $ nominal | K107: =K93 -> 0 | L107: =L93 -> 0 | M107: 0 | N107: 0 | O107: 0 | P107: 0 | Q107: 0
B108: =B97 -> plus: other 1st-year adjustments | D108: =D105 -> $ nominal | K108: =K97 -> 0 | L108: 0 | M108: 0 | N108: 0 | O108: 0 | P108: 0 | Q108: =Q97 -> 0
B109: =CHOOSE('WS2-Proposal'!$W$41,"PGI if only the existing SV/rate peg applied","PGI if only the rate peg applied") -> PGI if only the rate peg applied | D109: =D108 -> $ nominal | J109: =J98 -> 12975391.42 | K109: =SUM(K104:K108) -> 13533333.26 | L109: 13993466.59 | M109: 14427264.05 | N109: 14831227.44 | O109: 15202008.13 | P109: 15582058.33 | Q109: 15971609.79 | R109: =INDEX(J109:Q109,'WS2-Proposal'!$W$62+1)-J109 -> 1451872.626 | S109: =IF(J109=0,0,R109/J109) -> 0.111894322
A114: =A78+1 -> 3 | B114: ="Table "&A1&"."&A114&" Increases in permissable general income over proposed SV period ($ nominal)" -> Table 6.3 Increases in permissable general income over proposed SV period ($ nominal)
J115: =J$79 -> Year 0 | K115: Year 1 | L115: Year 2 | M115: Year 3 | N115: Year 4 | O115: Year 5 | P115: Year 6 | Q115: Year 7 | R115: Total | S115: increase | T115: check = 0
B116: =B$80 -> Financial year | J116: =J$80 -> 2024-25 | K116: 2025-26 | L116: 2026-27 | M116: 2027-28 | N116: 2028-29 | O116: 2029-30 | P116: 2030-31 | Q116: 2031-32 | R116: =D124 -> $ nominal | S116: %
B118: Annual % increase in PGI
B119: =$B$98 -> PGI with proposed SV | D119: % | K119: =IF(J$98=0,0,K124/J$98) -> 0.1 | L119: 0.1 | M119: 0.1 | N119: 0.028 | O119: 0.025 | P119: 0.025 | Q119: 0.025 | S119: =S98 -> 0.331
B120: =$B$109 -> PGI if only the rate peg applied | D120: =D119 -> % | K120: =IF(J$98=0,0,K125/J$98) -> 0.043 | L120: =IF(K$109=0,0,L125/K$109) -> 0.034 | M120: 0.031 | N120: 0.028 | O120: 0.025 | P120: 0.025 | Q120: 0.025 | S120: =S109 -> 0.111894322
B123: Annual $ increase in PGI
B124: =B119 -> PGI with proposed SV | D124: =$D$85 -> $ nominal | K124: =IF(K$82=0,0,K98-J98) -> 1297539.142 | L124: 1427293.057 | M124: 1570022.362 | N124: 483566.8876 | O124: 443845.3218 | P124: 454941.4549 | Q124: 466314.9912 | R124: =SUMPRODUCT(K124:Q124,'WS2-Proposal'!$K$74:$Q$74) -> 4294854.561 | S124: =IF($J$98=0,0,R124/$J$98) -> 0.331 | T124: =R124-R98 -> 0
B125: =B120 -> PGI if only the rate peg applied | D125: =D124 -> $ nominal | K125: =IF(K$82=0,0,K109-J109) -> 557941.8312 | L125: 460133.3307 | M125: 433797.4642 | N125: 403963.3934 | O125: 370780.6861 | P125: 380050.2032 | Q125: 389551.4583 | R125: =SUMPRODUCT(K125:Q125,'WS2-Proposal'!$K$74:$Q$74) -> 1451872.626 | S125: =IF($J$98=0,0,R125/$J$98) -> 0.111894322 | T125: =R125-R109 -> 0
B128: Annual $ increase in PGI with proposed SV more than:
B129: =B120 -> PGI if only the rate peg applied | D129: =$D$85 -> $ nominal | K129: =K124-K125 -> 739597.3112 | L129: 967159.726 | M129: 1136224.898 | N129: =N124-N125 -> 79603.49419 | O129: 73064.63574 | P129: 74891.25163 | Q129: =Q124-Q125 -> 76763.53292 | R129: =SUMPRODUCT(K129:Q129,'WS2-Proposal'!$K$74:$Q$74) -> 2842981.935 | S129: =S124-S125 -> 0.219105678 | T129: =IF(J109=0,0,(R98-R109)/J109-S129) -> 0
T131: =R125-R124+R129 -> 0
B132: Cumulative PGI
B133: =$B$98 -> PGI with proposed SV | D133: =D129 -> $ nominal | K133: =IF(K$82=0,0,SUM($K98:K98)) -> 14272930.57 | L133: =IF(L$82=0,0,SUM($K98:L98)) -> 29973154.19 | M133: =IF(M$82=0,0,SUM($K98:M98)) -> 47243400.17 | N133: =IF(N$82=0,0,SUM($K98:N98)) -> 64997213.05 | O133: =IF(O$82=0,0,SUM($K98:O98)) -> 83194871.24 | P133: =IF(P$82=0,0,SUM($K98:P98)) -> 101847470.9 | Q133: =IF(Q$82=0,0,SUM($K98:Q98)) -> 120966385.5 | R133: =SUMPRODUCT(K133:Q133,'WS2-Proposal'!$K$74:$Q$74) -> 91489484.93
B134: =$B$109 -> PGI if only the rate peg applied | D134: =D133 -> $ nominal | K134: =IF(K$82=0,0,SUM($K109:K109)) -> 13533333.26 | L134: =IF(L$82=0,0,SUM($K109:L109)) -> 27526799.84 | M134: =IF(M$82=0,0,SUM($K109:M109)) -> 41954063.89 | N134: =IF(N$82=0,0,SUM($K109:N109)) -> 56785291.33 | O134: =IF(O$82=0,0,SUM($K109:O109)) -> 71987299.46 | P134: =IF(P$82=0,0,SUM($K109:P109)) -> 87569357.8 | Q134: =IF(Q$82=0,0,SUM($K109:Q109)) -> 103540967.6 | R134: =SUMPRODUCT(K134:Q134,'WS2-Proposal'!$K$74:$Q$74) -> 83014196.99
B137: Increase in cumulative PGI with proposed SV that exceeds the increase in the PGI under
B138: =B120 -> PGI if only the rate peg applied | D138: =$D$85 -> $ nominal | K138: =K$133-K134 -> 739597.3112 | L138: 2446354.348 | M138: 5289336.284 | N138: 8211921.713 | O138: 11207571.78 | P138: 14278113.09 | Q138: 17425417.94 | R138: =SUMPRODUCT(K138:Q138,'WS2-Proposal'!$K$74:$Q$74) -> 8475287.943 | S138: =IF(R134=0,0,R138/R134) -> 0.1020944399 | T138: =R133-R134-R138 -> 0

Sheet WS7 - Impact on Rates
A1: 7
B2: ='WS1-Application'!B2 -> APPLICATION FOR SPECIAL VARIATION - UPPER HUNTER SHIRE COUNCIL
B4: ="WORKSHEET "&A1&": IMPACT ON MINIMUM RATES, AVERAGE RATES AND OTHER CHARGES" -> WORKSHEET 7: IMPACT ON MINIMUM RATES, AVERAGE RATES AND OTHER CHARGES
B7: Instructions and notes
B8: The aim of this sheet is to show the minimum rate increases (if applicable), the average rate increase per sub-category (inclusive of all relevant rates) and the proposed annual charges in each year of the proposed special variation.
B9: It also aims to compare average rates with and without the proposed special variation. All ordinary rates and special rates need to be included.
B10: > Enter the required information in blue input cells. The values in white cells will calculate automatically.
B11: ="> "&" Table "&A1&"."&A25&" Minimum rates: Enter in the minimum rates per category/sub-category as if the SV (or MR increase) were approved for each year as requested." -> > Table 7.1 Minimum rates: Enter in the minimum rates per category/sub-category as if the SV (or MR increase) were approved for each year as requested.
B12: These figures are intended to illustrate the impact of the proposed SV (or MR increase) on any specific minimum rate.
B13: ="> Ordinary and Special Average Rates: Enter in the average rates per sub-category as if the proposed SV (or MR increase) were approved for each year as requested at table "&A1&"."&A52 -> > Ordinary and Special Average Rates: Enter in the average rates per sub-category as if the proposed SV (or MR increase) were approved for each year as requested at table 7.2
B14: =" And enter the average rates as if the proposed SV (or MR increase) were not approved (only the rate peg would then apply) at table "&A1&"."&A92 -> And enter the average rates as if the proposed SV (or MR increase) were not approved (only the rate peg would then apply) at table 7.3
B16: Notes:
B17: (1) All dollars are to be in nominal terms
B18: (2) An average rate equals total income in a category or sub-category divided by the number of assessments in that same category or sub-category (i.e. including assessments on the minimum rate).
B19: (3) These figures should reflect the reduction from any expiring SVs so that the net change in rates is measured. Rate estimates should reflect expected minimum or average rates, inclusive of any expiring variations.
B20: (4) Minimum Rates - with proposed special variation
B21: (a) If the council levies minimum rates for any category or sub-category, these rates should be detailed below.
X23: Annual and cumulative increases
A25: 1 | B25: ="Table "&A1&"."&A25&IF('WS1-Application'!D33="minimum rate increase",": Minimum Rates - with proposed MR increase",": Minimum Rates - with proposed special variation") -> Table 7.1: Minimum Rates - with proposed special variation | T25: Number of assessments | X25: Annual increases (nominal $ per year) | AF25: Annual increases (%) | AN25: Cumulative increases (nominal $ per year) | AV25: Cumulative increases (%)
B26: Category | C26: Sub-category or Special Rate name | D26: Units | I26: Prior year Minimum Rate | J26: Current Minimum Rate | K26: Minimum Rate Year 1 | L26: Minimum Rate Year 2 | M26: Minimum Rate Year 3 | N26: Minimum Rate Year 4 | O26: Minimum Rate Year 5 | P26: Minimum Rate Year 6 | Q26: Minimum Rate Year 7 | T26: (used to calculate average | X26: =B25 -> Table 7.1: Minimum Rates - with proposed special variation | AF26: =$X26 -> Table 7.1: Minimum Rates - with proposed special variation | AN26: =$X26 -> Table 7.1: Minimum Rates - with proposed special variation | AV26: =$X26 -> Table 7.1: Minimum Rates - with proposed special variation
I27: ='WS0 - Input data'!I58 -> 2023-24 | J27: ='WS2-Proposal'!J$73 -> 2024-25 | K27: ='WS2-Proposal'!K$73 -> 2025-26 | L27: ='WS2-Proposal'!L$73 -> 2026-27 | M27: ='WS2-Proposal'!M$73 -> 2027-28 | N27: ='WS2-Proposal'!N$73 -> 2028-29 | O27: ='WS2-Proposal'!O$73 -> 2029-30 | P27: ='WS2-Proposal'!P$73 -> 2030-31 | Q27: ='WS2-Proposal'!Q$73 -> 2031-32 | T27: rates) | X27: ='WS0 - Input data'!K55 -> Year 1 | Y27: ='WS0 - Input data'!L55 -> Year 2 | Z27: ='WS0 - Input data'!M55 -> Year 3 | AA27: ='WS0 - Input data'!N55 -> Year 4 | AB27: ='WS0 - Input data'!O55 -> Year 5 | AC27: ='WS0 - Input data'!P55 -> Year 6 | AD27: ='WS0 - Input data'!Q55 -> Year 7 | AF27: =AN27 -> Year 1 | AG27: Year 2 | AH27: Year 3 | AI27: Year 4 | AJ27: Year 5 | AK27: Year 6 | AL27: Year 7 | AN27: =X27 -> Year 1 | AO27: =Y27 -> Year 2 | AP27: Year 3 | AQ27: Year 4 | AR27: Year 5 | AS27: =AC27 -> Year 6 | AT27: =AD27 -> Year 7 | AV27: =AF27 -> Year 1 | AW27: Year 2 | AX27: Year 3 | AY27: Year 4 | AZ27: Year 5 | BA27: Year 6 | BB27: Year 7
B28: ='WS4 - Yr 1 YIELD'!B18 -> Residential | C28: =IF('WS3 - Notional General Income'!C21="","",'WS3 - Notional General Income'!C21) -> Aberdeen | D28: $ nominal p.a. | X28: =IF(K28=0,".",K28-J28) -> . | Y28: =IF(L28="",".",L28-K28) -> . | Z28: =IF(M28="",".",M28-L28) -> . | AA28: =IF(N28="",".",N28-M28) -> . | AB28: =IF(O28="",".",O28-N28) -> . | AC28: =IF(P28="",".",P28-O28) -> . | AD28: =IF(Q28="",".",Q28-P28) -> . | AF28: =IFERROR(K28/J28-1,".") -> . | AG28: =IFERROR(L28/K28-1,".") -> . | AH28: =IFERROR(M28/L28-1,".") -> . | AI28: =IFERROR(N28/M28-1,".") -> . | AJ28: =IFERROR(O28/N28-1,".") -> . | AK28: =IFERROR(P28/O28-1,".") -> . | AL28: =IFERROR(Q28/P28-1,".") -> . | AN28: =IF(X28=".",".",SUM($X28:X28)) -> . | AO28: =IF(Y28=".",".",SUM($X28:Y28)) -> . | AP28: =IF(Z28=".",".",SUM($X28:Z28)) -> . | AQ28: =IF(AA28=".",".",SUM($X28:AA28)) -> . | AR28: =IF(AB28=".",".",SUM($X28:AB28)) -> . | AS28: =IF(AC28=".",".",SUM($X28:AC28)) -> . | AT28: =IF(AD28=".",".",SUM($X28:AD28)) -> . | AV28: =IFERROR(K28/$J28-1,".") -> . | AW28: =IFERROR(L28/$J28-1,".") -> . | AX28: =IFERROR(M28/$J28-1,".") -> . | AY28: =IFERROR(N28/$J28-1,".") -> . | AZ28: =IFERROR(O28/$J28-1,".") -> . | BA28: =IFERROR(P28/$J28-1,".") -> . | BB28: =IFERROR(Q28/$J28-1,".") -> .
B29: =B28 -> Residential | C29: =IF('WS3 - Notional General Income'!C22="","",'WS3 - Notional General Income'!C22) -> Cassillis | D29: $ nominal p.a. | X29: =IF(K29="",".",K29-J29) -> . | Y29: . | Z29: . | AA29: . | AB29: . | AC29: . | AD29: . | AF29: =IFERROR(K29/J29-1,".") -> . | AG29: . | AH29: . | AI29: . | AJ29: . | AK29: . | AL29: . | AN29: =IF(X29=".",".",SUM($X29:X29)) -> . | AO29: =IF(Y29=".",".",SUM($X29:Y29)) -> . | AP29: =IF(Z29=".",".",SUM($X29:Z29)) -> . | AQ29: =IF(AA29=".",".",SUM($X29:AA29)) -> . | AR29: =IF(AB29=".",".",SUM($X29:AB29)) -> . | AS29: =IF(AC29=".",".",SUM($X29:AC29)) -> . | AT29: =IF(AD29=".",".",SUM($X29:AD29)) -> . | AV29: =IFERROR(K29/$J29-1,".") -> . | AW29: . | AX29: . | AY29: . | AZ29: . | BA29: . | BB29: .
B30: =B29 -> Residential | C30: =IF('WS3 - Notional General Income'!C23="","",'WS3 - Notional General Income'!C23) -> Merriwa | D30: $ nominal p.a. | X30: =IF(K30="",".",K30-J30) -> . | Y30: . | Z30: . | AA30: . | AB30: . | AC30: . | AD30: . | AF30: . | AG30: . | AH30: . | AI30: . | AJ30: . | AK30: . | AL30: . | AN30: =IF(X30=".",".",SUM($X30:X30)) -> . | AO30: =IF(Y30=".",".",SUM($X30:Y30)) -> . | AP30: =IF(Z30=".",".",SUM($X30:Z30)) -> . | AQ30: =IF(AA30=".",".",SUM($X30:AA30)) -> . | AR30: =IF(AB30=".",".",SUM($X30:AB30)) -> . | AS30: =IF(AC30=".",".",SUM($X30:AC30)) -> . | AT30: =IF(AD30=".",".",SUM($X30:AD30)) -> . | AV30: . | AW30: . | AX30: . | AY30: . | AZ30: . | BA30: . | BB30: .
B31: Residential | C31: =IF('WS3 - Notional General Income'!C24="","",'WS3 - Notional General Income'!C24) -> Murrurundi | D31: $ nominal p.a. | X31: . | Y31: . | Z31: . | AA31: . | AB31: . | AC31: . | AD31: . | AF31: . | AG31: . | AH31: . | AI31: . | AJ31: . | AK31: . | AL31: . | AN31: =IF(X31=".",".",SUM($X31:X31)) -> . | AO31: =IF(Y31=".",".",SUM($X31:Y31)) -> . | AP31: =IF(Z31=".",".",SUM($X31:Z31)) -> . | AQ31: =IF(AA31=".",".",SUM($X31:AA31)) -> . | AR31: =IF(AB31=".",".",SUM($X31:AB31)) -> . | AS31: =IF(AC31=".",".",SUM($X31:AC31)) -> . | AT31: =IF(AD31=".",".",SUM($X31:AD31)) -> . | AV31: . | AW31: . | AX31: . | AY31: . | AZ31: . | BA31: . | BB31: .
B32: Residential | C32: =IF('WS3 - Notional General Income'!C25="","",'WS3 - Notional General Income'!C25) -> Scone | D32: $ nominal p.a. | X32: . | Y32: . | Z32: . | AA32: . | AB32: . | AC32: . | AD32: . | AF32: . | AG32: . | AH32: . | AI32: . | AJ32: . | AK32: . | AL32: . | AN32: =IF(X32=".",".",SUM($X32:X32)) -> . | AO32: =IF(Y32=".",".",SUM($X32:Y32)) -> . | AP32: =IF(Z32=".",".",SUM($X32:Z32)) -> . | AQ32: =IF(AA32=".",".",SUM($X32:AA32)) -> . | AR32: =IF(AB32=".",".",SUM($X32:AB32)) -> . | AS32: =IF(AC32=".",".",SUM($X32:AC32)) -> . | AT32: =IF(AD32=".",".",SUM($X32:AD32)) -> . | AV32: . | AW32: . | AX32: . | AY32: . | AZ32: . | BA32: . | BB32: .
B33: Residential | C33: =IF('WS3 - Notional General Income'!C26="","",'WS3 - Notional General Income'!C26) -> Ordinary | D33: $ nominal p.a. | X33: =IF(K33="",".",K33-J33) -> . | Y33: =IF(L33="",".",L33-K33) -> . | Z33: =IF(M33="",".",M33-L33) -> . | AA33: =IF(N33="",".",N33-M33) -> . | AB33: =IF(O33="",".",O33-N33) -> . | AC33: =IF(P33="",".",P33-O33) -> . | AD33: =IF(Q33="",".",Q33-P33) -> . | AF33: =IFERROR(K33/J33-1,".") -> . | AG33: =IFERROR(L33/K33-1,".") -> . | AH33: =IFERROR(M33/L33-1,".") -> . | AI33: =IFERROR(N33/M33-1,".") -> . | AJ33: =IFERROR(O33/N33-1,".") -> . | AK33: =IFERROR(P33/O33-1,".") -> . | AL33: =IFERROR(Q33/P33-1,".") -> . | AN33: =IF(X33=".",".",SUM($X33:X33)) -> . | AO33: =IF(Y33=".",".",SUM($X33:Y33)) -> . | AP33: =IF(Z33=".",".",SUM($X33:Z33)) -> . | AQ33: =IF(AA33=".",".",SUM($X33:AA33)) -> . | AR33: =IF(AB33=".",".",SUM($X33:AB33)) -> . | AS33: =IF(AC33=".",".",SUM($X33:AC33)) -> . | AT33: =IF(AD33=".",".",SUM($X33:AD33)) -> . | AV33: =IFERROR(K33/$J33-1,".") -> . | AW33: =IFERROR(L33/$J33-1,".") -> . | AX33: =IFERROR(M33/$J33-1,".") -> . | AY33: =IFERROR(N33/$J33-1,".") -> . | AZ33: =IFERROR(O33/$J33-1,".") -> . | BA33: =IFERROR(P33/$J33-1,".") -> . | BB33: =IFERROR(Q33/$J33-1,".") -> .
B34: Residential | C34: =IF('WS3 - Notional General Income'!C27="","",'WS3 - Notional General Income'!C27) -> Mixed Development - Aberdeen Residential | D34: $ nominal p.a. | X34: . | Y34: . | Z34: . | AA34: . | AB34: . | AC34: . | AD34: . | AF34: . | AG34: . | AH34: . | AI34: . | AJ34: . | AK34: . | AL34: . | AN34: =IF(X34=".",".",SUM($X34:X34)) -> . | AO34: =IF(Y34=".",".",SUM($X34:Y34)) -> . | AP34: =IF(Z34=".",".",SUM($X34:Z34)) -> . | AQ34: =IF(AA34=".",".",SUM($X34:AA34)) -> . | AR34: =IF(AB34=".",".",SUM($X34:AB34)) -> . | AS34: =IF(AC34=".",".",SUM($X34:AC34)) -> . | AT34: =IF(AD34=".",".",SUM($X34:AD34)) -> . | AV34: . | AW34: . | AX34: . | AY34: . | AZ34: . | BA34: . | BB34: .
B35: Residential | C35: =IF('WS3 - Notional General Income'!C28="","",'WS3 - Notional General Income'!C28) -> Mixed Development - Merriwa Residential | D35: $ nominal p.a. | X35: . | Y35: . | Z35: . | AA35: . | AB35: . | AC35: . | AD35: . | AF35: . | AG35: . | AH35: . | AI35: . | AJ35: . | AK35: . | AL35: . | AN35: =IF(X35=".",".",SUM($X35:X35)) -> . | AO35: =IF(Y35=".",".",SUM($X35:Y35)) -> . | AP35: =IF(Z35=".",".",SUM($X35:Z35)) -> . | AQ35: =IF(AA35=".",".",SUM($X35:AA35)) -> . | AR35: =IF(AB35=".",".",SUM($X35:AB35)) -> . | AS35: =IF(AC35=".",".",SUM($X35:AC35)) -> . | AT35: =IF(AD35=".",".",SUM($X35:AD35)) -> . | AV35: . | AW35: . | AX35: . | AY35: . | AZ35: . | BA35: . | BB35: .
B36: Residential | C36: =IF('WS3 - Notional General Income'!C29="","",'WS3 - Notional General Income'!C29) -> Mixed Development - Murrurundi Residential | D36: $ nominal p.a. | X36: . | Y36: . | Z36: . | AA36: . | AB36: . | AC36: . | AD36: . | AF36: . | AG36: . | AH36: . | AI36: . | AJ36: . | AK36: . | AL36: . | AN36: =IF(X36=".",".",SUM($X36:X36)) -> . | AO36: =IF(Y36=".",".",SUM($X36:Y36)) -> . | AP36: =IF(Z36=".",".",SUM($X36:Z36)) -> . | AQ36: =IF(AA36=".",".",SUM($X36:AA36)) -> . | AR36: =IF(AB36=".",".",SUM($X36:AB36)) -> . | AS36: =IF(AC36=".",".",SUM($X36:AC36)) -> . | AT36: =IF(AD36=".",".",SUM($X36:AD36)) -> . | AV36: . | AW36: . | AX36: . | AY36: . | AZ36: . | BA36: . | BB36: .
B38: ='WS4 - Yr 1 YIELD'!B29 -> Business | C38: =IF('WS3 - Notional General Income'!C32="","",'WS3 - Notional General Income'!C32) -> Aberdeen | D38: $ nominal p.a. | X38: . | Y38: . | Z38: . | AA38: . | AB38: . | AC38: . | AD38: . | AF38: . | AG38: . | AH38: . | AI38: . | AJ38: . | AK38: . | AL38: . | AN38: =IF(X38=".",".",SUM($X38:X38)) -> . | AO38: =IF(Y38=".",".",SUM($X38:Y38)) -> . | AP38: =IF(Z38=".",".",SUM($X38:Z38)) -> . | AQ38: =IF(AA38=".",".",SUM($X38:AA38)) -> . | AR38: =IF(AB38=".",".",SUM($X38:AB38)) -> . | AS38: =IF(AC38=".",".",SUM($X38:AC38)) -> . | AT38: =IF(AD38=".",".",SUM($X38:AD38)) -> . | AV38: . | AW38: . | AX38: . | AY38: . | AZ38: . | BA38: . | BB38: .
B39: =B38 -> Business | C39: =IF('WS3 - Notional General Income'!C33="","",'WS3 - Notional General Income'!C33) -> Merriwa | D39: $ nominal p.a. | X39: . | Y39: . | Z39: . | AA39: . | AB39: . | AC39: . | AD39: . | AF39: . | AG39: . | AH39: . | AI39: . | AJ39: . | AK39: . | AL39: . | AN39: =IF(X39=".",".",SUM($X39:X39)) -> . | AO39: =IF(Y39=".",".",SUM($X39:Y39)) -> . | AP39: =IF(Z39=".",".",SUM($X39:Z39)) -> . | AQ39: =IF(AA39=".",".",SUM($X39:AA39)) -> . | AR39: =IF(AB39=".",".",SUM($X39:AB39)) -> . | AS39: =IF(AC39=".",".",SUM($X39:AC39)) -> . | AT39: =IF(AD39=".",".",SUM($X39:AD39)) -> . | AV39: . | AW39: . | AX39: . | AY39: . | AZ39: . | BA39: . | BB39: .
B40: =B39 -> Business | C40: =IF('WS3 - Notional General Income'!C34="","",'WS3 - Notional General Income'!C34) -> Murrurundi | D40: $ nominal p.a. | X40: . | Y40: . | Z40: . | AA40: . | AB40: . | AC40: . | AD40: . | AF40: . | AG40: . | AH40: . | AI40: . | AJ40: . | AK40: . | AL40: . | AN40: =IF(X40=".",".",SUM($X40:X40)) -> . | AO40: =IF(Y40=".",".",SUM($X40:Y40)) -> . | AP40: =IF(Z40=".",".",SUM($X40:Z40)) -> . | AQ40: =IF(AA40=".",".",SUM($X40:AA40)) -> . | AR40: =IF(AB40=".",".",SUM($X40:AB40)) -> . | AS40: =IF(AC40=".",".",SUM($X40:AC40)) -> . | AT40: =IF(AD40=".",".",SUM($X40:AD40)) -> . | AV40: . | AW40: . | AX40: . | AY40: . | AZ40: . | BA40: . | BB40: .
B41: Business | C41: =IF('WS3 - Notional General Income'!C35="","",'WS3 - Notional General Income'!C35) -> Scone | D41: $ nominal p.a. | X41: . | Y41: . | Z41: . | AA41: . | AB41: . | AC41: . | AD41: . | AF41: . | AG41: . | AH41: . | AI41: . | AJ41: . | AK41: . | AL41: . | AN41: =IF(X41=".",".",SUM($X41:X41)) -> . | AO41: =IF(Y41=".",".",SUM($X41:Y41)) -> . | AP41: =IF(Z41=".",".",SUM($X41:Z41)) -> . | AQ41: =IF(AA41=".",".",SUM($X41:AA41)) -> . | AR41: =IF(AB41=".",".",SUM($X41:AB41)) -> . | AS41: =IF(AC41=".",".",SUM($X41:AC41)) -> . | AT41: =IF(AD41=".",".",SUM($X41:AD41)) -> . | AV41: . | AW41: . | AX41: . | AY41: . | AZ41: . | BA41: . | BB41: .
B42: Business | C42: =IF('WS3 - Notional General Income'!C36="","",'WS3 - Notional General Income'!C36) -> Ordinary | D42: $ nominal p.a. | X42: . | Y42: . | Z42: . | AA42: . | AB42: . | AC42: . | AD42: . | AF42: . | AG42: . | AH42: . | AI42: . | AJ42: . | AK42: . | AL42: . | AN42: =IF(X42=".",".",SUM($X42:X42)) -> . | AO42: =IF(Y42=".",".",SUM($X42:Y42)) -> . | AP42: =IF(Z42=".",".",SUM($X42:Z42)) -> . | AQ42: =IF(AA42=".",".",SUM($X42:AA42)) -> . | AR42: =IF(AB42=".",".",SUM($X42:AB42)) -> . | AS42: =IF(AC42=".",".",SUM($X42:AC42)) -> . | AT42: =IF(AD42=".",".",SUM($X42:AD42)) -> . | AV42: . | AW42: . | AX42: . | AY42: . | AZ42: . | BA42: . | BB42: .
B43: Business | C43: =IF('WS3 - Notional General Income'!C37="","",'WS3 - Notional General Income'!C37) -> Mixed Development - Aberdeen Residential | D43: $ nominal p.a. | X43: . | Y43: . | Z43: . | AA43: . | AB43: . | AC43: . | AD43: . | AF43: . | AG43: . | AH43: . | AI43: . | AJ43: . | AK43: . | AL43: . | AN43: =IF(X43=".",".",SUM($X43:X43)) -> . | AO43: =IF(Y43=".",".",SUM($X43:Y43)) -> . | AP43: =IF(Z43=".",".",SUM($X43:Z43)) -> . | AQ43: =IF(AA43=".",".",SUM($X43:AA43)) -> . | AR43: =IF(AB43=".",".",SUM($X43:AB43)) -> . | AS43: =IF(AC43=".",".",SUM($X43:AC43)) -> . | AT43: =IF(AD43=".",".",SUM($X43:AD43)) -> . | AV43: . | AW43: . | AX43: . | AY43: . | AZ43: . | BA43: . | BB43: .
B44: Business | C44: =IF('WS3 - Notional General Income'!C38="","",'WS3 - Notional General Income'!C38) -> Mixed Development - Merriwa Residential | D44: $ nominal p.a. | X44: . | Y44: . | Z44: . | AA44: . | AB44: . | AC44: . | AD44: . | AF44: . | AG44: . | AH44: . | AI44: . | AJ44: . | AK44: . | AL44: . | AN44: =IF(X44=".",".",SUM($X44:X44)) -> . | AO44: =IF(Y44=".",".",SUM($X44:Y44)) -> . | AP44: =IF(Z44=".",".",SUM($X44:Z44)) -> . | AQ44: =IF(AA44=".",".",SUM($X44:AA44)) -> . | AR44: =IF(AB44=".",".",SUM($X44:AB44)) -> . | AS44: =IF(AC44=".",".",SUM($X44:AC44)) -> . | AT44: =IF(AD44=".",".",SUM($X44:AD44)) -> . | AV44: . | AW44: . | AX44: . | AY44: . | AZ44: . | BA44: . | BB44: .
B45: Business | C45: =IF('WS3 - Notional General Income'!C39="","",'WS3 - Notional General Income'!C39) -> Mixed Development - Murrurundi Residential | D45: $ nominal p.a. | X45: . | Y45: . | Z45: . | AA45: . | AB45: . | AC45: . | AD45: . | AF45: . | AG45: . | AH45: . | AI45: . | AJ45: . | AK45: . | AL45: . | AN45: =IF(X45=".",".",SUM($X45:X45)) -> . | AO45: =IF(Y45=".",".",SUM($X45:Y45)) -> . | AP45: =IF(Z45=".",".",SUM($X45:Z45)) -> . | AQ45: =IF(AA45=".",".",SUM($X45:AA45)) -> . | AR45: =IF(AB45=".",".",SUM($X45:AB45)) -> . | AS45: =IF(AC45=".",".",SUM($X45:AC45)) -> . | AT45: =IF(AD45=".",".",SUM($X45:AD45)) -> . | AV45: . | AW45: . | AX45: . | AY45: . | AZ45: . | BA45: . | BB45: .
B47: ='WS4 - Yr 1 YIELD'!B39 -> Farmland | C47: =IF('WS3 - Notional General Income'!C42="","",'WS3 - Notional General Income'!C42) ->  | D47: $ nominal p.a. | X47: . | Y47: . | Z47: . | AA47: . | AB47: . | AC47: . | AD47: . | AF47: . | AG47: . | AH47: . | AI47: . | AJ47: . | AK47: . | AL47: . | AN47: =IF(X47=".",".",SUM($X47:X47)) -> . | AO47: =IF(Y47=".",".",SUM($X47:Y47)) -> . | AP47: =IF(Z47=".",".",SUM($X47:Z47)) -> . | AQ47: =IF(AA47=".",".",SUM($X47:AA47)) -> . | AR47: =IF(AB47=".",".",SUM($X47:AB47)) -> . | AS47: =IF(AC47=".",".",SUM($X47:AC47)) -> . | AT47: =IF(AD47=".",".",SUM($X47:AD47)) -> . | AV47: . | AW47: . | AX47: . | AY47: . | AZ47: . | BA47: . | BB47: .
B49: ='WS4 - Yr 1 YIELD'!B42 -> Mining | C49: =IF('WS3 - Notional General Income'!C45="","",'WS3 - Notional General Income'!C45) ->  | D49: $ nominal p.a. | X49: . | Y49: . | Z49: . | AA49: . | AB49: . | AC49: . | AD49: . | AF49: . | AG49: . | AH49: . | AI49: . | AJ49: . | AK49: . | AL49: . | AN49: =IF(X49=".",".",SUM($X49:X49)) -> . | AO49: =IF(Y49=".",".",SUM($X49:Y49)) -> . | AP49: =IF(Z49=".",".",SUM($X49:Z49)) -> . | AQ49: =IF(AA49=".",".",SUM($X49:AA49)) -> . | AR49: =IF(AB49=".",".",SUM($X49:AB49)) -> . | AS49: =IF(AC49=".",".",SUM($X49:AC49)) -> . | AT49: =IF(AD49=".",".",SUM($X49:AD49)) -> . | AV49: . | AW49: . | AX49: . | AY49: . | AZ49: . | BA49: . | BB49: .
A52: =A25+1 -> 2 | B52: ="Table "&A1&"."&A52&": Average Ordinary and Special Rates - with proposed special variation" -> Table 7.2: Average Ordinary and Special Rates - with proposed special variation | X52: =X$25 -> Annual increases (nominal $ per year) | AF52: =AF$25 -> Annual increases (%) | AN52: =AN$25 -> Cumulative increases (nominal $ per year) | AV52: =AV$25 -> Cumulative increases (%)
B53: Category | C53: Sub-category or Special Rate name | I53: Prior year Average Rate | J53: Current Average Rate | K53: Average Rate Year 1 | L53: Average Rate Year 2 | M53: Average Rate Year 3 | N53: Average Rate Year 4 | O53: Average Rate Year 5 | P53: Average Rate Year 6 | Q53: Average Rate Year 7 | T53: ='WS3 - Notional General Income'!$D20 -> Number of Assessments | X53: Average Rates - with proposed special variation | AF53: =$X53 -> Average Rates - with proposed special variation | AN53: =$X53 -> Average Rates - with proposed special variation | AV53: =$X53 -> Average Rates - with proposed special variation
I54: =I27 -> 2023-24 | J54: 2024-25 | K54: 2025-26 | L54: 2026-27 | M54: 2027-28 | N54: 2028-29 | O54: 2029-30 | P54: 2030-31 | Q54: 2031-32 | T54: =J54 -> 2024-25 | U54: =K54 -> 2025-26 | X54: =X$27 -> Year 1 | Y54: =Y$27 -> Year 2 | Z54: Year 3 | AA54: Year 4 | AB54: Year 5 | AC54: Year 6 | AD54: Year 7 | AF54: =AF$27 -> Year 1 | AG54: Year 2 | AH54: Year 3 | AI54: Year 4 | AJ54: Year 5 | AK54: Year 6 | AL54: Year 7 | AN54: =AN$27 -> Year 1 | AO54: =AO$27 -> Year 2 | AP54: Year 3 | AQ54: Year 4 | AR54: Year 5 | AS54: Year 6 | AT54: Year 7 | AV54: =AV$27 -> Year 1 | AW54: =AW$27 -> Year 2 | AX54: Year 3 | AY54: Year 4 | AZ54: Year 5 | BA54: Year 6 | BB54: Year 7
B55: Residential | C55: =IF('WS3 - Notional General Income'!C21="","",'WS3 - Notional General Income'!C21) -> Aberdeen | D55: $ nominal p.a. | I55: 639.1840501 | J55: =IF('WS3 - Notional General Income'!L21=".",".",'WS3 - Notional General Income'!L21/'WS3 - Notional General Income'!D21) -> 668.4506044 | K55: =IF('WS4 - Yr 1 YIELD'!L18=".",".",'WS4 - Yr 1 YIELD'!L18/'WS4 - Yr 1 YIELD'!D18) -> 735.2956648 | L55: 808.8252313 | M55: 889.7077545 | N55: 914.6195716 | O55: 937.4850609 | P55: 960.9221874 | Q55: 984.9452421 | T55: ='WS3 - Notional General Income'!$D21 -> 818 | U55: ='WS4 - Yr 1 YIELD'!$D18 -> 818 | X55: =IF(OR(J55=".",K55="."),".",K55-J55) -> 66.84506044 | Y55: =IF(OR(K55=".",L55="."),".",L55-K55) -> 73.52956648 | Z55: =IF(M55="",".",M55-L55) -> 80.88252313 | AA55: =IF(N55="",".",N55-M55) -> 24.91181712 | AB55: =IF(O55="",".",O55-N55) -> 22.86548929 | AC55: =IF(P55="",".",P55-O55) -> 23.43712652 | AD55: =IF(Q55="",".",Q55-P55) -> 24.02305468 | AF55: =IFERROR(K55/J55-1,".") -> 0.1 | AG55: =IFERROR(L55/K55-1,".") -> 0.1 | AH55: =IFERROR(M55/L55-1,".") -> 0.1 | AI55: =IFERROR(N55/M55-1,".") -> 0.028 | AJ55: =IFERROR(O55/N55-1,".") -> 0.025 | AK55: =IFERROR(P55/O55-1,".") -> 0.025 | AL55: =IFERROR(Q55/P55-1,".") -> 0.025 | AN55: =IF(X55=".",".",SUM($X55:X55)) -> 66.84506044 | AO55: =IF(Y55=".",".",SUM($X55:Y55)) -> 140.3746269 | AP55: =IF(Z55=".",".",SUM($X55:Z55)) -> 221.2571501 | AQ55: =IF(AA55=".",".",SUM($X55:AA55)) -> 246.1689672 | AR55: =IF(AB55=".",".",SUM($X55:AB55)) -> 269.0344565 | AS55: =IF(AC55=".",".",SUM($X55:AC55)) -> 292.471583 | AT55: =IF(AD55=".",".",SUM($X55:AD55)) -> 316.4946377 | AV55: =IFERROR(K55/$J55-1,".") -> 0.1 | AW55: =IFERROR(L55/$J55-1,".") -> 0.21 | AX55: =IFERROR(M55/$J55-1,".") -> 0.331 | AY55: =IFERROR(N55/$J55-1,".") -> 0.368268 | AZ55: =IFERROR(O55/$J55-1,".") -> 0.4024747 | BA55: =IFERROR(P55/$J55-1,".") -> 0.4375365675 | BB55: =IFERROR(Q55/$J55-1,".") -> 0.4734749817
B56: Residential | C56: =IF('WS3 - Notional General Income'!C22="","",'WS3 - Notional General Income'!C22) -> Cassillis | D56: $ nominal p.a. | I56: 543.9126102 | J56: =IF('WS3 - Notional General Income'!L22=".",".",'WS3 - Notional General Income'!L22/'WS3 - Notional General Income'!D22) -> 568.7908694 | K56: =IF('WS4 - Yr 1 YIELD'!L19=".",".",'WS4 - Yr 1 YIELD'!L19/'WS4 - Yr 1 YIELD'!D19) -> 625.6699563 | L56: 688.236952 | M56: 757.0606472 | N56: 778.2583453 | O56: 797.7148039 | P56: 817.657674 | Q56: 838.0991159 | T56: ='WS3 - Notional General Income'!$D22 -> 49 | U56: ='WS4 - Yr 1 YIELD'!$D19 -> 49 | X56: =IF(OR(J56=".",K56="."),".",K56-J56) -> 56.87908694 | Y56: 62.56699563 | Z56: 68.8236952 | AA56: 21.19769812 | AB56: 19.45645863 | AC56: 19.9428701 | AD56: 20.44144185 | AF56: 0.1 | AG56: 0.1 | AH56: 0.1 | AI56: 0.028 | AJ56: 0.025 | AK56: 0.025 | AL56: 0.025 | AN56: =IF(X56=".",".",SUM($X56:X56)) -> 56.87908694 | AO56: =IF(Y56=".",".",SUM($X56:Y56)) -> 119.4460826 | AP56: =IF(Z56=".",".",SUM($X56:Z56)) -> 188.2697778 | AQ56: =IF(AA56=".",".",SUM($X56:AA56)) -> 209.4674759 | AR56: =IF(AB56=".",".",SUM($X56:AB56)) -> 228.9239345 | AS56: =IF(AC56=".",".",SUM($X56:AC56)) -> 248.8668046 | AT56: =IF(AD56=".",".",SUM($X56:AD56)) -> 269.3082465 | AV56: =IFERROR(K56/$J56-1,".") -> 0.1 | AW56: 0.21 | AX56: 0.331 | AY56: 0.368268 | AZ56: 0.4024747 | BA56: 0.4375365675 | BB56: 0.4734749817
B57: Residential | C57: =IF('WS3 - Notional General Income'!C23="","",'WS3 - Notional General Income'!C23) -> Merriwa | D57: $ nominal p.a. | I57: 624.6314513 | J57: =IF('WS3 - Notional General Income'!L23=".",".",'WS3 - Notional General Income'!L23/'WS3 - Notional General Income'!D23) -> 653.2625201 | K57: =IF('WS4 - Yr 1 YIELD'!L20=".",".",'WS4 - Yr 1 YIELD'!L20/'WS4 - Yr 1 YIELD'!D20) -> 718.5887721 | L57: 790.4476493 | M57: 869.4924143 | N57: 893.8382019 | O57: 916.1841569 | P57: 939.0887608 | Q57: 962.5659799 | T57: ='WS3 - Notional General Income'!$D23 -> 532 | U57: ='WS4 - Yr 1 YIELD'!$D20 -> 532 | X57: 65.32625201 | Y57: 71.85887721 | Z57: 79.04476493 | AA57: 24.3457876 | AB57: 22.34595505 | AC57: 22.90460392 | AD57: 23.47721902 | AF57: 0.1 | AG57: 0.1 | AH57: 0.1 | AI57: 0.028 | AJ57: 0.025 | AK57: 0.025 | AL57: 0.025 | AN57: =IF(X57=".",".",SUM($X57:X57)) -> 65.32625201 | AO57: =IF(Y57=".",".",SUM($X57:Y57)) -> 137.1851292 | AP57: =IF(Z57=".",".",SUM($X57:Z57)) -> 216.2298942 | AQ57: =IF(AA57=".",".",SUM($X57:AA57)) -> 240.5756818 | AR57: =IF(AB57=".",".",SUM($X57:AB57)) -> 262.9216368 | AS57: =IF(AC57=".",".",SUM($X57:AC57)) -> 285.8262407 | AT57: =IF(AD57=".",".",SUM($X57:AD57)) -> 309.3034597 | AV57: 0.1 | AW57: 0.21 | AX57: 0.331 | AY57: 0.368268 | AZ57: 0.4024747 | BA57: 0.4375365675 | BB57: 0.4734749817
B58: Residential | C58: =IF('WS3 - Notional General Income'!C24="","",'WS3 - Notional General Income'!C24) -> Murrurundi | D58: $ nominal p.a. | I58: 591.470913 | J58: =IF('WS3 - Notional General Income'!L24=".",".",'WS3 - Notional General Income'!L24/'WS3 - Notional General Income'!D24) -> 618.536961 | K58: =IF('WS4 - Yr 1 YIELD'!L21=".",".",'WS4 - Yr 1 YIELD'!L21/'WS4 - Yr 1 YIELD'!D21) -> 680.3906571 | L58: 748.4297228 | M58: 823.2726951 | N58: 846.3243306 | O58: 867.4824388 | P58: 889.1694998 | Q58: 911.3987373 | T58: ='WS3 - Notional General Income'!$D24 -> 500 | U58: ='WS4 - Yr 1 YIELD'!$D21 -> 500 | X58: 61.8536961 | Y58: 68.03906571 | Z58: 74.84297228 | AA58: 23.05163546 | AB58: 21.15810826 | AC58: 21.68706097 | AD58: 22.22923749 | AF58: 0.1 | AG58: 0.1 | AH58: 0.1 | AI58: 0.028 | AJ58: 0.025 | AK58: 0.025 | AL58: 0.025 | AN58: =IF(X58=".",".",SUM($X58:X58)) -> 61.8536961 | AO58: =IF(Y58=".",".",SUM($X58:Y58)) -> 129.8927618 | AP58: =IF(Z58=".",".",SUM($X58:Z58)) -> 204.7357341 | AQ58: =IF(AA58=".",".",SUM($X58:AA58)) -> 227.7873696 | AR58: =IF(AB58=".",".",SUM($X58:AB58)) -> 248.9454778 | AS58: =IF(AC58=".",".",SUM($X58:AC58)) -> 270.6325388 | AT58: =IF(AD58=".",".",SUM($X58:AD58)) -> 292.8617763 | AV58: 0.1 | AW58: 0.21 | AX58: 0.331 | AY58: 0.368268 | AZ58: 0.4024747 | BA58: 0.4375365675 | BB58: 0.4734749817
B59: Residential | C59: =IF('WS3 - Notional General Income'!C25="","",'WS3 - Notional General Income'!C25) -> Scone | D59: $ nominal p.a. | I59: 1135.220173 | J59: =IF('WS3 - Notional General Income'!L25=".",".",'WS3 - Notional General Income'!L25/'WS3 - Notional General Income'!D25) -> 1187.190825 | K59: =IF('WS4 - Yr 1 YIELD'!L22=".",".",'WS4 - Yr 1 YIELD'!L22/'WS4 - Yr 1 YIELD'!D22) -> 1305.909908 | L59: 1436.500898 | M59: 1580.150988 | N59: 1624.395216 | O59: 1665.005096 | P59: 1706.630224 | Q59: 1749.295979 | T59: ='WS3 - Notional General Income'!$D25 -> 2247 | U59: ='WS4 - Yr 1 YIELD'!$D22 -> 2247 | X59: 118.7190825 | Y59: 130.5909908 | Z59: 143.6500898 | AA59: 44.24422767 | AB59: 40.6098804 | AC59: 41.62512741 | AD59: 42.66575559 | AF59: =IFERROR(K59/J59-1,".") -> 0.1 | AG59: 0.1 | AH59: 0.1 | AI59: 0.028 | AJ59: 0.025 | AK59: 0.025 | AL59: 0.025 | AN59: =IF(X59=".",".",SUM($X59:X59)) -> 118.7190825 | AO59: =IF(Y59=".",".",SUM($X59:Y59)) -> 249.3100733 | AP59: =IF(Z59=".",".",SUM($X59:Z59)) -> 392.9601631 | AQ59: =IF(AA59=".",".",SUM($X59:AA59)) -> 437.2043908 | AR59: =IF(AB59=".",".",SUM($X59:AB59)) -> 477.8142712 | AS59: =IF(AC59=".",".",SUM($X59:AC59)) -> 519.4393986 | AT59: =IF(AD59=".",".",SUM($X59:AD59)) -> 562.1051542 | AV59: 0.1 | AW59: 0.21 | AX59: 0.331 | AY59: 0.368268 | AZ59: 0.4024747 | BA59: 0.4375365675 | BB59: 0.4734749817
B60: Residential | C60: =IF('WS3 - Notional General Income'!C26="","",'WS3 - Notional General Income'!C26) -> Ordinary | D60: $ nominal p.a. | I60: 1044.710625 | J60: =IF('WS3 - Notional General Income'!L26=".",".",'WS3 - Notional General Income'!L26/'WS3 - Notional General Income'!D26) -> 1093.450876 | K60: =IF('WS4 - Yr 1 YIELD'!L23=".",".",'WS4 - Yr 1 YIELD'!L23/'WS4 - Yr 1 YIELD'!D23) -> 1202.795963 | L60: 1323.07556 | M60: 1455.383116 | N60: 1496.133843 | O60: 1533.537189 | P60: 1571.875619 | Q60: 1611.172509 | T60: ='WS3 - Notional General Income'!$D26 -> 1239 | U60: ='WS4 - Yr 1 YIELD'!$D23 -> 1239 | X60: 109.3450876 | Y60: 120.2795963 | Z60: 132.307556 | AA60: 40.75072724 | AB60: 37.40334607 | AC60: 38.33842972 | AD60: 39.29689047 | AF60: =IFERROR(K60/J60-1,".") -> 0.1 | AG60: 0.1 | AH60: 0.1 | AI60: 0.028 | AJ60: 0.025 | AK60: 0.025 | AL60: 0.025 | AN60: =IF(X60=".",".",SUM($X60:X60)) -> 109.3450876 | AO60: =IF(Y60=".",".",SUM($X60:Y60)) -> 229.6246839 | AP60: =IF(Z60=".",".",SUM($X60:Z60)) -> 361.9322399 | AQ60: =IF(AA60=".",".",SUM($X60:AA60)) -> 402.6829671 | AR60: =IF(AB60=".",".",SUM($X60:AB60)) -> 440.0863132 | AS60: =IF(AC60=".",".",SUM($X60:AC60)) -> 478.4247429 | AT60: =IF(AD60=".",".",SUM($X60:AD60)) -> 517.7216334 | AV60: 0.1 | AW60: 0.21 | AX60: 0.331 | AY60: 0.368268 | AZ60: 0.4024747 | BA60: 0.4375365675 | BB60: 0.4734749817
B61: Residential | C61: =IF('WS3 - Notional General Income'!C27="","",'WS3 - Notional General Income'!C27) -> Mixed Development - Aberdeen Residential | D61: $ nominal p.a. | I61: 578.080784 | J61: =IF('WS3 - Notional General Income'!L27=".",".",'WS3 - Notional General Income'!L27/'WS3 - Notional General Income'!D27) -> 503.27551 | K61: =IF('WS4 - Yr 1 YIELD'!L24=".",".",'WS4 - Yr 1 YIELD'!L24/'WS4 - Yr 1 YIELD'!D24) -> 553.603061 | L61: 608.9633671 | M61: 669.8597038 | N61: 688.6157755 | O61: 705.8311699 | P61: 723.4769492 | Q61: 741.5638729 | T61: ='WS3 - Notional General Income'!$D27 -> 1 | U61: ='WS4 - Yr 1 YIELD'!$D24 -> 1 | X61: 50.327551 | Y61: 55.3603061 | Z61: 60.89633671 | AA61: 18.75607171 | AB61: 17.21539439 | AC61: 17.64577925 | AD61: 18.08692373 | AF61: 0.1 | AG61: 0.1 | AH61: 0.1 | AI61: 0.028 | AJ61: 0.025 | AK61: 0.025 | AL61: 0.025 | AN61: =IF(X61=".",".",SUM($X61:X61)) -> 50.327551 | AO61: =IF(Y61=".",".",SUM($X61:Y61)) -> 105.6878571 | AP61: =IF(Z61=".",".",SUM($X61:Z61)) -> 166.5841938 | AQ61: =IF(AA61=".",".",SUM($X61:AA61)) -> 185.3402655 | AR61: =IF(AB61=".",".",SUM($X61:AB61)) -> 202.5556599 | AS61: =IF(AC61=".",".",SUM($X61:AC61)) -> 220.2014392 | AT61: =IF(AD61=".",".",SUM($X61:AD61)) -> 238.2883629 | AV61: 0.1 | AW61: 0.21 | AX61: 0.331 | AY61: 0.368268 | AZ61: 0.4024747 | BA61: 0.4375365675 | BB61: 0.4734749817
B62: Residential | C62: =IF('WS3 - Notional General Income'!C28="","",'WS3 - Notional General Income'!C28) -> Mixed Development - Merriwa Residential | D62: $ nominal p.a. | I62: 311.6993308 | J62: =IF('WS3 - Notional General Income'!L28=".",".",'WS3 - Notional General Income'!L28/'WS3 - Notional General Income'!D28) -> 219.2307353 | K62: =IF('WS4 - Yr 1 YIELD'!L25=".",".",'WS4 - Yr 1 YIELD'!L25/'WS4 - Yr 1 YIELD'!D25) -> 241.1538088 | L62: 265.2691897 | M62: 291.7961086 | N62: 299.9663997 | O62: 307.4655597 | P62: 315.1521986 | Q62: 323.0310036 | T62: ='WS3 - Notional General Income'!$D28 -> 2 | U62: ='WS4 - Yr 1 YIELD'!$D25 -> 2 | X62: 21.92307353 | Y62: 24.11538088 | Z62: 26.52691897 | AA62: 8.170291041 | AB62: 7.499159991 | AC62: 7.686638991 | AD62: 7.878804966 | AF62: 0.1 | AG62: 0.1 | AH62: 0.1 | AI62: 0.028 | AJ62: 0.025 | AK62: 0.025 | AL62: 0.025 | AN62: =IF(X62=".",".",SUM($X62:X62)) -> 21.92307353 | AO62: =IF(Y62=".",".",SUM($X62:Y62)) -> 46.0384544 | AP62: =IF(Z62=".",".",SUM($X62:Z62)) -> 72.56537337 | AQ62: =IF(AA62=".",".",SUM($X62:AA62)) -> 80.73566441 | AR62: =IF(AB62=".",".",SUM($X62:AB62)) -> 88.2348244 | AS62: =IF(AC62=".",".",SUM($X62:AC62)) -> 95.92146339 | AT62: =IF(AD62=".",".",SUM($X62:AD62)) -> 103.8002684 | AV62: 0.1 | AW62: 0.21 | AX62: 0.331 | AY62: 0.368268 | AZ62: 0.4024747 | BA62: 0.4375365675 | BB62: 0.4734749817
B63: Residential | C63: =IF('WS3 - Notional General Income'!C29="","",'WS3 - Notional General Income'!C29) -> Mixed Development - Murrurundi Residential | D63: $ nominal p.a. | I63: 369.397 | J63: =IF('WS3 - Notional General Income'!L29=".",".",'WS3 - Notional General Income'!L29/'WS3 - Notional General Income'!D29) -> 281.109 | K63: =IF('WS4 - Yr 1 YIELD'!L26=".",".",'WS4 - Yr 1 YIELD'!L26/'WS4 - Yr 1 YIELD'!D26) -> 309.2199 | L63: 340.14189 | M63: 374.156079 | N63: 384.6324492 | O63: 394.2482604 | P63: 404.104467 | Q63: 414.2070786 | T63: ='WS3 - Notional General Income'!$D29 -> 1 | U63: ='WS4 - Yr 1 YIELD'!$D26 -> 1 | X63: 28.1109 | Y63: 30.92199 | Z63: 34.014189 | AA63: 10.47637021 | AB63: 9.61581123 | AC63: 9.856206511 | AD63: 10.10261167 | AF63: 0.1 | AG63: 0.1 | AH63: 0.1 | AI63: 0.028 | AJ63: 0.025 | AK63: 0.025 | AL63: 0.025 | AN63: =IF(X63=".",".",SUM($X63:X63)) -> 28.1109 | AO63: =IF(Y63=".",".",SUM($X63:Y63)) -> 59.03289 | AP63: =IF(Z63=".",".",SUM($X63:Z63)) -> 93.047079 | AQ63: =IF(AA63=".",".",SUM($X63:AA63)) -> 103.5234492 | AR63: =IF(AB63=".",".",SUM($X63:AB63)) -> 113.1392604 | AS63: =IF(AC63=".",".",SUM($X63:AC63)) -> 122.995467 | AT63: =IF(AD63=".",".",SUM($X63:AD63)) -> 133.0980786 | AV63: 0.1 | AW63: 0.21 | AX63: 0.331 | AY63: 0.368268 | AZ63: 0.4024747 | BA63: 0.4375365675 | BB63: 0.4734749817
B64: Residential | C64: =IF('WS3 - Notional General Income'!C30="","",'WS3 - Notional General Income'!C30) ->  | D64: $ nominal p.a. | J64: =IF('WS3 - Notional General Income'!L30=".",".",'WS3 - Notional General Income'!L30/'WS3 - Notional General Income'!D30) -> . | K64: =IF('WS4 - Yr 1 YIELD'!L27=".",".",'WS4 - Yr 1 YIELD'!L27/'WS4 - Yr 1 YIELD'!D27) -> . | T64: ='WS3 - Notional General Income'!$D30 -> 0 | U64: ='WS4 - Yr 1 YIELD'!$D27 -> 0 | X64: . | Y64: . | Z64: . | AA64: . | AB64: . | AC64: . | AD64: . | AF64: =IFERROR(K64/J64-1,".") -> . | AG64: . | AH64: . | AI64: . | AJ64: . | AK64: . | AL64: . | AN64: =IF(X64=".",".",SUM($X64:X64)) -> . | AO64: =IF(Y64=".",".",SUM($X64:Y64)) -> . | AP64: =IF(Z64=".",".",SUM($X64:Z64)) -> . | AQ64: =IF(AA64=".",".",SUM($X64:AA64)) -> . | AR64: =IF(AB64=".",".",SUM($X64:AB64)) -> . | AS64: =IF(AC64=".",".",SUM($X64:AC64)) -> . | AT64: =IF(AD64=".",".",SUM($X64:AD64)) -> . | AV64: . | AW64: . | AX64: . | AY64: . | AZ64: . | BA64: . | BB64: .
B65: Special rate | C65: =IF('WS3 - Notional General Income'!C54="","",'WS3 - Notional General Income'!C54) ->  | D65: $ nominal p.a. | J65: =IF('WS3 - Notional General Income'!L54=".",".",'WS3 - Notional General Income'!L54/'WS3 - Notional General Income'!D54) -> . | K65: =IF('WS4 - Yr 1 YIELD'!L51=".",".",'WS4 - Yr 1 YIELD'!L51/'WS4 - Yr 1 YIELD'!D51) -> . | T65: ='WS3 - Notional General Income'!$D54 -> 0 | U65: ='WS4 - Yr 1 YIELD'!$D51 -> 0 | X65: . | Y65: . | Z65: . | AA65: . | AB65: . | AC65: . | AD65: . | AF65: . | AG65: . | AH65: . | AI65: . | AJ65: . | AK65: . | AL65: . | AN65: =IF(X65=".",".",SUM($X65:X65)) -> . | AO65: =IF(Y65=".",".",SUM($X65:Y65)) -> . | AP65: =IF(Z65=".",".",SUM($X65:Z65)) -> . | AQ65: =IF(AA65=".",".",SUM($X65:AA65)) -> . | AR65: =IF(AB65=".",".",SUM($X65:AB65)) -> . | AS65: =IF(AC65=".",".",SUM($X65:AC65)) -> . | AT65: =IF(AD65=".",".",SUM($X65:AD65)) -> . | AV65: . | AW65: . | AX65: . | AY65: . | AZ65: . | BA65: . | BB65: .
B66: Special rate | C66: =IF('WS3 - Notional General Income'!C55="","",'WS3 - Notional General Income'!C55) ->  | D66: $ nominal p.a. | J66: =IF('WS3 - Notional General Income'!L55=".",".",'WS3 - Notional General Income'!L55/'WS3 - Notional General Income'!D55) -> . | K66: =IF('WS4 - Yr 1 YIELD'!L52=".",".",'WS4 - Yr 1 YIELD'!L52/'WS4 - Yr 1 YIELD'!D52) -> . | T66: ='WS3 - Notional General Income'!$D55 -> 0 | U66: ='WS4 - Yr 1 YIELD'!$D52 -> 0 | X66: . | Y66: . | Z66: . | AA66: . | AB66: . | AC66: . | AD66: . | AF66: . | AG66: . | AH66: . | AI66: . | AJ66: . | AK66: . | AL66: . | AN66: =IF(X66=".",".",SUM($X66:X66)) -> . | AO66: =IF(Y66=".",".",SUM($X66:Y66)) -> . | AP66: =IF(Z66=".",".",SUM($X66:Z66)) -> . | AQ66: =IF(AA66=".",".",SUM($X66:AA66)) -> . | AR66: =IF(AB66=".",".",SUM($X66:AB66)) -> . | AS66: =IF(AC66=".",".",SUM($X66:AC66)) -> . | AT66: =IF(AD66=".",".",SUM($X66:AD66)) -> . | AV66: . | AW66: . | AX66: . | AY66: . | AZ66: . | BA66: . | BB66: .
C67: TOTAL AVERAGE | I67: 932.3553691 | J67: =IF($T67=0,".",SUMPRODUCT(J55:J66,$T55:$T66)/$T67) -> 975.1519305 | K67: =IF($U67=0,".",SUMPRODUCT(K55:K66,$U55:$U66)/$U67) -> 1072.667124 | L67: 1179.933836 | M67: 1297.927219 | N67: 1334.269182 | O67: 1367.625911 | P67: 1401.816559 | Q67: 1436.861973 | T67: =SUM(T55:T64) -> 5389 | U67: =SUM(U55:U64) -> 5389 | X67: 97.51519305 | Y67: 107.2667124 | Z67: =IF(M67=".",".",M67-L67) -> 117.9933836 | AA67: 36.34196215 | AB67: 33.35672954 | AC67: 34.19064778 | AD67: 35.04541397 | AF67: 0.1 | AG67: 0.1 | AH67: 0.1 | AI67: 0.028 | AJ67: 0.025 | AK67: 0.025 | AL67: 0.025 | AN67: =IF(X67=".",".",SUM($X67:X67)) -> 97.51519305 | AO67: =IF(Y67=".",".",SUM($X67:Y67)) -> 204.7819054 | AP67: =IF(Z67=".",".",SUM($X67:Z67)) -> 322.775289 | AQ67: =IF(AA67=".",".",SUM($X67:AA67)) -> 359.1172511 | AR67: =IF(AB67=".",".",SUM($X67:AB67)) -> 392.4739807 | AS67: =IF(AC67=".",".",SUM($X67:AC67)) -> 426.6646285 | AT67: =IF(AD67=".",".",SUM($X67:AD67)) -> 461.7100424 | AV67: 0.1 | AW67: 0.21 | AX67: 0.331 | AY67: 0.368268 | AZ67: 0.4024747 | BA67: 0.4375365675 | BB67: 0.4734749817
B68: Business | C68: =IF('WS3 - Notional General Income'!C32="","",'WS3 - Notional General Income'!C32) -> Aberdeen | D68: $ nominal p.a. | I68: 1182.035187 | J68: =IF('WS3 - Notional General Income'!L32=".",".",'WS3 - Notional General Income'!L32/'WS3 - Notional General Income'!D32) -> 1236.115131 | K68: =IF('WS4 - Yr 1 YIELD'!L29=".",".",'WS4 - Yr 1 YIELD'!L29/'WS4 - Yr 1 YIELD'!D29) -> 1359.726644 | L68: 1495.699308 | M68: 1645.269239 | N68: 1691.336778 | O68: 1733.620197 | P68: 1776.960702 | Q68: 1821.38472 | T68: ='WS3 - Notional General Income'!$D32 -> 38 | U68: ='WS4 - Yr 1 YIELD'!$D29 -> 38 | X68: 123.6115131 | Y68: 135.9726644 | Z68: 149.5699308 | AA68: 46.06753869 | AB68: 42.28341944 | AC68: 43.34050493 | AD68: 44.42401755 | AF68: =IFERROR(K68/J68-1,".") -> 0.1 | AG68: 0.1 | AH68: =IFERROR(M68/L68-1,".") -> 0.1 | AI68: 0.028 | AJ68: 0.025 | AK68: 0.025 | AL68: 0.025 | AN68: =IF(X68=".",".",SUM($X68:X68)) -> 123.6115131 | AO68: =IF(Y68=".",".",SUM($X68:Y68)) -> 259.5841775 | AP68: =IF(Z68=".",".",SUM($X68:Z68)) -> 409.1541083 | AQ68: =IF(AA68=".",".",SUM($X68:AA68)) -> 455.221647 | AR68: =IF(AB68=".",".",SUM($X68:AB68)) -> 497.5050664 | AS68: =IF(AC68=".",".",SUM($X68:AC68)) -> 540.8455714 | AT68: =IF(AD68=".",".",SUM($X68:AD68)) -> 585.2695889 | AV68: 0.1 | AW68: 0.21 | AX68: 0.331 | AY68: 0.368268 | AZ68: 0.4024747 | BA68: 0.4375365675 | BB68: 0.4734749817
B69: Business | C69: =IF('WS3 - Notional General Income'!C33="","",'WS3 - Notional General Income'!C33) -> Merriwa | D69: $ nominal p.a. | I69: 771.7279153 | J69: =IF('WS3 - Notional General Income'!L33=".",".",'WS3 - Notional General Income'!L33/'WS3 - Notional General Income'!D33) -> 807.0952759 | K69: =IF('WS4 - Yr 1 YIELD'!L30=".",".",'WS4 - Yr 1 YIELD'!L30/'WS4 - Yr 1 YIELD'!D30) -> 887.8048035 | L69: 976.5852839 | M69: 1074.243812 | N69: 1104.322639 | O69: 1131.930705 | P69: 1160.228973 | Q69: 1189.234697 | T69: ='WS3 - Notional General Income'!$D33 -> 59 | U69: ='WS4 - Yr 1 YIELD'!$D30 -> 59 | X69: 80.70952759 | Y69: 88.78048035 | Z69: =IF(M69="",".",M69-L69) -> 97.65852839 | AA69: =IF(N69="",".",N69-M69) -> 30.07882674 | AB69: =IF(O69="",".",O69-N69) -> 27.60806598 | AC69: =IF(P69="",".",P69-O69) -> 28.29826762 | AD69: =IF(Q69="",".",Q69-P69) -> 29.00572432 | AF69: 0.1 | AG69: 0.1 | AH69: 0.1 | AI69: 0.028 | AJ69: 0.025 | AK69: 0.025 | AL69: 0.025 | AN69: =IF(X69=".",".",SUM($X69:X69)) -> 80.70952759 | AO69: =IF(Y69=".",".",SUM($X69:Y69)) -> 169.4900079 | AP69: =IF(Z69=".",".",SUM($X69:Z69)) -> 267.1485363 | AQ69: =IF(AA69=".",".",SUM($X69:AA69)) -> 297.2273631 | AR69: =IF(AB69=".",".",SUM($X69:AB69)) -> 324.8354291 | AS69: =IF(AC69=".",".",SUM($X69:AC69)) -> 353.1336967 | AT69: =IF(AD69=".",".",SUM($X69:AD69)) -> 382.139421 | AV69: 0.1 | AW69: 0.21 | AX69: 0.331 | AY69: 0.368268 | AZ69: 0.4024747 | BA69: 0.4375365675 | BB69: 0.4734749817
B70: Business | C70: =IF('WS3 - Notional General Income'!C34="","",'WS3 - Notional General Income'!C34) -> Murrurundi | D70: $ nominal p.a. | I70: 943.8036503 | J70: =IF('WS3 - Notional General Income'!L34=".",".",'WS3 - Notional General Income'!L34/'WS3 - Notional General Income'!D34) -> 986.9976392 | K70: =IF('WS4 - Yr 1 YIELD'!L31=".",".",'WS4 - Yr 1 YIELD'!L31/'WS4 - Yr 1 YIELD'!D31) -> 1085.697403 | L70: 1194.267143 | M70: 1313.693858 | N70: 1350.477286 | O70: 1384.239218 | P70: 1418.845198 | Q70: 1454.316328 | T70: ='WS3 - Notional General Income'!$D34 -> 37 | U70: ='WS4 - Yr 1 YIELD'!$D31 -> 37 | X70: 98.69976392 | Y70: 108.5697403 | Z70: 119.4267143 | AA70: 36.78342802 | AB70: 33.76193214 | AC70: 34.60598045 | AD70: 35.47112996 | AF70: 0.1 | AG70: 0.1 | AH70: 0.1 | AI70: 0.028 | AJ70: 0.025 | AK70: 0.025 | AL70: 0.025 | AN70: =IF(X70=".",".",SUM($X70:X70)) -> 98.69976392 | AO70: =IF(Y70=".",".",SUM($X70:Y70)) -> 207.2695042 | AP70: =IF(Z70=".",".",SUM($X70:Z70)) -> 326.6962186 | AQ70: =IF(AA70=".",".",SUM($X70:AA70)) -> 363.4796466 | AR70: =IF(AB70=".",".",SUM($X70:AB70)) -> 397.2415787 | AS70: =IF(AC70=".",".",SUM($X70:AC70)) -> 431.8475592 | AT70: =IF(AD70=".",".",SUM($X70:AD70)) -> 467.3186891 | AV70: 0.1 | AW70: 0.21 | AX70: 0.331 | AY70: 0.368268 | AZ70: 0.4024747 | BA70: 0.4375365675 | BB70: 0.4734749817
B71: Business | C71: =IF('WS3 - Notional General Income'!C35="","",'WS3 - Notional General Income'!C35) -> Scone | D71: $ nominal p.a. | I71: 1737.068409 | J71: =IF('WS3 - Notional General Income'!L35=".",".",'WS3 - Notional General Income'!L35/'WS3 - Notional General Income'!D35) -> 1816.568421 | K71: =IF('WS4 - Yr 1 YIELD'!L32=".",".",'WS4 - Yr 1 YIELD'!L32/'WS4 - Yr 1 YIELD'!D32) -> 1998.225263 | L71: 2198.047789 | M71: 2417.852568 | N71: 2485.55244 | O71: 2547.691251 | P71: 2611.383532 | Q71: 2676.66812 | T71: ='WS3 - Notional General Income'!$D35 -> 266 | U71: ='WS4 - Yr 1 YIELD'!$D32 -> 266 | X71: 181.6568421 | Y71: 199.8225263 | Z71: 219.8047789 | AA71: 67.6998719 | AB71: 62.13881099 | AC71: 63.69228127 | AD71: 65.2845883 | AF71: 0.1 | AG71: 0.1 | AH71: 0.1 | AI71: 0.028 | AJ71: 0.025 | AK71: 0.025 | AL71: 0.025 | AN71: =IF(X71=".",".",SUM($X71:X71)) -> 181.6568421 | AO71: =IF(Y71=".",".",SUM($X71:Y71)) -> 381.4793683 | AP71: =IF(Z71=".",".",SUM($X71:Z71)) -> 601.2841472 | AQ71: =IF(AA71=".",".",SUM($X71:AA71)) -> 668.9840191 | AR71: =IF(AB71=".",".",SUM($X71:AB71)) -> 731.1228301 | AS71: =IF(AC71=".",".",SUM($X71:AC71)) -> 794.8151114 | AT71: =IF(AD71=".",".",SUM($X71:AD71)) -> 860.0996997 | AV71: 0.1 | AW71: 0.21 | AX71: 0.331 | AY71: 0.368268 | AZ71: 0.4024747 | BA71: 0.4375365675 | BB71: 0.4734749817
B72: Business | C72: =IF('WS3 - Notional General Income'!C36="","",'WS3 - Notional General Income'!C36) -> Ordinary | D72: $ nominal p.a. | I72: 753.0393028 | J72: =IF('WS3 - Notional General Income'!L36=".",".",'WS3 - Notional General Income'!L36/'WS3 - Notional General Income'!D36) -> 792.2169017 | K72: =IF('WS4 - Yr 1 YIELD'!L33=".",".",'WS4 - Yr 1 YIELD'!L33/'WS4 - Yr 1 YIELD'!D33) -> 871.4385918 | L72: 958.582451 | M72: 1054.440696 | N72: 1083.965036 | O72: 1111.064161 | P72: 1138.840766 | Q72: 1167.311785 | T72: ='WS3 - Notional General Income'!$D36 -> 333 | U72: ='WS4 - Yr 1 YIELD'!$D33 -> 333 | X72: 79.22169017 | Y72: 87.14385918 | Z72: 95.8582451 | AA72: 29.52433949 | AB72: 27.09912589 | AC72: 27.77660404 | AD72: 28.47101914 | AF72: 0.1 | AG72: 0.1 | AH72: 0.1 | AI72: 0.028 | AJ72: 0.025 | AK72: 0.025 | AL72: 0.025 | AN72: =IF(X72=".",".",SUM($X72:X72)) -> 79.22169017 | AO72: =IF(Y72=".",".",SUM($X72:Y72)) -> 166.3655493 | AP72: =IF(Z72=".",".",SUM($X72:Z72)) -> 262.2237944 | AQ72: =IF(AA72=".",".",SUM($X72:AA72)) -> 291.7481339 | AR72: =IF(AB72=".",".",SUM($X72:AB72)) -> 318.8472598 | AS72: =IF(AC72=".",".",SUM($X72:AC72)) -> 346.6238639 | AT72: =IF(AD72=".",".",SUM($X72:AD72)) -> 375.094883 | AV72: 0.1 | AW72: 0.21 | AX72: 0.331 | AY72: 0.368268 | AZ72: 0.4024747 | BA72: 0.4375365675 | BB72: 0.4734749817
B73: Business | C73: =IF('WS3 - Notional General Income'!C37="","",'WS3 - Notional General Income'!C37) -> Mixed Development - Aberdeen Residential | D73: $ nominal p.a. | I73: 581.164875 | J73: =IF('WS3 - Notional General Income'!L37=".",".",'WS3 - Notional General Income'!L37/'WS3 - Notional General Income'!D37) -> 713.16919 | K73: =IF('WS4 - Yr 1 YIELD'!L34=".",".",'WS4 - Yr 1 YIELD'!L34/'WS4 - Yr 1 YIELD'!D34) -> 784.486109 | L73: 862.9347199 | M73: 949.2281919 | N73: 975.8065813 | O73: 1000.201746 | P73: 1025.206789 | Q73: 1050.836959 | T73: ='WS3 - Notional General Income'!$D37 -> 1 | U73: ='WS4 - Yr 1 YIELD'!$D34 -> 1 | X73: 71.316919 | Y73: 78.4486109 | Z73: 86.29347199 | AA73: 26.57838937 | AB73: 24.39516453 | AC73: 25.00504364 | AD73: 25.63016974 | AF73: 0.1 | AG73: 0.1 | AH73: 0.1 | AI73: 0.028 | AJ73: 0.025 | AK73: 0.025 | AL73: 0.025 | AN73: =IF(X73=".",".",SUM($X73:X73)) -> 71.316919 | AO73: =IF(Y73=".",".",SUM($X73:Y73)) -> 149.7655299 | AP73: =IF(Z73=".",".",SUM($X73:Z73)) -> 236.0590019 | AQ73: =IF(AA73=".",".",SUM($X73:AA73)) -> 262.6373913 | AR73: =IF(AB73=".",".",SUM($X73:AB73)) -> 287.0325558 | AS73: =IF(AC73=".",".",SUM($X73:AC73)) -> 312.0375994 | AT73: =IF(AD73=".",".",SUM($X73:AD73)) -> 337.6677692 | AV73: 0.1 | AW73: 0.21 | AX73: 0.331 | AY73: 0.368268 | AZ73: 0.4024747 | BA73: 0.4375365675 | BB73: 0.4734749817
B74: Business | C74: =IF('WS3 - Notional General Income'!C38="","",'WS3 - Notional General Income'!C38) -> Mixed Development - Merriwa Residential | D74: $ nominal p.a. | I74: 163.5761798 | J74: =IF('WS3 - Notional General Income'!L38=".",".",'WS3 - Notional General Income'!L38/'WS3 - Notional General Income'!D38) -> 273.69508 | K74: =IF('WS4 - Yr 1 YIELD'!L35=".",".",'WS4 - Yr 1 YIELD'!L35/'WS4 - Yr 1 YIELD'!D35) -> 301.064588 | L74: 331.1710468 | M74: 364.2881515 | N74: 374.4882197 | O74: 383.8504252 | P74: 393.4466858 | Q74: 403.282853 | T74: ='WS3 - Notional General Income'!$D38 -> 2 | U74: ='WS4 - Yr 1 YIELD'!$D35 -> 2 | X74: 27.369508 | Y74: 30.1064588 | Z74: 33.11710468 | AA74: 10.20006824 | AB74: 9.362205493 | AC74: 9.59626063 | AD74: 9.836167146 | AF74: 0.1 | AG74: 0.1 | AH74: 0.1 | AI74: 0.028 | AJ74: 0.025 | AK74: 0.025 | AL74: 0.025 | AN74: =IF(X74=".",".",SUM($X74:X74)) -> 27.369508 | AO74: =IF(Y74=".",".",SUM($X74:Y74)) -> 57.4759668 | AP74: =IF(Z74=".",".",SUM($X74:Z74)) -> 90.59307148 | AQ74: =IF(AA74=".",".",SUM($X74:AA74)) -> 100.7931397 | AR74: =IF(AB74=".",".",SUM($X74:AB74)) -> 110.1553452 | AS74: =IF(AC74=".",".",SUM($X74:AC74)) -> 119.7516058 | AT74: =IF(AD74=".",".",SUM($X74:AD74)) -> 129.587773 | AV74: 0.1 | AW74: 0.21 | AX74: 0.331 | AY74: 0.368268 | AZ74: 0.4024747 | BA74: 0.4375365675 | BB74: 0.4734749817
B75: Business | C75: =IF('WS3 - Notional General Income'!C39="","",'WS3 - Notional General Income'!C39) -> Mixed Development - Murrurundi Residential | D75: $ nominal p.a. | I75: 200.9462 | J75: =IF('WS3 - Notional General Income'!L39=".",".",'WS3 - Notional General Income'!L39/'WS3 - Notional General Income'!D39) -> 312.6155 | K75: =IF('WS4 - Yr 1 YIELD'!L36=".",".",'WS4 - Yr 1 YIELD'!L36/'WS4 - Yr 1 YIELD'!D36) -> 343.87705 | L75: 378.264755 | M75: 416.0912305 | N75: 427.741785 | O75: 438.4353296 | P75: 449.3962128 | Q75: 460.6311181 | T75: ='WS3 - Notional General Income'!$D39 -> 1 | U75: ='WS4 - Yr 1 YIELD'!$D36 -> 1 | X75: 31.26155 | Y75: 34.387705 | Z75: 37.8264755 | AA75: 11.65055445 | AB75: 10.69354462 | AC75: 10.96088324 | AD75: 11.23490532 | AF75: 0.1 | AG75: 0.1 | AH75: 0.1 | AI75: 0.028 | AJ75: 0.025 | AK75: 0.025 | AL75: 0.025 | AN75: =IF(X75=".",".",SUM($X75:X75)) -> 31.26155 | AO75: =IF(Y75=".",".",SUM($X75:Y75)) -> 65.649255 | AP75: =IF(Z75=".",".",SUM($X75:Z75)) -> 103.4757305 | AQ75: =IF(AA75=".",".",SUM($X75:AA75)) -> 115.126285 | AR75: =IF(AB75=".",".",SUM($X75:AB75)) -> 125.8198296 | AS75: =IF(AC75=".",".",SUM($X75:AC75)) -> 136.7807128 | AT75: =IF(AD75=".",".",SUM($X75:AD75)) -> 148.0156181 | AV75: 0.1 | AW75: 0.21 | AX75: 0.331 | AY75: 0.368268 | AZ75: 0.4024747 | BA75: 0.4375365675 | BB75: 0.4734749817
B76: Business | C76: =IF('WS3 - Notional General Income'!C40="","",'WS3 - Notional General Income'!C40) ->  | D76: $ nominal p.a. | J76: =IF('WS3 - Notional General Income'!L40=".",".",'WS3 - Notional General Income'!L40/'WS3 - Notional General Income'!D40) -> . | K76: =IF('WS4 - Yr 1 YIELD'!L37=".",".",'WS4 - Yr 1 YIELD'!L37/'WS4 - Yr 1 YIELD'!D37) -> . | T76: ='WS3 - Notional General Income'!$D40 -> 0 | U76: ='WS4 - Yr 1 YIELD'!$D37 -> 0 | X76: . | Y76: . | Z76: . | AA76: . | AB76: . | AC76: . | AD76: . | AF76: . | AG76: . | AH76: . | AI76: . | AJ76: . | AK76: . | AL76: . | AN76: =IF(X76=".",".",SUM($X76:X76)) -> . | AO76: =IF(Y76=".",".",SUM($X76:Y76)) -> . | AP76: =IF(Z76=".",".",SUM($X76:Z76)) -> . | AQ76: =IF(AA76=".",".",SUM($X76:AA76)) -> . | AR76: =IF(AB76=".",".",SUM($X76:AB76)) -> . | AS76: =IF(AC76=".",".",SUM($X76:AC76)) -> . | AT76: =IF(AD76=".",".",SUM($X76:AD76)) -> . | AV76: . | AW76: . | AX76: . | AY76: . | AZ76: . | BA76: . | BB76: .
B77: Special rate | C77: =IF('WS3 - Notional General Income'!C56="","",'WS3 - Notional General Income'!C56) ->  | D77: $ nominal p.a. | J77: =IF('WS3 - Notional General Income'!L56=".",".",'WS3 - Notional General Income'!L56/'WS3 - Notional General Income'!D56) -> . | K77: =IF('WS4 - Yr 1 YIELD'!L53=".",".",'WS4 - Yr 1 YIELD'!L53/'WS4 - Yr 1 YIELD'!D53) -> . | T77: ='WS3 - Notional General Income'!$D56 -> 0 | U77: ='WS4 - Yr 1 YIELD'!$D53 -> 0 | X77: =IF(OR(J77=".",K77="."),".",K77-J77) -> . | Y77: =IF(OR(K77=".",L77="."),".",L77-K77) -> . | Z77: =IF(M77="",".",M77-L77) -> . | AA77: =IF(N77="",".",N77-M77) -> . | AB77: =IF(O77="",".",O77-N77) -> . | AC77: =IF(P77="",".",P77-O77) -> . | AD77: =IF(Q77="",".",Q77-P77) -> . | AF77: . | AG77: =IFERROR(L77/K77-1,".") -> . | AH77: . | AI77: =IFERROR(N77/M77-1,".") -> . | AJ77: =IFERROR(O77/N77-1,".") -> . | AK77: =IFERROR(P77/O77-1,".") -> . | AL77: =IFERROR(Q77/P77-1,".") -> . | AN77: =IF(X77=".",".",SUM($X77:X77)) -> . | AO77: =IF(Y77=".",".",SUM($X77:Y77)) -> . | AP77: =IF(Z77=".",".",SUM($X77:Z77)) -> . | AQ77: =IF(AA77=".",".",SUM($X77:AA77)) -> . | AR77: =IF(AB77=".",".",SUM($X77:AB77)) -> . | AS77: =IF(AC77=".",".",SUM($X77:AC77)) -> . | AT77: =IF(AD77=".",".",SUM($X77:AD77)) -> . | AV77: =IFERROR(K77/$J77-1,".") -> . | AW77: =IFERROR(L77/$J77-1,".") -> . | AX77: =IFERROR(M77/$J77-1,".") -> . | AY77: =IFERROR(N77/$J77-1,".") -> . | AZ77: =IFERROR(O77/$J77-1,".") -> . | BA77: =IFERROR(P77/$J77-1,".") -> . | BB77: =IFERROR(Q77/$J77-1,".") -> .
B78: Special rate | C78: =IF('WS3 - Notional General Income'!C57="","",'WS3 - Notional General Income'!C57) ->  | D78: $ nominal p.a. | J78: =IF('WS3 - Notional General Income'!L57=".",".",'WS3 - Notional General Income'!L57/'WS3 - Notional General Income'!D57) -> . | K78: =IF('WS4 - Yr 1 YIELD'!L54=".",".",'WS4 - Yr 1 YIELD'!L54/'WS4 - Yr 1 YIELD'!D54) -> . | T78: ='WS3 - Notional General Income'!$D57 -> 0 | U78: ='WS4 - Yr 1 YIELD'!$D54 -> 0 | X78: . | Y78: . | Z78: . | AA78: . | AB78: . | AC78: . | AD78: . | AF78: . | AG78: . | AH78: . | AI78: . | AJ78: . | AK78: . | AL78: . | AN78: =IF(X78=".",".",SUM($X78:X78)) -> . | AO78: =IF(Y78=".",".",SUM($X78:Y78)) -> . | AP78: =IF(Z78=".",".",SUM($X78:Z78)) -> . | AQ78: =IF(AA78=".",".",SUM($X78:AA78)) -> . | AR78: =IF(AB78=".",".",SUM($X78:AB78)) -> . | AS78: =IF(AC78=".",".",SUM($X78:AC78)) -> . | AT78: =IF(AD78=".",".",SUM($X78:AD78)) -> . | AV78: . | AW78: . | AX78: . | AY78: . | AZ78: . | BA78: . | BB78: .
C79: TOTAL AVERAGE | I79: 1137.764067 | J79: =IF($T79=0,".",SUMPRODUCT(J68:J78,$T68:$T78)/$T79) -> 1193.620776 | K79: =IF($U79=0,".",SUMPRODUCT(K68:K78,$U68:$U78)/$U79) -> 1312.982854 | L79: 1444.281139 | M79: 1588.709253 | N79: 1633.193112 | O79: 1674.02294 | P79: 1715.873513 | Q79: 1758.770351 | T79: =SUM(T68:T76) -> 737 | U79: =SUM(U68:U76) -> 737 | X79: 119.3620776 | Y79: 131.2982854 | Z79: =IF(M79=".",".",M79-L79) -> 144.4281139 | AA79: 44.48385908 | AB79: 40.8298278 | AC79: 41.85057349 | AD79: 42.89683783 | AF79: 0.1 | AG79: 0.1 | AH79: 0.1 | AI79: 0.028 | AJ79: 0.025 | AK79: 0.025 | AL79: 0.025 | AN79: =IF(X79=".",".",SUM($X79:X79)) -> 119.3620776 | AO79: =IF(Y79=".",".",SUM($X79:Y79)) -> 250.660363 | AP79: =IF(Z79=".",".",SUM($X79:Z79)) -> 395.0884768 | AQ79: =IF(AA79=".",".",SUM($X79:AA79)) -> 439.5723359 | AR79: =IF(AB79=".",".",SUM($X79:AB79)) -> 480.4021637 | AS79: =IF(AC79=".",".",SUM($X79:AC79)) -> 522.2527372 | AT79: =IF(AD79=".",".",SUM($X79:AD79)) -> 565.149575 | AV79: 0.1 | AW79: 0.21 | AX79: 0.331 | AY79: 0.368268 | AZ79: 0.4024747 | BA79: 0.4375365675 | BB79: 0.4734749817
B80: Farmland | C80: =IF('WS3 - Notional General Income'!C42="","",'WS3 - Notional General Income'!C42) ->  | D80: $ nominal p.a. | I80: 3972.875903 | J80: =IF('WS3 - Notional General Income'!L42=".",".",'WS3 - Notional General Income'!L42/'WS3 - Notional General Income'!D42) -> 4170.005142 | K80: =IF('WS4 - Yr 1 YIELD'!L39=".",".",'WS4 - Yr 1 YIELD'!L39/'WS4 - Yr 1 YIELD'!D39) -> 4587.005657 | L80: 5045.706222 | M80: 5550.276844 | N80: 5705.684596 | O80: 5848.326711 | P80: 5994.534879 | Q80: 6144.398251 | T80: ='WS3 - Notional General Income'!$D42 -> 1606 | U80: ='WS4 - Yr 1 YIELD'!$D39 -> 1606 | X80: 417.0005142 | Y80: 458.7005657 | Z80: 504.5706222 | AA80: 155.4077516 | AB80: 142.6421149 | AC80: 146.2081678 | AD80: 149.863372 | AF80: =IFERROR(K80/J80-1,".") -> 0.1 | AG80: =IFERROR(L80/K80-1,".") -> 0.1 | AH80: =IFERROR(M80/L80-1,".") -> 0.1 | AI80: 0.028 | AJ80: 0.025 | AK80: 0.025 | AL80: 0.025 | AN80: =IF(X80=".",".",SUM($X80:X80)) -> 417.0005142 | AO80: =IF(Y80=".",".",SUM($X80:Y80)) -> 875.7010799 | AP80: =IF(Z80=".",".",SUM($X80:Z80)) -> 1380.271702 | AQ80: =IF(AA80=".",".",SUM($X80:AA80)) -> 1535.679454 | AR80: =IF(AB80=".",".",SUM($X80:AB80)) -> 1678.321569 | AS80: =IF(AC80=".",".",SUM($X80:AC80)) -> 1824.529736 | AT80: =IF(AD80=".",".",SUM($X80:AD80)) -> 1974.393108 | AV80: 0.1 | AW80: 0.21 | AX80: 0.331 | AY80: 0.368268 | AZ80: 0.4024747 | BA80: 0.4375365675 | BB80: 0.4734749817
B81: Farmland | C81: =IF('WS3 - Notional General Income'!C43="","",'WS3 - Notional General Income'!C43) ->  | D81: $ nominal p.a. | J81: =IF('WS3 - Notional General Income'!L43=".",".",'WS3 - Notional General Income'!L43/'WS3 - Notional General Income'!D43) -> . | K81: =IF('WS4 - Yr 1 YIELD'!L40=".",".",'WS4 - Yr 1 YIELD'!L40/'WS4 - Yr 1 YIELD'!D40) -> . | T81: ='WS3 - Notional General Income'!$D43 -> 0 | U81: ='WS4 - Yr 1 YIELD'!$D40 -> 0 | X81: . | Y81: . | Z81: . | AA81: . | AB81: . | AC81: . | AD81: . | AF81: . | AG81: . | AH81: . | AI81: =IFERROR(N81/M81-1,".") -> . | AJ81: =IFERROR(O81/N81-1,".") -> . | AK81: =IFERROR(P81/O81-1,".") -> . | AL81: . | AN81: =IF(X81=".",".",SUM($X81:X81)) -> . | AO81: =IF(Y81=".",".",SUM($X81:Y81)) -> . | AP81: =IF(Z81=".",".",SUM($X81:Z81)) -> . | AQ81: =IF(AA81=".",".",SUM($X81:AA81)) -> . | AR81: =IF(AB81=".",".",SUM($X81:AB81)) -> . | AS81: =IF(AC81=".",".",SUM($X81:AC81)) -> . | AT81: =IF(AD81=".",".",SUM($X81:AD81)) -> . | AV81: . | AW81: . | AX81: . | AY81: . | AZ81: . | BA81: . | BB81: .
B82: Special rate | C82: =IF('WS3 - Notional General Income'!C58="","",'WS3 - Notional General Income'!C58) ->  | D82: $ nominal p.a. | J82: =IF('WS3 - Notional General Income'!L58=".",".",'WS3 - Notional General Income'!L58/'WS3 - Notional General Income'!D58) -> . | K82: =IF('WS4 - Yr 1 YIELD'!L55=".",".",'WS4 - Yr 1 YIELD'!L55/'WS4 - Yr 1 YIELD'!D55) -> . | T82: ='WS3 - Notional General Income'!$D58 -> 0 | U82: ='WS4 - Yr 1 YIELD'!$D55 -> 0 | X82: . | Y82: . | Z82: . | AA82: . | AB82: . | AC82: . | AD82: . | AF82: . | AG82: . | AH82: . | AI82: . | AJ82: . | AK82: . | AL82: . | AN82: =IF(X82=".",".",SUM($X82:X82)) -> . | AO82: =IF(Y82=".",".",SUM($X82:Y82)) -> . | AP82: =IF(Z82=".",".",SUM($X82:Z82)) -> . | AQ82: =IF(AA82=".",".",SUM($X82:AA82)) -> . | AR82: =IF(AB82=".",".",SUM($X82:AB82)) -> . | AS82: =IF(AC82=".",".",SUM($X82:AC82)) -> . | AT82: =IF(AD82=".",".",SUM($X82:AD82)) -> . | AV82: . | AW82: . | AX82: . | AY82: . | AZ82: . | BA82: . | BB82: .
B83: Special rate | C83: =IF('WS3 - Notional General Income'!C59="","",'WS3 - Notional General Income'!C59) ->  | D83: $ nominal p.a. | J83: =IF('WS3 - Notional General Income'!L59=".",".",'WS3 - Notional General Income'!L59/'WS3 - Notional General Income'!D59) -> . | K83: =IF('WS4 - Yr 1 YIELD'!L56=".",".",'WS4 - Yr 1 YIELD'!L56/'WS4 - Yr 1 YIELD'!D56) -> . | T83: ='WS3 - Notional General Income'!$D59 -> 0 | U83: ='WS4 - Yr 1 YIELD'!$D56 -> 0 | X83: . | Y83: . | Z83: . | AA83: . | AB83: . | AC83: . | AD83: . | AF83: . | AG83: . | AH83: . | AI83: . | AJ83: . | AK83: . | AL83: . | AN83: =IF(X83=".",".",SUM($X83:X83)) -> . | AO83: =IF(Y83=".",".",SUM($X83:Y83)) -> . | AP83: =IF(Z83=".",".",SUM($X83:Z83)) -> . | AQ83: =IF(AA83=".",".",SUM($X83:AA83)) -> . | AR83: =IF(AB83=".",".",SUM($X83:AB83)) -> . | AS83: =IF(AC83=".",".",SUM($X83:AC83)) -> . | AT83: =IF(AD83=".",".",SUM($X83:AD83)) -> . | AV83: . | AW83: . | AX83: . | AY83: . | AZ83: . | BA83: . | BB83: .
C84: TOTAL AVERAGE | I84: 3972.875903 | J84: =IF($T84=0,".",SUMPRODUCT(J80:J83,$T80:$T83)/$T84) -> 4170.005142 | K84: =IF($U84=0,".",SUMPRODUCT(K80:K83,$U80:$U83)/$U84) -> 4587.005657 | L84: 5045.706222 | M84: 5550.276844 | N84: 5705.684596 | O84: 5848.326711 | P84: 5994.534879 | Q84: 6144.398251 | T84: =SUM(T80:T81) -> 1606 | U84: =SUM(U80:U81) -> 1606 | X84: 417.0005142 | Y84: 458.7005657 | Z84: =IF(M84=".",".",M84-L84) -> 504.5706222 | AA84: 155.4077516 | AB84: 142.6421149 | AC84: 146.2081678 | AD84: 149.863372 | AF84: 0.1 | AG84: 0.1 | AH84: 0.1 | AI84: 0.028 | AJ84: 0.025 | AK84: 0.025 | AL84: 0.025 | AN84: =IF(X84=".",".",SUM($X84:X84)) -> 417.0005142 | AO84: =IF(Y84=".",".",SUM($X84:Y84)) -> 875.7010799 | AP84: =IF(Z84=".",".",SUM($X84:Z84)) -> 1380.271702 | AQ84: =IF(AA84=".",".",SUM($X84:AA84)) -> 1535.679454 | AR84: =IF(AB84=".",".",SUM($X84:AB84)) -> 1678.321569 | AS84: =IF(AC84=".",".",SUM($X84:AC84)) -> 1824.529736 | AT84: =IF(AD84=".",".",SUM($X84:AD84)) -> 1974.393108 | AV84: 0.1 | AW84: 0.21 | AX84: 0.331 | AY84: 0.368268 | AZ84: 0.4024747 | BA84: 0.4375365675 | BB84: 0.4734749817
B85: Mining | C85: =IF('WS3 - Notional General Income'!C45="","",'WS3 - Notional General Income'!C45) ->  | D85: $ nominal p.a. | I85: 137273.57 | J85: =IF('WS3 - Notional General Income'!L45=".",".",'WS3 - Notional General Income'!L45/'WS3 - Notional General Income'!D45) -> 143570.9 | K85: =IF('WS4 - Yr 1 YIELD'!L42=".",".",'WS4 - Yr 1 YIELD'!L42/'WS4 - Yr 1 YIELD'!D42) -> 157927.99 | L85: 173720.789 | M85: 191092.8679 | N85: 196443.4682 | O85: 201354.5549 | P85: 206388.4188 | Q85: 211548.1292 | T85: ='WS3 - Notional General Income'!$D45 -> 1 | U85: ='WS4 - Yr 1 YIELD'!$D42 -> 1 | X85: 14357.09 | Y85: 15792.799 | Z85: =IF(M85="",".",M85-L85) -> 17372.0789 | AA85: =IF(N85="",".",N85-M85) -> 5350.600301 | AB85: =IF(O85="",".",O85-N85) -> 4911.086705 | AC85: =IF(P85="",".",P85-O85) -> 5033.863873 | AD85: =IF(Q85="",".",Q85-P85) -> 5159.710469 | AF85: 0.1 | AG85: 0.1 | AH85: 0.1 | AI85: 0.028 | AJ85: 0.025 | AK85: 0.025 | AL85: 0.025 | AN85: =IF(X85=".",".",SUM($X85:X85)) -> 14357.09 | AO85: =IF(Y85=".",".",SUM($X85:Y85)) -> 30149.889 | AP85: =IF(Z85=".",".",SUM($X85:Z85)) -> 47521.9679 | AQ85: =IF(AA85=".",".",SUM($X85:AA85)) -> 52872.5682 | AR85: =IF(AB85=".",".",SUM($X85:AB85)) -> 57783.65491 | AS85: =IF(AC85=".",".",SUM($X85:AC85)) -> 62817.51878 | AT85: =IF(AD85=".",".",SUM($X85:AD85)) -> 67977.22925 | AV85: 0.1 | AW85: 0.21 | AX85: 0.331 | AY85: 0.368268 | AZ85: 0.4024747 | BA85: 0.4375365675 | BB85: 0.4734749817
B86: Mining | C86: =IF('WS3 - Notional General Income'!C46="","",'WS3 - Notional General Income'!C46) ->  | D86: $ nominal p.a. | J86: =IF('WS3 - Notional General Income'!L46=".",".",'WS3 - Notional General Income'!L46/'WS3 - Notional General Income'!D46) -> . | K86: =IF('WS4 - Yr 1 YIELD'!L43=".",".",'WS4 - Yr 1 YIELD'!L43/'WS4 - Yr 1 YIELD'!D43) -> . | T86: ='WS3 - Notional General Income'!$D46 -> 0 | U86: ='WS4 - Yr 1 YIELD'!$D43 -> 0 | X86: . | Y86: . | Z86: . | AA86: . | AB86: . | AC86: . | AD86: . | AF86: . | AG86: . | AH86: . | AI86: . | AJ86: . | AK86: . | AL86: . | AN86: =IF(X86=".",".",SUM($X86:X86)) -> . | AO86: =IF(Y86=".",".",SUM($X86:Y86)) -> . | AP86: =IF(Z86=".",".",SUM($X86:Z86)) -> . | AQ86: =IF(AA86=".",".",SUM($X86:AA86)) -> . | AR86: =IF(AB86=".",".",SUM($X86:AB86)) -> . | AS86: =IF(AC86=".",".",SUM($X86:AC86)) -> . | AT86: =IF(AD86=".",".",SUM($X86:AD86)) -> . | AV86: . | AW86: . | AX86: . | AY86: . | AZ86: . | BA86: . | BB86: .
B87: Special rate | C87: =IF('WS3 - Notional General Income'!C60="","",'WS3 - Notional General Income'!C60) ->  | D87: $ nominal p.a. | J87: =IF('WS3 - Notional General Income'!L60=".",".",'WS3 - Notional General Income'!L60/'WS3 - Notional General Income'!D60) -> . | K87: =IF('WS4 - Yr 1 YIELD'!L57=".",".",'WS4 - Yr 1 YIELD'!L57/'WS4 - Yr 1 YIELD'!D57) -> . | T87: ='WS3 - Notional General Income'!$D60 -> 0 | U87: ='WS4 - Yr 1 YIELD'!$D57 -> 0 | X87: . | Y87: . | Z87: . | AA87: . | AB87: . | AC87: . | AD87: . | AF87: . | AG87: . | AH87: . | AI87: . | AJ87: . | AK87: . | AL87: . | AN87: =IF(X87=".",".",SUM($X87:X87)) -> . | AO87: =IF(Y87=".",".",SUM($X87:Y87)) -> . | AP87: =IF(Z87=".",".",SUM($X87:Z87)) -> . | AQ87: =IF(AA87=".",".",SUM($X87:AA87)) -> . | AR87: =IF(AB87=".",".",SUM($X87:AB87)) -> . | AS87: =IF(AC87=".",".",SUM($X87:AC87)) -> . | AT87: =IF(AD87=".",".",SUM($X87:AD87)) -> . | AV87: . | AW87: . | AX87: . | AY87: . | AZ87: . | BA87: . | BB87: .
B88: Special rate | C88: =IF('WS3 - Notional General Income'!C61="","",'WS3 - Notional General Income'!C61) ->  | D88: $ nominal p.a. | J88: =IF('WS3 - Notional General Income'!L61=".",".",'WS3 - Notional General Income'!L61/'WS3 - Notional General Income'!D61) -> . | K88: =IF('WS4 - Yr 1 YIELD'!L58=".",".",'WS4 - Yr 1 YIELD'!L58/'WS4 - Yr 1 YIELD'!D58) -> . | T88: ='WS3 - Notional General Income'!$D61 -> 0 | U88: ='WS4 - Yr 1 YIELD'!$D58 -> 0 | X88: . | Y88: . | Z88: . | AA88: . | AB88: . | AC88: . | AD88: . | AF88: . | AG88: . | AH88: . | AI88: . | AJ88: . | AK88: . | AL88: . | AN88: =IF(X88=".",".",SUM($X88:X88)) -> . | AO88: =IF(Y88=".",".",SUM($X88:Y88)) -> . | AP88: =IF(Z88=".",".",SUM($X88:Z88)) -> . | AQ88: =IF(AA88=".",".",SUM($X88:AA88)) -> . | AR88: =IF(AB88=".",".",SUM($X88:AB88)) -> . | AS88: =IF(AC88=".",".",SUM($X88:AC88)) -> . | AT88: =IF(AD88=".",".",SUM($X88:AD88)) -> . | AV88: . | AW88: . | AX88: . | AY88: . | AZ88: . | BA88: . | BB88: .
C89: TOTAL AVERAGE | I89: 137273.57 | J89: =IF($T89=0,".",SUMPRODUCT(J85:J88,$T85:$T88)/$T89) -> 143570.9 | K89: =IF($U89=0,".",SUMPRODUCT(K85:K88,$U85:$U88)/$U89) -> 157927.99 | L89: 173720.789 | M89: 191092.8679 | N89: 196443.4682 | O89: 201354.5549 | P89: 206388.4188 | Q89: 211548.1292 | T89: =SUM(T85:T86) -> 1 | U89: =SUM(U85:U86) -> 1 | X89: 14357.09 | Y89: 15792.799 | Z89: =IF(M89=".",".",M89-L89) -> 17372.0789 | AA89: 5350.600301 | AB89: 4911.086705 | AC89: 5033.863873 | AD89: 5159.710469 | AF89: 0.1 | AG89: 0.1 | AH89: 0.1 | AI89: 0.028 | AJ89: 0.025 | AK89: 0.025 | AL89: 0.025 | AN89: =IF(X89=".",".",SUM($X89:X89)) -> 14357.09 | AO89: =IF(Y89=".",".",SUM($X89:Y89)) -> 30149.889 | AP89: =IF(Z89=".",".",SUM($X89:Z89)) -> 47521.9679 | AQ89: =IF(AA89=".",".",SUM($X89:AA89)) -> 52872.5682 | AR89: =IF(AB89=".",".",SUM($X89:AB89)) -> 57783.65491 | AS89: =IF(AC89=".",".",SUM($X89:AC89)) -> 62817.51878 | AT89: =IF(AD89=".",".",SUM($X89:AD89)) -> 67977.22925 | AV89: 0.1 | AW89: 0.21 | AX89: 0.331 | AY89: 0.368268 | AZ89: 0.4024747 | BA89: 0.4375365675 | BB89: 0.4734749817
A92: =A52+1 -> 3 | B92: ="Table "&A1&"."&A92&": Average Ordinary and Special Rates - without proposed special variation (assumed rate peg only)" -> Table 7.3: Average Ordinary and Special Rates - without proposed special variation (assumed rate peg only) | T92: =T53 -> Number of Assessments | X92: =X$25 -> Annual increases (nominal $ per year) | AF92: =AF$25 -> Annual increases (%) | AN92: =AN$25 -> Cumulative increases (nominal $ per year) | AV92: =AV$25 -> Cumulative increases (%)
B93: Category | C93: Sub-category or Special Rate name | I93: =I53 -> Prior year Average Rate | J93: Current Average Rate | K93: Average Rate Year 1 | L93: Average Rate Year 2 | M93: Average Rate Year 3 | N93: Average Rate Year 4 | O93: Average Rate Year 5 | P93: Average Rate Year 6 | Q93: Average Rate Year 7 | X93: Average Rates - without proposed special variation | AF93: =$X93 -> Average Rates - without proposed special variation | AN93: =$X93 -> Average Rates - without proposed special variation | AV93: =$X93 -> Average Rates - without proposed special variation
I94: 2023-24 | J94: =J54 -> 2024-25 | K94: 2025-26 | L94: 2026-27 | M94: 2027-28 | N94: 2028-29 | O94: 2029-30 | P94: 2030-31 | Q94: 2031-32 | T94: =T54 -> 2024-25 | U94: 2025-26 | X94: =X$27 -> Year 1 | Y94: =Y$27 -> Year 2 | Z94: Year 3 | AA94: Year 4 | AB94: Year 5 | AC94: Year 6 | AD94: Year 7 | AF94: =AF$27 -> Year 1 | AG94: Year 2 | AH94: Year 3 | AI94: Year 4 | AJ94: Year 5 | AK94: Year 6 | AL94: Year 7 | AN94: =AN$27 -> Year 1 | AO94: =AO$27 -> Year 2 | AP94: Year 3 | AQ94: Year 4 | AR94: Year 5 | AS94: Year 6 | AT94: Year 7 | AV94: =AV$27 -> Year 1 | AW94: =AW$27 -> Year 2 | AX94: Year 3 | AY94: Year 4 | AZ94: Year 5 | BA94: Year 6 | BB94: Year 7
B95: =B55 -> Residential | C95: Aberdeen | D95: $ nominal p.a. | I95: 639.1840501 | J95: =J55 -> 668.4506044 | K95: 697.1939804 | L95: 720.8985757 | M95: 743.2464316 | N95: 764.0573317 | O95: 783.1587649 | P95: 802.7377341 | Q95: 822.8061774 | T95: 818 | U95: 818 | X95: =IF(K95="",".",K95-J95) -> 28.74337599 | Y95: =IF(L95="",".",L95-K95) -> 23.70459533 | Z95: =IF(M95="",".",M95-L95) -> 22.34785585 | AA95: =IF(N95="",".",N95-M95) -> 20.81090008 | AB95: =IF(O95="",".",O95-N95) -> 19.10143329 | AC95: =IF(P95="",".",P95-O95) -> 19.57896912 | AD95: =IF(Q95="",".",Q95-P95) -> 20.06844335 | AF95: =IFERROR(K95/J95-1,".") -> 0.043 | AG95: =IFERROR(L95/K95-1,".") -> 0.034 | AH95: =IFERROR(M95/L95-1,".") -> 0.031 | AI95: =IFERROR(N95/M95-1,".") -> 0.028 | AJ95: =IFERROR(O95/N95-1,".") -> 0.025 | AK95: =IFERROR(P95/O95-1,".") -> 0.025 | AL95: =IFERROR(Q95/P95-1,".") -> 0.025 | AN95: =IF(X95=".",".",SUM($X95:X95)) -> 28.74337599 | AO95: =IF(Y95=".",".",SUM($X95:Y95)) -> 52.44797132 | AP95: =IF(Z95=".",".",SUM($X95:Z95)) -> 74.79582717 | AQ95: =IF(AA95=".",".",SUM($X95:AA95)) -> 95.60672725 | AR95: =IF(AB95=".",".",SUM($X95:AB95)) -> 114.7081605 | AS95: =IF(AC95=".",".",SUM($X95:AC95)) -> 134.2871297 | AT95: =IF(AD95=".",".",SUM($X95:AD95)) -> 154.355573 | AV95: =IFERROR(K95/$J95-1,".") -> 0.043 | AW95: =IFERROR(L95/$J95-1,".") -> 0.078462 | AX95: =IFERROR(M95/$J95-1,".") -> 0.111894322 | AY95: =IFERROR(N95/$J95-1,".") -> 0.143027363 | AZ95: =IFERROR(O95/$J95-1,".") -> 0.1716030471 | BA95: =IFERROR(P95/$J95-1,".") -> 0.2008931233 | BB95: =IFERROR(Q95/$J95-1,".") -> 0.2309154514
B96: Residential | C96: Cassillis | D96: $ nominal p.a. | I96: 543.9126102 | J96: 568.7908694 | K96: 593.2488768 | L96: 613.4193386 | M96: 632.4353381 | N96: 650.1435275 | O96: 666.3971157 | P96: 683.0570436 | Q96: 700.1334697 | T96: 49 | U96: 49 | X96: 24.45800738 | Y96: 20.17046181 | Z96: 19.0159995 | AA96: 17.70818947 | AB96: 16.25358819 | AC96: 16.65992789 | AD96: 17.07642609 | AF96: 0.043 | AG96: 0.034 | AH96: 0.031 | AI96: 0.028 | AJ96: 0.025 | AK96: 0.025 | AL96: 0.025 | AN96: =IF(X96=".",".",SUM($X96:X96)) -> 24.45800738 | AO96: =IF(Y96=".",".",SUM($X96:Y96)) -> 44.62846919 | AP96: =IF(Z96=".",".",SUM($X96:Z96)) -> 63.64446869 | AQ96: =IF(AA96=".",".",SUM($X96:AA96)) -> 81.35265816 | AR96: =IF(AB96=".",".",SUM($X96:AB96)) -> 97.60624634 | AS96: =IF(AC96=".",".",SUM($X96:AC96)) -> 114.2661742 | AT96: =IF(AD96=".",".",SUM($X96:AD96)) -> 131.3426003 | AV96: =IFERROR(K96/$J96-1,".") -> 0.043 | AW96: 0.078462 | AX96: 0.111894322 | AY96: 0.143027363 | AZ96: 0.1716030471 | BA96: 0.2008931233 | BB96: 0.2309154514
B97: Residential | C97: Merriwa | D97: $ nominal p.a. | I97: 624.6314513 | J97: 653.2625201 | K97: 681.3528085 | L97: 704.518804 | M97: 726.3588869 | N97: 746.6969357 | O97: 765.3643591 | P97: 784.4984681 | Q97: 804.1109298 | T97: 532 | U97: 532 | X97: 28.09028836 | Y97: 23.16599549 | Z97: 21.84008292 | AA97: 20.33804883 | AB97: 18.66742339 | AC97: 19.13410898 | AD97: 19.6124617 | AF97: 0.043 | AG97: 0.034 | AH97: 0.031 | AI97: 0.028 | AJ97: 0.025 | AK97: 0.025 | AL97: 0.025 | AN97: =IF(X97=".",".",SUM($X97:X97)) -> 28.09028836 | AO97: =IF(Y97=".",".",SUM($X97:Y97)) -> 51.25628385 | AP97: =IF(Z97=".",".",SUM($X97:Z97)) -> 73.09636678 | AQ97: =IF(AA97=".",".",SUM($X97:AA97)) -> 93.43441561 | AR97: =IF(AB97=".",".",SUM($X97:AB97)) -> 112.101839 | AS97: =IF(AC97=".",".",SUM($X97:AC97)) -> 131.235948 | AT97: =IF(AD97=".",".",SUM($X97:AD97)) -> 150.8484097 | AV97: 0.043 | AW97: 0.078462 | AX97: 0.111894322 | AY97: 0.143027363 | AZ97: 0.1716030471 | BA97: 0.2008931233 | BB97: 0.2309154514
B98: Residential | C98: Murrurundi | D98: $ nominal p.a. | I98: 591.470913 | J98: 618.536961 | K98: 645.1340503 | L98: 667.068608 | M98: 687.7477349 | N98: 707.0046715 | O98: 724.6797882 | P98: 742.796783 | Q98: 761.3667025 | T98: 500 | U98: 500 | X98: 26.59708932 | Y98: 21.93455771 | Z98: 20.67912685 | AA98: 19.25693658 | AB98: 17.67511679 | AC98: 18.11699471 | AD98: 18.56991957 | AF98: 0.043 | AG98: 0.034 | AH98: 0.031 | AI98: 0.028 | AJ98: 0.025 | AK98: 0.025 | AL98: 0.025 | AN98: =IF(X98=".",".",SUM($X98:X98)) -> 26.59708932 | AO98: =IF(Y98=".",".",SUM($X98:Y98)) -> 48.53164703 | AP98: =IF(Z98=".",".",SUM($X98:Z98)) -> 69.21077388 | AQ98: =IF(AA98=".",".",SUM($X98:AA98)) -> 88.46771046 | AR98: =IF(AB98=".",".",SUM($X98:AB98)) -> 106.1428272 | AS98: =IF(AC98=".",".",SUM($X98:AC98)) -> 124.259822 | AT98: =IF(AD98=".",".",SUM($X98:AD98)) -> 142.8297415 | AV98: 0.043 | AW98: 0.078462 | AX98: 0.111894322 | AY98: 0.143027363 | AZ98: 0.1716030471 | BA98: 0.2008931233 | BB98: 0.2309154514
B99: Residential | C99: Scone | D99: $ nominal p.a. | I99: 1135.220173 | J99: 1187.190825 | K99: 1238.240031 | L99: 1280.340192 | M99: 1320.030738 | N99: 1356.991598 | O99: 1390.916388 | P99: 1425.689298 | Q99: 1461.33153 | T99: 2247 | U99: 2247 | X99: 51.04920548 | Y99: 42.10016104 | Z99: 39.69054594 | AA99: 36.96086065 | AB99: 33.92478996 | AC99: 34.77290971 | AD99: 35.64223245 | AF99: =IFERROR(K99/J99-1,".") -> 0.043 | AG99: 0.034 | AH99: 0.031 | AI99: 0.028 | AJ99: 0.025 | AK99: 0.025 | AL99: 0.025 | AN99: =IF(X99=".",".",SUM($X99:X99)) -> 51.04920548 | AO99: =IF(Y99=".",".",SUM($X99:Y99)) -> 93.14936652 | AP99: =IF(Z99=".",".",SUM($X99:Z99)) -> 132.8399125 | AQ99: =IF(AA99=".",".",SUM($X99:AA99)) -> 169.8007731 | AR99: =IF(AB99=".",".",SUM($X99:AB99)) -> 203.7255631 | AS99: =IF(AC99=".",".",SUM($X99:AC99)) -> 238.4984728 | AT99: =IF(AD99=".",".",SUM($X99:AD99)) -> 274.1407052 | AV99: 0.043 | AW99: 0.078462 | AX99: 0.111894322 | AY99: 0.143027363 | AZ99: 0.1716030471 | BA99: 0.2008931233 | BB99: 0.2309154514
B100: Residential | C100: Ordinary | D100: $ nominal p.a. | I100: 1044.710625 | J100: 1093.450876 | K100: 1140.469263 | L100: 1179.245218 | M100: 1215.80182 | N100: 1249.844271 | O100: 1281.090378 | P100: 1313.117637 | Q100: 1345.945578 | T100: 1239 | U100: 1239 | X100: 47.01838766 | Y100: 38.77595496 | Z100: 36.55660177 | AA100: 34.04245096 | AB100: 31.24610678 | AC100: 32.02725945 | AD100: 32.82794093 | AF100: =IFERROR(K100/J100-1,".") -> 0.043 | AG100: 0.034 | AH100: 0.031 | AI100: 0.028 | AJ100: 0.025 | AK100: 0.025 | AL100: 0.025 | AN100: =IF(X100=".",".",SUM($X100:X100)) -> 47.01838766 | AO100: =IF(Y100=".",".",SUM($X100:Y100)) -> 85.79434262 | AP100: =IF(Z100=".",".",SUM($X100:Z100)) -> 122.3509444 | AQ100: =IF(AA100=".",".",SUM($X100:AA100)) -> 156.3933954 | AR100: =IF(AB100=".",".",SUM($X100:AB100)) -> 187.6395021 | AS100: =IF(AC100=".",".",SUM($X100:AC100)) -> 219.6667616 | AT100: =IF(AD100=".",".",SUM($X100:AD100)) -> 252.4947025 | AV100: 0.043 | AW100: 0.078462 | AX100: 0.111894322 | AY100: 0.143027363 | AZ100: 0.1716030471 | BA100: 0.2008931233 | BB100: 0.2309154514
B101: Residential | C101: Mixed Development - Aberdeen Residential | D101: $ nominal p.a. | I101: 578.080784 | J101: 503.27551 | K101: 524.9163569 | L101: 542.7635131 | M101: 559.589182 | N101: 575.2576791 | O101: 589.639121 | P101: 604.3800991 | Q101: 619.4896015 | T101: 1 | U101: 1 | X101: 21.64084693 | Y101: 17.84715614 | Z101: 16.82566891 | AA101: 15.6684971 | AB101: 14.38144198 | AC101: 14.74097803 | AD101: 15.10950248 | AF101: 0.043 | AG101: 0.034 | AH101: 0.031 | AI101: 0.028 | AJ101: 0.025 | AK101: 0.025 | AL101: 0.025 | AN101: =IF(X101=".",".",SUM($X101:X101)) -> 21.64084693 | AO101: =IF(Y101=".",".",SUM($X101:Y101)) -> 39.48800307 | AP101: =IF(Z101=".",".",SUM($X101:Z101)) -> 56.31367197 | AQ101: =IF(AA101=".",".",SUM($X101:AA101)) -> 71.98216907 | AR101: =IF(AB101=".",".",SUM($X101:AB101)) -> 86.36361104 | AS101: =IF(AC101=".",".",SUM($X101:AC101)) -> 101.1045891 | AT101: =IF(AD101=".",".",SUM($X101:AD101)) -> 116.2140915 | AV101: 0.043 | AW101: 0.078462 | AX101: 0.111894322 | AY101: 0.143027363 | AZ101: 0.1716030471 | BA101: 0.2008931233 | BB101: 0.2309154514
B102: Residential | C102: Mixed Development - Merriwa Residential | D102: $ nominal p.a. | I102: 311.6993308 | J102: 219.2307353 | K102: 228.6576569 | L102: 236.4320172 | M102: 243.7614097 | N102: 250.5867292 | O102: 256.8513974 | P102: 263.2726824 | Q102: 269.8544994 | T102: 2 | U102: 2 | X102: 9.426921616 | Y102: 7.774360333 | Z102: 7.329392533 | AA102: 6.825319473 | AB102: 6.26466823 | AC102: 6.421284936 | AD102: 6.581817059 | AF102: 0.043 | AG102: 0.034 | AH102: 0.031 | AI102: 0.028 | AJ102: 0.025 | AK102: 0.025 | AL102: 0.025 | AN102: =IF(X102=".",".",SUM($X102:X102)) -> 9.426921616 | AO102: =IF(Y102=".",".",SUM($X102:Y102)) -> 17.20128195 | AP102: =IF(Z102=".",".",SUM($X102:Z102)) -> 24.53067448 | AQ102: =IF(AA102=".",".",SUM($X102:AA102)) -> 31.35599395 | AR102: =IF(AB102=".",".",SUM($X102:AB102)) -> 37.62066218 | AS102: =IF(AC102=".",".",SUM($X102:AC102)) -> 44.04194712 | AT102: =IF(AD102=".",".",SUM($X102:AD102)) -> 50.62376418 | AV102: 0.043 | AW102: 0.078462 | AX102: 0.111894322 | AY102: 0.143027363 | AZ102: 0.1716030471 | BA102: 0.2008931233 | BB102: 0.2309154514
B103: Residential | C103: Mixed Development - Murrurundi Residential | D103: $ nominal p.a. | I103: 369.397 | J103: 281.109 | K103: 293.196687 | L103: 303.1653744 | M103: 312.563501 | N103: 321.315279 | O103: 329.348161 | P103: 337.581865 | Q103: 346.0214116 | T103: 1 | U103: 1 | X103: 12.087687 | Y103: 9.968687358 | Z103: 9.398126605 | AA103: 8.751778027 | AB103: 8.032881975 | AC103: 8.233704024 | AD103: 8.439546625 | AF103: 0.043 | AG103: 0.034 | AH103: 0.031 | AI103: 0.028 | AJ103: 0.025 | AK103: 0.025 | AL103: 0.025 | AN103: =IF(X103=".",".",SUM($X103:X103)) -> 12.087687 | AO103: =IF(Y103=".",".",SUM($X103:Y103)) -> 22.05637436 | AP103: =IF(Z103=".",".",SUM($X103:Z103)) -> 31.45450096 | AQ103: =IF(AA103=".",".",SUM($X103:AA103)) -> 40.20627899 | AR103: =IF(AB103=".",".",SUM($X103:AB103)) -> 48.23916096 | AS103: =IF(AC103=".",".",SUM($X103:AC103)) -> 56.47286499 | AT103: =IF(AD103=".",".",SUM($X103:AD103)) -> 64.91241161 | AV103: 0.043 | AW103: 0.078462 | AX103: 0.111894322 | AY103: 0.143027363 | AZ103: 0.1716030471 | BA103: 0.2008931233 | BB103: 0.2309154514
B104: Residential | D104: $ nominal p.a. | I104: 0 | J104: . | T104: 0 | U104: 0 | X104: . | Y104: . | Z104: . | AA104: . | AB104: . | AC104: . | AD104: . | AF104: . | AG104: . | AH104: . | AI104: . | AJ104: . | AK104: . | AL104: . | AN104: =IF(X104=".",".",SUM($X104:X104)) -> . | AO104: =IF(Y104=".",".",SUM($X104:Y104)) -> . | AP104: =IF(Z104=".",".",SUM($X104:Z104)) -> . | AQ104: =IF(AA104=".",".",SUM($X104:AA104)) -> . | AR104: =IF(AB104=".",".",SUM($X104:AB104)) -> . | AS104: =IF(AC104=".",".",SUM($X104:AC104)) -> . | AT104: =IF(AD104=".",".",SUM($X104:AD104)) -> . | AV104: . | AW104: . | AX104: . | AY104: . | AZ104: . | BA104: . | BB104: .
B105: Special rate | D105: $ nominal p.a. | I105: 0 | J105: . | T105: 0 | U105: 0 | X105: . | Y105: . | Z105: . | AA105: . | AB105: . | AC105: . | AD105: . | AF105: . | AG105: . | AH105: . | AI105: . | AJ105: . | AK105: . | AL105: . | AN105: =IF(X105=".",".",SUM($X105:X105)) -> . | AO105: =IF(Y105=".",".",SUM($X105:Y105)) -> . | AP105: =IF(Z105=".",".",SUM($X105:Z105)) -> . | AQ105: =IF(AA105=".",".",SUM($X105:AA105)) -> . | AR105: =IF(AB105=".",".",SUM($X105:AB105)) -> . | AS105: =IF(AC105=".",".",SUM($X105:AC105)) -> . | AT105: =IF(AD105=".",".",SUM($X105:AD105)) -> . | AV105: . | AW105: . | AX105: . | AY105: . | AZ105: . | BA105: . | BB105: .
B106: Special rate | D106: $ nominal p.a. | I106: 0 | J106: . | T106: 0 | U106: 0 | X106: . | Y106: . | Z106: . | AA106: . | AB106: . | AC106: . | AD106: . | AF106: . | AG106: . | AH106: . | AI106: . | AJ106: . | AK106: . | AL106: . | AN106: =IF(X106=".",".",SUM($X106:X106)) -> . | AO106: =IF(Y106=".",".",SUM($X106:Y106)) -> . | AP106: =IF(Z106=".",".",SUM($X106:Z106)) -> . | AQ106: =IF(AA106=".",".",SUM($X106:AA106)) -> . | AR106: =IF(AB106=".",".",SUM($X106:AB106)) -> . | AS106: =IF(AC106=".",".",SUM($X106:AC106)) -> . | AT106: =IF(AD106=".",".",SUM($X106:AD106)) -> . | AV106: . | AW106: . | AX106: . | AY106: . | AZ106: . | BA106: . | BB106: .
C107: TOTAL AVERAGE | I107: 932.3553691 | J107: 975.1519305 | K107: =IF($U107=0,".",SUMPRODUCT(K95:K106,$U95:$U106)/$U107) -> 1017.083464 | L107: 1051.664301 | M107: 1084.265895 | N107: 1114.62534 | O107: 1142.490973 | P107: 1171.053247 | Q107: 1200.329579 | T107: 5389 | U107: 5389 | X107: =IF(K107=".",".",K107-J107) -> 41.93153301 | Y107: 34.58083776 | Z107: 32.60159334 | AA107: 30.35944505 | AB107: 27.86563349 | AC107: 28.56227433 | AD107: 29.27633119 | AF107: 0.043 | AG107: 0.034 | AH107: 0.031 | AI107: 0.028 | AJ107: 0.025 | AK107: 0.025 | AL107: 0.025 | AN107: =IF(X107=".",".",SUM($X107:X107)) -> 41.93153301 | AO107: =IF(Y107=".",".",SUM($X107:Y107)) -> 76.51237077 | AP107: =IF(Z107=".",".",SUM($X107:Z107)) -> 109.1139641 | AQ107: =IF(AA107=".",".",SUM($X107:AA107)) -> 139.4734092 | AR107: =IF(AB107=".",".",SUM($X107:AB107)) -> 167.3390426 | AS107: =IF(AC107=".",".",SUM($X107:AC107)) -> 195.901317 | AT107: =IF(AD107=".",".",SUM($X107:AD107)) -> 225.1776482 | AV107: 0.043 | AW107: 0.078462 | AX107: 0.111894322 | AY107: 0.143027363 | AZ107: 0.1716030471 | BA107: 0.2008931233 | BB107: 0.2309154514
B108: =B68 -> Business | C108: Aberdeen | D108: $ nominal p.a. | I108: 1182.035187 | J108: 1236.115131 | K108: 1289.268081 | L108: 1333.103196 | M108: 1374.429395 | N108: 1412.913418 | O108: 1448.236254 | P108: 1484.44216 | Q108: 1521.553214 | T108: 38 | U108: 38 | X108: 53.15295062 | Y108: 43.83511477 | Z108: 41.32619908 | AA108: 38.48402307 | AB108: 35.32283546 | AC108: 36.20590634 | AD108: 37.111054 | AF108: 0.043 | AG108: 0.034 | AH108: 0.031 | AI108: 0.028 | AJ108: 0.025 | AK108: 0.025 | AL108: 0.025 | AN108: =IF(X108=".",".",SUM($X108:X108)) -> 53.15295062 | AO108: =IF(Y108=".",".",SUM($X108:Y108)) -> 96.98806539 | AP108: =IF(Z108=".",".",SUM($X108:Z108)) -> 138.3142645 | AQ108: =IF(AA108=".",".",SUM($X108:AA108)) -> 176.7982875 | AR108: =IF(AB108=".",".",SUM($X108:AB108)) -> 212.121123 | AS108: =IF(AC108=".",".",SUM($X108:AC108)) -> 248.3270293 | AT108: =IF(AD108=".",".",SUM($X108:AD108)) -> 285.4380833 | AV108: 0.043 | AW108: 0.078462 | AX108: 0.111894322 | AY108: 0.143027363 | AZ108: 0.1716030471 | BA108: 0.2008931233 | BB108: 0.2309154514
B109: Business | C109: Merriwa | D109: $ nominal p.a. | I109: 771.7279153 | J109: 807.0952759 | K109: 841.8003728 | L109: 870.4215855 | M109: 897.4046546 | N109: 922.531985 | O109: 945.5952846 | P109: 969.2351667 | Q109: 993.4660459 | T109: 59 | U109: 59 | X109: =IF(K109="",".",K109-J109) -> 34.70509687 | Y109: =IF(L109="",".",L109-K109) -> 28.62121268 | Z109: =IF(M109="",".",M109-L109) -> 26.98306915 | AA109: =IF(N109="",".",N109-M109) -> 25.12733033 | AB109: =IF(O109="",".",O109-N109) -> 23.06329962 | AC109: =IF(P109="",".",P109-O109) -> 23.63988211 | AD109: =IF(Q109="",".",Q109-P109) -> 24.23087917 | AF109: 0.043 | AG109: 0.034 | AH109: 0.031 | AI109: 0.028 | AJ109: 0.025 | AK109: 0.025 | AL109: 0.025 | AN109: =IF(X109=".",".",SUM($X109:X109)) -> 34.70509687 | AO109: =IF(Y109=".",".",SUM($X109:Y109)) -> 63.32630954 | AP109: =IF(Z109=".",".",SUM($X109:Z109)) -> 90.30937869 | AQ109: =IF(AA109=".",".",SUM($X109:AA109)) -> 115.436709 | AR109: =IF(AB109=".",".",SUM($X109:AB109)) -> 138.5000086 | AS109: =IF(AC109=".",".",SUM($X109:AC109)) -> 162.1398908 | AT109: =IF(AD109=".",".",SUM($X109:AD109)) -> 186.3707699 | AV109: 0.043 | AW109: 0.078462 | AX109: 0.111894322 | AY109: 0.143027363 | AZ109: 0.1716030471 | BA109: 0.2008931233 | BB109: 0.2309154514
B110: Business | C110: Murrurundi | D110: $ nominal p.a. | I110: 943.8036503 | J110: 986.9976392 | K110: 1029.438538 | L110: 1064.439448 | M110: 1097.437071 | N110: 1128.165309 | O110: 1156.369442 | P110: 1185.278678 | Q110: 1214.910645 | T110: 37 | U110: 37 | X110: 42.44089849 | Y110: 35.00091028 | Z110: 32.99762289 | AA110: 30.72823798 | AB110: 28.20413272 | AC110: 28.90923604 | AD110: 29.63196694 | AF110: 0.043 | AG110: 0.034 | AH110: 0.031 | AI110: 0.028 | AJ110: 0.025 | AK110: 0.025 | AL110: 0.025 | AN110: =IF(X110=".",".",SUM($X110:X110)) -> 42.44089849 | AO110: =IF(Y110=".",".",SUM($X110:Y110)) -> 77.44180877 | AP110: =IF(Z110=".",".",SUM($X110:Z110)) -> 110.4394317 | AQ110: =IF(AA110=".",".",SUM($X110:AA110)) -> 141.1676696 | AR110: =IF(AB110=".",".",SUM($X110:AB110)) -> 169.3718024 | AS110: =IF(AC110=".",".",SUM($X110:AC110)) -> 198.2810384 | AT110: =IF(AD110=".",".",SUM($X110:AD110)) -> 227.9130053 | AV110: 0.043 | AW110: 0.078462 | AX110: 0.111894322 | AY110: 0.143027363 | AZ110: 0.1716030471 | BA110: 0.2008931233 | BB110: 0.2309154514
B111: Business | C111: Scone | D111: $ nominal p.a. | I111: 1737.068409 | J111: 1816.568421 | K111: 1894.680863 | L111: 1959.100012 | M111: 2019.832112 | N111: 2076.387412 | O111: 2128.297097 | P111: 2181.504524 | Q111: 2236.042137 | T111: 266 | U111: 266 | X111: 78.11244209 | Y111: 64.41914933 | Z111: 60.73210037 | AA111: 56.55529915 | AB111: 51.90968529 | AC111: 53.20742742 | AD111: 54.53761311 | AF111: 0.043 | AG111: 0.034 | AH111: 0.031 | AI111: 0.028 | AJ111: 0.025 | AK111: 0.025 | AL111: 0.025 | AN111: =IF(X111=".",".",SUM($X111:X111)) -> 78.11244209 | AO111: =IF(Y111=".",".",SUM($X111:Y111)) -> 142.5315914 | AP111: =IF(Z111=".",".",SUM($X111:Z111)) -> 203.2636918 | AQ111: =IF(AA111=".",".",SUM($X111:AA111)) -> 259.8189909 | AR111: =IF(AB111=".",".",SUM($X111:AB111)) -> 311.7286762 | AS111: =IF(AC111=".",".",SUM($X111:AC111)) -> 364.9361037 | AT111: =IF(AD111=".",".",SUM($X111:AD111)) -> 419.4737168 | AV111: 0.043 | AW111: 0.078462 | AX111: 0.111894322 | AY111: 0.143027363 | AZ111: 0.1716030471 | BA111: 0.2008931233 | BB111: 0.2309154514
B112: Business | C112: Ordinary | D112: $ nominal p.a. | I112: 753.0393028 | J112: 792.2169017 | K112: 826.2822284 | L112: 854.3758242 | M112: 880.8614747 | N112: 905.525596 | O112: 928.1637359 | P112: 951.3678293 | Q112: 975.1520251 | T112: 333 | U112: 333 | X112: 34.06532677 | Y112: 28.09359577 | Z112: 26.48565055 | AA112: 24.66412129 | AB112: 22.6381399 | AC112: 23.2040934 | AD112: 23.78419573 | AF112: 0.043 | AG112: 0.034 | AH112: 0.031 | AI112: 0.028 | AJ112: 0.025 | AK112: 0.025 | AL112: 0.025 | AN112: =IF(X112=".",".",SUM($X112:X112)) -> 34.06532677 | AO112: =IF(Y112=".",".",SUM($X112:Y112)) -> 62.15892254 | AP112: =IF(Z112=".",".",SUM($X112:Z112)) -> 88.64457309 | AQ112: =IF(AA112=".",".",SUM($X112:AA112)) -> 113.3086944 | AR112: =IF(AB112=".",".",SUM($X112:AB112)) -> 135.9468343 | AS112: =IF(AC112=".",".",SUM($X112:AC112)) -> 159.1509277 | AT112: =IF(AD112=".",".",SUM($X112:AD112)) -> 182.9351234 | AV112: 0.043 | AW112: 0.078462 | AX112: 0.111894322 | AY112: 0.143027363 | AZ112: 0.1716030471 | BA112: 0.2008931233 | BB112: 0.2309154514
B113: Business | C113: Mixed Development - Aberdeen Residential | D113: $ nominal p.a. | I113: 581.164875 | J113: 713.16919 | K113: 743.8354652 | L113: 769.125871 | M113: 792.968773 | N113: 815.1718986 | O113: 835.5511961 | P113: 856.439976 | Q113: 877.8509754 | T113: 1 | U113: 1 | X113: 30.66627517 | Y113: 25.29040582 | Z113: 23.842902 | AA113: 22.20312564 | AB113: 20.37929747 | AC113: 20.8887799 | AD113: 21.4109994 | AF113: 0.043 | AG113: 0.034 | AH113: 0.031 | AI113: 0.028 | AJ113: 0.025 | AK113: 0.025 | AL113: 0.025 | AN113: =IF(X113=".",".",SUM($X113:X113)) -> 30.66627517 | AO113: =IF(Y113=".",".",SUM($X113:Y113)) -> 55.95668099 | AP113: =IF(Z113=".",".",SUM($X113:Z113)) -> 79.79958299 | AQ113: =IF(AA113=".",".",SUM($X113:AA113)) -> 102.0027086 | AR113: =IF(AB113=".",".",SUM($X113:AB113)) -> 122.3820061 | AS113: =IF(AC113=".",".",SUM($X113:AC113)) -> 143.270786 | AT113: =IF(AD113=".",".",SUM($X113:AD113)) -> 164.6817854 | AV113: 0.043 | AW113: 0.078462 | AX113: 0.111894322 | AY113: 0.143027363 | AZ113: 0.1716030471 | BA113: 0.2008931233 | BB113: 0.2309154514
B114: Business | C114: Mixed Development - Merriwa Residential | D114: $ nominal p.a. | I114: 163.5761798 | J114: 273.69508 | K114: 285.4639684 | L114: 295.1697434 | M114: 304.3200054 | N114: 312.8409656 | O114: 320.6619897 | P114: 328.6785394 | Q114: 336.8955029 | T114: =T74 -> 2 | U114: 2 | X114: 11.76888844 | Y114: 9.705774927 | Z114: 9.150262044 | AA114: 8.520960152 | AB114: 7.821024139 | AC114: 8.016549743 | AD114: 8.216963486 | AF114: 0.043 | AG114: 0.034 | AH114: 0.031 | AI114: 0.028 | AJ114: 0.025 | AK114: 0.025 | AL114: 0.025 | AN114: =IF(X114=".",".",SUM($X114:X114)) -> 11.76888844 | AO114: =IF(Y114=".",".",SUM($X114:Y114)) -> 21.47466337 | AP114: =IF(Z114=".",".",SUM($X114:Z114)) -> 30.62492541 | AQ114: =IF(AA114=".",".",SUM($X114:AA114)) -> 39.14588556 | AR114: =IF(AB114=".",".",SUM($X114:AB114)) -> 46.9669097 | AS114: =IF(AC114=".",".",SUM($X114:AC114)) -> 54.98345944 | AT114: =IF(AD114=".",".",SUM($X114:AD114)) -> 63.20042293 | AV114: 0.043 | AW114: 0.078462 | AX114: 0.111894322 | AY114: 0.143027363 | AZ114: 0.1716030471 | BA114: 0.2008931233 | BB114: 0.2309154514
B115: Business | C115: Mixed Development - Murrurundi Residential | D115: $ nominal p.a. | I115: 200.9462 | J115: 312.6155 | K115: 326.0579665 | L115: 337.1439374 | M115: 347.5953994 | N115: 357.3280706 | O115: 366.2612724 | P115: 375.4178042 | Q115: 384.8032493 | T115: 1 | U115: 1 | X115: 13.4424665 | Y115: 11.08597086 | Z115: 10.45146206 | AA115: 9.732671184 | AB115: 8.933201765 | AC115: 9.156531809 | AD115: 9.385445104 | AF115: 0.043 | AG115: 0.034 | AH115: 0.031 | AI115: 0.028 | AJ115: 0.025 | AK115: 0.025 | AL115: 0.025 | AN115: =IF(X115=".",".",SUM($X115:X115)) -> 13.4424665 | AO115: =IF(Y115=".",".",SUM($X115:Y115)) -> 24.52843736 | AP115: =IF(Z115=".",".",SUM($X115:Z115)) -> 34.97989942 | AQ115: =IF(AA115=".",".",SUM($X115:AA115)) -> 44.7125706 | AR115: =IF(AB115=".",".",SUM($X115:AB115)) -> 53.64577237 | AS115: =IF(AC115=".",".",SUM($X115:AC115)) -> 62.80230418 | AT115: =IF(AD115=".",".",SUM($X115:AD115)) -> 72.18774928 | AV115: 0.043 | AW115: 0.078462 | AX115: 0.111894322 | AY115: 0.143027363 | AZ115: 0.1716030471 | BA115: 0.2008931233 | BB115: 0.2309154514
B116: Business | D116: $ nominal p.a. | I116: 0 | J116: . | T116: 0 | U116: 0 | X116: . | Y116: . | Z116: . | AA116: . | AB116: . | AC116: . | AD116: . | AF116: . | AG116: . | AH116: . | AI116: . | AJ116: . | AK116: . | AL116: . | AN116: =IF(X116=".",".",SUM($X116:X116)) -> . | AO116: =IF(Y116=".",".",SUM($X116:Y116)) -> . | AP116: =IF(Z116=".",".",SUM($X116:Z116)) -> . | AQ116: =IF(AA116=".",".",SUM($X116:AA116)) -> . | AR116: =IF(AB116=".",".",SUM($X116:AB116)) -> . | AS116: =IF(AC116=".",".",SUM($X116:AC116)) -> . | AT116: =IF(AD116=".",".",SUM($X116:AD116)) -> . | AV116: . | AW116: . | AX116: . | AY116: . | AZ116: . | BA116: . | BB116: .
B117: Special rate | D117: $ nominal p.a. | I117: 0 | J117: . | T117: 0 | U117: 0 | X117: =IF(K117="",".",K117-J117) -> . | Y117: =IF(L117="",".",L117-K117) -> . | Z117: =IF(M117="",".",M117-L117) -> . | AA117: =IF(N117="",".",N117-M117) -> . | AB117: =IF(O117="",".",O117-N117) -> . | AC117: =IF(P117="",".",P117-O117) -> . | AD117: =IF(Q117="",".",Q117-P117) -> . | AF117: =IFERROR(K117/J117-1,".") -> . | AG117: =IFERROR(L117/K117-1,".") -> . | AH117: =IFERROR(M117/L117-1,".") -> . | AI117: =IFERROR(N117/M117-1,".") -> . | AJ117: =IFERROR(O117/N117-1,".") -> . | AK117: =IFERROR(P117/O117-1,".") -> . | AL117: =IFERROR(Q117/P117-1,".") -> . | AN117: =IF(X117=".",".",SUM($X117:X117)) -> . | AO117: =IF(Y117=".",".",SUM($X117:Y117)) -> . | AP117: =IF(Z117=".",".",SUM($X117:Z117)) -> . | AQ117: =IF(AA117=".",".",SUM($X117:AA117)) -> . | AR117: =IF(AB117=".",".",SUM($X117:AB117)) -> . | AS117: =IF(AC117=".",".",SUM($X117:AC117)) -> . | AT117: =IF(AD117=".",".",SUM($X117:AD117)) -> . | AV117: =IFERROR(K117/$J117-1,".") -> . | AW117: =IFERROR(L117/$J117-1,".") -> . | AX117: =IFERROR(M117/$J117-1,".") -> . | AY117: =IFERROR(N117/$J117-1,".") -> . | AZ117: =IFERROR(O117/$J117-1,".") -> . | BA117: =IFERROR(P117/$J117-1,".") -> . | BB117: =IFERROR(Q117/$J117-1,".") -> .
B118: Special rate | D118: $ nominal p.a. | I118: 0 | J118: . | T118: 0 | U118: 0 | X118: . | Y118: . | Z118: . | AA118: . | AB118: . | AC118: . | AD118: . | AF118: . | AG118: . | AH118: . | AI118: . | AJ118: . | AK118: . | AL118: . | AN118: =IF(X118=".",".",SUM($X118:X118)) -> . | AO118: =IF(Y118=".",".",SUM($X118:Y118)) -> . | AP118: =IF(Z118=".",".",SUM($X118:Z118)) -> . | AQ118: =IF(AA118=".",".",SUM($X118:AA118)) -> . | AR118: =IF(AB118=".",".",SUM($X118:AB118)) -> . | AS118: =IF(AC118=".",".",SUM($X118:AC118)) -> . | AT118: =IF(AD118=".",".",SUM($X118:AD118)) -> . | AV118: . | AW118: . | AX118: . | AY118: . | AZ118: . | BA118: . | BB118: .
C119: TOTAL AVERAGE | I119: 1137.764067 | J119: 1193.620776 | K119: =IF($U119=0,".",SUMPRODUCT(K108:K118,$U108:$U118)/$U119) -> 1244.946469 | L119: 1287.274649 | M119: 1327.180163 | N119: 1364.341208 | O119: 1398.449738 | P119: 1433.410982 | Q119: 1469.246256 | T119: 737 | U119: 737 | X119: =IF(K119=".",".",K119-J119) -> 51.32569337 | Y119: 42.32817996 | Z119: 39.90551413 | AA119: 37.16104458 | AB119: 34.1085302 | AC119: 34.96124346 | AD119: 35.83527454 | AF119: 0.043 | AG119: 0.034 | AH119: 0.031 | AI119: 0.028 | AJ119: 0.025 | AK119: 0.025 | AL119: 0.025 | AN119: =IF(X119=".",".",SUM($X119:X119)) -> 51.32569337 | AO119: =IF(Y119=".",".",SUM($X119:Y119)) -> 93.65387332 | AP119: =IF(Z119=".",".",SUM($X119:Z119)) -> 133.5593875 | AQ119: =IF(AA119=".",".",SUM($X119:AA119)) -> 170.720432 | AR119: =IF(AB119=".",".",SUM($X119:AB119)) -> 204.8289622 | AS119: =IF(AC119=".",".",SUM($X119:AC119)) -> 239.7902057 | AT119: =IF(AD119=".",".",SUM($X119:AD119)) -> 275.6254802 | AV119: 0.043 | AW119: 0.078462 | AX119: 0.111894322 | AY119: 0.143027363 | AZ119: 0.1716030471 | BA119: 0.2008931233 | BB119: 0.2309154514
B120: =B80 -> Farmland | D120: $ nominal p.a. | I120: 3972.875903 | J120: 4170.005142 | K120: 4349.315363 | L120: 4497.192086 | M120: 4636.605041 | N120: 4766.429982 | O120: 4885.590731 | P120: 5007.730499 | Q120: 5132.923762 | T120: 1606 | U120: 1606 | X120: 179.3102211 | Y120: 147.8767224 | Z120: 139.4129547 | AA120: 129.8249411 | AB120: 119.1607495 | AC120: 122.1397683 | AD120: 125.1932625 | AF120: 0.043 | AG120: 0.034 | AH120: 0.031 | AI120: 0.028 | AJ120: 0.025 | AK120: 0.025 | AL120: 0.025 | AN120: =IF(X120=".",".",SUM($X120:X120)) -> 179.3102211 | AO120: =IF(Y120=".",".",SUM($X120:Y120)) -> 327.1869435 | AP120: =IF(Z120=".",".",SUM($X120:Z120)) -> 466.5998981 | AQ120: =IF(AA120=".",".",SUM($X120:AA120)) -> 596.4248393 | AR120: =IF(AB120=".",".",SUM($X120:AB120)) -> 715.5855888 | AS120: =IF(AC120=".",".",SUM($X120:AC120)) -> 837.7253571 | AT120: =IF(AD120=".",".",SUM($X120:AD120)) -> 962.9186196 | AV120: 0.043 | AW120: 0.078462 | AX120: 0.111894322 | AY120: 0.143027363 | AZ120: 0.1716030471 | BA120: 0.2008931233 | BB120: 0.2309154514
